Workbook

Sheet Notowania
A1: Data | B1: WIG_B | C1: Data | D1: MIL | E1: Data | F1: ING | G1: Data | H1: PKOBP | I1: Data | J1: PEKAO | K1: Data | L1: GETIN | M1: Data | N1: Handlowy | O1: Data | P1: SANTANDER | Q1: Data | R1: MBANK | S1: Data | T1: Alior | U1: Data | V1: BOS | W1: Data | X1: IDEA
A2: 42737 | B2: 6310.28 | C2: 42737 | D2: 5.19 | E2: 42737 | F2: 155.23 | G2: 42737 | H2: 27.881 | I2: 42737 | J2: 111.01 | K2: 42737 | L2: 1.37 | M2: 42737 | N2: 69.022 | O2: 42737 | P2: 312.22 | Q2: 42737 | R2: 333.99 | S2: 42737 | T2: 54.31 | U2: 42737 | V2: 11.39 | W2: 42737 | X2: 23.49
A3: 42738 | B3: 6526.74 | C3: 42738 | D3: 5.3 | E3: 42738 | F3: 155.43 | G3: 42738 | H3: 29.44 | I3: 42738 | J3: 114.69 | K3: 42738 | L3: 1.51 | M3: 42738 | N3: 69.928 | O3: 42738 | P3: 320.52 | Q3: 42738 | R3: 337.74 | S3: 42738 | T3: 55.15 | U3: 42738 | V3: 11.3 | W3: 42738 | X3: 24
A4: 42739 | B4: 6573.98 | C4: 42739 | D4: 5.32 | E4: 42739 | F4: 160.69 | G4: 42739 | H4: 30.003 | I4: 42739 | J4: 113.74 | K4: 42739 | L4: 1.61 | M4: 42739 | N4: 69.244 | O4: 42739 | P4: 315.39 | Q4: 42739 | R4: 344.16 | S4: 42739 | T4: 56.65 | U4: 42739 | V4: 11.4 | W4: 42739 | X4: 23.46
A5: 42740 | B5: 6562.19 | C5: 42740 | D5: 5.4 | E5: 42740 | F5: 160.05 | G5: 42740 | H5: 29.904 | I5: 42740 | J5: 113.31 | K5: 42740 | L5: 1.74 | M5: 42740 | N5: 67.913 | O5: 42740 | P5: 314.76 | Q5: 42740 | R5: 336.26 | S5: 42740 | T5: 57.7 | U5: 42740 | V5: 11.4 | W5: 42740 | X5: 23.7
A6: 42744 | B6: 6579.44 | C6: 42744 | D6: 5.5 | E6: 42744 | F6: 160.54 | G6: 42744 | H6: 30.102 | I6: 42744 | J6: 112.26 | K6: 42744 | L6: 1.82 | M6: 42744 | N6: 67.469 | O6: 42744 | P6: 316.12 | Q6: 42744 | R6: 341.35 | S6: 42744 | T6: 58.03 | U6: 42744 | V6: 11.36 | W6: 42744 | X6: 23.68
A7: 42745 | B7: 6605.34 | C7: 42745 | D7: 5.74 | E7: 42745 | F7: 165.17 | G7: 42745 | H7: 29.904 | I7: 42745 | J7: 112.53 | K7: 42745 | L7: 1.74 | M7: 42745 | N7: 68.623 | O7: 42745 | P7: 316.27 | Q7: 42745 | R7: 344.51 | S7: 42745 | T7: 59.25 | U7: 42745 | V7: 11.38 | W7: 42745 | X7: 23.49
A8: 42746 | B8: 6663.72 | C8: 42746 | D8: 5.74 | E8: 42746 | F8: 165.81 | G8: 42746 | H8: 30.398 | I8: 42746 | J8: 112.66 | K8: 42746 | L8: 1.77 | M8: 42746 | N8: 69.244 | O8: 42746 | P8: 320.23 | Q8: 42746 | R8: 347.82 | S8: 42746 | T8: 59.8 | U8: 42746 | V8: 11.25 | W8: 42746 | X8: 23.24
A9: 42747 | B9: 6619.74 | C9: 42747 | D9: 5.75 | E9: 42747 | F9: 165.17 | G9: 42747 | H9: 29.697 | I9: 42747 | J9: 111.31 | K9: 42747 | L9: 1.67 | M9: 42747 | N9: 67.797 | O9: 42747 | P9: 328.76 | Q9: 42747 | R9: 360.57 | S9: 42747 | T9: 59.85 | U9: 42747 | V9: 11.05 | W9: 42747 | X9: 23.25
A10: 42748 | B10: 6584.87 | C10: 42748 | D10: 5.66 | E10: 42748 | F10: 166.25 | G10: 42748 | H10: 29.48 | I10: 42748 | J10: 111.18 | K10: 42748 | L10: 1.62 | M10: 42748 | N10: 67.966 | O10: 42748 | P10: 326.37 | Q10: 42748 | R10: 353.85 | S10: 42748 | T10: 59.64 | U10: 42748 | V10: 10.82 | W10: 42748 | X10: 23.25
A11: 42751 | B11: 6592.6 | C11: 42751 | D11: 5.49 | E11: 42751 | F11: 166.15 | G11: 42751 | H11: 29.569 | I11: 42751 | J11: 113.39 | K11: 42751 | L11: 1.54 | M11: 42751 | N11: 68.942 | O11: 42751 | P11: 324.03 | Q11: 42751 | R11: 340.95 | S11: 42751 | T11: 59.31 | U11: 42751 | V11: 11.45 | W11: 42751 | X11: 23.15
A12: 42752 | B12: 6553.62 | C12: 42752 | D12: 5.51 | E12: 42752 | F12: 165.56 | G12: 42752 | H12: 29.065 | I12: 42752 | J12: 113.22 | K12: 42752 | L12: 1.66 | M12: 42752 | N12: 68.711 | O12: 42752 | P12: 322.85 | Q12: 42752 | R12: 341.84 | S12: 42752 | T12: 59.1 | U12: 42752 | V12: 11.31 | W12: 42752 | X12: 23.1
A13: 42753 | B13: 6514.59 | C13: 42753 | D13: 5.58 | E13: 42753 | F13: 164.48 | G13: 42753 | H13: 29.125 | I13: 42753 | J13: 112.05 | K13: 42753 | L13: 1.74 | M13: 42753 | N13: 67.735 | O13: 42753 | P13: 316.51 | Q13: 42753 | R13: 340.9 | S13: 42753 | T13: 58.01 | U13: 42753 | V13: 11.4 | W13: 42753 | X13: 23.04
A14: 42754 | B14: 6570.92 | C14: 42754 | D14: 5.6 | E14: 42754 | F14: 163.59 | G14: 42754 | H14: 29.608 | I14: 42754 | J14: 111.44 | K14: 42754 | L14: 1.7 | M14: 42754 | N14: 67.132 | O14: 42754 | P14: 324.03 | Q14: 42754 | R14: 347.77 | S14: 42754 | T14: 59.1 | U14: 42754 | V14: 11.15 | W14: 42754 | X14: 23.19
A15: 42755 | B15: 6576.53 | C15: 42755 | D15: 5.48 | E15: 42755 | F15: 163.49 | G15: 42755 | H15: 29.49 | I15: 42755 | J15: 111.61 | K15: 42755 | L15: 1.67 | M15: 42755 | N15: 66.848 | O15: 42755 | P15: 328.33 | Q15: 42755 | R15: 348.66 | S15: 42755 | T15: 60.09 | U15: 42755 | V15: 11.3 | W15: 42755 | X15: 22.51
A16: 42758 | B16: 6493.15 | C16: 42758 | D16: 5.48 | E16: 42758 | F16: 163.4 | G16: 42758 | H16: 28.868 | I16: 42758 | J16: 111.74 | K16: 42758 | L16: 1.6 | M16: 42758 | N16: 67.424 | O16: 42758 | P16: 319.2 | Q16: 42758 | R16: 338.78 | S16: 42758 | T16: 59.39 | U16: 42758 | V16: 11.13 | W16: 42758 | X16: 23.17
A17: 42759 | B17: 6586.23 | C17: 42759 | D17: 5.75 | E17: 42759 | F17: 164.04 | G17: 42759 | H17: 29.431 | I17: 42759 | J17: 112.87 | K17: 42759 | L17: 1.62 | M17: 42759 | N17: 66.581 | O17: 42759 | P17: 322.08 | Q17: 42759 | R17: 350.69 | S17: 42759 | T17: 59.66 | U17: 42759 | V17: 11.15 | W17: 42759 | X17: 23
A18: 42760 | B18: 6953.41 | C18: 42760 | D18: 5.93 | E18: 42760 | F18: 170.68 | G18: 42760 | H18: 31.079 | I18: 42760 | J18: 119.48 | K18: 42760 | L18: 1.67 | M18: 42760 | N18: 69.244 | O18: 42760 | P18: 344.53 | Q18: 42760 | R18: 376.48 | S18: 42760 | T18: 62.51 | U18: 42760 | V18: 11.33 | W18: 42760 | X18: 23.2
A19: 42761 | B19: 6943.92 | C19: 42761 | D19: 5.93 | E19: 42761 | F19: 164.82 | G19: 42761 | H19: 31.207 | I19: 42761 | J19: 118.65 | K19: 42761 | L19: 1.68 | M19: 42761 | N19: 70.558 | O19: 42761 | P19: 346.47 | Q19: 42761 | R19: 372.28 | S19: 42761 | T19: 61.95 | U19: 42761 | V19: 13.1 | W19: 42761 | X19: 23.51
A20: 42762 | B20: 6902.52 | C20: 42762 | D20: 5.92 | E20: 42762 | F20: 164.77 | G20: 42762 | H20: 30.704 | I20: 42762 | J20: 119.82 | K20: 42762 | L20: 1.69 | M20: 42762 | N20: 69.067 | O20: 42762 | P20: 337.84 | Q20: 42762 | R20: 382.6 | S20: 42762 | T20: 61.25 | U20: 42762 | V20: 13.49 | W20: 42762 | X20: 23.15
A21: 42765 | B21: 6788.61 | C21: 42765 | D21: 5.92 | E21: 42765 | F21: 166.25 | G21: 42765 | H21: 30.24 | I21: 42765 | J21: 117.26 | K21: 42765 | L21: 1.68 | M21: 42765 | N21: 68.738 | O21: 42765 | P21: 328.03 | Q21: 42765 | R21: 373.46 | S21: 42765 | T21: 60.35 | U21: 42765 | V21: 13.73 | W21: 42765 | X21: 23.1
A22: 42766 | B22: 6839.04 | C22: 42766 | D22: 5.88 | E22: 42766 | F22: 174.12 | G22: 42766 | H22: 30.27 | I22: 42766 | J22: 117.52 | K22: 42766 | L22: 1.65 | M22: 42766 | N22: 68.179 | O22: 42766 | P22: 336.22 | Q22: 42766 | R22: 373.51 | S22: 42766 | T22: 61 | U22: 42766 | V22: 14.6 | W22: 42766 | X22: 23.1
A23: 42767 | B23: 6947.96 | C23: 42767 | D23: 5.94 | E23: 42767 | F23: 170.97 | G23: 42767 | H23: 30.743 | I23: 42767 | J23: 119.04 | K23: 42767 | L23: 1.66 | M23: 42767 | N23: 70.132 | O23: 42767 | P23: 347.45 | Q23: 42767 | R23: 386.36 | S23: 42767 | T23: 61.75 | U23: 42767 | V23: 15.1 | W23: 42767 | X23: 23.15
A24: 42768 | B24: 6840.19 | C24: 42768 | D24: 5.89 | E24: 42768 | F24: 164.23 | G24: 42768 | H24: 30.2 | I24: 42768 | J24: 117.78 | K24: 42768 | L24: 1.67 | M24: 42768 | N24: 69.733 | O24: 42768 | P24: 339.16 | Q24: 42768 | R24: 390.11 | S24: 42768 | T24: 60.7 | U24: 42768 | V24: 14.45 | W24: 42768 | X24: 23.19
A25: 42769 | B25: 6889.05 | C25: 42769 | D25: 5.94 | E25: 42769 | F25: 170.38 | G25: 42769 | H25: 30.694 | I25: 42769 | J25: 117.61 | K25: 42769 | L25: 1.65 | M25: 42769 | N25: 68.623 | O25: 42769 | P25: 338.57 | Q25: 42769 | R25: 386.26 | S25: 42769 | T25: 61.59 | U25: 42769 | V25: 14.2 | W25: 42769 | X25: 23.21
A26: 42772 | B26: 6922.13 | C26: 42772 | D26: 5.91 | E26: 42772 | F26: 168.86 | G26: 42772 | H26: 31.286 | I26: 42772 | J26: 119.43 | K26: 42772 | L26: 1.62 | M26: 42772 | N26: 68.889 | O26: 42772 | P26: 334.32 | Q26: 42772 | R26: 365.61 | S26: 42772 | T26: 61.3 | U26: 42772 | V26: 14.65 | W26: 42772 | X26: 23.2
A27: 42773 | B27: 6897.21 | C27: 42773 | D27: 5.96 | E27: 42773 | F27: 169.2 | G27: 42773 | H27: 30.891 | I27: 42773 | J27: 118.13 | K27: 42773 | L27: 1.63 | M27: 42773 | N27: 69.199 | O27: 42773 | P27: 336.47 | Q27: 42773 | R27: 373.02 | S27: 42773 | T27: 61.99 | U27: 42773 | V27: 14.9 | W27: 42773 | X27: 23.16
A28: 42774 | B28: 6902.64 | C28: 42774 | D28: 5.99 | E28: 42774 | F28: 171.86 | G28: 42774 | H28: 30.743 | I28: 42774 | J28: 118.13 | K28: 42774 | L28: 1.67 | M28: 42774 | N28: 68.445 | O28: 42774 | P28: 331.7 | Q28: 42774 | R28: 391.3 | S28: 42774 | T28: 62.27 | U28: 42774 | V28: 14.71 | W28: 42774 | X28: 23.19
A29: 42775 | B29: 7118.14 | C29: 42775 | D29: 6.28 | E29: 42775 | F29: 172.15 | G29: 42775 | H29: 31.839 | I29: 42775 | J29: 121.39 | K29: 42775 | L29: 1.73 | M29: 42775 | N29: 70.532 | O29: 42775 | P29: 335.74 | Q29: 42775 | R29: 410.07 | S29: 42775 | T29: 66.39 | U29: 42775 | V29: 14.9 | W29: 42775 | X29: 23.2
A30: 42776 | B30: 7305.42 | C30: 42776 | D30: 7.04 | E30: 42776 | F30: 173.43 | G30: 42776 | H30: 32.865 | I30: 42776 | J30: 123.34 | K30: 42776 | L30: 2.03 | M30: 42776 | N30: 73.151 | O30: 42776 | P30: 338.77 | Q30: 42776 | R30: 421.58 | S30: 42776 | T30: 66.39 | U30: 42776 | V30: 15.4 | W30: 42776 | X30: 23.77
A31: 42779 | B31: 7325.56 | C31: 42779 | D31: 6.99 | E31: 42779 | F31: 172.05 | G31: 42779 | H31: 33.063 | I31: 42779 | J31: 123.78 | K31: 42779 | L31: 2.07 | M31: 42779 | N31: 72.351 | O31: 42779 | P31: 341.6 | Q31: 42779 | R31: 412 | S31: 42779 | T31: 67.4 | U31: 42779 | V31: 15.36 | W31: 42779 | X31: 25
A32: 42780 | B32: 7318.96 | C32: 42780 | D32: 6.84 | E32: 42780 | F32: 172.2 | G32: 42780 | H32: 33.063 | I32: 42780 | J32: 124.21 | K32: 42780 | L32: 2.02 | M32: 42780 | N32: 72.573 | O32: 42780 | P32: 346.47 | Q32: 42780 | R32: 405.77 | S32: 42780 | T32: 66 | U32: 42780 | V32: 14.99 | W32: 42780 | X32: 25
A33: 42781 | B33: 7379.74 | C33: 42781 | D33: 6.84 | E33: 42781 | F33: 170.38 | G33: 42781 | H33: 34.128 | I33: 42781 | J33: 124.9 | K33: 42781 | L33: 2.03 | M33: 42781 | N33: 72.795 | O33: 42781 | P33: 344.13 | Q33: 42781 | R33: 398.76 | S33: 42781 | T33: 64.9 | U33: 42781 | V33: 14.58 | W33: 42781 | X33: 25.51
A34: 42782 | B34: 7438.5 | C34: 42782 | D34: 6.95 | E34: 42782 | F34: 173.77 | G34: 42782 | H34: 34.484 | I34: 42782 | J34: 125.95 | K34: 42782 | L34: 1.99 | M34: 42782 | N34: 71.907 | O34: 42782 | P34: 344.97 | Q34: 42782 | R34: 403.01 | S34: 42782 | T34: 65 | U34: 42782 | V34: 14.58 | W34: 42782 | X34: 25.74
A35: 42783 | B35: 7342.95 | C35: 42783 | D35: 6.81 | E35: 42783 | F35: 172.94 | G35: 42783 | H35: 33.674 | I35: 42783 | J35: 124.64 | K35: 42783 | L35: 1.96 | M35: 42783 | N35: 70.575 | O35: 42783 | P35: 346.33 | Q35: 42783 | R35: 403.16 | S35: 42783 | T35: 64.46 | U35: 42783 | V35: 14.5 | W35: 42783 | X35: 25
A36: 42786 | B36: 7321.76 | C36: 42786 | D36: 6.81 | E36: 42786 | F36: 172.35 | G36: 42786 | H36: 33.447 | I36: 42786 | J36: 123.82 | K36: 42786 | L36: 2.05 | M36: 42786 | N36: 70.043 | O36: 42786 | P36: 344.33 | Q36: 42786 | R36: 404.74 | S36: 42786 | T36: 65.65 | U36: 42786 | V36: 14.5 | W36: 42786 | X36: 25.02
A37: 42787 | B37: 7519.82 | C37: 42787 | D37: 6.95 | E37: 42787 | F37: 175 | G37: 42787 | H37: 34.632 | I37: 42787 | J37: 125.95 | K37: 42787 | L37: 2.09 | M37: 42787 | N37: 72.768 | O37: 42787 | P37: 361.71 | Q37: 42787 | R37: 414.91 | S37: 42787 | T37: 66 | U37: 42787 | V37: 14.08 | W37: 42787 | X37: 24.6
A38: 42788 | B38: 7562.77 | C38: 42788 | D38: 6.94 | E38: 42788 | F38: 177.56 | G38: 42788 | H38: 34.987 | I38: 42788 | J38: 126.21 | K38: 42788 | L38: 2.02 | M38: 42788 | N38: 72.795 | O38: 42788 | P38: 362.09 | Q38: 42788 | R38: 421.93 | S38: 42788 | T38: 65.98 | U38: 42788 | V38: 14.1 | W38: 42788 | X38: 24.76
A39: 42789 | B39: 7545.8 | C39: 42789 | D39: 6.89 | E39: 42789 | F39: 180.02 | G39: 42789 | H39: 34.503 | I39: 42789 | J39: 125.73 | K39: 42789 | L39: 2.05 | M39: 42789 | N39: 73.691 | O39: 42789 | P39: 369.42 | Q39: 42789 | R39: 419.46 | S39: 42789 | T39: 66.26 | U39: 42789 | V39: 13.95 | W39: 42789 | X39: 24.26
A40: 42790 | B40: 7359.09 | C40: 42790 | D40: 6.83 | E40: 42790 | F40: 180.02 | G40: 42790 | H40: 33.477 | I40: 42790 | J40: 122.51 | K40: 42790 | L40: 2.01 | M40: 42790 | N40: 71.321 | O40: 42790 | P40: 356.24 | Q40: 42790 | R40: 401.23 | S40: 42790 | T40: 66.6 | U40: 42790 | V40: 13.59 | W40: 42790 | X40: 24.5
A41: 42793 | B41: 7317.03 | C41: 42793 | D41: 6.82 | E41: 42793 | F41: 180.02 | G41: 42793 | H41: 33.211 | I41: 42793 | J41: 122.48 | K41: 42793 | L41: 2 | M41: 42793 | N41: 71.339 | O41: 42793 | P41: 352.33 | Q41: 42793 | R41: 401.23 | S41: 42793 | T41: 65.2 | U41: 42793 | V41: 13.49 | W41: 42793 | X41: 24.15
A42: 42794 | B42: 7241.32 | C42: 42794 | D42: 6.82 | E42: 42794 | F42: 180.51 | G42: 42794 | H42: 32.845 | I42: 42794 | J42: 121.56 | K42: 42794 | L42: 2.02 | M42: 42794 | N42: 69.999 | O42: 42794 | P42: 342.62 | Q42: 42794 | R42: 391.5 | S42: 42794 | T42: 65.42 | U42: 42794 | V42: 13.46 | W42: 42794 | X42: 25
A43: 42795 | B43: 7538.01 | C43: 42795 | D43: 7.05 | E43: 42795 | F43: 179.33 | G43: 42795 | H43: 34.938 | I43: 42795 | J43: 125.08 | K43: 42795 | L43: 2.19 | M43: 42795 | N43: 71.668 | O43: 42795 | P43: 351.94 | Q43: 42795 | R43: 416 | S43: 42795 | T43: 67.97 | U43: 42795 | V43: 14.49 | W43: 42795 | X43: 25.6
A44: 42796 | B44: 7535.91 | C44: 42796 | D44: 7.01 | E44: 42796 | F44: 178.55 | G44: 42796 | H44: 34.928 | I44: 42796 | J44: 125.43 | K44: 42796 | L44: 2.25 | M44: 42796 | N44: 72.981 | O44: 42796 | P44: 355.6 | Q44: 42796 | R44: 396.93 | S44: 42796 | T44: 68.27 | U44: 42796 | V44: 14.36 | W44: 42796 | X44: 25.6
A45: 42797 | B45: 7391.22 | C45: 42797 | D45: 7.05 | E45: 42797 | F45: 175.55 | G45: 42797 | H45: 34.148 | I45: 42797 | J45: 122.48 | K45: 42797 | L45: 2.21 | M45: 42797 | N45: 72.777 | O45: 42797 | P45: 349.41 | Q45: 42797 | R45: 395.7 | S45: 42797 | T45: 65.77 | U45: 42797 | V45: 14.85 | W45: 42797 | X45: 25.76
A46: 42800 | B46: 7328.8 | C46: 42800 | D46: 7.02 | E46: 42800 | F46: 175.2 | G46: 42800 | H46: 33.803 | I46: 42800 | J46: 122.12 | K46: 42800 | L46: 2.19 | M46: 42800 | N46: 72.555 | O46: 42800 | P46: 343.55 | Q46: 42800 | R46: 391.55 | S46: 42800 | T46: 64.69 | U46: 42800 | V46: 15.18 | W46: 42800 | X46: 25.39
A47: 42801 | B47: 7187.62 | C47: 42801 | D47: 6.8 | E47: 42801 | F47: 173.73 | G47: 42801 | H47: 32.915 | I47: 42801 | J47: 119.95 | K47: 42801 | L47: 2.15 | M47: 42801 | N47: 71.587 | O47: 42801 | P47: 339.64 | Q47: 42801 | R47: 390.31 | S47: 42801 | T47: 63.1 | U47: 42801 | V47: 14.95 | W47: 42801 | X47: 25
A48: 42802 | B48: 7175.88 | C48: 42802 | D48: 6.62 | E48: 42802 | F48: 174.02 | G48: 42802 | H48: 32.352 | I48: 42802 | J48: 118.57 | K48: 42802 | L48: 2.09 | M48: 42802 | N48: 70.248 | O48: 42802 | P48: 351.51 | Q48: 42802 | R48: 401.08 | S48: 42802 | T48: 65.98 | U48: 42802 | V48: 14.79 | W48: 42802 | X48: 25.18
A49: 42803 | B49: 7095.62 | C49: 42803 | D49: 6.63 | E49: 42803 | F49: 169.2 | G49: 42803 | H49: 32.421 | I49: 42803 | J49: 117.26 | K49: 42803 | L49: 2.02 | M49: 42803 | N49: 69.706 | O49: 42803 | P49: 341.55 | Q49: 42803 | R49: 385.37 | S49: 42803 | T49: 65.3 | U49: 42803 | V49: 13.92 | W49: 42803 | X49: 25.14
A50: 42804 | B50: 7106.1 | C50: 42804 | D50: 6.6 | E50: 42804 | F50: 170.48 | G50: 42804 | H50: 32.243 | I50: 42804 | J50: 117.43 | K50: 42804 | L50: 2.02 | M50: 42804 | N50: 70.451 | O50: 42804 | P50: 337.69 | Q50: 42804 | R50: 381.42 | S50: 42804 | T50: 69.28 | U50: 42804 | V50: 14 | W50: 42804 | X50: 25.02
A51: 42807 | B51: 7277.23 | C51: 42807 | D51: 6.64 | E51: 42807 | F51: 175.99 | G51: 42807 | H51: 33.013 | I51: 42807 | J51: 119.48 | K51: 42807 | L51: 2.06 | M51: 42807 | N51: 72.609 | O51: 42807 | P51: 344.13 | Q51: 42807 | R51: 394.21 | S51: 42807 | T51: 73 | U51: 42807 | V51: 14.2 | W51: 42807 | X51: 25
A52: 42808 | B52: 7219.7 | C52: 42808 | D52: 6.64 | E52: 42808 | F52: 176.09 | G52: 42808 | H52: 32.668 | I52: 42808 | J52: 118.83 | K52: 42808 | L52: 2.07 | M52: 42808 | N52: 71.96 | O52: 42808 | P52: 339.16 | Q52: 42808 | R52: 393.27 | S52: 42808 | T52: 72.03 | U52: 42808 | V52: 14.09 | W52: 42808 | X52: 25
A53: 42809 | B53: 7140.57 | C53: 42809 | D53: 6.65 | E53: 42809 | F53: 175.4 | G53: 42809 | H53: 32.095 | I53: 42809 | J53: 117.43 | K53: 42809 | L53: 2.07 | M53: 42809 | N53: 71.428 | O53: 42809 | P53: 335.59 | Q53: 42809 | R53: 390.56 | S53: 42809 | T53: 71.97 | U53: 42809 | V53: 13.6 | W53: 42809 | X53: 24.98
A54: 42810 | B54: 7338.58 | C54: 42810 | D54: 6.8 | E54: 42810 | F54: 179.14 | G54: 42810 | H54: 33.102 | I54: 42810 | J54: 121.17 | K54: 42810 | L54: 2.02 | M54: 42810 | N54: 72.795 | O54: 42810 | P54: 343.06 | Q54: 42810 | R54: 399.99 | S54: 42810 | T54: 74.43 | U54: 42810 | V54: 13.61 | W54: 42810 | X54: 25.18
A55: 42811 | B55: 7330.46 | C55: 42811 | D55: 6.81 | E55: 42811 | F55: 175.2 | G55: 42811 | H55: 33.25 | I55: 42811 | J55: 120.82 | K55: 42811 | L55: 2 | M55: 42811 | N55: 73.265 | O55: 42811 | P55: 341.01 | Q55: 42811 | R55: 394.76 | S55: 42811 | T55: 75.25 | U55: 42811 | V55: 13.73 | W55: 42811 | X55: 24.97
A56: 42814 | B56: 7319.29 | C56: 42814 | D56: 6.9 | E56: 42814 | F56: 174.71 | G56: 42814 | H56: 32.786 | I56: 42814 | J56: 121.6 | K56: 42814 | L56: 2.01 | M56: 42814 | N56: 72.573 | O56: 42814 | P56: 348.34 | Q56: 42814 | R56: 388.33 | S56: 42814 | T56: 74.99 | U56: 42814 | V56: 13.75 | W56: 42814 | X56: 25.19
A57: 42815 | B57: 7274.01 | C57: 42815 | D57: 6.71 | E57: 42815 | F57: 172.94 | G57: 42815 | H57: 32.984 | I57: 42815 | J57: 119.87 | K57: 42815 | L57: 2 | M57: 42815 | N57: 71.792 | O57: 42815 | P57: 344.62 | Q57: 42815 | R57: 385.22 | S57: 42815 | T57: 74.73 | U57: 42815 | V57: 13.5 | W57: 42815 | X57: 24.63
A58: 42816 | B58: 7114.16 | C58: 42816 | D58: 6.64 | E58: 42816 | F58: 169.89 | G58: 42816 | H58: 31.997 | I58: 42816 | J58: 117.91 | K58: 42816 | L58: 1.94 | M58: 42816 | N58: 70.674 | O58: 42816 | P58: 336.67 | Q58: 42816 | R58: 379.54 | S58: 42816 | T58: 73.1 | U58: 42816 | V58: 12.57 | W58: 42816 | X58: 25
A59: 42817 | B59: 7155.47 | C59: 42817 | D59: 6.6 | E59: 42817 | F59: 172.84 | G59: 42817 | H59: 32.224 | I59: 42817 | J59: 117.26 | K59: 42817 | L59: 1.9 | M59: 42817 | N59: 71.694 | O59: 42817 | P59: 341.06 | Q59: 42817 | R59: 390.31 | S59: 42817 | T59: 73.6 | U59: 42817 | V59: 11.95 | W59: 42817 | X59: 24.94
A60: 42818 | B60: 7198.78 | C60: 42818 | D60: 6.58 | E60: 42818 | F60: 173.43 | G60: 42818 | H60: 32.845 | I60: 42818 | J60: 117.35 | K60: 42818 | L60: 1.97 | M60: 42818 | N60: 70.461 | O60: 42818 | P60: 336.22 | Q60: 42818 | R60: 395.05 | S60: 42818 | T60: 74.17 | U60: 42818 | V60: 12.02 | W60: 42818 | X60: 25.14
A61: 42821 | B61: 7126.46 | C61: 42821 | D61: 6.5 | E61: 42821 | F61: 169.2 | G61: 42821 | H61: 32.47 | I61: 42821 | J61: 117.22 | K61: 42821 | L61: 1.93 | M61: 42821 | N61: 69.138 | O61: 42821 | P61: 336.22 | Q61: 42821 | R61: 382.7 | S61: 42821 | T61: 72.9 | U61: 42821 | V61: 12.4 | W61: 42821 | X61: 25.12
A62: 42822 | B62: 7203.34 | C62: 42822 | D62: 6.85 | E62: 42822 | F62: 171.17 | G62: 42822 | H62: 32.697 | I62: 42822 | J62: 118.34 | K62: 42822 | L62: 1.99 | M62: 42822 | N62: 69.12 | O62: 42822 | P62: 336.22 | Q62: 42822 | R62: 395.05 | S62: 42822 | T62: 73.57 | U62: 42822 | V62: 12.35 | W62: 42822 | X62: 25.22
A63: 42823 | B63: 7170.02 | C63: 42823 | D63: 6.67 | E63: 42823 | F63: 172.05 | G63: 42823 | H63: 32.569 | I63: 42823 | J63: 118.13 | K63: 42823 | L63: 2 | M63: 42823 | N63: 69.972 | O63: 42823 | P63: 337.5 | Q63: 42823 | R63: 386.31 | S63: 42823 | T63: 72.29 | U63: 42823 | V63: 12.34 | W63: 42823 | X63: 25
A64: 42824 | B64: 7084.51 | C64: 42824 | D64: 6.52 | E64: 42824 | F64: 170.09 | G64: 42824 | H64: 32.026 | I64: 42824 | J64: 117.17 | K64: 42824 | L64: 1.98 | M64: 42824 | N64: 69.466 | O64: 42824 | P64: 338.28 | Q64: 42824 | R64: 379 | S64: 42824 | T64: 70.99 | U64: 42824 | V64: 12.34 | W64: 42824 | X64: 25.05
A65: 42825 | B65: 6991.74 | C65: 42825 | D65: 6.45 | E65: 42825 | F65: 169.25 | G65: 42825 | H65: 31.641 | I65: 42825 | J65: 114.74 | K65: 42825 | L65: 1.96 | M65: 42825 | N65: 68.09 | O65: 42825 | P65: 334.28 | Q65: 42825 | R65: 369.07 | S65: 42825 | T65: 71.48 | U65: 42825 | V65: 11.8 | W65: 42825 | X65: 25
A66: 42828 | B66: 7095.33 | C66: 42828 | D66: 6.55 | E66: 42828 | F66: 168.22 | G66: 42828 | H66: 32.569 | I66: 42828 | J66: 115.96 | K66: 42828 | L66: 1.87 | M66: 42828 | N66: 68.889 | O66: 42828 | P66: 337.21 | Q66: 42828 | R66: 373.46 | S66: 42828 | T66: 72.19 | U66: 42828 | V66: 11.32 | W66: 42828 | X66: 24.89
A67: 42829 | B67: 7175.74 | C67: 42829 | D67: 6.67 | E67: 42829 | F67: 168.22 | G67: 42829 | H67: 33.112 | I67: 42829 | J67: 116.91 | K67: 42829 | L67: 1.85 | M67: 42829 | N67: 69.608 | O67: 42829 | P67: 342.08 | Q67: 42829 | R67: 380.92 | S67: 42829 | T67: 71.98 | U67: 42829 | V67: 11.35 | W67: 42829 | X67: 25
A68: 42830 | B68: 7223.49 | C68: 42830 | D68: 6.6 | E68: 42830 | F68: 169.2 | G68: 42830 | H68: 33.359 | I68: 42830 | J68: 118.04 | K68: 42830 | L68: 1.81 | M68: 42830 | N68: 70.913 | O68: 42830 | P68: 341.6 | Q68: 42830 | R68: 386.7 | S68: 42830 | T68: 72.83 | U68: 42830 | V68: 11.24 | W68: 42830 | X68: 24.7
A69: 42831 | B69: 7258.01 | C69: 42831 | D69: 6.6 | E69: 42831 | F69: 169.69 | G69: 42831 | H69: 33.546 | I69: 42831 | J69: 118.7 | K69: 42831 | L69: 1.85 | M69: 42831 | N69: 70.833 | O69: 42831 | P69: 346.28 | Q69: 42831 | R69: 383.99 | S69: 42831 | T69: 72.8 | U69: 42831 | V69: 11.15 | W69: 42831 | X69: 24.89
A70: 42832 | B70: 7195.4 | C70: 42832 | D70: 6.56 | E70: 42832 | F70: 168.41 | G70: 42832 | H70: 32.964 | I70: 42832 | J70: 118.57 | K70: 42832 | L70: 1.84 | M70: 42832 | N70: 70.132 | O70: 42832 | P70: 346.47 | Q70: 42832 | R70: 378.7 | S70: 42832 | T70: 72.15 | U70: 42832 | V70: 11.2 | W70: 42832 | X70: 24.71
A71: 42835 | B71: 7142.33 | C71: 42835 | D71: 6.43 | E71: 42835 | F71: 165.61 | G71: 42835 | H71: 32.757 | I71: 42835 | J71: 118.73 | K71: 42835 | L71: 1.86 | M71: 42835 | N71: 65.764 | O71: 42835 | P71: 345.5 | Q71: 42835 | R71: 372.67 | S71: 42835 | T71: 71.5 | U71: 42835 | V71: 11.35 | W71: 42835 | X71: 24.83
A72: 42836 | B72: 7016.73 | C72: 42836 | D72: 6.27 | E72: 42836 | F72: 161.92 | G72: 42836 | H72: 32.47 | I72: 42836 | J72: 116.39 | K72: 42836 | L72: 1.83 | M72: 42836 | N72: 64.557 | O72: 42836 | P72: 335.94 | Q72: 42836 | R72: 365.26 | S72: 42836 | T72: 69.89 | U72: 42836 | V72: 11.2 | W72: 42836 | X72: 24.75
A73: 42837 | B73: 6973.53 | C73: 42837 | D73: 6.43 | E73: 42837 | F73: 163.59 | G73: 42837 | H73: 31.582 | I73: 42837 | J73: 115.09 | K73: 42837 | L73: 1.85 | M73: 42837 | N73: 64.584 | O73: 42837 | P73: 344.53 | Q73: 42837 | R73: 375.44 | S73: 42837 | T73: 69.35 | U73: 42837 | V73: 11 | W73: 42837 | X73: 23.76
A74: 42838 | B74: 6976.76 | C74: 42838 | D74: 6.34 | E74: 42838 | F74: 165.76 | G74: 42838 | H74: 31.543 | I74: 42838 | J74: 115.31 | K74: 42838 | L74: 1.83 | M74: 42838 | N74: 64.45 | O74: 42838 | P74: 345.5 | Q74: 42838 | R74: 373.76 | S74: 42838 | T74: 69.58 | U74: 42838 | V74: 11.24 | W74: 42838 | X74: 23.49
A75: 42843 | B75: 7003.8 | C75: 42843 | D75: 6.2 | E75: 42843 | F75: 163.79 | G75: 42843 | H75: 31.78 | I75: 42843 | J75: 117.43 | K75: 42843 | L75: 1.8 | M75: 42843 | N75: 64.104 | O75: 42843 | P75: 340.67 | Q75: 42843 | R75: 371.54 | S75: 42843 | T75: 70.79 | U75: 42843 | V75: 11.1 | W75: 42843 | X75: 23.68
A76: 42844 | B76: 7141.35 | C76: 42844 | D76: 6.31 | E76: 42844 | F76: 166.25 | G76: 42844 | H76: 32.776 | I76: 42844 | J76: 118.99 | K76: 42844 | L76: 1.8 | M76: 42844 | N76: 64.805 | O76: 42844 | P76: 345.35 | Q76: 42844 | R76: 383.69 | S76: 42844 | T76: 70.87 | U76: 42844 | V76: 11.26 | W76: 42844 | X76: 23.69
A77: 42845 | B77: 7151.03 | C77: 42845 | D77: 6.3 | E77: 42845 | F77: 165.71 | G77: 42845 | H77: 32.757 | I77: 42845 | J77: 117.26 | K77: 42845 | L77: 1.79 | M77: 42845 | N77: 65 | O77: 42845 | P77: 352.09 | Q77: 42845 | R77: 389.92 | S77: 42845 | T77: 72.83 | U77: 42845 | V77: 11.2 | W77: 42845 | X77: 23.72
A78: 42846 | B78: 7048.42 | C78: 42846 | D78: 6.19 | E78: 42846 | F78: 169.59 | G78: 42846 | H78: 32.224 | I78: 42846 | J78: 114.66 | K78: 42846 | L78: 1.76 | M78: 42846 | N78: 63.927 | O78: 42846 | P78: 348.14 | Q78: 42846 | R78: 387.89 | S78: 42846 | T78: 71.1 | U78: 42846 | V78: 11.2 | W78: 42846 | X78: 23.9
A79: 42849 | B79: 7158.37 | C79: 42849 | D79: 6.44 | E79: 42849 | F79: 171.17 | G79: 42849 | H79: 32.747 | I79: 42849 | J79: 117.04 | K79: 42849 | L79: 1.84 | M79: 42849 | N79: 65.036 | O79: 42849 | P79: 347.84 | Q79: 42849 | R79: 393.87 | S79: 42849 | T79: 71.89 | U79: 42849 | V79: 11.23 | W79: 42849 | X79: 24.23
A80: 42850 | B80: 7420.84 | C80: 42850 | D80: 6.95 | E80: 42850 | F80: 176.58 | G80: 42850 | H80: 33.724 | I80: 42850 | J80: 120.26 | K80: 42850 | L80: 1.93 | M80: 42850 | N80: 67.424 | O80: 42850 | P80: 368.24 | Q80: 42850 | R80: 413.98 | S80: 42850 | T80: 74.2 | U80: 42850 | V80: 11.1 | W80: 42850 | X80: 24.45
A81: 42851 | B81: 7475.71 | C81: 42851 | D81: 7 | E81: 42851 | F81: 177.07 | G81: 42851 | H81: 34.573 | I81: 42851 | J81: 121.91 | K81: 42851 | L81: 1.93 | M81: 42851 | N81: 67.025 | O81: 42851 | P81: 351.56 | Q81: 42851 | R81: 416.99 | S81: 42851 | T81: 74.86 | U81: 42851 | V81: 11.06 | W81: 42851 | X81: 24.43
A82: 42852 | B82: 7568.09 | C82: 42852 | D82: 7 | E82: 42852 | F82: 176.33 | G82: 42852 | H82: 35.372 | I82: 42852 | J82: 123.13 | K82: 42852 | L82: 1.88 | M82: 42852 | N82: 67.735 | O82: 42852 | P82: 357.32 | Q82: 42852 | R82: 422.47 | S82: 42852 | T82: 74.69 | U82: 42852 | V82: 10.75 | W82: 42852 | X82: 24.25
A83: 42853 | B83: 7484.97 | C83: 42853 | D83: 6.92 | E83: 42853 | F83: 176.18 | G83: 42853 | H83: 34.829 | I83: 42853 | J83: 122.08 | K83: 42853 | L83: 1.86 | M83: 42853 | N83: 66.536 | O83: 42853 | P83: 347.65 | Q83: 42853 | R83: 427.86 | S83: 42853 | T83: 74.59 | U83: 42853 | V83: 10.7 | W83: 42853 | X83: 24.45
A84: 42857 | B84: 7566.27 | C84: 42857 | D84: 6.92 | E84: 42857 | F84: 176.14 | G84: 42857 | H84: 35.096 | I84: 42857 | J84: 123.26 | K84: 42857 | L84: 1.91 | M84: 42857 | N84: 66.314 | O84: 42857 | P84: 355.12 | Q84: 42857 | R84: 432.8 | S84: 42857 | T84: 76.99 | U84: 42857 | V84: 11 | W84: 42857 | X84: 24.4
A85: 42859 | B85: 7575.1 | C85: 42859 | D85: 7.07 | E85: 42859 | F85: 178.35 | G85: 42859 | H85: 36.023 | I85: 42859 | J85: 121.82 | K85: 42859 | L85: 1.89 | M85: 42859 | N85: 67.806 | O85: 42859 | P85: 341.89 | Q85: 42859 | R85: 443.13 | S85: 42859 | T85: 72.96 | U85: 42859 | V85: 10.66 | W85: 42859 | X85: 24.06
A86: 42860 | B86: 7561.72 | C86: 42860 | D86: 7.06 | E86: 42860 | F86: 177.86 | G86: 42860 | H86: 36.063 | I86: 42860 | J86: 121.26 | K86: 42860 | L86: 1.88 | M86: 42860 | N86: 66.581 | O86: 42860 | P86: 342.82 | Q86: 42860 | R86: 439.72 | S86: 42860 | T86: 72.86 | U86: 42860 | V86: 10.41 | W86: 42860 | X86: 24.06
A87: 42863 | B87: 7506.77 | C87: 42863 | D87: 7.02 | E87: 42863 | F87: 176.18 | G87: 42863 | H87: 35.234 | I87: 42863 | J87: 121.52 | K87: 42863 | L87: 1.86 | M87: 42863 | N87: 66.217 | O87: 42863 | P87: 345.6 | Q87: 42863 | R87: 438.38 | S87: 42863 | T87: 73.41 | U87: 42863 | V87: 10.3 | W87: 42863 | X87: 24.2
A88: 42864 | B88: 7743.32 | C88: 42864 | D88: 7.21 | E88: 42864 | F88: 177.66 | G88: 42864 | H88: 36.803 | I88: 42864 | J88: 125.9 | K88: 42864 | L88: 1.88 | M88: 42864 | N88: 67.424 | O88: 42864 | P88: 351.36 | Q88: 42864 | R88: 454.44 | S88: 42864 | T88: 74.14 | U88: 42864 | V88: 10.8 | W88: 42864 | X88: 24.39
A89: 42865 | B89: 7600.66 | C89: 42865 | D89: 7.23 | E89: 42865 | F89: 183.42 | G89: 42865 | H89: 35.589 | I89: 42865 | J89: 124.73 | K89: 42865 | L89: 1.88 | M89: 42865 | N89: 67.016 | O89: 42865 | P89: 342.28 | Q89: 42865 | R89: 435.81 | S89: 42865 | T89: 73 | U89: 42865 | V89: 11.06 | W89: 42865 | X89: 23.9
A90: 42866 | B90: 7552.01 | C90: 42866 | D90: 7.2 | E90: 42866 | F90: 182.09 | G90: 42866 | H90: 34.948 | I90: 42866 | J90: 124.64 | K90: 42866 | L90: 1.88 | M90: 42866 | N90: 67.016 | O90: 42866 | P90: 344.87 | Q90: 42866 | R90: 429.39 | S90: 42866 | T90: 73.45 | U90: 42866 | V90: 11.59 | W90: 42866 | X90: 24.35
A91: 42867 | B91: 7588.92 | C91: 42867 | D91: 7.25 | E91: 42867 | F91: 180.02 | G91: 42867 | H91: 35.323 | I91: 42867 | J91: 125.38 | K91: 42867 | L91: 1.86 | M91: 42867 | N91: 66.012 | O91: 42867 | P91: 344.43 | Q91: 42867 | R91: 433.89 | S91: 42867 | T91: 73.63 | U91: 42867 | V91: 11.55 | W91: 42867 | X91: 24.39
A92: 42870 | B92: 7614.91 | C92: 42870 | D92: 7.19 | E92: 42870 | F92: 182.04 | G92: 42870 | H92: 35.333 | I92: 42870 | J92: 125.77 | K92: 42870 | L92: 1.87 | M92: 42870 | N92: 66.093 | O92: 42870 | P92: 346.82 | Q92: 42870 | R92: 436.75 | S92: 42870 | T92: 74.64 | U92: 42870 | V92: 11.21 | W92: 42870 | X92: 24.29
A93: 42871 | B93: 7509.17 | C93: 42871 | D93: 7.07 | E93: 42871 | F93: 181.69 | G93: 42871 | H93: 34.938 | I93: 42871 | J93: 124.64 | K93: 42871 | L93: 1.74 | M93: 42871 | N93: 64.708 | O93: 42871 | P93: 338.42 | Q93: 42871 | R93: 434.48 | S93: 42871 | T93: 72.25 | U93: 42871 | V93: 11.05 | W93: 42871 | X93: 24.19
A94: 42872 | B94: 7448.12 | C94: 42872 | D94: 7.09 | E94: 42872 | F94: 179.48 | G94: 42872 | H94: 34.385 | I94: 42872 | J94: 124.21 | K94: 42872 | L94: 1.67 | M94: 42872 | N94: 64.601 | O94: 42872 | P94: 341.11 | Q94: 42872 | R94: 427.32 | S94: 42872 | T94: 71.44 | U94: 42872 | V94: 11.04 | W94: 42872 | X94: 24.38
A95: 42873 | B95: 7344.06 | C95: 42873 | D95: 6.91 | E95: 42873 | F95: 176.09 | G95: 42873 | H95: 34.099 | I95: 42873 | J95: 122.04 | K95: 42873 | L95: 1.63 | M95: 42873 | N95: 65.48 | O95: 42873 | P95: 335.3 | Q95: 42873 | R95: 419.95 | S95: 42873 | T95: 70 | U95: 42873 | V95: 11.01 | W95: 42873 | X95: 24.43
A96: 42874 | B96: 7374.53 | C96: 42874 | D96: 7.19 | E96: 42874 | F96: 177.91 | G96: 42874 | H96: 34.099 | I96: 42874 | J96: 121.17 | K96: 42874 | L96: 1.59 | M96: 42874 | N96: 64.805 | O96: 42874 | P96: 338.67 | Q96: 42874 | R96: 422.92 | S96: 42874 | T96: 72.18 | U96: 42874 | V96: 10.8 | W96: 42874 | X96: 24.6
A97: 42877 | B97: 7438.19 | C97: 42877 | D97: 7.15 | E97: 42877 | F97: 181.99 | G97: 42877 | H97: 34.987 | I97: 42877 | J97: 121.78 | K97: 42877 | L97: 1.59 | M97: 42877 | N97: 64.272 | O97: 42877 | P97: 339.16 | Q97: 42877 | R97: 418.23 | S97: 42877 | T97: 70.51 | U97: 42877 | V97: 10.9 | W97: 42877 | X97: 24
A98: 42878 | B98: 7347.48 | C98: 42878 | D98: 7.09 | E98: 42878 | F98: 178.64 | G98: 42878 | H98: 34.128 | I98: 42878 | J98: 121.17 | K98: 42878 | L98: 1.55 | M98: 42878 | N98: 65.249 | O98: 42878 | P98: 340.63 | Q98: 42878 | R98: 415.01 | S98: 42878 | T98: 69.35 | U98: 42878 | V98: 10.98 | W98: 42878 | X98: 24.04
A99: 42879 | B99: 7454.92 | C99: 42879 | D99: 7.11 | E99: 42879 | F99: 178.55 | G99: 42879 | H99: 35.698 | I99: 42879 | J99: 121.6 | K99: 42879 | L99: 1.5 | M99: 42879 | N99: 64.903 | O99: 42879 | P99: 337.3 | Q99: 42879 | R99: 415.01 | S99: 42879 | T99: 69.02 | U99: 42879 | V99: 10.82 | W99: 42879 | X99: 24.15
A100: 42880 | B100: 7528.58 | C100: 42880 | D100: 7.25 | E100: 42880 | F100: 182.78 | G100: 42880 | H100: 35.579 | I100: 42880 | J100: 122.74 | K100: 42880 | L100: 1.56 | M100: 42880 | N100: 64.628 | O100: 42880 | P100: 345.21 | Q100: 42880 | R100: 428.4 | S100: 42880 | T100: 70 | U100: 42880 | V100: 10.93 | W100: 42880 | X100: 24.19
A101: 42881 | B101: 7491.01 | C101: 42881 | D101: 7.16 | E101: 42881 | F101: 179.19 | G101: 42881 | H101: 35.629 | I101: 42881 | J101: 121.26 | K101: 42881 | L101: 1.53 | M101: 42881 | N101: 65.515 | O101: 42881 | P101: 346.53 | Q101: 42881 | R101: 423.02 | S101: 42881 | T101: 69.54 | U101: 42881 | V101: 10.98 | W101: 42881 | X101: 24.17
A102: 42884 | B102: 7463.14 | C102: 42884 | D102: 7.15 | E102: 42884 | F102: 179.23 | G102: 42884 | H102: 35.254 | I102: 42884 | J102: 120.43 | K102: 42884 | L102: 1.52 | M102: 42884 | N102: 65.373 | O102: 42884 | P102: 345.5 | Q102: 42884 | R102: 431.91 | S102: 42884 | T102: 70 | U102: 42884 | V102: 11.1 | W102: 42884 | X102: 24.45
A103: 42885 | B103: 7365.96 | C103: 42885 | D103: 7.07 | E103: 42885 | F103: 173.87 | G103: 42885 | H103: 34.77 | I103: 42885 | J103: 119.3 | K103: 42885 | L103: 1.49 | M103: 42885 | N103: 64.628 | O103: 42885 | P103: 341.93 | Q103: 42885 | R103: 423.46 | S103: 42885 | T103: 69.45 | U103: 42885 | V103: 10.9 | W103: 42885 | X103: 24.47
A104: 42886 | B104: 7421.43 | C104: 42886 | D104: 6.96 | E104: 42886 | F104: 173.73 | G104: 42886 | H104: 36.033 | I104: 42886 | J104: 119.87 | K104: 42886 | L104: 1.51 | M104: 42886 | N104: 61.698 | O104: 42886 | P104: 336.23 | Q104: 42886 | R104: 416.99 | S104: 42886 | T104: 68.2 | U104: 42886 | V104: 10.9 | W104: 42886 | X104: 24.4
A105: 42887 | B105: 7300.62 | C105: 42887 | D105: 6.93 | E105: 42887 | F105: 177.46 | G105: 42887 | H105: 34.8 | I105: 42887 | J105: 118.13 | K105: 42887 | L105: 1.51 | M105: 42887 | N105: 63.376 | O105: 42887 | P105: 333.81 | Q105: 42887 | R105: 419.46 | S105: 42887 | T105: 66.49 | U105: 42887 | V105: 10.77 | W105: 42887 | X105: 24.51
A106: 42888 | B106: 7357.17 | C106: 42888 | D106: 7.09 | E106: 42888 | F106: 181.25 | G106: 42888 | H106: 35.303 | I106: 42888 | J106: 117.35 | K106: 42888 | L106: 1.5 | M106: 42888 | N106: 62.941 | O106: 42888 | P106: 340.94 | Q106: 42888 | R106: 438.73 | S106: 42888 | T106: 63.3 | U106: 42888 | V106: 10.89 | W106: 42888 | X106: 24.45
A107: 42891 | B107: 7307.23 | C107: 42891 | D107: 6.93 | E107: 42891 | F107: 176.09 | G107: 42891 | H107: 35.184 | I107: 42891 | J107: 115.18 | K107: 42891 | L107: 1.49 | M107: 42891 | N107: 62.036 | O107: 42891 | P107: 336.98 | Q107: 42891 | R107: 430.43 | S107: 42891 | T107: 68.2 | U107: 42891 | V107: 10.85 | W107: 42891 | X107: 24.44
A108: 42892 | B108: 7338.97 | C108: 42892 | D108: 7.05 | E108: 42892 | F108: 177.51 | G108: 42892 | H108: 35.471 | I108: 42892 | J108: 115.09 | K108: 42892 | L108: 1.5 | M108: 42892 | N108: 61.494 | O108: 42892 | P108: 341.69 | Q108: 42892 | R108: 424.4 | S108: 42892 | T108: 68.03 | U108: 42892 | V108: 10.8 | W108: 42892 | X108: 24.1
A109: 42893 | B109: 7366.28 | C109: 42893 | D109: 7.2 | E109: 42893 | F109: 175.94 | G109: 42893 | H109: 35.481 | I109: 42893 | J109: 115.48 | K109: 42893 | L109: 1.5 | M109: 42893 | N109: 61.805 | O109: 42893 | P109: 341.64 | Q109: 42893 | R109: 429.84 | S109: 42893 | T109: 69.5 | U109: 42893 | V109: 10.5 | W109: 42893 | X109: 24
A110: 42894 | B110: 7434.86 | C110: 42894 | D110: 7.25 | E110: 42894 | F110: 176.48 | G110: 42894 | H110: 36.112 | I110: 42894 | J110: 116.04 | K110: 42894 | L110: 1.53 | M110: 42894 | N110: 62.994 | O110: 42894 | P110: 345.15 | Q110: 42894 | R110: 440.61 | S110: 42894 | T110: 67.42 | U110: 42894 | V110: 10.74 | W110: 42894 | X110: 24
A111: 42895 | B111: 7357.65 | C111: 42895 | D111: 7.2 | E111: 42895 | F111: 178.2 | G111: 42895 | H111: 35.382 | I111: 42895 | J111: 114.66 | K111: 42895 | L111: 1.5 | M111: 42895 | N111: 62.222 | O111: 42895 | P111: 345.9 | Q111: 42895 | R111: 442.53 | S111: 42895 | T111: 66.5 | U111: 42895 | V111: 10.76 | W111: 42895 | X111: 24.08
A112: 42898 | B112: 7201.7 | C112: 42898 | D112: 7.28 | E112: 42898 | F112: 175.1 | G112: 42898 | H112: 34.276 | I112: 42898 | J112: 113.52 | K112: 42898 | L112: 1.45 | M112: 42898 | N112: 61.876 | O112: 42898 | P112: 339.36 | Q112: 42898 | R112: 427.66 | S112: 42898 | T112: 63.93 | U112: 42898 | V112: 10.61 | W112: 42898 | X112: 24.09
A113: 42899 | B113: 7239.05 | C113: 42899 | D113: 7.06 | E113: 42899 | F113: 177.56 | G113: 42899 | H113: 34.948 | I113: 42899 | J113: 112.96 | K113: 42899 | L113: 1.43 | M113: 42899 | N113: 61.876 | O113: 42899 | P113: 335.59 | Q113: 42899 | R113: 437.44 | S113: 42899 | T113: 64.1 | U113: 42899 | V113: 10.84 | W113: 42899 | X113: 23.99
A114: 42900 | B114: 7201.42 | C114: 42900 | D114: 7.21 | E114: 42900 | F114: 178.1 | G114: 42900 | H114: 34.188 | I114: 42900 | J114: 113.61 | K114: 42900 | L114: 1.43 | M114: 42900 | N114: 62.497 | O114: 42900 | P114: 335 | Q114: 42900 | R114: 436.75 | S114: 42900 | T114: 64 | U114: 42900 | V114: 10.65 | W114: 42900 | X114: 23.99
A115: 42902 | B115: 7207.78 | C115: 42902 | D115: 7.06 | E115: 42902 | F115: 175.3 | G115: 42902 | H115: 34.642 | I115: 42902 | J115: 112.44 | K115: 42902 | L115: 1.44 | M115: 42902 | N115: 62.32 | O115: 42902 | P115: 343.02 | Q115: 42902 | R115: 440.85 | S115: 42902 | T115: 61.41 | U115: 42902 | V115: 10.84 | W115: 42902 | X115: 24
A116: 42905 | B116: 7278.02 | C116: 42905 | D116: 7.23 | E116: 42905 | F116: 177.07 | G116: 42905 | H116: 35.362 | I116: 42905 | J116: 113.18 | K116: 42905 | L116: 1.43 | M116: 42905 | N116: 61.965 | O116: 42905 | P116: 343.32 | Q116: 42905 | R116: 445.2 | S116: 42905 | T116: 60.5 | U116: 42905 | V116: 10.78 | W116: 42905 | X116: 23.9
A117: 42906 | B117: 7176.32 | C117: 42906 | D117: 7.24 | E117: 42906 | F117: 178.64 | G117: 42906 | H117: 34.099 | I117: 42906 | J117: 112.39 | K117: 42906 | L117: 1.43 | M117: 42906 | N117: 62.665 | O117: 42906 | P117: 343.62 | Q117: 42906 | R117: 450.49 | S117: 42906 | T117: 58.99 | U117: 42906 | V117: 10.7 | W117: 42906 | X117: 23.87
A118: 42907 | B118: 7173.38 | C118: 42907 | D118: 7.27 | E118: 42907 | F118: 182.04 | G118: 42907 | H118: 34.089 | I118: 42907 | J118: 110.94 | K118: 42907 | L118: 1.43 | M118: 42907 | N118: 62.533 | O118: 42907 | P118: 337.92 | Q118: 42907 | R118: 456.02 | S118: 42907 | T118: 60.83 | U118: 42907 | V118: 10.82 | W118: 42907 | X118: 23.85
A119: 42908 | B119: 7167.68 | C119: 42908 | D119: 7.19 | E119: 42908 | F119: 181.4 | G119: 42908 | H119: 33.931 | I119: 42908 | J119: 112.15 | K119: 42908 | L119: 1.42 | M119: 42908 | N119: 62.142 | O119: 42908 | P119: 340.55 | Q119: 42908 | R119: 454.49 | S119: 42908 | T119: 59.68 | U119: 42908 | V119: 10.84 | W119: 42908 | X119: 23.85
A120: 42909 | B120: 7139.87 | C120: 42909 | D120: 7.08 | E120: 42909 | F120: 181.84 | G120: 42909 | H120: 33.556 | I120: 42909 | J120: 113.55 | K120: 42909 | L120: 1.42 | M120: 42909 | N120: 62.462 | O120: 42909 | P120: 336.98 | Q120: 42909 | R120: 442.29 | S120: 42909 | T120: 60.6 | U120: 42909 | V120: 10.75 | W120: 42909 | X120: 23.84
A121: 42912 | B121: 7324.3 | C121: 42912 | D121: 7.28 | E121: 42912 | F121: 180.66 | G121: 42912 | H121: 34.405 | I121: 42912 | J121: 118.11 | K121: 42912 | L121: 1.41 | M121: 42912 | N121: 63.136 | O121: 42912 | P121: 346.89 | Q121: 42912 | R121: 459.48 | S121: 42912 | T121: 60.97 | U121: 42912 | V121: 10.71 | W121: 42912 | X121: 23.8
A122: 42913 | B122: 7366.24 | C122: 42913 | D122: 7.56 | E122: 42913 | F122: 181.94 | G122: 42913 | H122: 34.296 | I122: 42913 | J122: 118.44 | K122: 42913 | L122: 1.42 | M122: 42913 | N122: 64.353 | O122: 42913 | P122: 350.56 | Q122: 42913 | R122: 471.34 | S122: 42913 | T122: 61.15 | U122: 42913 | V122: 10.65 | W122: 42913 | X122: 23.79
A123: 42914 | B123: 7308.54 | C123: 42914 | D123: 7.16 | E123: 42914 | F123: 180.02 | G123: 42914 | H123: 34.178 | I123: 42914 | J123: 117.46 | K123: 42914 | L123: 1.42 | M123: 42914 | N123: 64.787 | O123: 42914 | P123: 352.54 | Q123: 42914 | R123: 459.48 | S123: 42914 | T123: 60.53 | U123: 42914 | V123: 10.6 | W123: 42914 | X123: 23.87
A124: 42915 | B124: 7289.91 | C124: 42915 | D124: 7.21 | E124: 42915 | F124: 180.76 | G124: 42915 | H124: 34.385 | I124: 42915 | J124: 116.25 | K124: 42915 | L124: 1.41 | M124: 42915 | N124: 64.45 | O124: 42915 | P124: 341.98 | Q124: 42915 | R124: 462.25 | S124: 42915 | T124: 61.1 | U124: 42915 | V124: 10.61 | W124: 42915 | X124: 23.87
A125: 42916 | B125: 7261.87 | C125: 42916 | D125: 7.45 | E125: 42916 | F125: 179.38 | G125: 42916 | H125: 34.01 | I125: 42916 | J125: 116.16 | K125: 42916 | L125: 1.41 | M125: 42916 | N125: 65.122 | O125: 42916 | P125: 339.26 | Q125: 42916 | R125: 456.61 | S125: 42916 | T125: 61.75 | U125: 42916 | V125: 10.6 | W125: 42916 | X125: 24
A126: 42919 | B126: 7400.93 | C126: 42919 | D126: 7.6 | E126: 42919 | F126: 179.82 | G126: 42919 | H126: 35.007 | I126: 42919 | J126: 117.5 | K126: 42919 | L126: 1.42 | M126: 42919 | N126: 63.371 | O126: 42919 | P126: 349.47 | Q126: 42919 | R126: 469.51 | S126: 42919 | T126: 61.68 | U126: 42919 | V126: 10.6 | W126: 42919 | X126: 24.2
A127: 42920 | B127: 7263.59 | C127: 42920 | D127: 7.31 | E127: 42920 | F127: 180.76 | G127: 42920 | H127: 34.05 | I127: 42920 | J127: 115.32 | K127: 42920 | L127: 1.38 | M127: 42920 | N127: 63.039 | O127: 42920 | P127: 348.77 | Q127: 42920 | R127: 449.65 | S127: 42920 | T127: 61.82 | U127: 42920 | V127: 10.45 | W127: 42920 | X127: 24.2
A128: 42921 | B128: 7293.9 | C128: 42921 | D128: 7.38 | E128: 42921 | F128: 180.76 | G128: 42921 | H128: 34.069 | I128: 42921 | J128: 116.67 | K128: 42921 | L128: 1.38 | M128: 42921 | N128: 64.706 | O128: 42921 | P128: 349.02 | Q128: 42921 | R128: 452.46 | S128: 42921 | T128: 61.52 | U128: 42921 | V128: 10.5 | W128: 42921 | X128: 24
A129: 42922 | B129: 7309.52 | C129: 42922 | D129: 7.43 | E129: 42922 | F129: 180.76 | G129: 42922 | H129: 34.553 | I129: 42922 | J129: 115.83 | K129: 42922 | L129: 1.37 | M129: 42922 | N129: 64.933 | O129: 42922 | P129: 345.25 | Q129: 42922 | R129: 449.6 | S129: 42922 | T129: 61.8 | U129: 42922 | V129: 10.37 | W129: 42922 | X129: 23.99
A130: 42923 | B130: 7311.35 | C130: 42923 | D130: 7.29 | E130: 42923 | F130: 179.09 | G130: 42923 | H130: 34.316 | I130: 42923 | J130: 116.34 | K130: 42923 | L130: 1.38 | M130: 42923 | N130: 64.763 | O130: 42923 | P130: 351.3 | Q130: 42923 | R130: 452.56 | S130: 42923 | T130: 62.39 | U130: 42923 | V130: 10.35 | W130: 42923 | X130: 24
A131: 42926 | B131: 7320.64 | C131: 42926 | D131: 7.24 | E131: 42926 | F131: 181.01 | G131: 42926 | H131: 34.198 | I131: 42926 | J131: 117.46 | K131: 42926 | L131: 1.42 | M131: 42926 | N131: 63.333 | O131: 42926 | P131: 350.95 | Q131: 42926 | R131: 453.35 | S131: 42926 | T131: 62.5 | U131: 42926 | V131: 10.5 | W131: 42926 | X131: 23.9
A132: 42927 | B132: 7310.33 | C132: 42927 | D132: 7.34 | E132: 42927 | F132: 181.99 | G132: 42927 | H132: 34.247 | I132: 42927 | J132: 116.76 | K132: 42927 | L132: 1.42 | M132: 42927 | N132: 62.509 | O132: 42927 | P132: 346.89 | Q132: 42927 | R132: 455.53 | S132: 42927 | T132: 62.45 | U132: 42927 | V132: 10.61 | W132: 42927 | X132: 23.89
A133: 42928 | B133: 7421.23 | C133: 42928 | D133: 7.41 | E133: 42928 | F133: 182.28 | G133: 42928 | H133: 34.642 | I133: 42928 | J133: 119.41 | K133: 42928 | L133: 1.45 | M133: 42928 | N133: 62.765 | O133: 42928 | P133: 355.76 | Q133: 42928 | R133: 467.58 | S133: 42928 | T133: 62.48 | U133: 42928 | V133: 10.64 | W133: 42928 | X133: 24.12
A134: 42929 | B134: 7455.39 | C134: 42929 | D134: 7.54 | E134: 42929 | F134: 183.81 | G134: 42929 | H134: 34.346 | I134: 42929 | J134: 121.74 | K134: 42929 | L134: 1.53 | M134: 42929 | N134: 64.422 | O134: 42929 | P134: 354.92 | Q134: 42929 | R134: 476.57 | S134: 42929 | T134: 62.01 | U134: 42929 | V134: 10.66 | W134: 42929 | X134: 24.05
A135: 42930 | B135: 7441.46 | C135: 42930 | D135: 7.59 | E135: 42930 | F135: 184.6 | G135: 42930 | H135: 34.395 | I135: 42930 | J135: 121.32 | K135: 42930 | L135: 1.52 | M135: 42930 | N135: 64.706 | O135: 42930 | P135: 354.97 | Q135: 42930 | R135: 469.36 | S135: 42930 | T135: 60.95 | U135: 42930 | V135: 10.74 | W135: 42930 | X135: 24.19
A136: 42933 | B136: 7534.98 | C136: 42933 | D136: 7.68 | E136: 42933 | F136: 184.2 | G136: 42933 | H136: 35.214 | I136: 42933 | J136: 122.16 | K136: 42933 | L136: 1.52 | M136: 42933 | N136: 65.302 | O136: 42933 | P136: 359.28 | Q136: 42933 | R136: 474.3 | S136: 42933 | T136: 60.88 | U136: 42933 | V136: 10.74 | W136: 42933 | X136: 24
A137: 42934 | B137: 7493.79 | C137: 42934 | D137: 7.68 | E137: 42934 | F137: 183.07 | G137: 42934 | H137: 35.135 | I137: 42934 | J137: 120.76 | K137: 42934 | L137: 1.51 | M137: 42934 | N137: 65.141 | O137: 42934 | P137: 365.42 | Q137: 42934 | R137: 460.62 | S137: 42934 | T137: 59.8 | U137: 42934 | V137: 10.75 | W137: 42934 | X137: 24
A138: 42935 | B138: 7520.83 | C138: 42935 | D138: 7.58 | E138: 42935 | F138: 182.14 | G138: 42935 | H138: 35.54 | I138: 42935 | J138: 120.39 | K138: 42935 | L138: 1.49 | M138: 42935 | N138: 64.479 | O138: 42935 | P138: 367.5 | Q138: 42935 | R138: 464.42 | S138: 42935 | T138: 60.3 | U138: 42935 | V138: 10.6 | W138: 42935 | X138: 24.19
A139: 42936 | B139: 7481.17 | C139: 42936 | D139: 7.55 | E139: 42936 | F139: 183.22 | G139: 42936 | H139: 35.382 | I139: 42936 | J139: 119.97 | K139: 42936 | L139: 1.46 | M139: 42936 | N139: 64.46 | O139: 42936 | P139: 359.28 | Q139: 42936 | R139: 460.12 | S139: 42936 | T139: 60.5 | U139: 42936 | V139: 10.65 | W139: 42936 | X139: 24.3
A140: 42937 | B140: 7463.85 | C140: 42937 | D140: 7.5 | E140: 42937 | F140: 185.92 | G140: 42937 | H140: 35.333 | I140: 42937 | J140: 119.13 | K140: 42937 | L140: 1.45 | M140: 42937 | N140: 64.45 | O140: 42937 | P140: 359.28 | Q140: 42937 | R140: 454.54 | S140: 42937 | T140: 60.5 | U140: 42937 | V140: 10.63 | W140: 42937 | X140: 25.3
A141: 42940 | B141: 7465.32 | C141: 42940 | D141: 7.46 | E141: 42940 | F141: 187.01 | G141: 42940 | H141: 35.629 | I141: 42940 | J141: 118.16 | K141: 42940 | L141: 1.42 | M141: 42940 | N141: 65.312 | O141: 42940 | P141: 357.89 | Q141: 42940 | R141: 457.5 | S141: 42940 | T141: 59.34 | U141: 42940 | V141: 10.58 | W141: 42940 | X141: 25.1
A142: 42941 | B142: 7496.23 | C142: 42941 | D142: 7.7 | E142: 42941 | F142: 186.91 | G142: 42941 | H142: 35.629 | I142: 42941 | J142: 118.48 | K142: 42941 | L142: 1.39 | M142: 42941 | N142: 66.23 | O142: 42941 | P142: 356.7 | Q142: 42941 | R142: 458.34 | S142: 42941 | T142: 61.16 | U142: 42941 | V142: 10.6 | W142: 42941 | X142: 24.9
A143: 42942 | B143: 7533.83 | C143: 42942 | D143: 7.64 | E143: 42942 | F143: 190.01 | G143: 42942 | H143: 35.826 | I143: 42942 | J143: 119.6 | K143: 42942 | L143: 1.45 | M143: 42942 | N143: 66.656 | O143: 42942 | P143: 354.82 | Q143: 42942 | R143: 454.54 | S143: 42942 | T143: 62 | U143: 42942 | V143: 10.6 | W143: 42942 | X143: 25.21
A144: 42943 | B144: 7526.84 | C144: 42943 | D144: 7.66 | E144: 42943 | F144: 191.83 | G144: 42943 | H144: 35.925 | I144: 42943 | J144: 118.81 | K144: 42943 | L144: 1.45 | M144: 42943 | N144: 66.59 | O144: 42943 | P144: 356.45 | Q144: 42943 | R144: 441.69 | S144: 42943 | T144: 62 | U144: 42943 | V144: 10.53 | W144: 42943 | X144: 25.27
A145: 42944 | B145: 7563.53 | C145: 42944 | D145: 7.7 | E145: 42944 | F145: 192.81 | G145: 42944 | H145: 36.25 | I145: 42944 | J145: 118.2 | K145: 42944 | L145: 1.42 | M145: 42944 | N145: 66.618 | O145: 42944 | P145: 365.47 | Q145: 42944 | R145: 437 | S145: 42944 | T145: 62.2 | U145: 42944 | V145: 10.6 | W145: 42944 | X145: 25.4
A146: 42947 | B146: 7645.88 | C146: 42947 | D146: 7.71 | E146: 42947 | F146: 194.78 | G146: 42947 | H146: 36.349 | I146: 42947 | J146: 118.95 | K146: 42947 | L146: 1.41 | M146: 42947 | N146: 67.224 | O146: 42947 | P146: 376.67 | Q146: 42947 | R146: 449.6 | S146: 42947 | T146: 64.1 | U146: 42947 | V146: 10.65 | W146: 42947 | X146: 26.2
A147: 42948 | B147: 7651.06 | C147: 42948 | D147: 7.66 | E147: 42948 | F147: 195.76 | G147: 42948 | H147: 36.793 | I147: 42948 | J147: 118.53 | K147: 42948 | L147: 1.4 | M147: 42948 | N147: 67.603 | O147: 42948 | P147: 368.64 | Q147: 42948 | R147: 450.34 | S147: 42948 | T147: 63.73 | U147: 42948 | V147: 10.67 | W147: 42948 | X147: 25.85
A148: 42949 | B148: 7502.85 | C148: 42949 | D148: 7.34 | E148: 42949 | F148: 194.78 | G148: 42949 | H148: 35.52 | I148: 42949 | J148: 118.95 | K148: 42949 | L148: 1.39 | M148: 42949 | N148: 67.849 | O148: 42949 | P148: 362.25 | Q148: 42949 | R148: 430.92 | S148: 42949 | T148: 63.1 | U148: 42949 | V148: 10.56 | W148: 42949 | X148: 25.5
A149: 42950 | B149: 7407.04 | C149: 42950 | D149: 6.82 | E149: 42950 | F149: 192.76 | G149: 42950 | H149: 35.046 | I149: 42950 | J149: 117.37 | K149: 42950 | L149: 1.32 | M149: 42950 | N149: 66.704 | O149: 42950 | P149: 366.71 | Q149: 42950 | R149: 420.5 | S149: 42950 | T149: 62.5 | U149: 42950 | V149: 10.58 | W149: 42950 | X149: 25.65
A150: 42951 | B150: 7504.19 | C150: 42951 | D150: 7.03 | E150: 42951 | F150: 192.96 | G150: 42951 | H150: 35.382 | I150: 42951 | J150: 118.76 | K150: 42951 | L150: 1.29 | M150: 42951 | N150: 66.921 | O150: 42951 | P150: 372.71 | Q150: 42951 | R150: 432.75 | S150: 42951 | T150: 64.1 | U150: 42951 | V150: 10.59 | W150: 42951 | X150: 25.9
A151: 42954 | B151: 7526.21 | C151: 42954 | D151: 7.29 | E151: 42954 | F151: 193.55 | G151: 42954 | H151: 35.648 | I151: 42954 | J151: 119.51 | K151: 42954 | L151: 1.29 | M151: 42954 | N151: 66.959 | O151: 42954 | P151: 366.71 | Q151: 42954 | R151: 428.55 | S151: 42954 | T151: 63.6 | U151: 42954 | V151: 10.6 | W151: 42954 | X151: 25.6
A152: 42955 | B152: 7621.94 | C152: 42955 | D152: 7.41 | E152: 42955 | F152: 193.7 | G152: 42955 | H152: 36.448 | I152: 42955 | J152: 121 | K152: 42955 | L152: 1.24 | M152: 42955 | N152: 66.827 | O152: 42955 | P152: 366.17 | Q152: 42955 | R152: 438.73 | S152: 42955 | T152: 63.8 | U152: 42955 | V152: 10.5 | W152: 42955 | X152: 25.5
A153: 42956 | B153: 7553.29 | C153: 42956 | D153: 7.34 | E153: 42956 | F153: 191.83 | G153: 42956 | H153: 36.25 | I153: 42956 | J153: 119.13 | K153: 42956 | L153: 1.24 | M153: 42956 | N153: 66.079 | O153: 42956 | P153: 365.62 | Q153: 42956 | R153: 424.99 | S153: 42956 | T153: 63.71 | U153: 42956 | V153: 10.5 | W153: 42956 | X153: 25.53
A154: 42957 | B154: 7491.19 | C154: 42957 | D154: 7.13 | E154: 42957 | F154: 193.7 | G154: 42957 | H154: 35.431 | I154: 42957 | J154: 119.51 | K154: 42957 | L154: 1.24 | M154: 42957 | N154: 66.117 | O154: 42957 | P154: 363.84 | Q154: 42957 | R154: 422.87 | S154: 42957 | T154: 64.25 | U154: 42957 | V154: 10.5 | W154: 42957 | X154: 25.95
A155: 42958 | B155: 7450.85 | C155: 42958 | D155: 7.02 | E155: 42958 | F155: 190.84 | G155: 42958 | H155: 35.402 | I155: 42958 | J155: 119.13 | K155: 42958 | L155: 1.23 | M155: 42958 | N155: 65.918 | O155: 42958 | P155: 354.97 | Q155: 42958 | R155: 428.11 | S155: 42958 | T155: 64 | U155: 42958 | V155: 10.5 | W155: 42958 | X155: 25.75
A156: 42961 | B156: 7446.82 | C156: 42961 | D156: 7.03 | E156: 42961 | F156: 190.84 | G156: 42961 | H156: 35.52 | I156: 42961 | J156: 119.04 | K156: 42961 | L156: 1.21 | M156: 42961 | N156: 65.766 | O156: 42961 | P156: 353.73 | Q156: 42961 | R156: 424.89 | S156: 42961 | T156: 63.48 | U156: 42961 | V156: 10.6 | W156: 42961 | X156: 25.9
A157: 42963 | B157: 7388.9 | C157: 42963 | D157: 6.98 | E157: 42963 | F157: 192.71 | G157: 42963 | H157: 35.086 | I157: 42963 | J157: 119.04 | K157: 42963 | L157: 1.22 | M157: 42963 | N157: 65.34 | O157: 42963 | P157: 348.38 | Q157: 42963 | R157: 417.58 | S157: 42963 | T157: 62.5 | U157: 42963 | V157: 10.65 | W157: 42963 | X157: 25.5
A158: 42964 | B158: 7307.91 | C158: 42964 | D158: 7.01 | E158: 42964 | F158: 193.65 | G158: 42964 | H158: 34.76 | I158: 42964 | J158: 116.2 | K158: 42964 | L158: 1.22 | M158: 42964 | N158: 64.952 | O158: 42964 | P158: 345.9 | Q158: 42964 | R158: 410.07 | S158: 42964 | T158: 61.7 | U158: 42964 | V158: 10.55 | W158: 42964 | X158: 25.98
A159: 42965 | B159: 7268 | C159: 42965 | D159: 7.1 | E159: 42965 | F159: 193.5 | G159: 42965 | H159: 34.652 | I159: 42965 | J159: 113.83 | K159: 42965 | L159: 1.23 | M159: 42965 | N159: 64.232 | O159: 42965 | P159: 345.9 | Q159: 42965 | R159: 412.35 | S159: 42965 | T159: 61.41 | U159: 42965 | V159: 10.49 | W159: 42965 | X159: 25.9
A160: 42968 | B160: 7332.05 | C160: 42968 | D160: 7.28 | E160: 42968 | F160: 193.79 | G160: 42968 | H160: 34.928 | I160: 42968 | J160: 114.48 | K160: 42968 | L160: 1.24 | M160: 42968 | N160: 64.867 | O160: 42968 | P160: 353.83 | Q160: 42968 | R160: 412.35 | S160: 42968 | T160: 61.65 | U160: 42968 | V160: 10.54 | W160: 42968 | X160: 25.5
A161: 42969 | B161: 7328.37 | C161: 42969 | D161: 7.28 | E161: 42969 | F161: 191.92 | G161: 42969 | H161: 34.543 | I161: 42969 | J161: 114.71 | K161: 42969 | L161: 1.29 | M161: 42969 | N161: 66.287 | O161: 42969 | P161: 357.64 | Q161: 42969 | R161: 415.95 | S161: 42969 | T161: 62.45 | U161: 42969 | V161: 10.6 | W161: 42969 | X161: 25.5
A162: 42970 | B162: 7322.33 | C162: 42970 | D162: 7.21 | E162: 42970 | F162: 193.74 | G162: 42970 | H162: 34.632 | I162: 42970 | J162: 114.01 | K162: 42970 | L162: 1.36 | M162: 42970 | N162: 66.041 | O162: 42970 | P162: 355.46 | Q162: 42970 | R162: 416.1 | S162: 42970 | T162: 62.39 | U162: 42970 | V162: 10.58 | W162: 42970 | X162: 25.5
A163: 42971 | B163: 7485.99 | C163: 42971 | D163: 7.38 | E163: 42971 | F163: 194.48 | G163: 42971 | H163: 35.323 | I163: 42971 | J163: 116.34 | K163: 42971 | L163: 1.35 | M163: 42971 | N163: 66.154 | O163: 42971 | P163: 372.61 | Q163: 42971 | R163: 428.55 | S163: 42971 | T163: 63.54 | U163: 42971 | V163: 10.6 | W163: 42971 | X163: 26.3
A164: 42972 | B164: 7490.77 | C164: 42972 | D164: 7.3 | E164: 42972 | F164: 196.25 | G164: 42972 | H164: 35.52 | I164: 42972 | J164: 116.29 | K164: 42972 | L164: 1.31 | M164: 42972 | N164: 66.278 | O164: 42972 | P164: 369.39 | Q164: 42972 | R164: 431.81 | S164: 42972 | T164: 62.91 | U164: 42972 | V164: 10.59 | W164: 42972 | X164: 26.28
A165: 42975 | B165: 7633.73 | C165: 42975 | D165: 7.32 | E165: 42975 | F165: 196.74 | G165: 42975 | H165: 36.329 | I165: 42975 | J165: 118.71 | K165: 42975 | L165: 1.27 | M165: 42975 | N165: 67.319 | O165: 42975 | P165: 378.6 | Q165: 42975 | R165: 435.76 | S165: 42975 | T165: 65.07 | U165: 42975 | V165: 10.51 | W165: 42975 | X165: 26.2
A166: 42976 | B166: 7517.31 | C166: 42976 | D166: 7.35 | E166: 42976 | F166: 196.74 | G166: 42976 | H166: 35.599 | I166: 42976 | J166: 117.83 | K166: 42976 | L166: 1.28 | M166: 42976 | N166: 66.344 | O166: 42976 | P166: 362.6 | Q166: 42976 | R166: 433.79 | S166: 42976 | T166: 64.5 | U166: 42976 | V166: 10.59 | W166: 42976 | X166: 26.2
A167: 42977 | B167: 7636.61 | C167: 42977 | D167: 7.33 | E167: 42977 | F167: 194.29 | G167: 42977 | H167: 36.418 | I167: 42977 | J167: 119.55 | K167: 42977 | L167: 1.33 | M167: 42977 | N167: 66.609 | O167: 42977 | P167: 371.86 | Q167: 42977 | R167: 432.9 | S167: 42977 | T167: 66.38 | U167: 42977 | V167: 10.79 | W167: 42977 | X167: 26.88
A168: 42978 | B168: 7609.01 | C168: 42978 | D168: 7.45 | E168: 42978 | F168: 196.74 | G168: 42978 | H168: 36.201 | I168: 42978 | J168: 119.09 | K168: 42978 | L168: 1.28 | M168: 42978 | N168: 67.224 | O168: 42978 | P168: 366.31 | Q168: 42978 | R168: 432.8 | S168: 42978 | T168: 66 | U168: 42978 | V168: 10.92 | W168: 42978 | X168: 26.85
A169: 42979 | B169: 7604.54 | C169: 42979 | D169: 7.23 | E169: 42979 | F169: 200.38 | G169: 42979 | H169: 36.418 | I169: 42979 | J169: 118.76 | K169: 42979 | L169: 1.29 | M169: 42979 | N169: 67.13 | O169: 42979 | P169: 363.24 | Q169: 42979 | R169: 425.04 | S169: 42979 | T169: 66.15 | U169: 42979 | V169: 11.22 | W169: 42979 | X169: 26.8
A170: 42982 | B170: 7585.8 | C170: 42982 | D170: 7.17 | E170: 42982 | F170: 201.47 | G170: 42982 | H170: 36.033 | I170: 42982 | J170: 118.76 | K170: 42982 | L170: 1.29 | M170: 42982 | N170: 67.007 | O170: 42982 | P170: 363.74 | Q170: 42982 | R170: 431.81 | S170: 42982 | T170: 66.2 | U170: 42982 | V170: 11.72 | W170: 42982 | X170: 26.3
A171: 42983 | B171: 7579.67 | C171: 42983 | D171: 7.21 | E171: 42983 | F171: 202.01 | G171: 42983 | H171: 36.033 | I171: 42983 | J171: 119.51 | K171: 42983 | L171: 1.31 | M171: 42983 | N171: 67.698 | O171: 42983 | P171: 359.77 | Q171: 42983 | R171: 421.93 | S171: 42983 | T171: 66 | U171: 42983 | V171: 11.44 | W171: 42983 | X171: 26.3
A172: 42984 | B172: 7545.54 | C172: 42984 | D172: 7.13 | E172: 42984 | F172: 201.61 | G172: 42984 | H172: 35.826 | I172: 42984 | J172: 118.9 | K172: 42984 | L172: 1.28 | M172: 42984 | N172: 67.063 | O172: 42984 | P172: 363.69 | Q172: 42984 | R172: 415.01 | S172: 42984 | T172: 65.6 | U172: 42984 | V172: 11.46 | W172: 42984 | X172: 26
A173: 42985 | B173: 7468.17 | C173: 42985 | D173: 7.07 | E173: 42985 | F173: 201.66 | G173: 42985 | H173: 35.333 | I173: 42985 | J173: 117.46 | K173: 42985 | L173: 1.28 | M173: 42985 | N173: 66.884 | O173: 42985 | P173: 357.79 | Q173: 42985 | R173: 415.51 | S173: 42985 | T173: 65.39 | U173: 42985 | V173: 11.14 | W173: 42985 | X173: 25.75
A174: 42986 | B174: 7459.72 | C174: 42986 | D174: 7.01 | E174: 42986 | F174: 201.61 | G174: 42986 | H174: 35.273 | I174: 42986 | J174: 117.78 | K174: 42986 | L174: 1.19 | M174: 42986 | N174: 66.902 | O174: 42986 | P174: 358.09 | Q174: 42986 | R174: 418.72 | S174: 42986 | T174: 65 | U174: 42986 | V174: 10.66 | W174: 42986 | X174: 25.62
A175: 42989 | B175: 7464.78 | C175: 42989 | D175: 6.97 | E175: 42989 | F175: 201.66 | G175: 42989 | H175: 35.046 | I175: 42989 | J175: 120.06 | K175: 42989 | L175: 1.18 | M175: 42989 | N175: 66.751 | O175: 42989 | P175: 356.8 | Q175: 42989 | R175: 415.01 | S175: 42989 | T175: 64.58 | U175: 42989 | V175: 10.55 | W175: 42989 | X175: 25.85
A176: 42990 | B176: 7417.9 | C176: 42990 | D176: 6.93 | E176: 42990 | F176: 201.66 | G176: 42990 | H176: 34.454 | I176: 42990 | J176: 119.6 | K176: 42990 | L176: 1.22 | M176: 42990 | N176: 66.599 | O176: 42990 | P176: 356.8 | Q176: 42990 | R176: 416.99 | S176: 42990 | T176: 64.55 | U176: 42990 | V176: 10.6 | W176: 42990 | X176: 26.2
A177: 42991 | B177: 7409.82 | C177: 42991 | D177: 6.7 | E177: 42991 | F177: 201.66 | G177: 42991 | H177: 34.395 | I177: 42991 | J177: 119.6 | K177: 42991 | L177: 1.19 | M177: 42991 | N177: 65.785 | O177: 42991 | P177: 363.34 | Q177: 42991 | R177: 415.01 | S177: 42991 | T177: 64.11 | U177: 42991 | V177: 10.51 | W177: 42991 | X177: 25.99
A178: 42992 | B178: 7434.63 | C178: 42992 | D178: 6.6 | E178: 42992 | F178: 201.66 | G178: 42992 | H178: 34.829 | I178: 42992 | J178: 121 | K178: 42992 | L178: 1.17 | M178: 42992 | N178: 63.522 | O178: 42992 | P178: 357.84 | Q178: 42992 | R178: 418.72 | S178: 42992 | T178: 63.5 | U178: 42992 | V178: 10.45 | W178: 42992 | X178: 25.75
A179: 42993 | B179: 7405.57 | C179: 42993 | D179: 6.44 | E179: 42993 | F179: 201.66 | G179: 42993 | H179: 34.296 | I179: 42993 | J179: 122.34 | K179: 42993 | L179: 1.16 | M179: 42993 | N179: 63.787 | O179: 42993 | P179: 355.96 | Q179: 42993 | R179: 424.5 | S179: 42993 | T179: 62.8 | U179: 42993 | V179: 10.46 | W179: 42993 | X179: 25.66
A180: 42996 | B180: 7455.6 | C180: 42996 | D180: 6.73 | E180: 42996 | F180: 203.63 | G180: 42996 | H180: 34.79 | I180: 42996 | J180: 122.11 | K180: 42996 | L180: 1.23 | M180: 42996 | N180: 64.195 | O180: 42996 | P180: 354.82 | Q180: 42996 | R180: 419.21 | S180: 42996 | T180: 63.03 | U180: 42996 | V180: 10.42 | W180: 42996 | X180: 25.9
A181: 42997 | B181: 7512.4 | C181: 42997 | D181: 6.75 | E181: 42997 | F181: 204.07 | G181: 42997 | H181: 35.283 | I181: 42997 | J181: 121.93 | K181: 42997 | L181: 1.24 | M181: 42997 | N181: 64.289 | O181: 42997 | P181: 354.22 | Q181: 42997 | R181: 422.77 | S181: 42997 | T181: 65.7 | U181: 42997 | V181: 10.13 | W181: 42997 | X181: 25.6
A182: 42998 | B182: 7460.08 | C182: 42998 | D182: 6.66 | E182: 42998 | F182: 204.61 | G182: 42998 | H182: 35.027 | I182: 42998 | J182: 120.11 | K182: 42998 | L182: 1.28 | M182: 42998 | N182: 64.819 | O182: 42998 | P182: 353.83 | Q182: 42998 | R182: 423.86 | S182: 42998 | T182: 65.11 | U182: 42998 | V182: 10.2 | W182: 42998 | X182: 25.9
A183: 42999 | B183: 7487.27 | C183: 42999 | D183: 6.73 | E183: 42999 | F183: 204.42 | G183: 42999 | H183: 35.214 | I183: 42999 | J183: 119.13 | K183: 42999 | L183: 1.36 | M183: 42999 | N183: 64.81 | O183: 42999 | P183: 358.14 | Q183: 42999 | R183: 427.02 | S183: 42999 | T183: 65.37 | U183: 42999 | V183: 10.55 | W183: 42999 | X183: 26.05
A184: 43000 | B184: 7508.57 | C184: 43000 | D184: 6.79 | E184: 43000 | F184: 202.45 | G184: 43000 | H184: 35.194 | I184: 43000 | J184: 119.13 | K184: 43000 | L184: 1.35 | M184: 43000 | N184: 65.047 | O184: 43000 | P184: 363.74 | Q184: 43000 | R184: 434.78 | S184: 43000 | T184: 65.7 | U184: 43000 | V184: 10.32 | W184: 43000 | X184: 25.99
A185: 43003 | B185: 7438.4 | C185: 43003 | D185: 6.91 | E185: 43003 | F185: 201.66 | G185: 43003 | H185: 34.888 | I185: 43003 | J185: 117.88 | K185: 43003 | L185: 1.3 | M185: 43003 | N185: 65.141 | O185: 43003 | P185: 355.91 | Q185: 43003 | R185: 426.97 | S185: 43003 | T185: 65.28 | U185: 43003 | V185: 10.52 | W185: 43003 | X185: 25.8
A186: 43004 | B186: 7381.26 | C186: 43004 | D186: 6.9 | E186: 43004 | F186: 201.27 | G186: 43004 | H186: 34.543 | I186: 43004 | J186: 117.6 | K186: 43004 | L186: 1.34 | M186: 43004 | N186: 65.558 | O186: 43004 | P186: 345.9 | Q186: 43004 | R186: 423.96 | S186: 43004 | T186: 65.46 | U186: 43004 | V186: 10.5 | W186: 43004 | X186: 25.34
A187: 43005 | B187: 7349.29 | C187: 43005 | D187: 7 | E187: 43005 | F187: 201.22 | G187: 43005 | H187: 34.148 | I187: 43005 | J187: 116.99 | K187: 43005 | L187: 1.33 | M187: 43005 | N187: 64.535 | O187: 43005 | P187: 346.89 | Q187: 43005 | R187: 417.98 | S187: 43005 | T187: 66.44 | U187: 43005 | V187: 10.37 | W187: 43005 | X187: 25.1
A188: 43006 | B188: 7376.98 | C188: 43006 | D188: 7 | E188: 43006 | F188: 202.65 | G188: 43006 | H188: 34.188 | I188: 43006 | J188: 117.74 | K188: 43006 | L188: 1.34 | M188: 43006 | N188: 64.98 | O188: 43006 | P188: 344.31 | Q188: 43006 | R188: 418.37 | S188: 43006 | T188: 68.2 | U188: 43006 | V188: 10.31 | W188: 43006 | X188: 25.1
A189: 43007 | B189: 7450.51 | C189: 43007 | D189: 7.01 | E189: 43007 | F189: 201.17 | G189: 43007 | H189: 34.869 | I189: 43007 | J189: 119.13 | K189: 43007 | L189: 1.45 | M189: 43007 | N189: 65.425 | O189: 43007 | P189: 346.2 | Q189: 43007 | R189: 414.03 | S189: 43007 | T189: 68.49 | U189: 43007 | V189: 10.27 | W189: 43007 | X189: 25.61
A190: 43010 | B190: 7425.48 | C190: 43010 | D190: 7.09 | E190: 43010 | F190: 200.68 | G190: 43010 | H190: 34.948 | I190: 43010 | J190: 117.5 | K190: 43010 | L190: 1.48 | M190: 43010 | N190: 65.994 | O190: 43010 | P190: 342.92 | Q190: 43010 | R190: 410.07 | S190: 43010 | T190: 68.81 | U190: 43010 | V190: 10.29 | W190: 43010 | X190: 25.09
A191: 43011 | B191: 7398.47 | C191: 43011 | D191: 6.81 | E191: 43011 | F191: 200.63 | G191: 43011 | H191: 34.839 | I191: 43011 | J191: 116.81 | K191: 43011 | L191: 1.5 | M191: 43011 | N191: 65.994 | O191: 43011 | P191: 342.28 | Q191: 43011 | R191: 408.64 | S191: 43011 | T191: 69.86 | U191: 43011 | V191: 10.2 | W191: 43011 | X191: 25.09
A192: 43012 | B192: 7383.79 | C192: 43012 | D192: 6.67 | E192: 43012 | F192: 200.19 | G192: 43012 | H192: 34.74 | I192: 43012 | J192: 116.25 | K192: 43012 | L192: 1.46 | M192: 43012 | N192: 65.899 | O192: 43012 | P192: 341.44 | Q192: 43012 | R192: 407.85 | S192: 43012 | T192: 71.8 | U192: 43012 | V192: 10.18 | W192: 43012 | X192: 24.75
A193: 43013 | B193: 7402.66 | C193: 43013 | D193: 6.8 | E193: 43013 | F193: 200.19 | G193: 43013 | H193: 34.809 | I193: 43013 | J193: 117.69 | K193: 43013 | L193: 1.43 | M193: 43013 | N193: 66.003 | O193: 43013 | P193: 338.86 | Q193: 43013 | R193: 410.07 | S193: 43013 | T193: 71.04 | U193: 43013 | V193: 10.21 | W193: 43013 | X193: 25.06
A194: 43014 | B194: 7373.23 | C194: 43014 | D194: 6.91 | E194: 43014 | F194: 197.73 | G194: 43014 | H194: 34.227 | I194: 43014 | J194: 118.53 | K194: 43014 | L194: 1.39 | M194: 43014 | N194: 66.183 | O194: 43014 | P194: 339.26 | Q194: 43014 | R194: 413.04 | S194: 43014 | T194: 71.35 | U194: 43014 | V194: 10.05 | W194: 43014 | X194: 24.57
A195: 43017 | B195: 7441.12 | C195: 43017 | D195: 6.97 | E195: 43017 | F195: 198.71 | G195: 43017 | H195: 34.523 | I195: 43017 | J195: 118.39 | K195: 43017 | L195: 1.36 | M195: 43017 | N195: 66.278 | O195: 43017 | P195: 348.43 | Q195: 43017 | R195: 419.16 | S195: 43017 | T195: 72.75 | U195: 43017 | V195: 10.1 | W195: 43017 | X195: 24.39
A196: 43018 | B196: 7560.83 | C196: 43018 | D196: 7.25 | E196: 43018 | F196: 197.73 | G196: 43018 | H196: 35.451 | I196: 43018 | J196: 118.2 | K196: 43018 | L196: 1.49 | M196: 43018 | N196: 66.656 | O196: 43018 | P196: 357.79 | Q196: 43018 | R196: 433.74 | S196: 43018 | T196: 72.38 | U196: 43018 | V196: 10.05 | W196: 43018 | X196: 24.5
A197: 43019 | B197: 7633.78 | C197: 43019 | D197: 7.26 | E197: 43019 | F197: 196.74 | G197: 43019 | H197: 36.132 | I197: 43019 | J197: 119.13 | K197: 43019 | L197: 1.53 | M197: 43019 | N197: 66.779 | O197: 43019 | P197: 360.52 | Q197: 43019 | R197: 442.88 | S197: 43019 | T197: 71.92 | U197: 43019 | V197: 10.11 | W197: 43019 | X197: 23.7
A198: 43020 | B198: 7682.45 | C198: 43020 | D198: 7.74 | E198: 43020 | F198: 194.78 | G198: 43020 | H198: 36.359 | I198: 43020 | J198: 120.11 | K198: 43020 | L198: 1.59 | M198: 43020 | N198: 66.798 | O198: 43020 | P198: 356.8 | Q198: 43020 | R198: 451.57 | S198: 43020 | T198: 71.78 | U198: 43020 | V198: 10.05 | W198: 43020 | X198: 23.89
A199: 43021 | B199: 7660.64 | C199: 43021 | D199: 7.73 | E199: 43021 | F199: 196.25 | G199: 43021 | H199: 36.112 | I199: 43021 | J199: 120.72 | K199: 43021 | L199: 1.56 | M199: 43021 | N199: 65.738 | O199: 43021 | P199: 355.71 | Q199: 43021 | R199: 449.01 | S199: 43021 | T199: 71.19 | U199: 43021 | V199: 10.05 | W199: 43021 | X199: 23.97
A200: 43024 | B200: 7639.39 | C200: 43024 | D200: 7.67 | E200: 43024 | F200: 197.73 | G200: 43024 | H200: 35.984 | I200: 43024 | J200: 118.76 | K200: 43024 | L200: 1.57 | M200: 43024 | N200: 66.183 | O200: 43024 | P200: 358.78 | Q200: 43024 | R200: 459.33 | S200: 43024 | T200: 70.4 | U200: 43024 | V200: 10.1 | W200: 43024 | X200: 23.8
... 236 more rows

Sheet Ilość.A
A3: Suma z Ilość | B3: Etykiety kolumn
A4: Etykiety wierszy | B4: MBANK | C4: Suma końcowa
A5: 2017 | B5: -20 | C5: -20
A6: lis | B6: -20 | C6: -20
A7: Suma końcowa | B7: -20 | C7: -20

Sheet Wydarzenie
A3: Liczba z Wydarzenie | B3: Etykiety kolumn
A4: Etykiety wierszy | B4: MBANK | C4: Suma końcowa
A5: 2017 | B5: 2 | C5: 2
A6: lis | B6: 2 | C6: 2
A7: Makro | B7: 1 | C7: 1
A8: Sprawozdanie | B8: 1 | C8: 1
A9: Suma końcowa | B9: 2 | C9: 2

Sheet Średnia
B3: Etykiety kolumn
B4: MBANK | E4: Razem: Średnia z Zysk/Strata na koniec tygodnia | F4: Razem: Średnia z Po miesiącu | G4: Razem: Średnia z Po 3 miesiącach
A5: Etykiety wierszy | B5: Średnia z Zysk/Strata na koniec tygodnia | C5: Średnia z Po miesiącu | D5: Średnia z Po 3 miesiącach
A6: 2017 | B6: -0.0163177907 | C6: 0.01760606547 | D6: -0.0003626040072 | E6: -0.0163177907 | F6: 0.01760606547 | G6: -0.0003626040072
A7: lis | B7: -0.0163177907 | C7: 0.01760606547 | D7: -0.0003626040072 | E7: -0.0163177907 | F7: 0.01760606547 | G7: -0.0003626040072
A8: Suma końcowa | B8: -0.0163177907 | C8: 0.01760606547 | D8: -0.0003626040072 | E8: -0.0163177907 | F8: 0.01760606547 | G8: -0.0003626040072

Sheet Portfel wykresy

Sheet Portfel
A1: Data zakupu | B1: Nazwa Banku | C1: Cena kupna/Sprzedaży | D1: Ilość | E1: Transakcja | F1: Zysk/Strata na koniec tygodnia | G1: Po miesiącu | H1: Po 3 miesiącach | I1: Wydarzenie | J1: Uzasadnienie | K1: Ilość gotówki | L1: 500 000,00 zł | M1: Jaki dzień tyg | N1: Ile dodać/odjąć | O1: Ile mamy akcji MIL | P1: Ile mamy akcji PEKAO | Q1: Ile mamy akcji PKOBP | R1: Ile mamy akcji ING | S1: Ile mamy akcji GETIN | T1: Ile mamy akcji Handlowy | U1: Ile mamy akcji SANTANDER | V1: Ile mamy akcji MBANK | W1: Ile mamy akcji Alior | X1: Ile mamy akcji Idea | Y1: Ile zapłaciliśmy za MIL | Z1: Ile zapłaciliśmy za PEKAO | AA1: Ile zapłaciliśmy za PKOBP | AB1: Ile zapłaciliśmy za ING | AC1: Ile zapłaciliśmy za GETIN | AD1: Ile zapłaciliśmy za Handlowy | AE1: Ile zapłaciliśmy za SANTANDER | AF1: Ile zapłaciliśmy za MBANK | AG1: Ile zapłaciliśmy za Alior | AH1: Ile zapłaciliśmy za Idea | AI1: Ile otrzymaliśmy za sprzedaż MIL | AJ1: Ile otrzymaliśmy za sprzedaż PEKAO | AK1: Ile otrzymaliśmy za sprzedaż PKOBP | AL1: Ile otrzymaliśmy za sprzedaż ING | AM1: Ile otrzymaliśmy za sprzedaż GETIN | AN1: Ile otrzymaliśmy za sprzedaż Handlowy | AO1: Ile otrzymaliśmy za sprzedaż SANTANDER | AP1: Ile otrzymaliśmy za sprzedaż MBANK | AQ1: Ile otrzymaliśmy za sprzedaż Alior | AR1: Ile otrzymaliśmy za sprzedaż Idea | AS1: Ile aktualnie kosztują akcje MIL | AT1: Ile aktualnie kosztują akcje PEKAO | AU1: Ile aktualnie kosztują akcje PKOBP | AV1: Ile aktualnie kosztują akcje ING | AW1: Ile aktualnie kosztują akcje GETIN | AX1: Ile aktualnie kosztują akcje Handlowy | AY1: Ile aktualnie kosztują akcje SANTANDER | AZ1: Ile aktualnie kosztują akcje MBANK | BA1: Ile aktualnie kosztują akcje Alior | BB1: Ile aktualnie kosztują akcje Idea | BC1: Portfel. S | BD1: Dzienny zysk/strata na portfelu | BE1: WIG.B | BF1: Wig Banki dzienny | BG1: Różnica | BH1: Ile moglibyśmy zarobić/stracić na MIL | BI1: Ile moglibyśmy zarobić/stracić na PEKAO | BJ1: Ile moglibyśmy zarobić/stracić na PKOBP | BK1: Ile moglibyśmy zarobić/stracić na ING | BL1: Ile moglibyśmy zarobić/stracić na GETIN | BM1: Ile moglibyśmy zarobić/stracić na Handlowy | BN1: Ile moglibyśmy zarobić/stracić na SANTANDER | BO1: Ile moglibyśmy zarobić/stracić na MBANK | BP1: Ile moglibyśmy zarobić/stracić na Alior | BQ1: Ile moglibyśmy zarobić/stracić na Idea | BR1: MIL Dzienne | BS1: PEKAO Dzienne | BT1: PKOBP Dzienne | BU1: ING Dzienne | BV1: GETIN Dzienne | BW1: Handlowy Dzienne | BX1: SANTANDER Dzienne | BY1: MBANK Dzienne | BZ1: Alior Dzienne | CA1: Idea Dzienne | CC1: MIL | CD1: PEKAO | CE1: PKOBP | CF1: ING | CG1: GETIN | CH1: Handlowy | CI1: SANTANDER | CJ1: MBANK | CK1: Alior | CL1: Idea
A2: 42737 | B2: MIL | C2: =VLOOKUP(A2,INDIRECT(B2),2,TRUE) -> 5.19 | D2: -10 | E2: Kupno | F2: =VLOOKUP(A2+VLOOKUP(WEEKDAY(A2,2),$M$2:$N$6,2,FALSE),INDIRECT(B2),2,TRUE)/C2-1 -> 0.04046242775 | G2: =VLOOKUP(DATE(YEAR(A2),MONTH(A2)+1,DAY(A2)),INDIRECT(B2),2,TRUE)/C2-1 -> 0.1348747592 | H2: =VLOOKUP(DATE(YEAR(A2),MONTH(A2)+3,DAY(A2)),INDIRECT(B2),2,TRUE)/C2-1 -> 0.2427745665 | I2: Makro | J2: Banki uzasadnienie\MIL.docx | L2: =L1+C2*D2 -> 499948.1 | M2: 1 | N2: 4 | O2: =SUMIFS($D$2:D2,$B$2:B2,"MIL") -> -10 | P2: =SUMIFS($D$2:D2,$B$2:B2,"PEKAO") -> 0 | Q2: =SUMIFS($D$2:D2,$B$2:B2,"PKOBP") -> 0 | R2: =SUMIFS($D$2:D2,$B$2:B2,"ING") -> 0 | S2: =SUMIFS($D$2:D2,$B$2:B2,"GETIN") -> 0 | T2: =SUMIFS($D$2:D2,$B$2:B2,"Handlowy") -> 0 | U2: =SUMIFS($D$2:D2,$B$2:B2,"SANTANDER") -> 0 | V2: =SUMIFS($D$2:D2,$B$2:B2,"MBANK") -> 0 | W2: =SUMIFS($D$2:D2,$B$2:B2,"Alior") -> 0 | X2: =SUMIFS($D$2:D2,$B$2:B2,"Idea") -> 0 | Y2: =SUMPRODUCT(($B$2:B2="MIL")*($E$2:E2="Kupno")*$C$2:C2*$D$2:D2) -> -51.9 | Z2: =SUMPRODUCT(($B$2:B2="PEKAO")*($E$2:E2="Kupno")*$C$2:C2*$D$2:D2) -> 0 | AA2: =SUMPRODUCT(($B$2:B2="PKOBP")*($E$2:E2="Kupno")*$C$2:C2*$D$2:D2) -> 0 | AB2: =SUMPRODUCT(($B$2:B2="ING")*($E$2:E2="Kupno")*$C$2:C2*$D$2:D2) -> 0 | AC2: =SUMPRODUCT(($B$2:B2="GETIN")*($E$2:E2="Kupno")*$C$2:C2*$D$2:D2) -> 0 | AD2: =SUMPRODUCT(($B$2:B2="Handlowy")*($E$2:E2="Kupno")*$C$2:C2*$D$2:D2) -> 0 | AE2: =SUMPRODUCT(($B$2:B2="SANTANDER")*($E$2:E2="Kupno")*$C$2:C2*$D$2:D2) -> 0 | AF2: =SUMPRODUCT(($B$2:B2="MBANK")*($E$2:E2="Kupno")*$C$2:C2*$D$2:D2) -> 0 | AG2: =SUMPRODUCT(($B$2:B2="Alior")*($E$2:E2="Kupno")*$C$2:C2*$D$2:D2) -> 0 | AH2: =SUMPRODUCT(($B$2:B2="Idea")*($E$2:E2="Kupno")*$C$2:C2*$D$2:D2) -> 0 | AI2: =SUMPRODUCT(($B$2:B2="MIL")*($E$2:E2="Sprzedaż")*$C$2:C2*$D$2:D2) -> 0 | AJ2: =SUMPRODUCT(($B$2:B2="PEKAO")*($E$2:E2="Sprzedaż")*$C$2:C2*$D$2:D2) -> 0 | AK2: =SUMPRODUCT(($B$2:B2="PKOBP")*($E$2:E2="Sprzedaż")*$C$2:C2*$D$2:D2) -> 0 | AL2: =SUMPRODUCT(($B$2:B2="ING")*($E$2:E2="Sprzedaż")*$C$2:C2*$D$2:D2) -> 0 | AM2: =SUMPRODUCT(($B$2:B2="GETIN")*($E$2:E2="Sprzedaż")*$C$2:C2*$D$2:D2) -> 0 | AN2: =SUMPRODUCT(($B$2:B2="Handlowy")*($E$2:E2="Sprzedaż")*$C$2:C2*$D$2:D2) -> 0 | AO2: =SUMPRODUCT(($B$2:B2="SANTANDER")*($E$2:E2="Sprzedaż")*$C$2:C2*$D$2:D2) -> 0 | AP2: =SUMPRODUCT(($B$2:B2="MBANK")*($E$2:E2="Sprzedaż")*$C$2:C2*$D$2:D2) -> 0 | AQ2: =SUMPRODUCT(($B$2:B2="Alior")*($E$2:E2="Sprzedaż")*$C$2:C2*$D$2:D2) -> 0 | AR2: =SUMPRODUCT(($B$2:B2="Idea")*($E$2:E2="Sprzedaż")*$C$2:C2*$D$2:D2) -> 0 | AS2: =ABS(VLOOKUP($A2,INDIRECT("MIL"),2,TRUE)*O2) -> 51.9 | AT2: =ABS(VLOOKUP($A2,INDIRECT("PEKAO"),2,TRUE)*P2) -> 0 | AU2: =ABS(VLOOKUP($A2,INDIRECT("PKOBP"),2,TRUE)*Q2) -> 0 | AV2: =ABS(VLOOKUP($A2,INDIRECT("ING"),2,TRUE)*R2) -> 0 | AW2: =ABS(VLOOKUP($A2,INDIRECT("GETIN"),2,TRUE)*S2) -> 0 | AX2: =ABS(VLOOKUP($A2,INDIRECT("Handlowy"),2,TRUE)*T2) -> 0 | AY2: =ABS(VLOOKUP($A2,INDIRECT("SANTANDER"),2,TRUE)*U2) -> 0 | AZ2: =ABS(VLOOKUP($A2,INDIRECT("MBANK"),2,TRUE)*V2) -> 0 | BA2: =ABS(VLOOKUP($A2,INDIRECT("Alior"),2,TRUE)*W2) -> 0 | BB2: =ABS(VLOOKUP($A2,INDIRECT("Idea"),2,TRUE)*X2) -> 0 | BC2: =SUM(Y2:BB2) -> 0 | BH2: =Y2+AI2+AS2 -> 0 | BI2: =Z2+AJ2+AT2 -> 0 | BJ2: =AA2+AK2+AU2 -> 0 | BK2: =AB2+AL2+AV2 -> 0 | BL2: =AC2+AM2+AW2 -> 0 | BM2: =AD2+AN2+AX2 -> 0 | BN2: =AE2+AO2+AY2 -> 0 | BO2: =AF2+AP2+AZ2 -> 0 | BP2: =AG2+AQ2+BA2 -> 0 | BQ2: =AH2+AR2+BB2 -> 0 | CB2: z/s nomimalnie | CC2: =VLOOKUP(TODAY(),Portfel[],60,TRUE) -> 157 | CD2: =VLOOKUP(TODAY(),Portfel[],61,TRUE) -> -936.8 | CE2: =VLOOKUP(TODAY(),Portfel[],62,TRUE) -> 300.88 | CF2: =VLOOKUP(TODAY(),Portfel[],63,TRUE) -> 1603.9 | CG2: =VLOOKUP(TODAY(),Portfel[],64,TRUE) -> -108.4 | CH2: =VLOOKUP(TODAY(),Portfel[],65,TRUE) -> -80.26 | CI2: =VLOOKUP(TODAY(),Portfel[],66,TRUE) -> 241.4 | CJ2: =VLOOKUP(TODAY(),Portfel[],67,TRUE) -> -259.9 | CK2: =VLOOKUP(TODAY(),Portfel[],68,TRUE) -> -391.8 | CL2: =VLOOKUP(TODAY(),Portfel[],69,TRUE) -> -1781.6
A3: 42738 | B3: PEKAO | C3: =VLOOKUP(A3,INDIRECT(B3),2,TRUE) -> 114.69 | D3: -10 | E3: Kupno | F3: =VLOOKUP(A3+VLOOKUP(WEEKDAY(A3,2),$M$2:$N$6,2,FALSE),INDIRECT(B3),2,TRUE)/C3-1 -> -0.01203243526 | G3: =VLOOKUP(DATE(YEAR(A3),MONTH(A3)+1,DAY(A3)),INDIRECT(B3),2,TRUE)/C3-1 -> 0.02545993548 | H3: =VLOOKUP(DATE(YEAR(A3),MONTH(A3)+3,DAY(A3)),INDIRECT(B3),2,TRUE)/C3-1 -> 0.0110733281 | I3: Polityka | J3: Banki uzasadnienie\PEKAO.docx | L3: =L2+C3*D3 -> 498801.2 | M3: 2 | N3: 3 | O3: =SUMIFS($D$2:D3,$B$2:B3,"MIL") -> -10 | P3: =SUMIFS($D$2:D3,$B$2:B3,"PEKAO") -> -10 | Q3: =SUMIFS($D$2:D3,$B$2:B3,"PKOBP") -> 0 | R3: =SUMIFS($D$2:D3,$B$2:B3,"ING") -> 0 | S3: =SUMIFS($D$2:D3,$B$2:B3,"GETIN") -> 0 | T3: =SUMIFS($D$2:D3,$B$2:B3,"Handlowy") -> 0 | U3: =SUMIFS($D$2:D3,$B$2:B3,"SANTANDER") -> 0 | V3: =SUMIFS($D$2:D3,$B$2:B3,"MBANK") -> 0 | W3: =SUMIFS($D$2:D3,$B$2:B3,"Alior") -> 0 | X3: =SUMIFS($D$2:D3,$B$2:B3,"Idea") -> 0 | Y3: =SUMPRODUCT(($B$2:B3="MIL")*($E$2:E3="Kupno")*$C$2:C3*$D$2:D3) -> -51.9 | Z3: =SUMPRODUCT(($B$2:B3="PEKAO")*($E$2:E3="Kupno")*$C$2:C3*$D$2:D3) -> -1146.9 | AA3: =SUMPRODUCT(($B$2:B3="PKOBP")*($E$2:E3="Kupno")*$C$2:C3*$D$2:D3) -> 0 | AB3: =SUMPRODUCT(($B$2:B3="ING")*($E$2:E3="Kupno")*$C$2:C3*$D$2:D3) -> 0 | AC3: =SUMPRODUCT(($B$2:B3="GETIN")*($E$2:E3="Kupno")*$C$2:C3*$D$2:D3) -> 0 | AD3: =SUMPRODUCT(($B$2:B3="Handlowy")*($E$2:E3="Kupno")*$C$2:C3*$D$2:D3) -> 0 | AE3: =SUMPRODUCT(($B$2:B3="SANTANDER")*($E$2:E3="Kupno")*$C$2:C3*$D$2:D3) -> 0 | AF3: =SUMPRODUCT(($B$2:B3="MBANK")*($E$2:E3="Kupno")*$C$2:C3*$D$2:D3) -> 0 | AG3: =SUMPRODUCT(($B$2:B3="Alior")*($E$2:E3="Kupno")*$C$2:C3*$D$2:D3) -> 0 | AH3: =SUMPRODUCT(($B$2:B3="Idea")*($E$2:E3="Kupno")*$C$2:C3*$D$2:D3) -> 0 | AI3: =SUMPRODUCT(($B$2:B3="MIL")*($E$2:E3="Sprzedaż")*$C$2:C3*$D$2:D3) -> 0 | AJ3: =SUMPRODUCT(($B$2:B3="PEKAO")*($E$2:E3="Sprzedaż")*$C$2:C3*$D$2:D3) -> 0 | AK3: =SUMPRODUCT(($B$2:B3="PKOBP")*($E$2:E3="Sprzedaż")*$C$2:C3*$D$2:D3) -> 0 | AL3: =SUMPRODUCT(($B$2:B3="ING")*($E$2:E3="Sprzedaż")*$C$2:C3*$D$2:D3) -> 0 | AM3: =SUMPRODUCT(($B$2:B3="GETIN")*($E$2:E3="Sprzedaż")*$C$2:C3*$D$2:D3) -> 0 | AN3: =SUMPRODUCT(($B$2:B3="Handlowy")*($E$2:E3="Sprzedaż")*$C$2:C3*$D$2:D3) -> 0 | AO3: =SUMPRODUCT(($B$2:B3="SANTANDER")*($E$2:E3="Sprzedaż")*$C$2:C3*$D$2:D3) -> 0 | AP3: =SUMPRODUCT(($B$2:B3="MBANK")*($E$2:E3="Sprzedaż")*$C$2:C3*$D$2:D3) -> 0 | AQ3: =SUMPRODUCT(($B$2:B3="Alior")*($E$2:E3="Sprzedaż")*$C$2:C3*$D$2:D3) -> 0 | AR3: =SUMPRODUCT(($B$2:B3="Idea")*($E$2:E3="Sprzedaż")*$C$2:C3*$D$2:D3) -> 0 | AS3: =ABS(VLOOKUP($A3,INDIRECT("MIL"),2,TRUE)*O3) -> 53 | AT3: =ABS(VLOOKUP($A3,INDIRECT("PEKAO"),2,TRUE)*P3) -> 1146.9 | AU3: =ABS(VLOOKUP($A3,INDIRECT("PKOBP"),2,TRUE)*Q3) -> 0 | AV3: =ABS(VLOOKUP($A3,INDIRECT("ING"),2,TRUE)*R3) -> 0 | AW3: =ABS(VLOOKUP($A3,INDIRECT("GETIN"),2,TRUE)*S3) -> 0 | AX3: =ABS(VLOOKUP($A3,INDIRECT("Handlowy"),2,TRUE)*T3) -> 0 | AY3: =ABS(VLOOKUP($A3,INDIRECT("SANTANDER"),2,TRUE)*U3) -> 0 | AZ3: =ABS(VLOOKUP($A3,INDIRECT("MBANK"),2,TRUE)*V3) -> 0 | BA3: =ABS(VLOOKUP($A3,INDIRECT("Alior"),2,TRUE)*W3) -> 0 | BB3: =ABS(VLOOKUP($A3,INDIRECT("Idea"),2,TRUE)*X3) -> 0 | BC3: =SUM(Y3:BB3) -> 1.1 | BD3: =BC3-BC2 -> 1.1 | BE3: =(VLOOKUP(A3,WIG_B[],2,TRUE)/VLOOKUP(A2,WIG_B[],2,TRUE)-1)*$L$1 -> 17151.37839 | BF3: =BE3-BE2 -> 17151.37839 | BG3: =Portfel[[#This Row],[WIG.B]]-Portfel[[#This Row],[Portfel. S]] -> 17150.27839 | BH3: 1.1 | BI3: 0 | BJ3: 0 | BK3: 0 | BL3: 0 | BM3: 0 | BN3: 0 | BO3: 0 | BP3: 0 | BQ3: 0 | BR3: =BH3-BH2 -> 1.1 | BS3: =BI3-BI2 -> 0 | BT3: 0 | BU3: 0 | BV3: 0 | BW3: 0 | BX3: 0 | BY3: 0 | BZ3: 0 | CA3: 0 | CB3: % portfela | CC3: =CC2/$CC$9 -> 0.0003147904893 | CD3: =CD2/$CC$9 -> -0.001878316754 | CE3: =CE2/$CC$9 -> 0.0006032749198 | CF3: =CF2/$CC$9 -> 0.003215875578 | CG3: =CG2/$CC$9 -> -0.0002173457901 | CH3: =CH2/$CC$9 -> -0.0001609241062 | CI3: =CI2/$CC$9 -> 0.0004840154402 | CJ3: =CJ2/$CC$9 -> -0.000521108587 | CK3: =CK2/$CC$9 -> -0.0007855726987 | CL3: =CL2/$CC$9 -> -0.003572170291
A4: 42739 | B4: PKOBP | C4: 30.003 | D4: -10 | E4: Kupno | F4: -0.003299670033 | G4: 0.02303103023 | H4: 0.103622971 | I4: Sprawozdanie | J4: Banki uzasadnienie\PKOBP.docx | L4: =L3+C4*D4 -> 498501.17 | M4: 3 | N4: 2 | O4: =SUMIFS($D$2:D4,$B$2:B4,"MIL") -> -10 | P4: =SUMIFS($D$2:D4,$B$2:B4,"PEKAO") -> -10 | Q4: =SUMIFS($D$2:D4,$B$2:B4,"PKOBP") -> -10 | R4: =SUMIFS($D$2:D4,$B$2:B4,"ING") -> 0 | S4: =SUMIFS($D$2:D4,$B$2:B4,"GETIN") -> 0 | T4: =SUMIFS($D$2:D4,$B$2:B4,"Handlowy") -> 0 | U4: =SUMIFS($D$2:D4,$B$2:B4,"SANTANDER") -> 0 | V4: =SUMIFS($D$2:D4,$B$2:B4,"MBANK") -> 0 | W4: =SUMIFS($D$2:D4,$B$2:B4,"Alior") -> 0 | X4: =SUMIFS($D$2:D4,$B$2:B4,"Idea") -> 0 | Y4: =SUMPRODUCT(($B$2:B4="MIL")*($E$2:E4="Kupno")*$C$2:C4*$D$2:D4) -> -51.9 | Z4: =SUMPRODUCT(($B$2:B4="PEKAO")*($E$2:E4="Kupno")*$C$2:C4*$D$2:D4) -> -1146.9 | AA4: =SUMPRODUCT(($B$2:B4="PKOBP")*($E$2:E4="Kupno")*$C$2:C4*$D$2:D4) -> -300.03 | AB4: =SUMPRODUCT(($B$2:B4="ING")*($E$2:E4="Kupno")*$C$2:C4*$D$2:D4) -> 0 | AC4: =SUMPRODUCT(($B$2:B4="GETIN")*($E$2:E4="Kupno")*$C$2:C4*$D$2:D4) -> 0 | AD4: =SUMPRODUCT(($B$2:B4="Handlowy")*($E$2:E4="Kupno")*$C$2:C4*$D$2:D4) -> 0 | AE4: =SUMPRODUCT(($B$2:B4="SANTANDER")*($E$2:E4="Kupno")*$C$2:C4*$D$2:D4) -> 0 | AF4: =SUMPRODUCT(($B$2:B4="MBANK")*($E$2:E4="Kupno")*$C$2:C4*$D$2:D4) -> 0 | AG4: =SUMPRODUCT(($B$2:B4="Alior")*($E$2:E4="Kupno")*$C$2:C4*$D$2:D4) -> 0 | AH4: =SUMPRODUCT(($B$2:B4="Idea")*($E$2:E4="Kupno")*$C$2:C4*$D$2:D4) -> 0 | AI4: =SUMPRODUCT(($B$2:B4="MIL")*($E$2:E4="Sprzedaż")*$C$2:C4*$D$2:D4) -> 0 | AJ4: =SUMPRODUCT(($B$2:B4="PEKAO")*($E$2:E4="Sprzedaż")*$C$2:C4*$D$2:D4) -> 0 | AK4: =SUMPRODUCT(($B$2:B4="PKOBP")*($E$2:E4="Sprzedaż")*$C$2:C4*$D$2:D4) -> 0 | AL4: =SUMPRODUCT(($B$2:B4="ING")*($E$2:E4="Sprzedaż")*$C$2:C4*$D$2:D4) -> 0 | AM4: =SUMPRODUCT(($B$2:B4="GETIN")*($E$2:E4="Sprzedaż")*$C$2:C4*$D$2:D4) -> 0 | AN4: =SUMPRODUCT(($B$2:B4="Handlowy")*($E$2:E4="Sprzedaż")*$C$2:C4*$D$2:D4) -> 0 | AO4: =SUMPRODUCT(($B$2:B4="SANTANDER")*($E$2:E4="Sprzedaż")*$C$2:C4*$D$2:D4) -> 0 | AP4: =SUMPRODUCT(($B$2:B4="MBANK")*($E$2:E4="Sprzedaż")*$C$2:C4*$D$2:D4) -> 0 | AQ4: =SUMPRODUCT(($B$2:B4="Alior")*($E$2:E4="Sprzedaż")*$C$2:C4*$D$2:D4) -> 0 | AR4: =SUMPRODUCT(($B$2:B4="Idea")*($E$2:E4="Sprzedaż")*$C$2:C4*$D$2:D4) -> 0 | AS4: 53.2 | AT4: 1137.4 | AU4: 300.03 | AV4: 0 | AW4: 0 | AX4: 0 | AY4: 0 | AZ4: 0 | BA4: 0 | BB4: 0 | BC4: -8.2 | BD4: =BC4-BC3 -> -9.3 | BE4: =(VLOOKUP(A4,WIG_B[],2,TRUE)/VLOOKUP(A3,WIG_B[],2,TRUE)-1)*$L$1+BE3 -> 20770.3367 | BF4: 3618.958316 | BG4: =Portfel[[#This Row],[WIG.B]]-Portfel[[#This Row],[Portfel. S]] -> 20778.5367 | BH4: 1.3 | BI4: -9.5 | BJ4: 0 | BK4: 0 | BL4: 0 | BM4: 0 | BN4: 0 | BO4: 0 | BP4: 0 | BQ4: 0 | BR4: =BH4-BH3 -> 0.2 | BS4: =BI4-BI3 -> -9.5 | BT4: =BJ4-BJ3 -> 0 | BU4: =BK4-BK3 -> 0 | BV4: =BL4-BL3 -> 0 | BW4: =BM4-BM3 -> 0 | BX4: =BN4-BN3 -> 0 | BY4: =BO4-BO3 -> 0 | BZ4: =BP4-BP3 -> 0 | CA4: =BQ4-BQ3 -> 0 | CB4: Ile kosztują akcje | CC4: =VLOOKUP(TODAY(),Portfel[],45,TRUE) -> 551.4 | CD4: =VLOOKUP(TODAY(),Portfel[],46,TRUE) -> 8948 | CE4: =VLOOKUP(TODAY(),Portfel[],47,TRUE) -> 2469.3 | CF4: =VLOOKUP(TODAY(),Portfel[],48,TRUE) -> 11520 | CG4: =VLOOKUP(TODAY(),Portfel[],49,TRUE) -> 49 | CH4: =VLOOKUP(TODAY(),Portfel[],50,TRUE) -> 3750 | CI4: =VLOOKUP(TODAY(),Portfel[],51,TRUE) -> 18340 | CJ4: =VLOOKUP(TODAY(),Portfel[],52,TRUE) -> 29932 | CK4: =VLOOKUP(TODAY(),Portfel[],53,TRUE) -> 3632.5 | CL4: =VLOOKUP(TODAY(),Portfel[],54,TRUE) -> 374
A5: 42740 | B5: ING | C5: 160.05 | D5: -10 | E5: Kupno | F5: 0 | G5: 0.06454233052 | H5: 0.05716963449 | I5: Makro | L5: 496900.67 | M5: 4 | N5: 1 | O5: =SUMIFS($D$2:D5,$B$2:B5,"MIL") -> -10 | P5: =SUMIFS($D$2:D5,$B$2:B5,"PEKAO") -> -10 | Q5: =SUMIFS($D$2:D5,$B$2:B5,"PKOBP") -> -10 | R5: =SUMIFS($D$2:D5,$B$2:B5,"ING") -> -10 | S5: =SUMIFS($D$2:D5,$B$2:B5,"GETIN") -> 0 | T5: =SUMIFS($D$2:D5,$B$2:B5,"Handlowy") -> 0 | U5: =SUMIFS($D$2:D5,$B$2:B5,"SANTANDER") -> 0 | V5: =SUMIFS($D$2:D5,$B$2:B5,"MBANK") -> 0 | W5: =SUMIFS($D$2:D5,$B$2:B5,"Alior") -> 0 | X5: =SUMIFS($D$2:D5,$B$2:B5,"Idea") -> 0 | Y5: =SUMPRODUCT(($B$2:B5="MIL")*($E$2:E5="Kupno")*$C$2:C5*$D$2:D5) -> -51.9 | Z5: =SUMPRODUCT(($B$2:B5="PEKAO")*($E$2:E5="Kupno")*$C$2:C5*$D$2:D5) -> -1146.9 | AA5: =SUMPRODUCT(($B$2:B5="PKOBP")*($E$2:E5="Kupno")*$C$2:C5*$D$2:D5) -> -300.03 | AB5: =SUMPRODUCT(($B$2:B5="ING")*($E$2:E5="Kupno")*$C$2:C5*$D$2:D5) -> -1600.5 | AC5: =SUMPRODUCT(($B$2:B5="GETIN")*($E$2:E5="Kupno")*$C$2:C5*$D$2:D5) -> 0 | AD5: =SUMPRODUCT(($B$2:B5="Handlowy")*($E$2:E5="Kupno")*$C$2:C5*$D$2:D5) -> 0 | AE5: =SUMPRODUCT(($B$2:B5="SANTANDER")*($E$2:E5="Kupno")*$C$2:C5*$D$2:D5) -> 0 | AF5: =SUMPRODUCT(($B$2:B5="MBANK")*($E$2:E5="Kupno")*$C$2:C5*$D$2:D5) -> 0 | AG5: =SUMPRODUCT(($B$2:B5="Alior")*($E$2:E5="Kupno")*$C$2:C5*$D$2:D5) -> 0 | AH5: =SUMPRODUCT(($B$2:B5="Idea")*($E$2:E5="Kupno")*$C$2:C5*$D$2:D5) -> 0 | AI5: =SUMPRODUCT(($B$2:B5="MIL")*($E$2:E5="Sprzedaż")*$C$2:C5*$D$2:D5) -> 0 | AJ5: =SUMPRODUCT(($B$2:B5="PEKAO")*($E$2:E5="Sprzedaż")*$C$2:C5*$D$2:D5) -> 0 | AK5: =SUMPRODUCT(($B$2:B5="PKOBP")*($E$2:E5="Sprzedaż")*$C$2:C5*$D$2:D5) -> 0 | AL5: =SUMPRODUCT(($B$2:B5="ING")*($E$2:E5="Sprzedaż")*$C$2:C5*$D$2:D5) -> 0 | AM5: =SUMPRODUCT(($B$2:B5="GETIN")*($E$2:E5="Sprzedaż")*$C$2:C5*$D$2:D5) -> 0 | AN5: =SUMPRODUCT(($B$2:B5="Handlowy")*($E$2:E5="Sprzedaż")*$C$2:C5*$D$2:D5) -> 0 | AO5: =SUMPRODUCT(($B$2:B5="SANTANDER")*($E$2:E5="Sprzedaż")*$C$2:C5*$D$2:D5) -> 0 | AP5: =SUMPRODUCT(($B$2:B5="MBANK")*($E$2:E5="Sprzedaż")*$C$2:C5*$D$2:D5) -> 0 | AQ5: =SUMPRODUCT(($B$2:B5="Alior")*($E$2:E5="Sprzedaż")*$C$2:C5*$D$2:D5) -> 0 | AR5: =SUMPRODUCT(($B$2:B5="Idea")*($E$2:E5="Sprzedaż")*$C$2:C5*$D$2:D5) -> 0 | AS5: 54 | AT5: 1133.1 | AU5: 299.04 | AV5: 1600.5 | AW5: 0 | AX5: 0 | AY5: 0 | AZ5: 0 | BA5: 0 | BB5: 0 | BC5: -12.69 | BD5: -4.49 | BE5: =(VLOOKUP(A5,WIG_B[],2,TRUE)/VLOOKUP(A4,WIG_B[],2,TRUE)-1)*$L$1+BE4 -> 19873.61964 | BF5: -896.7170572 | BG5: =Portfel[[#This Row],[WIG.B]]-Portfel[[#This Row],[Portfel. S]] -> 19886.30964 | BH5: 2.1 | BI5: -13.8 | BJ5: -0.99 | BK5: 0 | BL5: 0 | BM5: 0 | BN5: 0 | BO5: 0 | BP5: 0 | BQ5: 0 | BR5: 0.8 | BS5: -4.3 | BT5: -0.99 | BU5: 0 | BV5: 0 | BW5: 0 | BX5: 0 | BY5: 0 | BZ5: 0 | CA5: 0 | CB5: % portfela | CC5: =CC4/$CC$9 -> 0.001105576279 | CD5: =CD4/$CC$9 -> 0.01794105285 | CE5: 0.004951032836 | CF5: 0.02309800278 | CG5: 9.824671322e-05 | CH5: 0.007518881113 | CI5: 0.03677234123 | CJ5: 0.06001470653 | CK5: 0.007283289505 | CL5: 0.0007498830764
A6: 42741 | B6: GETIN | C6: 1.74 | D6: -10 | E6: Kupno | F6: 0 | G6: -0.06896551724 | H6: 0.0632183908 | I6: Polityka | L6: 496883.27 | M6: 5 | N6: 0 | O6: =SUMIFS($D$2:D6,$B$2:B6,"MIL") -> -10 | P6: =SUMIFS($D$2:D6,$B$2:B6,"PEKAO") -> -10 | Q6: =SUMIFS($D$2:D6,$B$2:B6,"PKOBP") -> -10 | R6: =SUMIFS($D$2:D6,$B$2:B6,"ING") -> -10 | S6: =SUMIFS($D$2:D6,$B$2:B6,"GETIN") -> -10 | T6: =SUMIFS($D$2:D6,$B$2:B6,"Handlowy") -> 0 | U6: =SUMIFS($D$2:D6,$B$2:B6,"SANTANDER") -> 0 | V6: =SUMIFS($D$2:D6,$B$2:B6,"MBANK") -> 0 | W6: =SUMIFS($D$2:D6,$B$2:B6,"Alior") -> 0 | X6: =SUMIFS($D$2:D6,$B$2:B6,"Idea") -> 0 | Y6: =SUMPRODUCT(($B$2:B6="MIL")*($E$2:E6="Kupno")*$C$2:C6*$D$2:D6) -> -51.9 | Z6: =SUMPRODUCT(($B$2:B6="PEKAO")*($E$2:E6="Kupno")*$C$2:C6*$D$2:D6) -> -1146.9 | AA6: =SUMPRODUCT(($B$2:B6="PKOBP")*($E$2:E6="Kupno")*$C$2:C6*$D$2:D6) -> -300.03 | AB6: =SUMPRODUCT(($B$2:B6="ING")*($E$2:E6="Kupno")*$C$2:C6*$D$2:D6) -> -1600.5 | AC6: =SUMPRODUCT(($B$2:B6="GETIN")*($E$2:E6="Kupno")*$C$2:C6*$D$2:D6) -> -17.4 | AD6: =SUMPRODUCT(($B$2:B6="Handlowy")*($E$2:E6="Kupno")*$C$2:C6*$D$2:D6) -> 0 | AE6: =SUMPRODUCT(($B$2:B6="SANTANDER")*($E$2:E6="Kupno")*$C$2:C6*$D$2:D6) -> 0 | AF6: =SUMPRODUCT(($B$2:B6="MBANK")*($E$2:E6="Kupno")*$C$2:C6*$D$2:D6) -> 0 | AG6: =SUMPRODUCT(($B$2:B6="Alior")*($E$2:E6="Kupno")*$C$2:C6*$D$2:D6) -> 0 | AH6: =SUMPRODUCT(($B$2:B6="Idea")*($E$2:E6="Kupno")*$C$2:C6*$D$2:D6) -> 0 | AI6: =SUMPRODUCT(($B$2:B6="MIL")*($E$2:E6="Sprzedaż")*$C$2:C6*$D$2:D6) -> 0 | AJ6: =SUMPRODUCT(($B$2:B6="PEKAO")*($E$2:E6="Sprzedaż")*$C$2:C6*$D$2:D6) -> 0 | AK6: =SUMPRODUCT(($B$2:B6="PKOBP")*($E$2:E6="Sprzedaż")*$C$2:C6*$D$2:D6) -> 0 | AL6: =SUMPRODUCT(($B$2:B6="ING")*($E$2:E6="Sprzedaż")*$C$2:C6*$D$2:D6) -> 0 | AM6: =SUMPRODUCT(($B$2:B6="GETIN")*($E$2:E6="Sprzedaż")*$C$2:C6*$D$2:D6) -> 0 | AN6: =SUMPRODUCT(($B$2:B6="Handlowy")*($E$2:E6="Sprzedaż")*$C$2:C6*$D$2:D6) -> 0 | AO6: =SUMPRODUCT(($B$2:B6="SANTANDER")*($E$2:E6="Sprzedaż")*$C$2:C6*$D$2:D6) -> 0 | AP6: =SUMPRODUCT(($B$2:B6="MBANK")*($E$2:E6="Sprzedaż")*$C$2:C6*$D$2:D6) -> 0 | AQ6: =SUMPRODUCT(($B$2:B6="Alior")*($E$2:E6="Sprzedaż")*$C$2:C6*$D$2:D6) -> 0 | AR6: =SUMPRODUCT(($B$2:B6="Idea")*($E$2:E6="Sprzedaż")*$C$2:C6*$D$2:D6) -> 0 | AS6: 54 | AT6: 1133.1 | AU6: 299.04 | AV6: 1600.5 | AW6: 17.4 | AX6: 0 | AY6: 0 | AZ6: 0 | BA6: 0 | BB6: 0 | BC6: -12.69 | BD6: -9.237055565e-14 | BE6: =(VLOOKUP(A6,WIG_B[],2,TRUE)/VLOOKUP(A5,WIG_B[],2,TRUE)-1)*$L$1+BE5 -> 19873.61964 | BF6: 0 | BG6: =Portfel[[#This Row],[WIG.B]]-Portfel[[#This Row],[Portfel. S]] -> 19886.30964 | BH6: 2.1 | BI6: -13.8 | BJ6: -0.99 | BK6: 0 | BL6: 0 | BM6: 0 | BN6: 0 | BO6: 0 | BP6: 0 | BQ6: 0 | BR6: 0 | BS6: 0 | BT6: 0 | BU6: 0 | BV6: 0 | BW6: 0 | BX6: 0 | BY6: 0 | BZ6: 0 | CA6: 0
A7: 42741 | B7: Handlowy | C7: 67.913 | D7: -10 | E7: Kupno | F7: 0 | G7: 0.01437132802 | H7: 0.0429961863 | I7: Sprawozdanie | L7: 496204.14 | O7: =SUMIFS($D$2:D7,$B$2:B7,"MIL") -> -10 | P7: =SUMIFS($D$2:D7,$B$2:B7,"PEKAO") -> -10 | Q7: =SUMIFS($D$2:D7,$B$2:B7,"PKOBP") -> -10 | R7: =SUMIFS($D$2:D7,$B$2:B7,"ING") -> -10 | S7: =SUMIFS($D$2:D7,$B$2:B7,"GETIN") -> -10 | T7: =SUMIFS($D$2:D7,$B$2:B7,"Handlowy") -> -10 | U7: =SUMIFS($D$2:D7,$B$2:B7,"SANTANDER") -> 0 | V7: =SUMIFS($D$2:D7,$B$2:B7,"MBANK") -> 0 | W7: =SUMIFS($D$2:D7,$B$2:B7,"Alior") -> 0 | X7: =SUMIFS($D$2:D7,$B$2:B7,"Idea") -> 0 | Y7: =SUMPRODUCT(($B$2:B7="MIL")*($E$2:E7="Kupno")*$C$2:C7*$D$2:D7) -> -51.9 | Z7: =SUMPRODUCT(($B$2:B7="PEKAO")*($E$2:E7="Kupno")*$C$2:C7*$D$2:D7) -> -1146.9 | AA7: =SUMPRODUCT(($B$2:B7="PKOBP")*($E$2:E7="Kupno")*$C$2:C7*$D$2:D7) -> -300.03 | AB7: =SUMPRODUCT(($B$2:B7="ING")*($E$2:E7="Kupno")*$C$2:C7*$D$2:D7) -> -1600.5 | AC7: =SUMPRODUCT(($B$2:B7="GETIN")*($E$2:E7="Kupno")*$C$2:C7*$D$2:D7) -> -17.4 | AD7: =SUMPRODUCT(($B$2:B7="Handlowy")*($E$2:E7="Kupno")*$C$2:C7*$D$2:D7) -> -679.13 | AE7: =SUMPRODUCT(($B$2:B7="SANTANDER")*($E$2:E7="Kupno")*$C$2:C7*$D$2:D7) -> 0 | AF7: =SUMPRODUCT(($B$2:B7="MBANK")*($E$2:E7="Kupno")*$C$2:C7*$D$2:D7) -> 0 | AG7: =SUMPRODUCT(($B$2:B7="Alior")*($E$2:E7="Kupno")*$C$2:C7*$D$2:D7) -> 0 | AH7: =SUMPRODUCT(($B$2:B7="Idea")*($E$2:E7="Kupno")*$C$2:C7*$D$2:D7) -> 0 | AI7: =SUMPRODUCT(($B$2:B7="MIL")*($E$2:E7="Sprzedaż")*$C$2:C7*$D$2:D7) -> 0 | AJ7: =SUMPRODUCT(($B$2:B7="PEKAO")*($E$2:E7="Sprzedaż")*$C$2:C7*$D$2:D7) -> 0 | AK7: =SUMPRODUCT(($B$2:B7="PKOBP")*($E$2:E7="Sprzedaż")*$C$2:C7*$D$2:D7) -> 0 | AL7: =SUMPRODUCT(($B$2:B7="ING")*($E$2:E7="Sprzedaż")*$C$2:C7*$D$2:D7) -> 0 | AM7: =SUMPRODUCT(($B$2:B7="GETIN")*($E$2:E7="Sprzedaż")*$C$2:C7*$D$2:D7) -> 0 | AN7: =SUMPRODUCT(($B$2:B7="Handlowy")*($E$2:E7="Sprzedaż")*$C$2:C7*$D$2:D7) -> 0 | AO7: =SUMPRODUCT(($B$2:B7="SANTANDER")*($E$2:E7="Sprzedaż")*$C$2:C7*$D$2:D7) -> 0 | AP7: =SUMPRODUCT(($B$2:B7="MBANK")*($E$2:E7="Sprzedaż")*$C$2:C7*$D$2:D7) -> 0 | AQ7: =SUMPRODUCT(($B$2:B7="Alior")*($E$2:E7="Sprzedaż")*$C$2:C7*$D$2:D7) -> 0 | AR7: =SUMPRODUCT(($B$2:B7="Idea")*($E$2:E7="Sprzedaż")*$C$2:C7*$D$2:D7) -> 0 | AS7: 54 | AT7: 1133.1 | AU7: 299.04 | AV7: 1600.5 | AW7: 17.4 | AX7: 679.13 | AY7: 0 | AZ7: 0 | BA7: 0 | BB7: 0 | BC7: -12.69 | BD7: -1.350031198e-13 | BE7: =(VLOOKUP(A7,WIG_B[],2,TRUE)/VLOOKUP(A6,WIG_B[],2,TRUE)-1)*$L$1+BE6 -> 19873.61964 | BF7: 0 | BG7: =Portfel[[#This Row],[WIG.B]]-Portfel[[#This Row],[Portfel. S]] -> 19886.30964 | BH7: 2.1 | BI7: -13.8 | BJ7: -0.99 | BK7: 0 | BL7: 0 | BM7: 0 | BN7: 0 | BO7: 0 | BP7: 0 | BQ7: 0 | BR7: 0 | BS7: 0 | BT7: 0 | BU7: 0 | BV7: 0 | BW7: 0 | BX7: 0 | BY7: 0 | BZ7: 0 | CA7: 0 | CB7: Ile gotówki | CC7: =VLOOKUP(TODAY(),Portfel[],12,TRUE) -> 419178.22
A8: 42741 | B8: SANTANDER | C8: 314.76 | D8: -10 | E8: Kupno | F8: 0 | G8: 0.06214258483 | H8: 0.100139789 | I8: Makro | L8: 493056.54 | O8: =SUMIFS($D$2:D8,$B$2:B8,"MIL") -> -10 | P8: =SUMIFS($D$2:D8,$B$2:B8,"PEKAO") -> -10 | Q8: =SUMIFS($D$2:D8,$B$2:B8,"PKOBP") -> -10 | R8: =SUMIFS($D$2:D8,$B$2:B8,"ING") -> -10 | S8: =SUMIFS($D$2:D8,$B$2:B8,"GETIN") -> -10 | T8: =SUMIFS($D$2:D8,$B$2:B8,"Handlowy") -> -10 | U8: =SUMIFS($D$2:D8,$B$2:B8,"SANTANDER") -> -10 | V8: =SUMIFS($D$2:D8,$B$2:B8,"MBANK") -> 0 | W8: =SUMIFS($D$2:D8,$B$2:B8,"Alior") -> 0 | X8: =SUMIFS($D$2:D8,$B$2:B8,"Idea") -> 0 | Y8: =SUMPRODUCT(($B$2:B8="MIL")*($E$2:E8="Kupno")*$C$2:C8*$D$2:D8) -> -51.9 | Z8: =SUMPRODUCT(($B$2:B8="PEKAO")*($E$2:E8="Kupno")*$C$2:C8*$D$2:D8) -> -1146.9 | AA8: =SUMPRODUCT(($B$2:B8="PKOBP")*($E$2:E8="Kupno")*$C$2:C8*$D$2:D8) -> -300.03 | AB8: =SUMPRODUCT(($B$2:B8="ING")*($E$2:E8="Kupno")*$C$2:C8*$D$2:D8) -> -1600.5 | AC8: =SUMPRODUCT(($B$2:B8="GETIN")*($E$2:E8="Kupno")*$C$2:C8*$D$2:D8) -> -17.4 | AD8: =SUMPRODUCT(($B$2:B8="Handlowy")*($E$2:E8="Kupno")*$C$2:C8*$D$2:D8) -> -679.13 | AE8: =SUMPRODUCT(($B$2:B8="SANTANDER")*($E$2:E8="Kupno")*$C$2:C8*$D$2:D8) -> -3147.6 | AF8: =SUMPRODUCT(($B$2:B8="MBANK")*($E$2:E8="Kupno")*$C$2:C8*$D$2:D8) -> 0 | AG8: =SUMPRODUCT(($B$2:B8="Alior")*($E$2:E8="Kupno")*$C$2:C8*$D$2:D8) -> 0 | AH8: =SUMPRODUCT(($B$2:B8="Idea")*($E$2:E8="Kupno")*$C$2:C8*$D$2:D8) -> 0 | AI8: =SUMPRODUCT(($B$2:B8="MIL")*($E$2:E8="Sprzedaż")*$C$2:C8*$D$2:D8) -> 0 | AJ8: =SUMPRODUCT(($B$2:B8="PEKAO")*($E$2:E8="Sprzedaż")*$C$2:C8*$D$2:D8) -> 0 | AK8: =SUMPRODUCT(($B$2:B8="PKOBP")*($E$2:E8="Sprzedaż")*$C$2:C8*$D$2:D8) -> 0 | AL8: =SUMPRODUCT(($B$2:B8="ING")*($E$2:E8="Sprzedaż")*$C$2:C8*$D$2:D8) -> 0 | AM8: =SUMPRODUCT(($B$2:B8="GETIN")*($E$2:E8="Sprzedaż")*$C$2:C8*$D$2:D8) -> 0 | AN8: =SUMPRODUCT(($B$2:B8="Handlowy")*($E$2:E8="Sprzedaż")*$C$2:C8*$D$2:D8) -> 0 | AO8: =SUMPRODUCT(($B$2:B8="SANTANDER")*($E$2:E8="Sprzedaż")*$C$2:C8*$D$2:D8) -> 0 | AP8: =SUMPRODUCT(($B$2:B8="MBANK")*($E$2:E8="Sprzedaż")*$C$2:C8*$D$2:D8) -> 0 | AQ8: =SUMPRODUCT(($B$2:B8="Alior")*($E$2:E8="Sprzedaż")*$C$2:C8*$D$2:D8) -> 0 | AR8: =SUMPRODUCT(($B$2:B8="Idea")*($E$2:E8="Sprzedaż")*$C$2:C8*$D$2:D8) -> 0 | AS8: 54 | AT8: 1133.1 | AU8: 299.04 | AV8: 1600.5 | AW8: 17.4 | AX8: 679.13 | AY8: 3147.6 | AZ8: 0 | BA8: 0 | BB8: 0 | BC8: -12.69 | BD8: -2.273736754e-13 | BE8: =(VLOOKUP(A8,WIG_B[],2,TRUE)/VLOOKUP(A7,WIG_B[],2,TRUE)-1)*$L$1+BE7 -> 19873.61964 | BF8: 0 | BG8: =Portfel[[#This Row],[WIG.B]]-Portfel[[#This Row],[Portfel. S]] -> 19886.30964 | BH8: 2.1 | BI8: -13.8 | BJ8: -0.99 | BK8: 0 | BL8: 0 | BM8: 0 | BN8: 0 | BO8: 0 | BP8: 0 | BQ8: 0 | BR8: 0 | BS8: 0 | BT8: 0 | BU8: 0 | BV8: 0 | BW8: 0 | BX8: 0 | BY8: 0 | BZ8: 0 | CA8: 0 | CB8: Ile w akcjach | CC8: =SUM(CC4:CL4) -> 79566.2
A9: 42744 | B9: MBANK | C9: 341.35 | D9: -10 | E9: Kupno | F9: 0.0366193057 | G9: 0.201318295 | H9: 0.1094184854 | I9: Polityka | L9: 489643.04 | O9: =SUMIFS($D$2:D9,$B$2:B9,"MIL") -> -10 | P9: =SUMIFS($D$2:D9,$B$2:B9,"PEKAO") -> -10 | Q9: =SUMIFS($D$2:D9,$B$2:B9,"PKOBP") -> -10 | R9: =SUMIFS($D$2:D9,$B$2:B9,"ING") -> -10 | S9: =SUMIFS($D$2:D9,$B$2:B9,"GETIN") -> -10 | T9: =SUMIFS($D$2:D9,$B$2:B9,"Handlowy") -> -10 | U9: =SUMIFS($D$2:D9,$B$2:B9,"SANTANDER") -> -10 | V9: =SUMIFS($D$2:D9,$B$2:B9,"MBANK") -> -10 | W9: =SUMIFS($D$2:D9,$B$2:B9,"Alior") -> 0 | X9: =SUMIFS($D$2:D9,$B$2:B9,"Idea") -> 0 | Y9: =SUMPRODUCT(($B$2:B9="MIL")*($E$2:E9="Kupno")*$C$2:C9*$D$2:D9) -> -51.9 | Z9: =SUMPRODUCT(($B$2:B9="PEKAO")*($E$2:E9="Kupno")*$C$2:C9*$D$2:D9) -> -1146.9 | AA9: =SUMPRODUCT(($B$2:B9="PKOBP")*($E$2:E9="Kupno")*$C$2:C9*$D$2:D9) -> -300.03 | AB9: =SUMPRODUCT(($B$2:B9="ING")*($E$2:E9="Kupno")*$C$2:C9*$D$2:D9) -> -1600.5 | AC9: =SUMPRODUCT(($B$2:B9="GETIN")*($E$2:E9="Kupno")*$C$2:C9*$D$2:D9) -> -17.4 | AD9: =SUMPRODUCT(($B$2:B9="Handlowy")*($E$2:E9="Kupno")*$C$2:C9*$D$2:D9) -> -679.13 | AE9: =SUMPRODUCT(($B$2:B9="SANTANDER")*($E$2:E9="Kupno")*$C$2:C9*$D$2:D9) -> -3147.6 | AF9: =SUMPRODUCT(($B$2:B9="MBANK")*($E$2:E9="Kupno")*$C$2:C9*$D$2:D9) -> -3413.5 | AG9: =SUMPRODUCT(($B$2:B9="Alior")*($E$2:E9="Kupno")*$C$2:C9*$D$2:D9) -> 0 | AH9: =SUMPRODUCT(($B$2:B9="Idea")*($E$2:E9="Kupno")*$C$2:C9*$D$2:D9) -> 0 | AI9: =SUMPRODUCT(($B$2:B9="MIL")*($E$2:E9="Sprzedaż")*$C$2:C9*$D$2:D9) -> 0 | AJ9: =SUMPRODUCT(($B$2:B9="PEKAO")*($E$2:E9="Sprzedaż")*$C$2:C9*$D$2:D9) -> 0 | AK9: =SUMPRODUCT(($B$2:B9="PKOBP")*($E$2:E9="Sprzedaż")*$C$2:C9*$D$2:D9) -> 0 | AL9: =SUMPRODUCT(($B$2:B9="ING")*($E$2:E9="Sprzedaż")*$C$2:C9*$D$2:D9) -> 0 | AM9: =SUMPRODUCT(($B$2:B9="GETIN")*($E$2:E9="Sprzedaż")*$C$2:C9*$D$2:D9) -> 0 | AN9: =SUMPRODUCT(($B$2:B9="Handlowy")*($E$2:E9="Sprzedaż")*$C$2:C9*$D$2:D9) -> 0 | AO9: =SUMPRODUCT(($B$2:B9="SANTANDER")*($E$2:E9="Sprzedaż")*$C$2:C9*$D$2:D9) -> 0 | AP9: =SUMPRODUCT(($B$2:B9="MBANK")*($E$2:E9="Sprzedaż")*$C$2:C9*$D$2:D9) -> 0 | AQ9: =SUMPRODUCT(($B$2:B9="Alior")*($E$2:E9="Sprzedaż")*$C$2:C9*$D$2:D9) -> 0 | AR9: =SUMPRODUCT(($B$2:B9="Idea")*($E$2:E9="Sprzedaż")*$C$2:C9*$D$2:D9) -> 0 | AS9: 55 | AT9: 1122.6 | AU9: 301.02 | AV9: 1605.4 | AW9: 18.2 | AX9: 674.69 | AY9: 3161.2 | AZ9: 3413.5 | BA9: 0 | BB9: 0 | BC9: -5.35 | BD9: 7.34 | BE9: =(VLOOKUP(A9,WIG_B[],2,TRUE)/VLOOKUP(A8,WIG_B[],2,TRUE)-1)*$L$1+BE8 -> 21187.96745 | BF9: 1314.347802 | BG9: =Portfel[[#This Row],[WIG.B]]-Portfel[[#This Row],[Portfel. S]] -> 21193.31745 | BH9: 3.1 | BI9: -24.3 | BJ9: 0.99 | BK9: 4.9 | BL9: 0.8 | BM9: -4.44 | BN9: 13.6 | BO9: 0 | BP9: 0 | BQ9: 0 | BR9: 1 | BS9: -10.5 | BT9: 1.98 | BU9: 4.9 | BV9: 0.8 | BW9: -4.44 | BX9: 13.6 | BY9: 0 | BZ9: 0 | CA9: 0 | CB9: Performance razem | CC9: =CC7+CC8 -> 498744.42
A10: 42745 | B10: Alior | C10: 59.25 | D10: -10 | E10: Kupno | F10: 0.006582278481 | G10: 0.1205063291 | H10: 0.2067510549 | I10: Sprawozdanie | L10: 489050.54 | O10: =SUMIFS($D$2:D10,$B$2:B10,"MIL") -> -10 | P10: =SUMIFS($D$2:D10,$B$2:B10,"PEKAO") -> -10 | Q10: =SUMIFS($D$2:D10,$B$2:B10,"PKOBP") -> -10 | R10: =SUMIFS($D$2:D10,$B$2:B10,"ING") -> -10 | S10: =SUMIFS($D$2:D10,$B$2:B10,"GETIN") -> -10 | T10: =SUMIFS($D$2:D10,$B$2:B10,"Handlowy") -> -10 | U10: =SUMIFS($D$2:D10,$B$2:B10,"SANTANDER") -> -10 | V10: =SUMIFS($D$2:D10,$B$2:B10,"MBANK") -> -10 | W10: =SUMIFS($D$2:D10,$B$2:B10,"Alior") -> -10 | X10: =SUMIFS($D$2:D10,$B$2:B10,"Idea") -> 0 | Y10: =SUMPRODUCT(($B$2:B10="MIL")*($E$2:E10="Kupno")*$C$2:C10*$D$2:D10) -> -51.9 | Z10: =SUMPRODUCT(($B$2:B10="PEKAO")*($E$2:E10="Kupno")*$C$2:C10*$D$2:D10) -> -1146.9 | AA10: =SUMPRODUCT(($B$2:B10="PKOBP")*($E$2:E10="Kupno")*$C$2:C10*$D$2:D10) -> -300.03 | AB10: =SUMPRODUCT(($B$2:B10="ING")*($E$2:E10="Kupno")*$C$2:C10*$D$2:D10) -> -1600.5 | AC10: =SUMPRODUCT(($B$2:B10="GETIN")*($E$2:E10="Kupno")*$C$2:C10*$D$2:D10) -> -17.4 | AD10: =SUMPRODUCT(($B$2:B10="Handlowy")*($E$2:E10="Kupno")*$C$2:C10*$D$2:D10) -> -679.13 | AE10: =SUMPRODUCT(($B$2:B10="SANTANDER")*($E$2:E10="Kupno")*$C$2:C10*$D$2:D10) -> -3147.6 | AF10: =SUMPRODUCT(($B$2:B10="MBANK")*($E$2:E10="Kupno")*$C$2:C10*$D$2:D10) -> -3413.5 | AG10: =SUMPRODUCT(($B$2:B10="Alior")*($E$2:E10="Kupno")*$C$2:C10*$D$2:D10) -> -592.5 | AH10: =SUMPRODUCT(($B$2:B10="Idea")*($E$2:E10="Kupno")*$C$2:C10*$D$2:D10) -> 0 | AI10: =SUMPRODUCT(($B$2:B10="MIL")*($E$2:E10="Sprzedaż")*$C$2:C10*$D$2:D10) -> 0 | AJ10: =SUMPRODUCT(($B$2:B10="PEKAO")*($E$2:E10="Sprzedaż")*$C$2:C10*$D$2:D10) -> 0 | AK10: =SUMPRODUCT(($B$2:B10="PKOBP")*($E$2:E10="Sprzedaż")*$C$2:C10*$D$2:D10) -> 0 | AL10: =SUMPRODUCT(($B$2:B10="ING")*($E$2:E10="Sprzedaż")*$C$2:C10*$D$2:D10) -> 0 | AM10: =SUMPRODUCT(($B$2:B10="GETIN")*($E$2:E10="Sprzedaż")*$C$2:C10*$D$2:D10) -> 0 | AN10: =SUMPRODUCT(($B$2:B10="Handlowy")*($E$2:E10="Sprzedaż")*$C$2:C10*$D$2:D10) -> 0 | AO10: =SUMPRODUCT(($B$2:B10="SANTANDER")*($E$2:E10="Sprzedaż")*$C$2:C10*$D$2:D10) -> 0 | AP10: =SUMPRODUCT(($B$2:B10="MBANK")*($E$2:E10="Sprzedaż")*$C$2:C10*$D$2:D10) -> 0 | AQ10: =SUMPRODUCT(($B$2:B10="Alior")*($E$2:E10="Sprzedaż")*$C$2:C10*$D$2:D10) -> 0 | AR10: =SUMPRODUCT(($B$2:B10="Idea")*($E$2:E10="Sprzedaż")*$C$2:C10*$D$2:D10) -> 0 | AS10: 57.4 | AT10: 1125.3 | AU10: 299.04 | AV10: 1651.7 | AW10: 17.4 | AX10: 686.23 | AY10: 3162.7 | AZ10: 3445.1 | BA10: 592.5 | BB10: 0 | BC10: 87.91 | BD10: 93.26 | BE10: =(VLOOKUP(A10,WIG_B[],2,TRUE)/VLOOKUP(A9,WIG_B[],2,TRUE)-1)*$L$1+BE9 -> 23156.22006 | BF10: 1968.252617 | BG10: =Portfel[[#This Row],[WIG.B]]-Portfel[[#This Row],[Portfel. S]] -> 23068.31006 | BH10: 5.5 | BI10: -21.6 | BJ10: -0.99 | BK10: 51.2 | BL10: 0 | BM10: 7.1 | BN10: 15.1 | BO10: 31.6 | BP10: 0 | BQ10: 0 | BR10: 2.4 | BS10: 2.7 | BT10: -1.98 | BU10: 46.3 | BV10: -0.8 | BW10: 11.54 | BX10: 1.5 | BY10: 31.6 | BZ10: 0 | CA10: 0
A11: 42746 | B11: Idea | C11: 23.24 | D11: -10 | E11: Kupno | F11: 0.000430292599 | G11: 0.02280550775 | H11: 0.06497418244 | I11: Makro | L11: 488818.14 | O11: =SUMIFS($D$2:D11,$B$2:B11,"MIL") -> -10 | P11: =SUMIFS($D$2:D11,$B$2:B11,"PEKAO") -> -10 | Q11: =SUMIFS($D$2:D11,$B$2:B11,"PKOBP") -> -10 | R11: =SUMIFS($D$2:D11,$B$2:B11,"ING") -> -10 | S11: =SUMIFS($D$2:D11,$B$2:B11,"GETIN") -> -10 | T11: =SUMIFS($D$2:D11,$B$2:B11,"Handlowy") -> -10 | U11: =SUMIFS($D$2:D11,$B$2:B11,"SANTANDER") -> -10 | V11: =SUMIFS($D$2:D11,$B$2:B11,"MBANK") -> -10 | W11: =SUMIFS($D$2:D11,$B$2:B11,"Alior") -> -10 | X11: =SUMIFS($D$2:D11,$B$2:B11,"Idea") -> -10 | Y11: =SUMPRODUCT(($B$2:B11="MIL")*($E$2:E11="Kupno")*$C$2:C11*$D$2:D11) -> -51.9 | Z11: =SUMPRODUCT(($B$2:B11="PEKAO")*($E$2:E11="Kupno")*$C$2:C11*$D$2:D11) -> -1146.9 | AA11: =SUMPRODUCT(($B$2:B11="PKOBP")*($E$2:E11="Kupno")*$C$2:C11*$D$2:D11) -> -300.03 | AB11: =SUMPRODUCT(($B$2:B11="ING")*($E$2:E11="Kupno")*$C$2:C11*$D$2:D11) -> -1600.5 | AC11: =SUMPRODUCT(($B$2:B11="GETIN")*($E$2:E11="Kupno")*$C$2:C11*$D$2:D11) -> -17.4 | AD11: =SUMPRODUCT(($B$2:B11="Handlowy")*($E$2:E11="Kupno")*$C$2:C11*$D$2:D11) -> -679.13 | AE11: =SUMPRODUCT(($B$2:B11="SANTANDER")*($E$2:E11="Kupno")*$C$2:C11*$D$2:D11) -> -3147.6 | AF11: =SUMPRODUCT(($B$2:B11="MBANK")*($E$2:E11="Kupno")*$C$2:C11*$D$2:D11) -> -3413.5 | AG11: =SUMPRODUCT(($B$2:B11="Alior")*($E$2:E11="Kupno")*$C$2:C11*$D$2:D11) -> -592.5 | AH11: =SUMPRODUCT(($B$2:B11="Idea")*($E$2:E11="Kupno")*$C$2:C11*$D$2:D11) -> -232.4 | AI11: =SUMPRODUCT(($B$2:B11="MIL")*($E$2:E11="Sprzedaż")*$C$2:C11*$D$2:D11) -> 0 | AJ11: =SUMPRODUCT(($B$2:B11="PEKAO")*($E$2:E11="Sprzedaż")*$C$2:C11*$D$2:D11) -> 0 | AK11: =SUMPRODUCT(($B$2:B11="PKOBP")*($E$2:E11="Sprzedaż")*$C$2:C11*$D$2:D11) -> 0 | AL11: =SUMPRODUCT(($B$2:B11="ING")*($E$2:E11="Sprzedaż")*$C$2:C11*$D$2:D11) -> 0 | AM11: =SUMPRODUCT(($B$2:B11="GETIN")*($E$2:E11="Sprzedaż")*$C$2:C11*$D$2:D11) -> 0 | AN11: =SUMPRODUCT(($B$2:B11="Handlowy")*($E$2:E11="Sprzedaż")*$C$2:C11*$D$2:D11) -> 0 | AO11: =SUMPRODUCT(($B$2:B11="SANTANDER")*($E$2:E11="Sprzedaż")*$C$2:C11*$D$2:D11) -> 0 | AP11: =SUMPRODUCT(($B$2:B11="MBANK")*($E$2:E11="Sprzedaż")*$C$2:C11*$D$2:D11) -> 0 | AQ11: =SUMPRODUCT(($B$2:B11="Alior")*($E$2:E11="Sprzedaż")*$C$2:C11*$D$2:D11) -> 0 | AR11: =SUMPRODUCT(($B$2:B11="Idea")*($E$2:E11="Sprzedaż")*$C$2:C11*$D$2:D11) -> 0 | AS11: 57.4 | AT11: 1126.6 | AU11: 303.98 | AV11: 1658.1 | AW11: 17.7 | AX11: 692.44 | AY11: 3202.3 | AZ11: 3478.2 | BA11: 598 | BB11: 232.4 | BC11: 185.26 | BD11: 97.35 | BE11: =(VLOOKUP(A11,WIG_B[],2,TRUE)/VLOOKUP(A10,WIG_B[],2,TRUE)-1)*$L$1+BE10 -> 27575.37184 | BF11: 4419.151777 | BG11: =Portfel[[#This Row],[WIG.B]]-Portfel[[#This Row],[Portfel. S]] -> 27390.11184 | BH11: 5.5 | BI11: -20.3 | BJ11: 3.95 | BK11: 57.6 | BL11: 0.3 | BM11: 13.31 | BN11: 54.7 | BO11: 64.7 | BP11: 5.5 | BQ11: 0 | BR11: 0 | BS11: 1.3 | BT11: 4.94 | BU11: 6.4 | BV11: 0.3 | BW11: 6.21 | BX11: 39.6 | BY11: 33.1 | BZ11: 5.5 | CA11: 0
A12: 42747 | B12: MIL | C12: 5.75 | D12: -10 | E12: Kupno | F12: -0.01565217391 | G12: 0.2243478261 | H12: 0.1182608696 | I12: Polityka | L12: 488760.64 | O12: =SUMIFS($D$2:D12,$B$2:B12,"MIL") -> -20 | P12: =SUMIFS($D$2:D12,$B$2:B12,"PEKAO") -> -10 | Q12: =SUMIFS($D$2:D12,$B$2:B12,"PKOBP") -> -10 | R12: =SUMIFS($D$2:D12,$B$2:B12,"ING") -> -10 | S12: =SUMIFS($D$2:D12,$B$2:B12,"GETIN") -> -10 | T12: =SUMIFS($D$2:D12,$B$2:B12,"Handlowy") -> -10 | U12: =SUMIFS($D$2:D12,$B$2:B12,"SANTANDER") -> -10 | V12: =SUMIFS($D$2:D12,$B$2:B12,"MBANK") -> -10 | W12: =SUMIFS($D$2:D12,$B$2:B12,"Alior") -> -10 | X12: =SUMIFS($D$2:D12,$B$2:B12,"Idea") -> -10 | Y12: =SUMPRODUCT(($B$2:B12="MIL")*($E$2:E12="Kupno")*$C$2:C12*$D$2:D12) -> -109.4 | Z12: =SUMPRODUCT(($B$2:B12="PEKAO")*($E$2:E12="Kupno")*$C$2:C12*$D$2:D12) -> -1146.9 | AA12: =SUMPRODUCT(($B$2:B12="PKOBP")*($E$2:E12="Kupno")*$C$2:C12*$D$2:D12) -> -300.03 | AB12: =SUMPRODUCT(($B$2:B12="ING")*($E$2:E12="Kupno")*$C$2:C12*$D$2:D12) -> -1600.5 | AC12: =SUMPRODUCT(($B$2:B12="GETIN")*($E$2:E12="Kupno")*$C$2:C12*$D$2:D12) -> -17.4 | AD12: =SUMPRODUCT(($B$2:B12="Handlowy")*($E$2:E12="Kupno")*$C$2:C12*$D$2:D12) -> -679.13 | AE12: =SUMPRODUCT(($B$2:B12="SANTANDER")*($E$2:E12="Kupno")*$C$2:C12*$D$2:D12) -> -3147.6 | AF12: =SUMPRODUCT(($B$2:B12="MBANK")*($E$2:E12="Kupno")*$C$2:C12*$D$2:D12) -> -3413.5 | AG12: =SUMPRODUCT(($B$2:B12="Alior")*($E$2:E12="Kupno")*$C$2:C12*$D$2:D12) -> -592.5 | AH12: =SUMPRODUCT(($B$2:B12="Idea")*($E$2:E12="Kupno")*$C$2:C12*$D$2:D12) -> -232.4 | AI12: =SUMPRODUCT(($B$2:B12="MIL")*($E$2:E12="Sprzedaż")*$C$2:C12*$D$2:D12) -> 0 | AJ12: =SUMPRODUCT(($B$2:B12="PEKAO")*($E$2:E12="Sprzedaż")*$C$2:C12*$D$2:D12) -> 0 | AK12: =SUMPRODUCT(($B$2:B12="PKOBP")*($E$2:E12="Sprzedaż")*$C$2:C12*$D$2:D12) -> 0 | AL12: =SUMPRODUCT(($B$2:B12="ING")*($E$2:E12="Sprzedaż")*$C$2:C12*$D$2:D12) -> 0 | AM12: =SUMPRODUCT(($B$2:B12="GETIN")*($E$2:E12="Sprzedaż")*$C$2:C12*$D$2:D12) -> 0 | AN12: =SUMPRODUCT(($B$2:B12="Handlowy")*($E$2:E12="Sprzedaż")*$C$2:C12*$D$2:D12) -> 0 | AO12: =SUMPRODUCT(($B$2:B12="SANTANDER")*($E$2:E12="Sprzedaż")*$C$2:C12*$D$2:D12) -> 0 | AP12: =SUMPRODUCT(($B$2:B12="MBANK")*($E$2:E12="Sprzedaż")*$C$2:C12*$D$2:D12) -> 0 | AQ12: =SUMPRODUCT(($B$2:B12="Alior")*($E$2:E12="Sprzedaż")*$C$2:C12*$D$2:D12) -> 0 | AR12: =SUMPRODUCT(($B$2:B12="Idea")*($E$2:E12="Sprzedaż")*$C$2:C12*$D$2:D12) -> 0 | AS12: 115 | AT12: 1113.1 | AU12: 296.97 | AV12: 1651.7 | AW12: 16.7 | AX12: 677.97 | AY12: 3287.6 | AZ12: 3605.7 | BA12: 598.5 | BB12: 232.5 | BC12: 356.38 | BD12: 171.12 | BE12: =(VLOOKUP(A12,WIG_B[],2,TRUE)/VLOOKUP(A11,WIG_B[],2,TRUE)-1)*$L$1+BE11 -> 24275.41326 | BF12: -3299.958582 | BG12: =Portfel[[#This Row],[WIG.B]]-Portfel[[#This Row],[Portfel. S]] -> 23919.03326 | BH12: 5.6 | BI12: -33.8 | BJ12: -3.06 | BK12: 51.2 | BL12: -0.7 | BM12: -1.16 | BN12: 140 | BO12: 192.2 | BP12: 6 | BQ12: 0.1 | BR12: 0.1 | BS12: -13.5 | BT12: -7.01 | BU12: -6.4 | BV12: -1 | BW12: -14.47 | BX12: 85.3 | BY12: 127.5 | BZ12: 0.5 | CA12: 0.1
A13: 42748 | B13: PEKAO | C13: 111.18 | D13: -10 | E13: Kupno | F13: 0 | G13: 0.1133297356 | H13: 0.03714696888 | I13: Sprawozdanie | L13: 487648.84 | O13: =SUMIFS($D$2:D13,$B$2:B13,"MIL") -> -20 | P13: =SUMIFS($D$2:D13,$B$2:B13,"PEKAO") -> -20 | Q13: =SUMIFS($D$2:D13,$B$2:B13,"PKOBP") -> -10 | R13: =SUMIFS($D$2:D13,$B$2:B13,"ING") -> -10 | S13: =SUMIFS($D$2:D13,$B$2:B13,"GETIN") -> -10 | T13: =SUMIFS($D$2:D13,$B$2:B13,"Handlowy") -> -10 | U13: =SUMIFS($D$2:D13,$B$2:B13,"SANTANDER") -> -10 | V13: =SUMIFS($D$2:D13,$B$2:B13,"MBANK") -> -10 | W13: =SUMIFS($D$2:D13,$B$2:B13,"Alior") -> -10 | X13: =SUMIFS($D$2:D13,$B$2:B13,"Idea") -> -10 | Y13: =SUMPRODUCT(($B$2:B13="MIL")*($E$2:E13="Kupno")*$C$2:C13*$D$2:D13) -> -109.4 | Z13: =SUMPRODUCT(($B$2:B13="PEKAO")*($E$2:E13="Kupno")*$C$2:C13*$D$2:D13) -> -2258.7 | AA13: =SUMPRODUCT(($B$2:B13="PKOBP")*($E$2:E13="Kupno")*$C$2:C13*$D$2:D13) -> -300.03 | AB13: =SUMPRODUCT(($B$2:B13="ING")*($E$2:E13="Kupno")*$C$2:C13*$D$2:D13) -> -1600.5 | AC13: =SUMPRODUCT(($B$2:B13="GETIN")*($E$2:E13="Kupno")*$C$2:C13*$D$2:D13) -> -17.4 | AD13: =SUMPRODUCT(($B$2:B13="Handlowy")*($E$2:E13="Kupno")*$C$2:C13*$D$2:D13) -> -679.13 | AE13: =SUMPRODUCT(($B$2:B13="SANTANDER")*($E$2:E13="Kupno")*$C$2:C13*$D$2:D13) -> -3147.6 | AF13: =SUMPRODUCT(($B$2:B13="MBANK")*($E$2:E13="Kupno")*$C$2:C13*$D$2:D13) -> -3413.5 | AG13: =SUMPRODUCT(($B$2:B13="Alior")*($E$2:E13="Kupno")*$C$2:C13*$D$2:D13) -> -592.5 | AH13: =SUMPRODUCT(($B$2:B13="Idea")*($E$2:E13="Kupno")*$C$2:C13*$D$2:D13) -> -232.4 | AI13: =SUMPRODUCT(($B$2:B13="MIL")*($E$2:E13="Sprzedaż")*$C$2:C13*$D$2:D13) -> 0 | AJ13: =SUMPRODUCT(($B$2:B13="PEKAO")*($E$2:E13="Sprzedaż")*$C$2:C13*$D$2:D13) -> 0 | AK13: =SUMPRODUCT(($B$2:B13="PKOBP")*($E$2:E13="Sprzedaż")*$C$2:C13*$D$2:D13) -> 0 | AL13: =SUMPRODUCT(($B$2:B13="ING")*($E$2:E13="Sprzedaż")*$C$2:C13*$D$2:D13) -> 0 | AM13: =SUMPRODUCT(($B$2:B13="GETIN")*($E$2:E13="Sprzedaż")*$C$2:C13*$D$2:D13) -> 0 | AN13: =SUMPRODUCT(($B$2:B13="Handlowy")*($E$2:E13="Sprzedaż")*$C$2:C13*$D$2:D13) -> 0 | AO13: =SUMPRODUCT(($B$2:B13="SANTANDER")*($E$2:E13="Sprzedaż")*$C$2:C13*$D$2:D13) -> 0 | AP13: =SUMPRODUCT(($B$2:B13="MBANK")*($E$2:E13="Sprzedaż")*$C$2:C13*$D$2:D13) -> 0 | AQ13: =SUMPRODUCT(($B$2:B13="Alior")*($E$2:E13="Sprzedaż")*$C$2:C13*$D$2:D13) -> 0 | AR13: =SUMPRODUCT(($B$2:B13="Idea")*($E$2:E13="Sprzedaż")*$C$2:C13*$D$2:D13) -> 0 | AS13: 113.2 | AT13: 2223.6 | AU13: 294.8 | AV13: 1662.5 | AW13: 16.2 | AX13: 679.66 | AY13: 3263.7 | AZ13: 3538.5 | BA13: 596.4 | BB13: 232.5 | BC13: 269.9 | BD13: -86.48 | BE13: =(VLOOKUP(A13,WIG_B[],2,TRUE)/VLOOKUP(A12,WIG_B[],2,TRUE)-1)*$L$1+BE12 -> 21641.62402 | BF13: -2633.789242 | BG13: =Portfel[[#This Row],[WIG.B]]-Portfel[[#This Row],[Portfel. S]] -> 21371.72402 | BH13: 3.8 | BI13: -35.1 | BJ13: -5.23 | BK13: 62 | BL13: -1.2 | BM13: 0.53 | BN13: 116.1 | BO13: 125 | BP13: 3.9 | BQ13: 0.1 | BR13: -1.8 | BS13: -1.3 | BT13: -2.17 | BU13: 10.8 | BV13: -0.5 | BW13: 1.69 | BX13: -23.9 | BY13: -67.2 | BZ13: -2.1 | CA13: 0
A14: 42751 | B14: PKOBP | C14: 29.569 | D14: -10 | E14: Kupno | F14: -0.002671717001 | G14: 0.1662213805 | H14: 0.06675910582 | I14: Makro | L14: 487353.15 | O14: =SUMIFS($D$2:D14,$B$2:B14,"MIL") -> -20 | P14: =SUMIFS($D$2:D14,$B$2:B14,"PEKAO") -> -20 | Q14: =SUMIFS($D$2:D14,$B$2:B14,"PKOBP") -> -20 | R14: =SUMIFS($D$2:D14,$B$2:B14,"ING") -> -10 | S14: =SUMIFS($D$2:D14,$B$2:B14,"GETIN") -> -10 | T14: =SUMIFS($D$2:D14,$B$2:B14,"Handlowy") -> -10 | U14: =SUMIFS($D$2:D14,$B$2:B14,"SANTANDER") -> -10 | V14: =SUMIFS($D$2:D14,$B$2:B14,"MBANK") -> -10 | W14: =SUMIFS($D$2:D14,$B$2:B14,"Alior") -> -10 | X14: =SUMIFS($D$2:D14,$B$2:B14,"Idea") -> -10 | Y14: =SUMPRODUCT(($B$2:B14="MIL")*($E$2:E14="Kupno")*$C$2:C14*$D$2:D14) -> -109.4 | Z14: =SUMPRODUCT(($B$2:B14="PEKAO")*($E$2:E14="Kupno")*$C$2:C14*$D$2:D14) -> -2258.7 | AA14: =SUMPRODUCT(($B$2:B14="PKOBP")*($E$2:E14="Kupno")*$C$2:C14*$D$2:D14) -> -595.72 | AB14: =SUMPRODUCT(($B$2:B14="ING")*($E$2:E14="Kupno")*$C$2:C14*$D$2:D14) -> -1600.5 | AC14: =SUMPRODUCT(($B$2:B14="GETIN")*($E$2:E14="Kupno")*$C$2:C14*$D$2:D14) -> -17.4 | AD14: =SUMPRODUCT(($B$2:B14="Handlowy")*($E$2:E14="Kupno")*$C$2:C14*$D$2:D14) -> -679.13 | AE14: =SUMPRODUCT(($B$2:B14="SANTANDER")*($E$2:E14="Kupno")*$C$2:C14*$D$2:D14) -> -3147.6 | AF14: =SUMPRODUCT(($B$2:B14="MBANK")*($E$2:E14="Kupno")*$C$2:C14*$D$2:D14) -> -3413.5 | AG14: =SUMPRODUCT(($B$2:B14="Alior")*($E$2:E14="Kupno")*$C$2:C14*$D$2:D14) -> -592.5 | AH14: =SUMPRODUCT(($B$2:B14="Idea")*($E$2:E14="Kupno")*$C$2:C14*$D$2:D14) -> -232.4 | AI14: =SUMPRODUCT(($B$2:B14="MIL")*($E$2:E14="Sprzedaż")*$C$2:C14*$D$2:D14) -> 0 | AJ14: =SUMPRODUCT(($B$2:B14="PEKAO")*($E$2:E14="Sprzedaż")*$C$2:C14*$D$2:D14) -> 0 | AK14: =SUMPRODUCT(($B$2:B14="PKOBP")*($E$2:E14="Sprzedaż")*$C$2:C14*$D$2:D14) -> 0 | AL14: =SUMPRODUCT(($B$2:B14="ING")*($E$2:E14="Sprzedaż")*$C$2:C14*$D$2:D14) -> 0 | AM14: =SUMPRODUCT(($B$2:B14="GETIN")*($E$2:E14="Sprzedaż")*$C$2:C14*$D$2:D14) -> 0 | AN14: =SUMPRODUCT(($B$2:B14="Handlowy")*($E$2:E14="Sprzedaż")*$C$2:C14*$D$2:D14) -> 0 | AO14: =SUMPRODUCT(($B$2:B14="SANTANDER")*($E$2:E14="Sprzedaż")*$C$2:C14*$D$2:D14) -> 0 | AP14: =SUMPRODUCT(($B$2:B14="MBANK")*($E$2:E14="Sprzedaż")*$C$2:C14*$D$2:D14) -> 0 | AQ14: =SUMPRODUCT(($B$2:B14="Alior")*($E$2:E14="Sprzedaż")*$C$2:C14*$D$2:D14) -> 0 | AR14: =SUMPRODUCT(($B$2:B14="Idea")*($E$2:E14="Sprzedaż")*$C$2:C14*$D$2:D14) -> 0 | AS14: 109.8 | AT14: 2267.8 | AU14: 591.38 | AV14: 1661.5 | AW14: 15.4 | AX14: 689.42 | AY14: 3240.3 | AZ14: 3409.5 | BA14: 593.1 | BB14: 231.5 | BC14: 162.85 | BD14: -107.05 | BE14: =(VLOOKUP(A14,WIG_B[],2,TRUE)/VLOOKUP(A13,WIG_B[],2,TRUE)-1)*$L$1+BE13 -> 22228.57562 | BF14: 586.9516027 | BG14: =Portfel[[#This Row],[WIG.B]]-Portfel[[#This Row],[Portfel. S]] -> 22065.72562 | BH14: 0.4 | BI14: 9.1 | BJ14: -4.34 | BK14: 61 | BL14: -2 | BM14: 10.29 | BN14: 92.7 | BO14: -4 | BP14: 0.6 | BQ14: -0.9 | BR14: -3.4 | BS14: 44.2 | BT14: 0.89 | BU14: -1 | BV14: -0.8 | BW14: 9.76 | BX14: -23.4 | BY14: -129 | BZ14: -3.3 | CA14: -1
A15: 42752 | B15: ING | C15: 165.56 | D15: -10 | E15: Kupno | F15: -0.01250302005 | G15: 0.04457598454 | H15: 0.001208021261 | I15: Polityka | L15: 485697.55 | O15: =SUMIFS($D$2:D15,$B$2:B15,"MIL") -> -20 | P15: =SUMIFS($D$2:D15,$B$2:B15,"PEKAO") -> -20 | Q15: =SUMIFS($D$2:D15,$B$2:B15,"PKOBP") -> -20 | R15: =SUMIFS($D$2:D15,$B$2:B15,"ING") -> -20 | S15: =SUMIFS($D$2:D15,$B$2:B15,"GETIN") -> -10 | T15: =SUMIFS($D$2:D15,$B$2:B15,"Handlowy") -> -10 | U15: =SUMIFS($D$2:D15,$B$2:B15,"SANTANDER") -> -10 | V15: =SUMIFS($D$2:D15,$B$2:B15,"MBANK") -> -10 | W15: =SUMIFS($D$2:D15,$B$2:B15,"Alior") -> -10 | X15: =SUMIFS($D$2:D15,$B$2:B15,"Idea") -> -10 | Y15: =SUMPRODUCT(($B$2:B15="MIL")*($E$2:E15="Kupno")*$C$2:C15*$D$2:D15) -> -109.4 | Z15: =SUMPRODUCT(($B$2:B15="PEKAO")*($E$2:E15="Kupno")*$C$2:C15*$D$2:D15) -> -2258.7 | AA15: =SUMPRODUCT(($B$2:B15="PKOBP")*($E$2:E15="Kupno")*$C$2:C15*$D$2:D15) -> -595.72 | AB15: =SUMPRODUCT(($B$2:B15="ING")*($E$2:E15="Kupno")*$C$2:C15*$D$2:D15) -> -3256.1 | AC15: =SUMPRODUCT(($B$2:B15="GETIN")*($E$2:E15="Kupno")*$C$2:C15*$D$2:D15) -> -17.4 | AD15: =SUMPRODUCT(($B$2:B15="Handlowy")*($E$2:E15="Kupno")*$C$2:C15*$D$2:D15) -> -679.13 | AE15: =SUMPRODUCT(($B$2:B15="SANTANDER")*($E$2:E15="Kupno")*$C$2:C15*$D$2:D15) -> -3147.6 | AF15: =SUMPRODUCT(($B$2:B15="MBANK")*($E$2:E15="Kupno")*$C$2:C15*$D$2:D15) -> -3413.5 | AG15: =SUMPRODUCT(($B$2:B15="Alior")*($E$2:E15="Kupno")*$C$2:C15*$D$2:D15) -> -592.5 | AH15: =SUMPRODUCT(($B$2:B15="Idea")*($E$2:E15="Kupno")*$C$2:C15*$D$2:D15) -> -232.4 | AI15: =SUMPRODUCT(($B$2:B15="MIL")*($E$2:E15="Sprzedaż")*$C$2:C15*$D$2:D15) -> 0 | AJ15: =SUMPRODUCT(($B$2:B15="PEKAO")*($E$2:E15="Sprzedaż")*$C$2:C15*$D$2:D15) -> 0 | AK15: =SUMPRODUCT(($B$2:B15="PKOBP")*($E$2:E15="Sprzedaż")*$C$2:C15*$D$2:D15) -> 0 | AL15: =SUMPRODUCT(($B$2:B15="ING")*($E$2:E15="Sprzedaż")*$C$2:C15*$D$2:D15) -> 0 | AM15: =SUMPRODUCT(($B$2:B15="GETIN")*($E$2:E15="Sprzedaż")*$C$2:C15*$D$2:D15) -> 0 | AN15: =SUMPRODUCT(($B$2:B15="Handlowy")*($E$2:E15="Sprzedaż")*$C$2:C15*$D$2:D15) -> 0 | AO15: =SUMPRODUCT(($B$2:B15="SANTANDER")*($E$2:E15="Sprzedaż")*$C$2:C15*$D$2:D15) -> 0 | AP15: =SUMPRODUCT(($B$2:B15="MBANK")*($E$2:E15="Sprzedaż")*$C$2:C15*$D$2:D15) -> 0 | AQ15: =SUMPRODUCT(($B$2:B15="Alior")*($E$2:E15="Sprzedaż")*$C$2:C15*$D$2:D15) -> 0 | AR15: =SUMPRODUCT(($B$2:B15="Idea")*($E$2:E15="Sprzedaż")*$C$2:C15*$D$2:D15) -> 0 | AS15: 110.2 | AT15: 2264.4 | AU15: 581.3 | AV15: 3311.2 | AW15: 16.6 | AX15: 687.11 | AY15: 3228.5 | AZ15: 3418.4 | BA15: 591 | BB15: 231 | BC15: 137.26 | BD15: -25.59 | BE15: =(VLOOKUP(A15,WIG_B[],2,TRUE)/VLOOKUP(A14,WIG_B[],2,TRUE)-1)*$L$1+BE14 -> 19272.23063 | BF15: -2956.344993 | BG15: =Portfel[[#This Row],[WIG.B]]-Portfel[[#This Row],[Portfel. S]] -> 19134.97063 | BH15: 0.8 | BI15: 5.7 | BJ15: -14.42 | BK15: 55.1 | BL15: -0.8 | BM15: 7.98 | BN15: 80.9 | BO15: 4.9 | BP15: -1.5 | BQ15: -1.4 | BR15: 0.4 | BS15: -3.4 | BT15: -10.08 | BU15: -5.9 | BV15: 1.2 | BW15: -2.31 | BX15: -11.8 | BY15: 8.9 | BZ15: -2.1 | CA15: -0.5
A16: 42753 | B16: GETIN | C16: 1.74 | D16: -10 | E16: Kupno | F16: -0.04022988506 | G16: 0.1264367816 | H16: 0.03448275862 | I16: Sprawozdanie | L16: 485680.15 | O16: =SUMIFS($D$2:D16,$B$2:B16,"MIL") -> -20 | P16: =SUMIFS($D$2:D16,$B$2:B16,"PEKAO") -> -20 | Q16: =SUMIFS($D$2:D16,$B$2:B16,"PKOBP") -> -20 | R16: =SUMIFS($D$2:D16,$B$2:B16,"ING") -> -20 | S16: =SUMIFS($D$2:D16,$B$2:B16,"GETIN") -> -20 | T16: =SUMIFS($D$2:D16,$B$2:B16,"Handlowy") -> -10 | U16: =SUMIFS($D$2:D16,$B$2:B16,"SANTANDER") -> -10 | V16: =SUMIFS($D$2:D16,$B$2:B16,"MBANK") -> -10 | W16: =SUMIFS($D$2:D16,$B$2:B16,"Alior") -> -10 | X16: =SUMIFS($D$2:D16,$B$2:B16,"Idea") -> -10 | Y16: =SUMPRODUCT(($B$2:B16="MIL")*($E$2:E16="Kupno")*$C$2:C16*$D$2:D16) -> -109.4 | Z16: =SUMPRODUCT(($B$2:B16="PEKAO")*($E$2:E16="Kupno")*$C$2:C16*$D$2:D16) -> -2258.7 | AA16: =SUMPRODUCT(($B$2:B16="PKOBP")*($E$2:E16="Kupno")*$C$2:C16*$D$2:D16) -> -595.72 | AB16: =SUMPRODUCT(($B$2:B16="ING")*($E$2:E16="Kupno")*$C$2:C16*$D$2:D16) -> -3256.1 | AC16: =SUMPRODUCT(($B$2:B16="GETIN")*($E$2:E16="Kupno")*$C$2:C16*$D$2:D16) -> -34.8 | AD16: =SUMPRODUCT(($B$2:B16="Handlowy")*($E$2:E16="Kupno")*$C$2:C16*$D$2:D16) -> -679.13 | AE16: =SUMPRODUCT(($B$2:B16="SANTANDER")*($E$2:E16="Kupno")*$C$2:C16*$D$2:D16) -> -3147.6 | AF16: =SUMPRODUCT(($B$2:B16="MBANK")*($E$2:E16="Kupno")*$C$2:C16*$D$2:D16) -> -3413.5 | AG16: =SUMPRODUCT(($B$2:B16="Alior")*($E$2:E16="Kupno")*$C$2:C16*$D$2:D16) -> -592.5 | AH16: =SUMPRODUCT(($B$2:B16="Idea")*($E$2:E16="Kupno")*$C$2:C16*$D$2:D16) -> -232.4 | AI16: =SUMPRODUCT(($B$2:B16="MIL")*($E$2:E16="Sprzedaż")*$C$2:C16*$D$2:D16) -> 0 | AJ16: =SUMPRODUCT(($B$2:B16="PEKAO")*($E$2:E16="Sprzedaż")*$C$2:C16*$D$2:D16) -> 0 | AK16: =SUMPRODUCT(($B$2:B16="PKOBP")*($E$2:E16="Sprzedaż")*$C$2:C16*$D$2:D16) -> 0 | AL16: =SUMPRODUCT(($B$2:B16="ING")*($E$2:E16="Sprzedaż")*$C$2:C16*$D$2:D16) -> 0 | AM16: =SUMPRODUCT(($B$2:B16="GETIN")*($E$2:E16="Sprzedaż")*$C$2:C16*$D$2:D16) -> 0 | AN16: =SUMPRODUCT(($B$2:B16="Handlowy")*($E$2:E16="Sprzedaż")*$C$2:C16*$D$2:D16) -> 0 | AO16: =SUMPRODUCT(($B$2:B16="SANTANDER")*($E$2:E16="Sprzedaż")*$C$2:C16*$D$2:D16) -> 0 | AP16: =SUMPRODUCT(($B$2:B16="MBANK")*($E$2:E16="Sprzedaż")*$C$2:C16*$D$2:D16) -> 0 | AQ16: =SUMPRODUCT(($B$2:B16="Alior")*($E$2:E16="Sprzedaż")*$C$2:C16*$D$2:D16) -> 0 | AR16: =SUMPRODUCT(($B$2:B16="Idea")*($E$2:E16="Sprzedaż")*$C$2:C16*$D$2:D16) -> 0 | AS16: 111.6 | AT16: 2241 | AU16: 582.5 | AV16: 3289.6 | AW16: 34.8 | AX16: 677.35 | AY16: 3165.1 | AZ16: 3409 | BA16: 580.1 | BB16: 230.4 | BC16: 1.6 | BD16: -135.66 | BE16: =(VLOOKUP(A16,WIG_B[],2,TRUE)/VLOOKUP(A15,WIG_B[],2,TRUE)-1)*$L$1+BE15 -> 16294.48703 | BF16: -2977.743598 | BG16: =Portfel[[#This Row],[WIG.B]]-Portfel[[#This Row],[Portfel. S]] -> 16292.88703 | BH16: 2.2 | BI16: -17.7 | BJ16: -13.22 | BK16: 33.5 | BL16: 0 | BM16: -1.78 | BN16: 17.5 | BO16: -4.5 | BP16: -12.4 | BQ16: -2 | BR16: 1.4 | BS16: -23.4 | BT16: 1.2 | BU16: -21.6 | BV16: 0.8 | BW16: -9.76 | BX16: -63.4 | BY16: -9.4 | BZ16: -10.9 | CA16: -0.6
A17: 42754 | B17: Handlowy | C17: 67.132 | D17: -10 | E17: Kupno | F17: -0.00423047131 | G17: 0.05128701662 | H17: -0.0346630519 | I17: Makro | L17: 485008.83 | O17: =SUMIFS($D$2:D17,$B$2:B17,"MIL") -> -20 | P17: =SUMIFS($D$2:D17,$B$2:B17,"PEKAO") -> -20 | Q17: =SUMIFS($D$2:D17,$B$2:B17,"PKOBP") -> -20 | R17: =SUMIFS($D$2:D17,$B$2:B17,"ING") -> -20 | S17: =SUMIFS($D$2:D17,$B$2:B17,"GETIN") -> -20 | T17: =SUMIFS($D$2:D17,$B$2:B17,"Handlowy") -> -20 | U17: =SUMIFS($D$2:D17,$B$2:B17,"SANTANDER") -> -10 | V17: =SUMIFS($D$2:D17,$B$2:B17,"MBANK") -> -10 | W17: =SUMIFS($D$2:D17,$B$2:B17,"Alior") -> -10 | X17: =SUMIFS($D$2:D17,$B$2:B17,"Idea") -> -10 | Y17: =SUMPRODUCT(($B$2:B17="MIL")*($E$2:E17="Kupno")*$C$2:C17*$D$2:D17) -> -109.4 | Z17: =SUMPRODUCT(($B$2:B17="PEKAO")*($E$2:E17="Kupno")*$C$2:C17*$D$2:D17) -> -2258.7 | AA17: =SUMPRODUCT(($B$2:B17="PKOBP")*($E$2:E17="Kupno")*$C$2:C17*$D$2:D17) -> -595.72 | AB17: =SUMPRODUCT(($B$2:B17="ING")*($E$2:E17="Kupno")*$C$2:C17*$D$2:D17) -> -3256.1 | AC17: =SUMPRODUCT(($B$2:B17="GETIN")*($E$2:E17="Kupno")*$C$2:C17*$D$2:D17) -> -34.8 | AD17: =SUMPRODUCT(($B$2:B17="Handlowy")*($E$2:E17="Kupno")*$C$2:C17*$D$2:D17) -> -1350.45 | AE17: =SUMPRODUCT(($B$2:B17="SANTANDER")*($E$2:E17="Kupno")*$C$2:C17*$D$2:D17) -> -3147.6 | AF17: =SUMPRODUCT(($B$2:B17="MBANK")*($E$2:E17="Kupno")*$C$2:C17*$D$2:D17) -> -3413.5 | AG17: =SUMPRODUCT(($B$2:B17="Alior")*($E$2:E17="Kupno")*$C$2:C17*$D$2:D17) -> -592.5 | AH17: =SUMPRODUCT(($B$2:B17="Idea")*($E$2:E17="Kupno")*$C$2:C17*$D$2:D17) -> -232.4 | AI17: =SUMPRODUCT(($B$2:B17="MIL")*($E$2:E17="Sprzedaż")*$C$2:C17*$D$2:D17) -> 0 | AJ17: =SUMPRODUCT(($B$2:B17="PEKAO")*($E$2:E17="Sprzedaż")*$C$2:C17*$D$2:D17) -> 0 | AK17: =SUMPRODUCT(($B$2:B17="PKOBP")*($E$2:E17="Sprzedaż")*$C$2:C17*$D$2:D17) -> 0 | AL17: =SUMPRODUCT(($B$2:B17="ING")*($E$2:E17="Sprzedaż")*$C$2:C17*$D$2:D17) -> 0 | AM17: =SUMPRODUCT(($B$2:B17="GETIN")*($E$2:E17="Sprzedaż")*$C$2:C17*$D$2:D17) -> 0 | AN17: =SUMPRODUCT(($B$2:B17="Handlowy")*($E$2:E17="Sprzedaż")*$C$2:C17*$D$2:D17) -> 0 | AO17: =SUMPRODUCT(($B$2:B17="SANTANDER")*($E$2:E17="Sprzedaż")*$C$2:C17*$D$2:D17) -> 0 | AP17: =SUMPRODUCT(($B$2:B17="MBANK")*($E$2:E17="Sprzedaż")*$C$2:C17*$D$2:D17) -> 0 | AQ17: =SUMPRODUCT(($B$2:B17="Alior")*($E$2:E17="Sprzedaż")*$C$2:C17*$D$2:D17) -> 0 | AR17: =SUMPRODUCT(($B$2:B17="Idea")*($E$2:E17="Sprzedaż")*$C$2:C17*$D$2:D17) -> 0 | AS17: 112 | AT17: 2228.8 | AU17: 592.16 | AV17: 3271.8 | AW17: 34 | AX17: 1342.64 | AY17: 3240.3 | AZ17: 3477.7 | BA17: 591 | BB17: 231.9 | BC17: 131.13 | BD17: 129.53 | BE17: =(VLOOKUP(A17,WIG_B[],2,TRUE)/VLOOKUP(A16,WIG_B[],2,TRUE)-1)*$L$1+BE16 -> 20617.85964 | BF17: 4323.372614 | BG17: =Portfel[[#This Row],[WIG.B]]-Portfel[[#This Row],[Portfel. S]] -> 20486.72964 | BH17: 2.6 | BI17: -29.9 | BJ17: -3.56 | BK17: 15.7 | BL17: -0.8 | BM17: -7.81 | BN17: 92.7 | BO17: 64.2 | BP17: -1.5 | BQ17: -0.5 | BR17: 0.4 | BS17: -12.2 | BT17: 9.66 | BU17: -17.8 | BV17: -0.8 | BW17: -6.03 | BX17: 75.2 | BY17: 68.7 | BZ17: 10.9 | CA17: 1.5
A18: 42755 | B18: SANTANDER | C18: 328.33 | D18: -10 | E18: Kupno | F18: 0 | G18: 0.0487314592 | H18: 0.07236621692 | I18: Polityka | L18: 481725.53 | O18: =SUMIFS($D$2:D18,$B$2:B18,"MIL") -> -20 | P18: =SUMIFS($D$2:D18,$B$2:B18,"PEKAO") -> -20 | Q18: =SUMIFS($D$2:D18,$B$2:B18,"PKOBP") -> -20 | R18: =SUMIFS($D$2:D18,$B$2:B18,"ING") -> -20 | S18: =SUMIFS($D$2:D18,$B$2:B18,"GETIN") -> -20 | T18: =SUMIFS($D$2:D18,$B$2:B18,"Handlowy") -> -20 | U18: =SUMIFS($D$2:D18,$B$2:B18,"SANTANDER") -> -20 | V18: =SUMIFS($D$2:D18,$B$2:B18,"MBANK") -> -10 | W18: =SUMIFS($D$2:D18,$B$2:B18,"Alior") -> -10 | X18: =SUMIFS($D$2:D18,$B$2:B18,"Idea") -> -10 | Y18: =SUMPRODUCT(($B$2:B18="MIL")*($E$2:E18="Kupno")*$C$2:C18*$D$2:D18) -> -109.4 | Z18: =SUMPRODUCT(($B$2:B18="PEKAO")*($E$2:E18="Kupno")*$C$2:C18*$D$2:D18) -> -2258.7 | AA18: =SUMPRODUCT(($B$2:B18="PKOBP")*($E$2:E18="Kupno")*$C$2:C18*$D$2:D18) -> -595.72 | AB18: =SUMPRODUCT(($B$2:B18="ING")*($E$2:E18="Kupno")*$C$2:C18*$D$2:D18) -> -3256.1 | AC18: =SUMPRODUCT(($B$2:B18="GETIN")*($E$2:E18="Kupno")*$C$2:C18*$D$2:D18) -> -34.8 | AD18: =SUMPRODUCT(($B$2:B18="Handlowy")*($E$2:E18="Kupno")*$C$2:C18*$D$2:D18) -> -1350.45 | AE18: =SUMPRODUCT(($B$2:B18="SANTANDER")*($E$2:E18="Kupno")*$C$2:C18*$D$2:D18) -> -6430.9 | AF18: =SUMPRODUCT(($B$2:B18="MBANK")*($E$2:E18="Kupno")*$C$2:C18*$D$2:D18) -> -3413.5 | AG18: =SUMPRODUCT(($B$2:B18="Alior")*($E$2:E18="Kupno")*$C$2:C18*$D$2:D18) -> -592.5 | AH18: =SUMPRODUCT(($B$2:B18="Idea")*($E$2:E18="Kupno")*$C$2:C18*$D$2:D18) -> -232.4 | AI18: =SUMPRODUCT(($B$2:B18="MIL")*($E$2:E18="Sprzedaż")*$C$2:C18*$D$2:D18) -> 0 | AJ18: =SUMPRODUCT(($B$2:B18="PEKAO")*($E$2:E18="Sprzedaż")*$C$2:C18*$D$2:D18) -> 0 | AK18: =SUMPRODUCT(($B$2:B18="PKOBP")*($E$2:E18="Sprzedaż")*$C$2:C18*$D$2:D18) -> 0 | AL18: =SUMPRODUCT(($B$2:B18="ING")*($E$2:E18="Sprzedaż")*$C$2:C18*$D$2:D18) -> 0 | AM18: =SUMPRODUCT(($B$2:B18="GETIN")*($E$2:E18="Sprzedaż")*$C$2:C18*$D$2:D18) -> 0 | AN18: =SUMPRODUCT(($B$2:B18="Handlowy")*($E$2:E18="Sprzedaż")*$C$2:C18*$D$2:D18) -> 0 | AO18: =SUMPRODUCT(($B$2:B18="SANTANDER")*($E$2:E18="Sprzedaż")*$C$2:C18*$D$2:D18) -> 0 | AP18: =SUMPRODUCT(($B$2:B18="MBANK")*($E$2:E18="Sprzedaż")*$C$2:C18*$D$2:D18) -> 0 | AQ18: =SUMPRODUCT(($B$2:B18="Alior")*($E$2:E18="Sprzedaż")*$C$2:C18*$D$2:D18) -> 0 | AR18: =SUMPRODUCT(($B$2:B18="Idea")*($E$2:E18="Sprzedaż")*$C$2:C18*$D$2:D18) -> 0 | AS18: 109.6 | AT18: 2232.2 | AU18: 589.8 | AV18: 3269.8 | AW18: 33.4 | AX18: 1336.96 | AY18: 6566.6 | AZ18: 3486.6 | BA18: 600.9 | BB18: 225.1 | BC18: 176.49 | BD18: 45.36 | BE18: =(VLOOKUP(A18,WIG_B[],2,TRUE)/VLOOKUP(A17,WIG_B[],2,TRUE)-1)*$L$1+BE17 -> 21044.74051 | BF18: 426.880863 | BG18: =Portfel[[#This Row],[WIG.B]]-Portfel[[#This Row],[Portfel. S]] -> 20868.25051 | BH18: 0.2 | BI18: -26.5 | BJ18: -5.92 | BK18: 13.7 | BL18: -1.4 | BM18: -13.49 | BN18: 135.7 | BO18: 73.1 | BP18: 8.4 | BQ18: -7.3 | BR18: -2.4 | BS18: 3.4 | BT18: -2.36 | BU18: -2 | BV18: -0.6 | BW18: -5.68 | BX18: 43 | BY18: 8.9 | BZ18: 9.9 | CA18: -6.8
A19: 42758 | B19: MBANK | C19: 338.78 | D19: -10 | E19: Kupno | F19: 0.1293464785 | G19: 0.238148651 | H19: 0.1449613318 | I19: Sprawozdanie | L19: 478337.73 | O19: =SUMIFS($D$2:D19,$B$2:B19,"MIL") -> -20 | P19: =SUMIFS($D$2:D19,$B$2:B19,"PEKAO") -> -20 | Q19: =SUMIFS($D$2:D19,$B$2:B19,"PKOBP") -> -20 | R19: =SUMIFS($D$2:D19,$B$2:B19,"ING") -> -20 | S19: =SUMIFS($D$2:D19,$B$2:B19,"GETIN") -> -20 | T19: =SUMIFS($D$2:D19,$B$2:B19,"Handlowy") -> -20 | U19: =SUMIFS($D$2:D19,$B$2:B19,"SANTANDER") -> -20 | V19: =SUMIFS($D$2:D19,$B$2:B19,"MBANK") -> -20 | W19: =SUMIFS($D$2:D19,$B$2:B19,"Alior") -> -10 | X19: =SUMIFS($D$2:D19,$B$2:B19,"Idea") -> -10 | Y19: =SUMPRODUCT(($B$2:B19="MIL")*($E$2:E19="Kupno")*$C$2:C19*$D$2:D19) -> -109.4 | Z19: =SUMPRODUCT(($B$2:B19="PEKAO")*($E$2:E19="Kupno")*$C$2:C19*$D$2:D19) -> -2258.7 | AA19: =SUMPRODUCT(($B$2:B19="PKOBP")*($E$2:E19="Kupno")*$C$2:C19*$D$2:D19) -> -595.72 | AB19: =SUMPRODUCT(($B$2:B19="ING")*($E$2:E19="Kupno")*$C$2:C19*$D$2:D19) -> -3256.1 | AC19: =SUMPRODUCT(($B$2:B19="GETIN")*($E$2:E19="Kupno")*$C$2:C19*$D$2:D19) -> -34.8 | AD19: =SUMPRODUCT(($B$2:B19="Handlowy")*($E$2:E19="Kupno")*$C$2:C19*$D$2:D19) -> -1350.45 | AE19: =SUMPRODUCT(($B$2:B19="SANTANDER")*($E$2:E19="Kupno")*$C$2:C19*$D$2:D19) -> -6430.9 | AF19: =SUMPRODUCT(($B$2:B19="MBANK")*($E$2:E19="Kupno")*$C$2:C19*$D$2:D19) -> -6801.3 | AG19: =SUMPRODUCT(($B$2:B19="Alior")*($E$2:E19="Kupno")*$C$2:C19*$D$2:D19) -> -592.5 | AH19: =SUMPRODUCT(($B$2:B19="Idea")*($E$2:E19="Kupno")*$C$2:C19*$D$2:D19) -> -232.4 | AI19: =SUMPRODUCT(($B$2:B19="MIL")*($E$2:E19="Sprzedaż")*$C$2:C19*$D$2:D19) -> 0 | AJ19: =SUMPRODUCT(($B$2:B19="PEKAO")*($E$2:E19="Sprzedaż")*$C$2:C19*$D$2:D19) -> 0 | AK19: =SUMPRODUCT(($B$2:B19="PKOBP")*($E$2:E19="Sprzedaż")*$C$2:C19*$D$2:D19) -> 0 | AL19: =SUMPRODUCT(($B$2:B19="ING")*($E$2:E19="Sprzedaż")*$C$2:C19*$D$2:D19) -> 0 | AM19: =SUMPRODUCT(($B$2:B19="GETIN")*($E$2:E19="Sprzedaż")*$C$2:C19*$D$2:D19) -> 0 | AN19: =SUMPRODUCT(($B$2:B19="Handlowy")*($E$2:E19="Sprzedaż")*$C$2:C19*$D$2:D19) -> 0 | AO19: =SUMPRODUCT(($B$2:B19="SANTANDER")*($E$2:E19="Sprzedaż")*$C$2:C19*$D$2:D19) -> 0 | AP19: =SUMPRODUCT(($B$2:B19="MBANK")*($E$2:E19="Sprzedaż")*$C$2:C19*$D$2:D19) -> 0 | AQ19: =SUMPRODUCT(($B$2:B19="Alior")*($E$2:E19="Sprzedaż")*$C$2:C19*$D$2:D19) -> 0 | AR19: =SUMPRODUCT(($B$2:B19="Idea")*($E$2:E19="Sprzedaż")*$C$2:C19*$D$2:D19) -> 0 | AS19: 109.6 | AT19: 2234.8 | AU19: 577.36 | AV19: 3268 | AW19: 32 | AX19: 1348.48 | AY19: 6384 | AZ19: 6775.6 | BA19: 593.9 | BB19: 231.7 | BC19: -106.83 | BD19: -283.32 | BE19: =(VLOOKUP(A19,WIG_B[],2,TRUE)/VLOOKUP(A18,WIG_B[],2,TRUE)-1)*$L$1+BE18 -> 14705.53123 | BF19: -6339.209279 | BG19: =Portfel[[#This Row],[WIG.B]]-Portfel[[#This Row],[Portfel. S]] -> 14812.36123 | BH19: 0.2 | BI19: -23.9 | BJ19: -18.36 | BK19: 11.9 | BL19: -2.8 | BM19: -1.97 | BN19: -46.9 | BO19: -25.7 | BP19: 1.4 | BQ19: -0.7 | BR19: 0 | BS19: 2.6 | BT19: -12.44 | BU19: -1.8 | BV19: -1.4 | BW19: 11.52 | BX19: -182.6 | BY19: -98.8 | BZ19: -7 | CA19: 6.6
A20: 42759 | B20: Alior | C20: 59.66 | D20: -10 | E20: Kupno | F20: 0.02665102246 | G20: 0.1163258465 | H20: 0.2049949715 | I20: Makro | L20: 477741.13 | O20: =SUMIFS($D$2:D20,$B$2:B20,"MIL") -> -20 | P20: =SUMIFS($D$2:D20,$B$2:B20,"PEKAO") -> -20 | Q20: =SUMIFS($D$2:D20,$B$2:B20,"PKOBP") -> -20 | R20: =SUMIFS($D$2:D20,$B$2:B20,"ING") -> -20 | S20: =SUMIFS($D$2:D20,$B$2:B20,"GETIN") -> -20 | T20: =SUMIFS($D$2:D20,$B$2:B20,"Handlowy") -> -20 | U20: =SUMIFS($D$2:D20,$B$2:B20,"SANTANDER") -> -20 | V20: =SUMIFS($D$2:D20,$B$2:B20,"MBANK") -> -20 | W20: =SUMIFS($D$2:D20,$B$2:B20,"Alior") -> -20 | X20: =SUMIFS($D$2:D20,$B$2:B20,"Idea") -> -10 | Y20: =SUMPRODUCT(($B$2:B20="MIL")*($E$2:E20="Kupno")*$C$2:C20*$D$2:D20) -> -109.4 | Z20: =SUMPRODUCT(($B$2:B20="PEKAO")*($E$2:E20="Kupno")*$C$2:C20*$D$2:D20) -> -2258.7 | AA20: =SUMPRODUCT(($B$2:B20="PKOBP")*($E$2:E20="Kupno")*$C$2:C20*$D$2:D20) -> -595.72 | AB20: =SUMPRODUCT(($B$2:B20="ING")*($E$2:E20="Kupno")*$C$2:C20*$D$2:D20) -> -3256.1 | AC20: =SUMPRODUCT(($B$2:B20="GETIN")*($E$2:E20="Kupno")*$C$2:C20*$D$2:D20) -> -34.8 | AD20: =SUMPRODUCT(($B$2:B20="Handlowy")*($E$2:E20="Kupno")*$C$2:C20*$D$2:D20) -> -1350.45 | AE20: =SUMPRODUCT(($B$2:B20="SANTANDER")*($E$2:E20="Kupno")*$C$2:C20*$D$2:D20) -> -6430.9 | AF20: =SUMPRODUCT(($B$2:B20="MBANK")*($E$2:E20="Kupno")*$C$2:C20*$D$2:D20) -> -6801.3 | AG20: =SUMPRODUCT(($B$2:B20="Alior")*($E$2:E20="Kupno")*$C$2:C20*$D$2:D20) -> -1189.1 | AH20: =SUMPRODUCT(($B$2:B20="Idea")*($E$2:E20="Kupno")*$C$2:C20*$D$2:D20) -> -232.4 | AI20: =SUMPRODUCT(($B$2:B20="MIL")*($E$2:E20="Sprzedaż")*$C$2:C20*$D$2:D20) -> 0 | AJ20: =SUMPRODUCT(($B$2:B20="PEKAO")*($E$2:E20="Sprzedaż")*$C$2:C20*$D$2:D20) -> 0 | AK20: =SUMPRODUCT(($B$2:B20="PKOBP")*($E$2:E20="Sprzedaż")*$C$2:C20*$D$2:D20) -> 0 | AL20: =SUMPRODUCT(($B$2:B20="ING")*($E$2:E20="Sprzedaż")*$C$2:C20*$D$2:D20) -> 0 | AM20: =SUMPRODUCT(($B$2:B20="GETIN")*($E$2:E20="Sprzedaż")*$C$2:C20*$D$2:D20) -> 0 | AN20: =SUMPRODUCT(($B$2:B20="Handlowy")*($E$2:E20="Sprzedaż")*$C$2:C20*$D$2:D20) -> 0 | AO20: =SUMPRODUCT(($B$2:B20="SANTANDER")*($E$2:E20="Sprzedaż")*$C$2:C20*$D$2:D20) -> 0 | AP20: =SUMPRODUCT(($B$2:B20="MBANK")*($E$2:E20="Sprzedaż")*$C$2:C20*$D$2:D20) -> 0 | AQ20: =SUMPRODUCT(($B$2:B20="Alior")*($E$2:E20="Sprzedaż")*$C$2:C20*$D$2:D20) -> 0 | AR20: =SUMPRODUCT(($B$2:B20="Idea")*($E$2:E20="Sprzedaż")*$C$2:C20*$D$2:D20) -> 0 | AS20: 115 | AT20: 2257.4 | AU20: 588.62 | AV20: 3280.8 | AW20: 32.4 | AX20: 1331.62 | AY20: 6441.6 | AZ20: 7013.8 | BA20: 1193.2 | BB20: 230 | BC20: 225.57 | BD20: 332.4 | BE20: =(VLOOKUP(A20,WIG_B[],2,TRUE)/VLOOKUP(A19,WIG_B[],2,TRUE)-1)*$L$1+BE19 -> 21873.08473 | BF20: 7167.553499 | BG20: =Portfel[[#This Row],[WIG.B]]-Portfel[[#This Row],[Portfel. S]] -> 21647.51473 | BH20: 5.6 | BI20: -1.3 | BJ20: -7.1 | BK20: 24.7 | BL20: -2.4 | BM20: -18.83 | BN20: 10.7 | BO20: 212.5 | BP20: 4.1 | BQ20: -2.4 | BR20: 5.4 | BS20: 22.6 | BT20: 11.26 | BU20: 12.8 | BV20: 0.4 | BW20: -16.86 | BX20: 57.6 | BY20: 238.2 | BZ20: 2.7 | CA20: -1.7
A21: 42760 | B21: Idea | C21: 23.2 | D21: -10 | E21: Kupno | F21: -0.002155172414 | G21: 0.05603448276 | H21: 0.05387931034 | I21: Polityka | L21: 477509.13 | O21: =SUMIFS($D$2:D21,$B$2:B21,"MIL") -> -20 | P21: =SUMIFS($D$2:D21,$B$2:B21,"PEKAO") -> -20 | Q21: =SUMIFS($D$2:D21,$B$2:B21,"PKOBP") -> -20 | R21: =SUMIFS($D$2:D21,$B$2:B21,"ING") -> -20 | S21: =SUMIFS($D$2:D21,$B$2:B21,"GETIN") -> -20 | T21: =SUMIFS($D$2:D21,$B$2:B21,"Handlowy") -> -20 | U21: =SUMIFS($D$2:D21,$B$2:B21,"SANTANDER") -> -20 | V21: =SUMIFS($D$2:D21,$B$2:B21,"MBANK") -> -20 | W21: =SUMIFS($D$2:D21,$B$2:B21,"Alior") -> -20 | X21: =SUMIFS($D$2:D21,$B$2:B21,"Idea") -> -20 | Y21: =SUMPRODUCT(($B$2:B21="MIL")*($E$2:E21="Kupno")*$C$2:C21*$D$2:D21) -> -109.4 | Z21: =SUMPRODUCT(($B$2:B21="PEKAO")*($E$2:E21="Kupno")*$C$2:C21*$D$2:D21) -> -2258.7 | AA21: =SUMPRODUCT(($B$2:B21="PKOBP")*($E$2:E21="Kupno")*$C$2:C21*$D$2:D21) -> -595.72 | AB21: =SUMPRODUCT(($B$2:B21="ING")*($E$2:E21="Kupno")*$C$2:C21*$D$2:D21) -> -3256.1 | AC21: =SUMPRODUCT(($B$2:B21="GETIN")*($E$2:E21="Kupno")*$C$2:C21*$D$2:D21) -> -34.8 | AD21: =SUMPRODUCT(($B$2:B21="Handlowy")*($E$2:E21="Kupno")*$C$2:C21*$D$2:D21) -> -1350.45 | AE21: =SUMPRODUCT(($B$2:B21="SANTANDER")*($E$2:E21="Kupno")*$C$2:C21*$D$2:D21) -> -6430.9 | AF21: =SUMPRODUCT(($B$2:B21="MBANK")*($E$2:E21="Kupno")*$C$2:C21*$D$2:D21) -> -6801.3 | AG21: =SUMPRODUCT(($B$2:B21="Alior")*($E$2:E21="Kupno")*$C$2:C21*$D$2:D21) -> -1189.1 | AH21: =SUMPRODUCT(($B$2:B21="Idea")*($E$2:E21="Kupno")*$C$2:C21*$D$2:D21) -> -464.4 | AI21: =SUMPRODUCT(($B$2:B21="MIL")*($E$2:E21="Sprzedaż")*$C$2:C21*$D$2:D21) -> 0 | AJ21: =SUMPRODUCT(($B$2:B21="PEKAO")*($E$2:E21="Sprzedaż")*$C$2:C21*$D$2:D21) -> 0 | AK21: =SUMPRODUCT(($B$2:B21="PKOBP")*($E$2:E21="Sprzedaż")*$C$2:C21*$D$2:D21) -> 0 | AL21: =SUMPRODUCT(($B$2:B21="ING")*($E$2:E21="Sprzedaż")*$C$2:C21*$D$2:D21) -> 0 | AM21: =SUMPRODUCT(($B$2:B21="GETIN")*($E$2:E21="Sprzedaż")*$C$2:C21*$D$2:D21) -> 0 | AN21: =SUMPRODUCT(($B$2:B21="Handlowy")*($E$2:E21="Sprzedaż")*$C$2:C21*$D$2:D21) -> 0 | AO21: =SUMPRODUCT(($B$2:B21="SANTANDER")*($E$2:E21="Sprzedaż")*$C$2:C21*$D$2:D21) -> 0 | AP21: =SUMPRODUCT(($B$2:B21="MBANK")*($E$2:E21="Sprzedaż")*$C$2:C21*$D$2:D21) -> 0 | AQ21: =SUMPRODUCT(($B$2:B21="Alior")*($E$2:E21="Sprzedaż")*$C$2:C21*$D$2:D21) -> 0 | AR21: =SUMPRODUCT(($B$2:B21="Idea")*($E$2:E21="Sprzedaż")*$C$2:C21*$D$2:D21) -> 0 | AS21: 118.6 | AT21: 2389.6 | AU21: 621.58 | AV21: 3413.6 | AW21: 33.4 | AX21: 1384.88 | AY21: 6890.6 | AZ21: 7529.6 | BA21: 1250.2 | BB21: 464 | BC21: 1605.19 | BD21: 1379.62 | BE21: =(VLOOKUP(A21,WIG_B[],2,TRUE)/VLOOKUP(A20,WIG_B[],2,TRUE)-1)*$L$1+BE20 -> 49747.90841 | BF21: 27874.82369 | BG21: =Portfel[[#This Row],[WIG.B]]-Portfel[[#This Row],[Portfel. S]] -> 48142.71841 | BH21: 9.2 | BI21: 130.9 | BJ21: 25.86 | BK21: 157.5 | BL21: -1.4 | BM21: 34.43 | BN21: 459.7 | BO21: 728.3 | BP21: 61.1 | BQ21: -0.4 | BR21: 3.6 | BS21: 132.2 | BT21: 32.96 | BU21: 132.8 | BV21: 1 | BW21: 53.26 | BX21: 449 | BY21: 515.8 | BZ21: 57 | CA21: 2
A22: 42761 | B22: MIL | C22: 5.93 | D22: -10 | E22: Kupno | F22: -0.001686340641 | G22: 0.1517706577 | H22: 0.1804384486 | I22: Sprawozdanie | L22: 477449.83 | O22: =SUMIFS($D$2:D22,$B$2:B22,"MIL") -> -30 | P22: =SUMIFS($D$2:D22,$B$2:B22,"PEKAO") -> -20 | Q22: =SUMIFS($D$2:D22,$B$2:B22,"PKOBP") -> -20 | R22: =SUMIFS($D$2:D22,$B$2:B22,"ING") -> -20 | S22: =SUMIFS($D$2:D22,$B$2:B22,"GETIN") -> -20 | T22: =SUMIFS($D$2:D22,$B$2:B22,"Handlowy") -> -20 | U22: =SUMIFS($D$2:D22,$B$2:B22,"SANTANDER") -> -20 | V22: =SUMIFS($D$2:D22,$B$2:B22,"MBANK") -> -20 | W22: =SUMIFS($D$2:D22,$B$2:B22,"Alior") -> -20 | X22: =SUMIFS($D$2:D22,$B$2:B22,"Idea") -> -20 | Y22: =SUMPRODUCT(($B$2:B22="MIL")*($E$2:E22="Kupno")*$C$2:C22*$D$2:D22) -> -168.7 | Z22: =SUMPRODUCT(($B$2:B22="PEKAO")*($E$2:E22="Kupno")*$C$2:C22*$D$2:D22) -> -2258.7 | AA22: =SUMPRODUCT(($B$2:B22="PKOBP")*($E$2:E22="Kupno")*$C$2:C22*$D$2:D22) -> -595.72 | AB22: =SUMPRODUCT(($B$2:B22="ING")*($E$2:E22="Kupno")*$C$2:C22*$D$2:D22) -> -3256.1 | AC22: =SUMPRODUCT(($B$2:B22="GETIN")*($E$2:E22="Kupno")*$C$2:C22*$D$2:D22) -> -34.8 | AD22: =SUMPRODUCT(($B$2:B22="Handlowy")*($E$2:E22="Kupno")*$C$2:C22*$D$2:D22) -> -1350.45 | AE22: =SUMPRODUCT(($B$2:B22="SANTANDER")*($E$2:E22="Kupno")*$C$2:C22*$D$2:D22) -> -6430.9 | AF22: =SUMPRODUCT(($B$2:B22="MBANK")*($E$2:E22="Kupno")*$C$2:C22*$D$2:D22) -> -6801.3 | AG22: =SUMPRODUCT(($B$2:B22="Alior")*($E$2:E22="Kupno")*$C$2:C22*$D$2:D22) -> -1189.1 | AH22: =SUMPRODUCT(($B$2:B22="Idea")*($E$2:E22="Kupno")*$C$2:C22*$D$2:D22) -> -464.4 | AI22: =SUMPRODUCT(($B$2:B22="MIL")*($E$2:E22="Sprzedaż")*$C$2:C22*$D$2:D22) -> 0 | AJ22: =SUMPRODUCT(($B$2:B22="PEKAO")*($E$2:E22="Sprzedaż")*$C$2:C22*$D$2:D22) -> 0 | AK22: =SUMPRODUCT(($B$2:B22="PKOBP")*($E$2:E22="Sprzedaż")*$C$2:C22*$D$2:D22) -> 0 | AL22: =SUMPRODUCT(($B$2:B22="ING")*($E$2:E22="Sprzedaż")*$C$2:C22*$D$2:D22) -> 0 | AM22: =SUMPRODUCT(($B$2:B22="GETIN")*($E$2:E22="Sprzedaż")*$C$2:C22*$D$2:D22) -> 0 | AN22: =SUMPRODUCT(($B$2:B22="Handlowy")*($E$2:E22="Sprzedaż")*$C$2:C22*$D$2:D22) -> 0 | AO22: =SUMPRODUCT(($B$2:B22="SANTANDER")*($E$2:E22="Sprzedaż")*$C$2:C22*$D$2:D22) -> 0 | AP22: =SUMPRODUCT(($B$2:B22="MBANK")*($E$2:E22="Sprzedaż")*$C$2:C22*$D$2:D22) -> 0 | AQ22: =SUMPRODUCT(($B$2:B22="Alior")*($E$2:E22="Sprzedaż")*$C$2:C22*$D$2:D22) -> 0 | AR22: =SUMPRODUCT(($B$2:B22="Idea")*($E$2:E22="Sprzedaż")*$C$2:C22*$D$2:D22) -> 0 | AS22: 177.9 | AT22: 2373 | AU22: 624.14 | AV22: 3296.4 | AW22: 33.6 | AX22: 1411.16 | AY22: 6929.4 | AZ22: 7445.6 | BA22: 1239 | BB22: 470.2 | BC22: 1450.23 | BD22: -154.96 | BE22: =(VLOOKUP(A22,WIG_B[],2,TRUE)/VLOOKUP(A21,WIG_B[],2,TRUE)-1)*$L$1+BE21 -> 49065.50941 | BF22: -682.3989956 | BG22: =Portfel[[#This Row],[WIG.B]]-Portfel[[#This Row],[Portfel. S]] -> 47615.27941 | BH22: 9.2 | BI22: 114.3 | BJ22: 28.42 | BK22: 40.3 | BL22: -1.2 | BM22: 60.71 | BN22: 498.5 | BO22: 644.3 | BP22: 49.9 | BQ22: 5.8 | BR22: 0 | BS22: -16.6 | BT22: 2.56 | BU22: -117.2 | BV22: 0.2 | BW22: 26.28 | BX22: 38.8 | BY22: -84 | BZ22: -11.2 | CA22: 6.2
A23: 42762 | B23: PEKAO | C23: 119.82 | D23: -10 | E23: Kupno | F23: 0 | G23: 0.02219996662 | H23: 0.02762477049 | I23: Makro | L23: 476251.63 | O23: =SUMIFS($D$2:D23,$B$2:B23,"MIL") -> -30 | P23: =SUMIFS($D$2:D23,$B$2:B23,"PEKAO") -> -30 | Q23: =SUMIFS($D$2:D23,$B$2:B23,"PKOBP") -> -20 | R23: =SUMIFS($D$2:D23,$B$2:B23,"ING") -> -20 | S23: =SUMIFS($D$2:D23,$B$2:B23,"GETIN") -> -20 | T23: =SUMIFS($D$2:D23,$B$2:B23,"Handlowy") -> -20 | U23: =SUMIFS($D$2:D23,$B$2:B23,"SANTANDER") -> -20 | V23: =SUMIFS($D$2:D23,$B$2:B23,"MBANK") -> -20 | W23: =SUMIFS($D$2:D23,$B$2:B23,"Alior") -> -20 | X23: =SUMIFS($D$2:D23,$B$2:B23,"Idea") -> -20 | Y23: =SUMPRODUCT(($B$2:B23="MIL")*($E$2:E23="Kupno")*$C$2:C23*$D$2:D23) -> -168.7 | Z23: =SUMPRODUCT(($B$2:B23="PEKAO")*($E$2:E23="Kupno")*$C$2:C23*$D$2:D23) -> -3456.9 | AA23: =SUMPRODUCT(($B$2:B23="PKOBP")*($E$2:E23="Kupno")*$C$2:C23*$D$2:D23) -> -595.72 | AB23: =SUMPRODUCT(($B$2:B23="ING")*($E$2:E23="Kupno")*$C$2:C23*$D$2:D23) -> -3256.1 | AC23: =SUMPRODUCT(($B$2:B23="GETIN")*($E$2:E23="Kupno")*$C$2:C23*$D$2:D23) -> -34.8 | AD23: =SUMPRODUCT(($B$2:B23="Handlowy")*($E$2:E23="Kupno")*$C$2:C23*$D$2:D23) -> -1350.45 | AE23: =SUMPRODUCT(($B$2:B23="SANTANDER")*($E$2:E23="Kupno")*$C$2:C23*$D$2:D23) -> -6430.9 | AF23: =SUMPRODUCT(($B$2:B23="MBANK")*($E$2:E23="Kupno")*$C$2:C23*$D$2:D23) -> -6801.3 | AG23: =SUMPRODUCT(($B$2:B23="Alior")*($E$2:E23="Kupno")*$C$2:C23*$D$2:D23) -> -1189.1 | AH23: =SUMPRODUCT(($B$2:B23="Idea")*($E$2:E23="Kupno")*$C$2:C23*$D$2:D23) -> -464.4 | AI23: =SUMPRODUCT(($B$2:B23="MIL")*($E$2:E23="Sprzedaż")*$C$2:C23*$D$2:D23) -> 0 | AJ23: =SUMPRODUCT(($B$2:B23="PEKAO")*($E$2:E23="Sprzedaż")*$C$2:C23*$D$2:D23) -> 0 | AK23: =SUMPRODUCT(($B$2:B23="PKOBP")*($E$2:E23="Sprzedaż")*$C$2:C23*$D$2:D23) -> 0 | AL23: =SUMPRODUCT(($B$2:B23="ING")*($E$2:E23="Sprzedaż")*$C$2:C23*$D$2:D23) -> 0 | AM23: =SUMPRODUCT(($B$2:B23="GETIN")*($E$2:E23="Sprzedaż")*$C$2:C23*$D$2:D23) -> 0 | AN23: =SUMPRODUCT(($B$2:B23="Handlowy")*($E$2:E23="Sprzedaż")*$C$2:C23*$D$2:D23) -> 0 | AO23: =SUMPRODUCT(($B$2:B23="SANTANDER")*($E$2:E23="Sprzedaż")*$C$2:C23*$D$2:D23) -> 0 | AP23: =SUMPRODUCT(($B$2:B23="MBANK")*($E$2:E23="Sprzedaż")*$C$2:C23*$D$2:D23) -> 0 | AQ23: =SUMPRODUCT(($B$2:B23="Alior")*($E$2:E23="Sprzedaż")*$C$2:C23*$D$2:D23) -> 0 | AR23: =SUMPRODUCT(($B$2:B23="Idea")*($E$2:E23="Sprzedaż")*$C$2:C23*$D$2:D23) -> 0 | AS23: 177.6 | AT23: 3594.6 | AU23: 614.08 | AV23: 3295.4 | AW23: 33.8 | AX23: 1381.34 | AY23: 6756.8 | AZ23: 7652 | BA23: 1225 | BB23: 463 | BC23: 1445.25 | BD23: -4.98 | BE23: =(VLOOKUP(A23,WIG_B[],2,TRUE)/VLOOKUP(A22,WIG_B[],2,TRUE)-1)*$L$1+BE22 -> 46084.48429 | BF23: -2981.025127 | BG23: =Portfel[[#This Row],[WIG.B]]-Portfel[[#This Row],[Portfel. S]] -> 44639.23429 | BH23: 8.9 | BI23: 137.7 | BJ23: 18.36 | BK23: 39.3 | BL23: -1 | BM23: 30.89 | BN23: 325.9 | BO23: 850.7 | BP23: 35.9 | BQ23: -1.4 | BR23: -0.3 | BS23: 23.4 | BT23: -10.06 | BU23: -1 | BV23: 0.2 | BW23: -29.82 | BX23: -172.6 | BY23: 206.4 | BZ23: -14 | CA23: -7.2
A24: 42765 | B24: PKOBP | C24: 30.24 | D24: -10 | E24: Kupno | F24: 0.01501322751 | G24: 0.155026455 | H24: 0.1517526455 | I24: Polityka | L24: 475949.23 | O24: =SUMIFS($D$2:D24,$B$2:B24,"MIL") -> -30 | P24: =SUMIFS($D$2:D24,$B$2:B24,"PEKAO") -> -30 | Q24: =SUMIFS($D$2:D24,$B$2:B24,"PKOBP") -> -30 | R24: =SUMIFS($D$2:D24,$B$2:B24,"ING") -> -20 | S24: =SUMIFS($D$2:D24,$B$2:B24,"GETIN") -> -20 | T24: =SUMIFS($D$2:D24,$B$2:B24,"Handlowy") -> -20 | U24: =SUMIFS($D$2:D24,$B$2:B24,"SANTANDER") -> -20 | V24: =SUMIFS($D$2:D24,$B$2:B24,"MBANK") -> -20 | W24: =SUMIFS($D$2:D24,$B$2:B24,"Alior") -> -20 | X24: =SUMIFS($D$2:D24,$B$2:B24,"Idea") -> -20 | Y24: =SUMPRODUCT(($B$2:B24="MIL")*($E$2:E24="Kupno")*$C$2:C24*$D$2:D24) -> -168.7 | Z24: =SUMPRODUCT(($B$2:B24="PEKAO")*($E$2:E24="Kupno")*$C$2:C24*$D$2:D24) -> -3456.9 | AA24: =SUMPRODUCT(($B$2:B24="PKOBP")*($E$2:E24="Kupno")*$C$2:C24*$D$2:D24) -> -898.12 | AB24: =SUMPRODUCT(($B$2:B24="ING")*($E$2:E24="Kupno")*$C$2:C24*$D$2:D24) -> -3256.1 | AC24: =SUMPRODUCT(($B$2:B24="GETIN")*($E$2:E24="Kupno")*$C$2:C24*$D$2:D24) -> -34.8 | AD24: =SUMPRODUCT(($B$2:B24="Handlowy")*($E$2:E24="Kupno")*$C$2:C24*$D$2:D24) -> -1350.45 | AE24: =SUMPRODUCT(($B$2:B24="SANTANDER")*($E$2:E24="Kupno")*$C$2:C24*$D$2:D24) -> -6430.9 | AF24: =SUMPRODUCT(($B$2:B24="MBANK")*($E$2:E24="Kupno")*$C$2:C24*$D$2:D24) -> -6801.3 | AG24: =SUMPRODUCT(($B$2:B24="Alior")*($E$2:E24="Kupno")*$C$2:C24*$D$2:D24) -> -1189.1 | AH24: =SUMPRODUCT(($B$2:B24="Idea")*($E$2:E24="Kupno")*$C$2:C24*$D$2:D24) -> -464.4 | AI24: =SUMPRODUCT(($B$2:B24="MIL")*($E$2:E24="Sprzedaż")*$C$2:C24*$D$2:D24) -> 0 | AJ24: =SUMPRODUCT(($B$2:B24="PEKAO")*($E$2:E24="Sprzedaż")*$C$2:C24*$D$2:D24) -> 0 | AK24: =SUMPRODUCT(($B$2:B24="PKOBP")*($E$2:E24="Sprzedaż")*$C$2:C24*$D$2:D24) -> 0 | AL24: =SUMPRODUCT(($B$2:B24="ING")*($E$2:E24="Sprzedaż")*$C$2:C24*$D$2:D24) -> 0 | AM24: =SUMPRODUCT(($B$2:B24="GETIN")*($E$2:E24="Sprzedaż")*$C$2:C24*$D$2:D24) -> 0 | AN24: =SUMPRODUCT(($B$2:B24="Handlowy")*($E$2:E24="Sprzedaż")*$C$2:C24*$D$2:D24) -> 0 | AO24: =SUMPRODUCT(($B$2:B24="SANTANDER")*($E$2:E24="Sprzedaż")*$C$2:C24*$D$2:D24) -> 0 | AP24: =SUMPRODUCT(($B$2:B24="MBANK")*($E$2:E24="Sprzedaż")*$C$2:C24*$D$2:D24) -> 0 | AQ24: =SUMPRODUCT(($B$2:B24="Alior")*($E$2:E24="Sprzedaż")*$C$2:C24*$D$2:D24) -> 0 | AR24: =SUMPRODUCT(($B$2:B24="Idea")*($E$2:E24="Sprzedaż")*$C$2:C24*$D$2:D24) -> 0 | AS24: 177.6 | AT24: 3517.8 | AU24: 907.2 | AV24: 3325 | AW24: 33.6 | AX24: 1374.76 | AY24: 6560.6 | AZ24: 7469.2 | BA24: 1207 | BB24: 462 | BC24: 983.99 | BD24: -461.26 | BE24: =(VLOOKUP(A24,WIG_B[],2,TRUE)/VLOOKUP(A23,WIG_B[],2,TRUE)-1)*$L$1+BE23 -> 37833.14999 | BF24: -8251.334295 | BG24: =Portfel[[#This Row],[WIG.B]]-Portfel[[#This Row],[Portfel. S]] -> 36849.15999 | BH24: 8.9 | BI24: 60.9 | BJ24: 9.08 | BK24: 68.9 | BL24: -1.2 | BM24: 24.31 | BN24: 129.7 | BO24: 667.9 | BP24: 17.9 | BQ24: -2.4 | BR24: 0 | BS24: -76.8 | BT24: -9.28 | BU24: 29.6 | BV24: -0.2 | BW24: -6.58 | BX24: -196.2 | BY24: -182.8 | BZ24: -18 | CA24: -1
A25: 42766 | B25: ING | C25: 174.12 | D25: -10 | E25: Kupno | F25: -0.02147943947 | G25: 0.008212726855 | H25: 0.0118309212 | I25: Sprawozdanie | L25: 474208.03 | O25: =SUMIFS($D$2:D25,$B$2:B25,"MIL") -> -30 | P25: =SUMIFS($D$2:D25,$B$2:B25,"PEKAO") -> -30 | Q25: =SUMIFS($D$2:D25,$B$2:B25,"PKOBP") -> -30 | R25: =SUMIFS($D$2:D25,$B$2:B25,"ING") -> -30 | S25: =SUMIFS($D$2:D25,$B$2:B25,"GETIN") -> -20 | T25: =SUMIFS($D$2:D25,$B$2:B25,"Handlowy") -> -20 | U25: =SUMIFS($D$2:D25,$B$2:B25,"SANTANDER") -> -20 | V25: =SUMIFS($D$2:D25,$B$2:B25,"MBANK") -> -20 | W25: =SUMIFS($D$2:D25,$B$2:B25,"Alior") -> -20 | X25: =SUMIFS($D$2:D25,$B$2:B25,"Idea") -> -20 | Y25: =SUMPRODUCT(($B$2:B25="MIL")*($E$2:E25="Kupno")*$C$2:C25*$D$2:D25) -> -168.7 | Z25: =SUMPRODUCT(($B$2:B25="PEKAO")*($E$2:E25="Kupno")*$C$2:C25*$D$2:D25) -> -3456.9 | AA25: =SUMPRODUCT(($B$2:B25="PKOBP")*($E$2:E25="Kupno")*$C$2:C25*$D$2:D25) -> -898.12 | AB25: =SUMPRODUCT(($B$2:B25="ING")*($E$2:E25="Kupno")*$C$2:C25*$D$2:D25) -> -4997.3 | AC25: =SUMPRODUCT(($B$2:B25="GETIN")*($E$2:E25="Kupno")*$C$2:C25*$D$2:D25) -> -34.8 | AD25: =SUMPRODUCT(($B$2:B25="Handlowy")*($E$2:E25="Kupno")*$C$2:C25*$D$2:D25) -> -1350.45 | AE25: =SUMPRODUCT(($B$2:B25="SANTANDER")*($E$2:E25="Kupno")*$C$2:C25*$D$2:D25) -> -6430.9 | AF25: =SUMPRODUCT(($B$2:B25="MBANK")*($E$2:E25="Kupno")*$C$2:C25*$D$2:D25) -> -6801.3 | AG25: =SUMPRODUCT(($B$2:B25="Alior")*($E$2:E25="Kupno")*$C$2:C25*$D$2:D25) -> -1189.1 | AH25: =SUMPRODUCT(($B$2:B25="Idea")*($E$2:E25="Kupno")*$C$2:C25*$D$2:D25) -> -464.4 | AI25: =SUMPRODUCT(($B$2:B25="MIL")*($E$2:E25="Sprzedaż")*$C$2:C25*$D$2:D25) -> 0 | AJ25: =SUMPRODUCT(($B$2:B25="PEKAO")*($E$2:E25="Sprzedaż")*$C$2:C25*$D$2:D25) -> 0 | AK25: =SUMPRODUCT(($B$2:B25="PKOBP")*($E$2:E25="Sprzedaż")*$C$2:C25*$D$2:D25) -> 0 | AL25: =SUMPRODUCT(($B$2:B25="ING")*($E$2:E25="Sprzedaż")*$C$2:C25*$D$2:D25) -> 0 | AM25: =SUMPRODUCT(($B$2:B25="GETIN")*($E$2:E25="Sprzedaż")*$C$2:C25*$D$2:D25) -> 0 | AN25: =SUMPRODUCT(($B$2:B25="Handlowy")*($E$2:E25="Sprzedaż")*$C$2:C25*$D$2:D25) -> 0 | AO25: =SUMPRODUCT(($B$2:B25="SANTANDER")*($E$2:E25="Sprzedaż")*$C$2:C25*$D$2:D25) -> 0 | AP25: =SUMPRODUCT(($B$2:B25="MBANK")*($E$2:E25="Sprzedaż")*$C$2:C25*$D$2:D25) -> 0 | AQ25: =SUMPRODUCT(($B$2:B25="Alior")*($E$2:E25="Sprzedaż")*$C$2:C25*$D$2:D25) -> 0 | AR25: =SUMPRODUCT(($B$2:B25="Idea")*($E$2:E25="Sprzedaż")*$C$2:C25*$D$2:D25) -> 0 | AS25: 176.4 | AT25: 3525.6 | AU25: 908.1 | AV25: 5223.6 | AW25: 33 | AX25: 1363.58 | AY25: 6724.4 | AZ25: 7470.2 | BA25: 1220 | BB25: 462 | BC25: 1314.91 | BD25: 330.92 | BE25: =(VLOOKUP(A25,WIG_B[],2,TRUE)/VLOOKUP(A24,WIG_B[],2,TRUE)-1)*$L$1+BE24 -> 41547.4597 | BF25: 3714.309704 | BG25: =Portfel[[#This Row],[WIG.B]]-Portfel[[#This Row],[Portfel. S]] -> 40232.5497 | BH25: 7.7 | BI25: 68.7 | BJ25: 9.98 | BK25: 226.3 | BL25: -1.8 | BM25: 13.13 | BN25: 293.5 | BO25: 668.9 | BP25: 30.9 | BQ25: -2.4 | BR25: -1.2 | BS25: 7.8 | BT25: 0.9 | BU25: 157.4 | BV25: -0.6 | BW25: -11.18 | BX25: 163.8 | BY25: 1 | BZ25: 13 | CA25: 0
A26: 42767 | B26: GETIN | C26: 1.66 | D26: -10 | E26: Kupno | F26: -0.006024096386 | G26: 0.3192771084 | H26: 0.1204819277 | I26: Makro | L26: 474191.43 | O26: =SUMIFS($D$2:D26,$B$2:B26,"MIL") -> -30 | P26: =SUMIFS($D$2:D26,$B$2:B26,"PEKAO") -> -30 | Q26: =SUMIFS($D$2:D26,$B$2:B26,"PKOBP") -> -30 | R26: =SUMIFS($D$2:D26,$B$2:B26,"ING") -> -30 | S26: =SUMIFS($D$2:D26,$B$2:B26,"GETIN") -> -30 | T26: =SUMIFS($D$2:D26,$B$2:B26,"Handlowy") -> -20 | U26: =SUMIFS($D$2:D26,$B$2:B26,"SANTANDER") -> -20 | V26: =SUMIFS($D$2:D26,$B$2:B26,"MBANK") -> -20 | W26: =SUMIFS($D$2:D26,$B$2:B26,"Alior") -> -20 | X26: =SUMIFS($D$2:D26,$B$2:B26,"Idea") -> -20 | Y26: =SUMPRODUCT(($B$2:B26="MIL")*($E$2:E26="Kupno")*$C$2:C26*$D$2:D26) -> -168.7 | Z26: =SUMPRODUCT(($B$2:B26="PEKAO")*($E$2:E26="Kupno")*$C$2:C26*$D$2:D26) -> -3456.9 | AA26: =SUMPRODUCT(($B$2:B26="PKOBP")*($E$2:E26="Kupno")*$C$2:C26*$D$2:D26) -> -898.12 | AB26: =SUMPRODUCT(($B$2:B26="ING")*($E$2:E26="Kupno")*$C$2:C26*$D$2:D26) -> -4997.3 | AC26: =SUMPRODUCT(($B$2:B26="GETIN")*($E$2:E26="Kupno")*$C$2:C26*$D$2:D26) -> -51.4 | AD26: =SUMPRODUCT(($B$2:B26="Handlowy")*($E$2:E26="Kupno")*$C$2:C26*$D$2:D26) -> -1350.45 | AE26: =SUMPRODUCT(($B$2:B26="SANTANDER")*($E$2:E26="Kupno")*$C$2:C26*$D$2:D26) -> -6430.9 | AF26: =SUMPRODUCT(($B$2:B26="MBANK")*($E$2:E26="Kupno")*$C$2:C26*$D$2:D26) -> -6801.3 | AG26: =SUMPRODUCT(($B$2:B26="Alior")*($E$2:E26="Kupno")*$C$2:C26*$D$2:D26) -> -1189.1 | AH26: =SUMPRODUCT(($B$2:B26="Idea")*($E$2:E26="Kupno")*$C$2:C26*$D$2:D26) -> -464.4 | AI26: =SUMPRODUCT(($B$2:B26="MIL")*($E$2:E26="Sprzedaż")*$C$2:C26*$D$2:D26) -> 0 | AJ26: =SUMPRODUCT(($B$2:B26="PEKAO")*($E$2:E26="Sprzedaż")*$C$2:C26*$D$2:D26) -> 0 | AK26: =SUMPRODUCT(($B$2:B26="PKOBP")*($E$2:E26="Sprzedaż")*$C$2:C26*$D$2:D26) -> 0 | AL26: =SUMPRODUCT(($B$2:B26="ING")*($E$2:E26="Sprzedaż")*$C$2:C26*$D$2:D26) -> 0 | AM26: =SUMPRODUCT(($B$2:B26="GETIN")*($E$2:E26="Sprzedaż")*$C$2:C26*$D$2:D26) -> 0 | AN26: =SUMPRODUCT(($B$2:B26="Handlowy")*($E$2:E26="Sprzedaż")*$C$2:C26*$D$2:D26) -> 0 | AO26: =SUMPRODUCT(($B$2:B26="SANTANDER")*($E$2:E26="Sprzedaż")*$C$2:C26*$D$2:D26) -> 0 | AP26: =SUMPRODUCT(($B$2:B26="MBANK")*($E$2:E26="Sprzedaż")*$C$2:C26*$D$2:D26) -> 0 | AQ26: =SUMPRODUCT(($B$2:B26="Alior")*($E$2:E26="Sprzedaż")*$C$2:C26*$D$2:D26) -> 0 | AR26: =SUMPRODUCT(($B$2:B26="Idea")*($E$2:E26="Sprzedaż")*$C$2:C26*$D$2:D26) -> 0 | AS26: 178.2 | AT26: 3571.2 | AU26: 922.29 | AV26: 5129.1 | AW26: 49.8 | AX26: 1402.64 | AY26: 6949 | AZ26: 7727.2 | BA26: 1235 | BB26: 463 | BC26: 1818.86 | BD26: 503.95 | BE26: =(VLOOKUP(A26,WIG_B[],2,TRUE)/VLOOKUP(A25,WIG_B[],2,TRUE)-1)*$L$1+BE25 -> 49510.56563 | BF26: 7963.105933 | BG26: =Portfel[[#This Row],[WIG.B]]-Portfel[[#This Row],[Portfel. S]] -> 47691.70563 | BH26: 9.5 | BI26: 114.3 | BJ26: 24.17 | BK26: 131.8 | BL26: -1.6 | BM26: 52.19 | BN26: 518.1 | BO26: 925.9 | BP26: 45.9 | BQ26: -1.4 | BR26: 1.8 | BS26: 45.6 | BT26: 14.19 | BU26: -94.5 | BV26: 0.2 | BW26: 39.06 | BX26: 224.6 | BY26: 257 | BZ26: 15 | CA26: 1
A27: 42768 | B27: Handlowy | C27: 69.733 | D27: -10 | E27: Kupno | F27: -0.01591785812 | G27: 0.04657766051 | H27: -0.04902987108 | I27: Polityka | L27: 473494.1 | O27: =SUMIFS($D$2:D27,$B$2:B27,"MIL") -> -30 | P27: =SUMIFS($D$2:D27,$B$2:B27,"PEKAO") -> -30 | Q27: =SUMIFS($D$2:D27,$B$2:B27,"PKOBP") -> -30 | R27: =SUMIFS($D$2:D27,$B$2:B27,"ING") -> -30 | S27: =SUMIFS($D$2:D27,$B$2:B27,"GETIN") -> -30 | T27: =SUMIFS($D$2:D27,$B$2:B27,"Handlowy") -> -30 | U27: =SUMIFS($D$2:D27,$B$2:B27,"SANTANDER") -> -20 | V27: =SUMIFS($D$2:D27,$B$2:B27,"MBANK") -> -20 | W27: =SUMIFS($D$2:D27,$B$2:B27,"Alior") -> -20 | X27: =SUMIFS($D$2:D27,$B$2:B27,"Idea") -> -20 | Y27: =SUMPRODUCT(($B$2:B27="MIL")*($E$2:E27="Kupno")*$C$2:C27*$D$2:D27) -> -168.7 | Z27: =SUMPRODUCT(($B$2:B27="PEKAO")*($E$2:E27="Kupno")*$C$2:C27*$D$2:D27) -> -3456.9 | AA27: =SUMPRODUCT(($B$2:B27="PKOBP")*($E$2:E27="Kupno")*$C$2:C27*$D$2:D27) -> -898.12 | AB27: =SUMPRODUCT(($B$2:B27="ING")*($E$2:E27="Kupno")*$C$2:C27*$D$2:D27) -> -4997.3 | AC27: =SUMPRODUCT(($B$2:B27="GETIN")*($E$2:E27="Kupno")*$C$2:C27*$D$2:D27) -> -51.4 | AD27: =SUMPRODUCT(($B$2:B27="Handlowy")*($E$2:E27="Kupno")*$C$2:C27*$D$2:D27) -> -2047.78 | AE27: =SUMPRODUCT(($B$2:B27="SANTANDER")*($E$2:E27="Kupno")*$C$2:C27*$D$2:D27) -> -6430.9 | AF27: =SUMPRODUCT(($B$2:B27="MBANK")*($E$2:E27="Kupno")*$C$2:C27*$D$2:D27) -> -6801.3 | AG27: =SUMPRODUCT(($B$2:B27="Alior")*($E$2:E27="Kupno")*$C$2:C27*$D$2:D27) -> -1189.1 | AH27: =SUMPRODUCT(($B$2:B27="Idea")*($E$2:E27="Kupno")*$C$2:C27*$D$2:D27) -> -464.4 | AI27: =SUMPRODUCT(($B$2:B27="MIL")*($E$2:E27="Sprzedaż")*$C$2:C27*$D$2:D27) -> 0 | AJ27: =SUMPRODUCT(($B$2:B27="PEKAO")*($E$2:E27="Sprzedaż")*$C$2:C27*$D$2:D27) -> 0 | AK27: =SUMPRODUCT(($B$2:B27="PKOBP")*($E$2:E27="Sprzedaż")*$C$2:C27*$D$2:D27) -> 0 | AL27: =SUMPRODUCT(($B$2:B27="ING")*($E$2:E27="Sprzedaż")*$C$2:C27*$D$2:D27) -> 0 | AM27: =SUMPRODUCT(($B$2:B27="GETIN")*($E$2:E27="Sprzedaż")*$C$2:C27*$D$2:D27) -> 0 | AN27: =SUMPRODUCT(($B$2:B27="Handlowy")*($E$2:E27="Sprzedaż")*$C$2:C27*$D$2:D27) -> 0 | AO27: =SUMPRODUCT(($B$2:B27="SANTANDER")*($E$2:E27="Sprzedaż")*$C$2:C27*$D$2:D27) -> 0 | AP27: =SUMPRODUCT(($B$2:B27="MBANK")*($E$2:E27="Sprzedaż")*$C$2:C27*$D$2:D27) -> 0 | AQ27: =SUMPRODUCT(($B$2:B27="Alior")*($E$2:E27="Sprzedaż")*$C$2:C27*$D$2:D27) -> 0 | AR27: =SUMPRODUCT(($B$2:B27="Idea")*($E$2:E27="Sprzedaż")*$C$2:C27*$D$2:D27) -> 0 | AS27: 176.7 | AT27: 3533.4 | AU27: 906 | AV27: 4926.9 | AW27: 50.1 | AX27: 2091.99 | AY27: 6783.2 | AZ27: 7802.2 | BA27: 1214 | BB27: 463.8 | BC27: 1442.39 | BD27: -376.47 | BE27: =(VLOOKUP(A27,WIG_B[],2,TRUE)/VLOOKUP(A26,WIG_B[],2,TRUE)-1)*$L$1+BE26 -> 41755.05178 | BF27: -7755.513849 | BG27: =Portfel[[#This Row],[WIG.B]]-Portfel[[#This Row],[Portfel. S]] -> 40312.66178 | BH27: 8 | BI27: 76.5 | BJ27: 7.88 | BK27: -70.4 | BL27: -1.3 | BM27: 44.21 | BN27: 352.3 | BO27: 1000.9 | BP27: 24.9 | BQ27: -0.6 | BR27: -1.5 | BS27: -37.8 | BT27: -16.29 | BU27: -202.2 | BV27: 0.3 | BW27: -7.98 | BX27: -165.8 | BY27: 75 | BZ27: -21 | CA27: 0.8
A28: 42769 | B28: SANTANDER | C28: 338.57 | D28: -10 | E28: Kupno | F28: 0 | G28: 0.03201701273 | H28: 0.04888206279 | I28: Sprawozdanie | L28: 470108.4 | O28: =SUMIFS($D$2:D28,$B$2:B28,"MIL") -> -30 | P28: =SUMIFS($D$2:D28,$B$2:B28,"PEKAO") -> -30 | Q28: =SUMIFS($D$2:D28,$B$2:B28,"PKOBP") -> -30 | R28: =SUMIFS($D$2:D28,$B$2:B28,"ING") -> -30 | S28: =SUMIFS($D$2:D28,$B$2:B28,"GETIN") -> -30 | T28: =SUMIFS($D$2:D28,$B$2:B28,"Handlowy") -> -30 | U28: =SUMIFS($D$2:D28,$B$2:B28,"SANTANDER") -> -30 | V28: =SUMIFS($D$2:D28,$B$2:B28,"MBANK") -> -20 | W28: =SUMIFS($D$2:D28,$B$2:B28,"Alior") -> -20 | X28: =SUMIFS($D$2:D28,$B$2:B28,"Idea") -> -20 | Y28: =SUMPRODUCT(($B$2:B28="MIL")*($E$2:E28="Kupno")*$C$2:C28*$D$2:D28) -> -168.7 | Z28: =SUMPRODUCT(($B$2:B28="PEKAO")*($E$2:E28="Kupno")*$C$2:C28*$D$2:D28) -> -3456.9 | AA28: =SUMPRODUCT(($B$2:B28="PKOBP")*($E$2:E28="Kupno")*$C$2:C28*$D$2:D28) -> -898.12 | AB28: =SUMPRODUCT(($B$2:B28="ING")*($E$2:E28="Kupno")*$C$2:C28*$D$2:D28) -> -4997.3 | AC28: =SUMPRODUCT(($B$2:B28="GETIN")*($E$2:E28="Kupno")*$C$2:C28*$D$2:D28) -> -51.4 | AD28: =SUMPRODUCT(($B$2:B28="Handlowy")*($E$2:E28="Kupno")*$C$2:C28*$D$2:D28) -> -2047.78 | AE28: =SUMPRODUCT(($B$2:B28="SANTANDER")*($E$2:E28="Kupno")*$C$2:C28*$D$2:D28) -> -9816.6 | AF28: =SUMPRODUCT(($B$2:B28="MBANK")*($E$2:E28="Kupno")*$C$2:C28*$D$2:D28) -> -6801.3 | AG28: =SUMPRODUCT(($B$2:B28="Alior")*($E$2:E28="Kupno")*$C$2:C28*$D$2:D28) -> -1189.1 | AH28: =SUMPRODUCT(($B$2:B28="Idea")*($E$2:E28="Kupno")*$C$2:C28*$D$2:D28) -> -464.4 | AI28: =SUMPRODUCT(($B$2:B28="MIL")*($E$2:E28="Sprzedaż")*$C$2:C28*$D$2:D28) -> 0 | AJ28: =SUMPRODUCT(($B$2:B28="PEKAO")*($E$2:E28="Sprzedaż")*$C$2:C28*$D$2:D28) -> 0 | AK28: =SUMPRODUCT(($B$2:B28="PKOBP")*($E$2:E28="Sprzedaż")*$C$2:C28*$D$2:D28) -> 0 | AL28: =SUMPRODUCT(($B$2:B28="ING")*($E$2:E28="Sprzedaż")*$C$2:C28*$D$2:D28) -> 0 | AM28: =SUMPRODUCT(($B$2:B28="GETIN")*($E$2:E28="Sprzedaż")*$C$2:C28*$D$2:D28) -> 0 | AN28: =SUMPRODUCT(($B$2:B28="Handlowy")*($E$2:E28="Sprzedaż")*$C$2:C28*$D$2:D28) -> 0 | AO28: =SUMPRODUCT(($B$2:B28="SANTANDER")*($E$2:E28="Sprzedaż")*$C$2:C28*$D$2:D28) -> 0 | AP28: =SUMPRODUCT(($B$2:B28="MBANK")*($E$2:E28="Sprzedaż")*$C$2:C28*$D$2:D28) -> 0 | AQ28: =SUMPRODUCT(($B$2:B28="Alior")*($E$2:E28="Sprzedaż")*$C$2:C28*$D$2:D28) -> 0 | AR28: =SUMPRODUCT(($B$2:B28="Idea")*($E$2:E28="Sprzedaż")*$C$2:C28*$D$2:D28) -> 0 | AS28: 178.2 | AT28: 3528.3 | AU28: 920.82 | AV28: 5111.4 | AW28: 49.5 | AX28: 2058.69 | AY28: 10157.1 | AZ28: 7725.2 | BA28: 1231.8 | BB28: 464.2 | BC28: 1533.61 | BD28: 91.22 | BE28: =(VLOOKUP(A28,WIG_B[],2,TRUE)/VLOOKUP(A27,WIG_B[],2,TRUE)-1)*$L$1+BE27 -> 45326.59 | BF28: 3571.538218 | BG28: =Portfel[[#This Row],[WIG.B]]-Portfel[[#This Row],[Portfel. S]] -> 43792.98 | BH28: 9.5 | BI28: 71.4 | BJ28: 22.7 | BK28: 114.1 | BL28: -1.9 | BM28: 10.91 | BN28: 340.5 | BO28: 923.9 | BP28: 42.7 | BQ28: -0.2 | BR28: 1.5 | BS28: -5.1 | BT28: 14.82 | BU28: 184.5 | BV28: -0.6 | BW28: -33.3 | BX28: -11.8 | BY28: -77 | BZ28: 17.8 | CA28: 0.4
A29: 42772 | B29: MBANK | C29: 365.61 | D29: -10 | E29: Kupno | F29: 0.1530866224 | G29: 0.07094991931 | H29: 0.2027023331 | I29: Makro | L29: 466452.3 | O29: =SUMIFS($D$2:D29,$B$2:B29,"MIL") -> -30 | P29: =SUMIFS($D$2:D29,$B$2:B29,"PEKAO") -> -30 | Q29: =SUMIFS($D$2:D29,$B$2:B29,"PKOBP") -> -30 | R29: =SUMIFS($D$2:D29,$B$2:B29,"ING") -> -30 | S29: =SUMIFS($D$2:D29,$B$2:B29,"GETIN") -> -30 | T29: =SUMIFS($D$2:D29,$B$2:B29,"Handlowy") -> -30 | U29: =SUMIFS($D$2:D29,$B$2:B29,"SANTANDER") -> -30 | V29: =SUMIFS($D$2:D29,$B$2:B29,"MBANK") -> -30 | W29: =SUMIFS($D$2:D29,$B$2:B29,"Alior") -> -20 | X29: =SUMIFS($D$2:D29,$B$2:B29,"Idea") -> -20 | Y29: =SUMPRODUCT(($B$2:B29="MIL")*($E$2:E29="Kupno")*$C$2:C29*$D$2:D29) -> -168.7 | Z29: =SUMPRODUCT(($B$2:B29="PEKAO")*($E$2:E29="Kupno")*$C$2:C29*$D$2:D29) -> -3456.9 | AA29: =SUMPRODUCT(($B$2:B29="PKOBP")*($E$2:E29="Kupno")*$C$2:C29*$D$2:D29) -> -898.12 | AB29: =SUMPRODUCT(($B$2:B29="ING")*($E$2:E29="Kupno")*$C$2:C29*$D$2:D29) -> -4997.3 | AC29: =SUMPRODUCT(($B$2:B29="GETIN")*($E$2:E29="Kupno")*$C$2:C29*$D$2:D29) -> -51.4 | AD29: =SUMPRODUCT(($B$2:B29="Handlowy")*($E$2:E29="Kupno")*$C$2:C29*$D$2:D29) -> -2047.78 | AE29: =SUMPRODUCT(($B$2:B29="SANTANDER")*($E$2:E29="Kupno")*$C$2:C29*$D$2:D29) -> -9816.6 | AF29: =SUMPRODUCT(($B$2:B29="MBANK")*($E$2:E29="Kupno")*$C$2:C29*$D$2:D29) -> -10457.4 | AG29: =SUMPRODUCT(($B$2:B29="Alior")*($E$2:E29="Kupno")*$C$2:C29*$D$2:D29) -> -1189.1 | AH29: =SUMPRODUCT(($B$2:B29="Idea")*($E$2:E29="Kupno")*$C$2:C29*$D$2:D29) -> -464.4 | AI29: =SUMPRODUCT(($B$2:B29="MIL")*($E$2:E29="Sprzedaż")*$C$2:C29*$D$2:D29) -> 0 | AJ29: =SUMPRODUCT(($B$2:B29="PEKAO")*($E$2:E29="Sprzedaż")*$C$2:C29*$D$2:D29) -> 0 | AK29: =SUMPRODUCT(($B$2:B29="PKOBP")*($E$2:E29="Sprzedaż")*$C$2:C29*$D$2:D29) -> 0 | AL29: =SUMPRODUCT(($B$2:B29="ING")*($E$2:E29="Sprzedaż")*$C$2:C29*$D$2:D29) -> 0 | AM29: =SUMPRODUCT(($B$2:B29="GETIN")*($E$2:E29="Sprzedaż")*$C$2:C29*$D$2:D29) -> 0 | AN29: =SUMPRODUCT(($B$2:B29="Handlowy")*($E$2:E29="Sprzedaż")*$C$2:C29*$D$2:D29) -> 0 | AO29: =SUMPRODUCT(($B$2:B29="SANTANDER")*($E$2:E29="Sprzedaż")*$C$2:C29*$D$2:D29) -> 0 | AP29: =SUMPRODUCT(($B$2:B29="MBANK")*($E$2:E29="Sprzedaż")*$C$2:C29*$D$2:D29) -> 0 | AQ29: =SUMPRODUCT(($B$2:B29="Alior")*($E$2:E29="Sprzedaż")*$C$2:C29*$D$2:D29) -> 0 | AR29: =SUMPRODUCT(($B$2:B29="Idea")*($E$2:E29="Sprzedaż")*$C$2:C29*$D$2:D29) -> 0 | AS29: 177.3 | AT29: 3582.9 | AU29: 938.58 | AV29: 5065.8 | AW29: 48.6 | AX29: 2066.67 | AY29: 10029.6 | AZ29: 10968.3 | BA29: 1226 | BB29: 464 | BC29: 1020.05 | BD29: -513.56 | BE29: =(VLOOKUP(A29,WIG_B[],2,TRUE)/VLOOKUP(A28,WIG_B[],2,TRUE)-1)*$L$1+BE28 -> 47727.50159 | BF29: 2400.911592 | BG29: =Portfel[[#This Row],[WIG.B]]-Portfel[[#This Row],[Portfel. S]] -> 46707.45159 | BH29: 8.6 | BI29: 126 | BJ29: 40.46 | BK29: 68.5 | BL29: -2.8 | BM29: 18.89 | BN29: 213 | BO29: 510.9 | BP29: 36.9 | BQ29: -0.4 | BR29: -0.9 | BS29: 54.6 | BT29: 17.76 | BU29: -45.6 | BV29: -0.9 | BW29: 7.98 | BX29: -127.5 | BY29: -413 | BZ29: -5.8 | CA29: -0.2
A30: 42773 | B30: Alior | C30: 61.99 | D30: -10 | E30: Kupno | F30: 0.07097919019 | G30: 0.01790611389 | H30: 0.175350863 | I30: Polityka | L30: 465832.4 | O30: =SUMIFS($D$2:D30,$B$2:B30,"MIL") -> -30 | P30: =SUMIFS($D$2:D30,$B$2:B30,"PEKAO") -> -30 | Q30: =SUMIFS($D$2:D30,$B$2:B30,"PKOBP") -> -30 | R30: =SUMIFS($D$2:D30,$B$2:B30,"ING") -> -30 | S30: =SUMIFS($D$2:D30,$B$2:B30,"GETIN") -> -30 | T30: =SUMIFS($D$2:D30,$B$2:B30,"Handlowy") -> -30 | U30: =SUMIFS($D$2:D30,$B$2:B30,"SANTANDER") -> -30 | V30: =SUMIFS($D$2:D30,$B$2:B30,"MBANK") -> -30 | W30: =SUMIFS($D$2:D30,$B$2:B30,"Alior") -> -30 | X30: =SUMIFS($D$2:D30,$B$2:B30,"Idea") -> -20 | Y30: =SUMPRODUCT(($B$2:B30="MIL")*($E$2:E30="Kupno")*$C$2:C30*$D$2:D30) -> -168.7 | Z30: =SUMPRODUCT(($B$2:B30="PEKAO")*($E$2:E30="Kupno")*$C$2:C30*$D$2:D30) -> -3456.9 | AA30: =SUMPRODUCT(($B$2:B30="PKOBP")*($E$2:E30="Kupno")*$C$2:C30*$D$2:D30) -> -898.12 | AB30: =SUMPRODUCT(($B$2:B30="ING")*($E$2:E30="Kupno")*$C$2:C30*$D$2:D30) -> -4997.3 | AC30: =SUMPRODUCT(($B$2:B30="GETIN")*($E$2:E30="Kupno")*$C$2:C30*$D$2:D30) -> -51.4 | AD30: =SUMPRODUCT(($B$2:B30="Handlowy")*($E$2:E30="Kupno")*$C$2:C30*$D$2:D30) -> -2047.78 | AE30: =SUMPRODUCT(($B$2:B30="SANTANDER")*($E$2:E30="Kupno")*$C$2:C30*$D$2:D30) -> -9816.6 | AF30: =SUMPRODUCT(($B$2:B30="MBANK")*($E$2:E30="Kupno")*$C$2:C30*$D$2:D30) -> -10457.4 | AG30: =SUMPRODUCT(($B$2:B30="Alior")*($E$2:E30="Kupno")*$C$2:C30*$D$2:D30) -> -1809 | AH30: =SUMPRODUCT(($B$2:B30="Idea")*($E$2:E30="Kupno")*$C$2:C30*$D$2:D30) -> -464.4 | AI30: =SUMPRODUCT(($B$2:B30="MIL")*($E$2:E30="Sprzedaż")*$C$2:C30*$D$2:D30) -> 0 | AJ30: =SUMPRODUCT(($B$2:B30="PEKAO")*($E$2:E30="Sprzedaż")*$C$2:C30*$D$2:D30) -> 0 | AK30: =SUMPRODUCT(($B$2:B30="PKOBP")*($E$2:E30="Sprzedaż")*$C$2:C30*$D$2:D30) -> 0 | AL30: =SUMPRODUCT(($B$2:B30="ING")*($E$2:E30="Sprzedaż")*$C$2:C30*$D$2:D30) -> 0 | AM30: =SUMPRODUCT(($B$2:B30="GETIN")*($E$2:E30="Sprzedaż")*$C$2:C30*$D$2:D30) -> 0 | AN30: =SUMPRODUCT(($B$2:B30="Handlowy")*($E$2:E30="Sprzedaż")*$C$2:C30*$D$2:D30) -> 0 | AO30: =SUMPRODUCT(($B$2:B30="SANTANDER")*($E$2:E30="Sprzedaż")*$C$2:C30*$D$2:D30) -> 0 | AP30: =SUMPRODUCT(($B$2:B30="MBANK")*($E$2:E30="Sprzedaż")*$C$2:C30*$D$2:D30) -> 0 | AQ30: =SUMPRODUCT(($B$2:B30="Alior")*($E$2:E30="Sprzedaż")*$C$2:C30*$D$2:D30) -> 0 | AR30: =SUMPRODUCT(($B$2:B30="Idea")*($E$2:E30="Sprzedaż")*$C$2:C30*$D$2:D30) -> 0 | AS30: 178.8 | AT30: 3543.9 | AU30: 926.73 | AV30: 5076 | AW30: 48.9 | AX30: 2075.97 | AY30: 10094.1 | AZ30: 11190.6 | BA30: 1859.7 | BB30: 463.2 | BC30: 1290.3 | BD30: 270.25 | BE30: =(VLOOKUP(A30,WIG_B[],2,TRUE)/VLOOKUP(A29,WIG_B[],2,TRUE)-1)*$L$1+BE29 -> 45927.47761 | BF30: -1800.023981 | BG30: =Portfel[[#This Row],[WIG.B]]-Portfel[[#This Row],[Portfel. S]] -> 44637.17761 | BH30: 10.1 | BI30: 87 | BJ30: 28.61 | BK30: 78.7 | BL30: -2.5 | BM30: 28.19 | BN30: 277.5 | BO30: 733.2 | BP30: 50.7 | BQ30: -1.2 | BR30: 1.5 | BS30: -39 | BT30: -11.85 | BU30: 10.2 | BV30: 0.3 | BW30: 9.3 | BX30: 64.5 | BY30: 222.3 | BZ30: 13.8 | CA30: -0.8
A31: 42774 | B31: Idea | C31: 23.19 | D31: -10 | E31: Kupno | F31: 0.02501078051 | G31: 0.08581285037 | H31: 0.04355325571 | I31: Sprawozdanie | L31: 465600.5 | O31: =SUMIFS($D$2:D31,$B$2:B31,"MIL") -> -30 | P31: =SUMIFS($D$2:D31,$B$2:B31,"PEKAO") -> -30 | Q31: =SUMIFS($D$2:D31,$B$2:B31,"PKOBP") -> -30 | R31: =SUMIFS($D$2:D31,$B$2:B31,"ING") -> -30 | S31: =SUMIFS($D$2:D31,$B$2:B31,"GETIN") -> -30 | T31: =SUMIFS($D$2:D31,$B$2:B31,"Handlowy") -> -30 | U31: =SUMIFS($D$2:D31,$B$2:B31,"SANTANDER") -> -30 | V31: =SUMIFS($D$2:D31,$B$2:B31,"MBANK") -> -30 | W31: =SUMIFS($D$2:D31,$B$2:B31,"Alior") -> -30 | X31: =SUMIFS($D$2:D31,$B$2:B31,"Idea") -> -30 | Y31: =SUMPRODUCT(($B$2:B31="MIL")*($E$2:E31="Kupno")*$C$2:C31*$D$2:D31) -> -168.7 | Z31: =SUMPRODUCT(($B$2:B31="PEKAO")*($E$2:E31="Kupno")*$C$2:C31*$D$2:D31) -> -3456.9 | AA31: =SUMPRODUCT(($B$2:B31="PKOBP")*($E$2:E31="Kupno")*$C$2:C31*$D$2:D31) -> -898.12 | AB31: =SUMPRODUCT(($B$2:B31="ING")*($E$2:E31="Kupno")*$C$2:C31*$D$2:D31) -> -4997.3 | AC31: =SUMPRODUCT(($B$2:B31="GETIN")*($E$2:E31="Kupno")*$C$2:C31*$D$2:D31) -> -51.4 | AD31: =SUMPRODUCT(($B$2:B31="Handlowy")*($E$2:E31="Kupno")*$C$2:C31*$D$2:D31) -> -2047.78 | AE31: =SUMPRODUCT(($B$2:B31="SANTANDER")*($E$2:E31="Kupno")*$C$2:C31*$D$2:D31) -> -9816.6 | AF31: =SUMPRODUCT(($B$2:B31="MBANK")*($E$2:E31="Kupno")*$C$2:C31*$D$2:D31) -> -10457.4 | AG31: =SUMPRODUCT(($B$2:B31="Alior")*($E$2:E31="Kupno")*$C$2:C31*$D$2:D31) -> -1809 | AH31: =SUMPRODUCT(($B$2:B31="Idea")*($E$2:E31="Kupno")*$C$2:C31*$D$2:D31) -> -696.3 | AI31: =SUMPRODUCT(($B$2:B31="MIL")*($E$2:E31="Sprzedaż")*$C$2:C31*$D$2:D31) -> 0 | AJ31: =SUMPRODUCT(($B$2:B31="PEKAO")*($E$2:E31="Sprzedaż")*$C$2:C31*$D$2:D31) -> 0 | AK31: =SUMPRODUCT(($B$2:B31="PKOBP")*($E$2:E31="Sprzedaż")*$C$2:C31*$D$2:D31) -> 0 | AL31: =SUMPRODUCT(($B$2:B31="ING")*($E$2:E31="Sprzedaż")*$C$2:C31*$D$2:D31) -> 0 | AM31: =SUMPRODUCT(($B$2:B31="GETIN")*($E$2:E31="Sprzedaż")*$C$2:C31*$D$2:D31) -> 0 | AN31: =SUMPRODUCT(($B$2:B31="Handlowy")*($E$2:E31="Sprzedaż")*$C$2:C31*$D$2:D31) -> 0 | AO31: =SUMPRODUCT(($B$2:B31="SANTANDER")*($E$2:E31="Sprzedaż")*$C$2:C31*$D$2:D31) -> 0 | AP31: =SUMPRODUCT(($B$2:B31="MBANK")*($E$2:E31="Sprzedaż")*$C$2:C31*$D$2:D31) -> 0 | AQ31: =SUMPRODUCT(($B$2:B31="Alior")*($E$2:E31="Sprzedaż")*$C$2:C31*$D$2:D31) -> 0 | AR31: =SUMPRODUCT(($B$2:B31="Idea")*($E$2:E31="Sprzedaż")*$C$2:C31*$D$2:D31) -> 0 | AS31: 179.7 | AT31: 3543.9 | AU31: 922.29 | AV31: 5155.8 | AW31: 50.1 | AX31: 2053.35 | AY31: 9951 | AZ31: 11739 | BA31: 1868.1 | BB31: 695.7 | BC31: 1759.44 | BD31: 469.14 | BE31: =(VLOOKUP(A31,WIG_B[],2,TRUE)/VLOOKUP(A30,WIG_B[],2,TRUE)-1)*$L$1+BE30 -> 46321.11504 | BF31: 393.6374273 | BG31: =Portfel[[#This Row],[WIG.B]]-Portfel[[#This Row],[Portfel. S]] -> 44561.67504 | BH31: 11 | BI31: 87 | BJ31: 24.17 | BK31: 158.5 | BL31: -1.3 | BM31: 5.57 | BN31: 134.4 | BO31: 1281.6 | BP31: 59.1 | BQ31: -0.6 | BR31: 0.9 | BS31: 0 | BT31: -4.44 | BU31: 79.8 | BV31: 1.2 | BW31: -22.62 | BX31: -143.1 | BY31: 548.4 | BZ31: 8.4 | CA31: 0.6
A32: 42775 | B32: MIL | C32: 6.28 | D32: -10 | E32: Kupno | F32: 0.1210191083 | G32: 0.05573248408 | H32: 0.148089172 | I32: Makro | L32: 465537.7 | O32: =SUMIFS($D$2:D32,$B$2:B32,"MIL") -> -40 | P32: =SUMIFS($D$2:D32,$B$2:B32,"PEKAO") -> -30 | Q32: =SUMIFS($D$2:D32,$B$2:B32,"PKOBP") -> -30 | R32: =SUMIFS($D$2:D32,$B$2:B32,"ING") -> -30 | S32: =SUMIFS($D$2:D32,$B$2:B32,"GETIN") -> -30 | T32: =SUMIFS($D$2:D32,$B$2:B32,"Handlowy") -> -30 | U32: =SUMIFS($D$2:D32,$B$2:B32,"SANTANDER") -> -30 | V32: =SUMIFS($D$2:D32,$B$2:B32,"MBANK") -> -30 | W32: =SUMIFS($D$2:D32,$B$2:B32,"Alior") -> -30 | X32: =SUMIFS($D$2:D32,$B$2:B32,"Idea") -> -30 | Y32: =SUMPRODUCT(($B$2:B32="MIL")*($E$2:E32="Kupno")*$C$2:C32*$D$2:D32) -> -231.5 | Z32: =SUMPRODUCT(($B$2:B32="PEKAO")*($E$2:E32="Kupno")*$C$2:C32*$D$2:D32) -> -3456.9 | AA32: =SUMPRODUCT(($B$2:B32="PKOBP")*($E$2:E32="Kupno")*$C$2:C32*$D$2:D32) -> -898.12 | AB32: =SUMPRODUCT(($B$2:B32="ING")*($E$2:E32="Kupno")*$C$2:C32*$D$2:D32) -> -4997.3 | AC32: =SUMPRODUCT(($B$2:B32="GETIN")*($E$2:E32="Kupno")*$C$2:C32*$D$2:D32) -> -51.4 | AD32: =SUMPRODUCT(($B$2:B32="Handlowy")*($E$2:E32="Kupno")*$C$2:C32*$D$2:D32) -> -2047.78 | AE32: =SUMPRODUCT(($B$2:B32="SANTANDER")*($E$2:E32="Kupno")*$C$2:C32*$D$2:D32) -> -9816.6 | AF32: =SUMPRODUCT(($B$2:B32="MBANK")*($E$2:E32="Kupno")*$C$2:C32*$D$2:D32) -> -10457.4 | AG32: =SUMPRODUCT(($B$2:B32="Alior")*($E$2:E32="Kupno")*$C$2:C32*$D$2:D32) -> -1809 | AH32: =SUMPRODUCT(($B$2:B32="Idea")*($E$2:E32="Kupno")*$C$2:C32*$D$2:D32) -> -696.3 | AI32: =SUMPRODUCT(($B$2:B32="MIL")*($E$2:E32="Sprzedaż")*$C$2:C32*$D$2:D32) -> 0 | AJ32: =SUMPRODUCT(($B$2:B32="PEKAO")*($E$2:E32="Sprzedaż")*$C$2:C32*$D$2:D32) -> 0 | AK32: =SUMPRODUCT(($B$2:B32="PKOBP")*($E$2:E32="Sprzedaż")*$C$2:C32*$D$2:D32) -> 0 | AL32: =SUMPRODUCT(($B$2:B32="ING")*($E$2:E32="Sprzedaż")*$C$2:C32*$D$2:D32) -> 0 | AM32: =SUMPRODUCT(($B$2:B32="GETIN")*($E$2:E32="Sprzedaż")*$C$2:C32*$D$2:D32) -> 0 | AN32: =SUMPRODUCT(($B$2:B32="Handlowy")*($E$2:E32="Sprzedaż")*$C$2:C32*$D$2:D32) -> 0 | AO32: =SUMPRODUCT(($B$2:B32="SANTANDER")*($E$2:E32="Sprzedaż")*$C$2:C32*$D$2:D32) -> 0 | AP32: =SUMPRODUCT(($B$2:B32="MBANK")*($E$2:E32="Sprzedaż")*$C$2:C32*$D$2:D32) -> 0 | AQ32: =SUMPRODUCT(($B$2:B32="Alior")*($E$2:E32="Sprzedaż")*$C$2:C32*$D$2:D32) -> 0 | AR32: =SUMPRODUCT(($B$2:B32="Idea")*($E$2:E32="Sprzedaż")*$C$2:C32*$D$2:D32) -> 0 | AS32: 251.2 | AT32: 3641.7 | AU32: 955.17 | AV32: 5164.5 | AW32: 51.9 | AX32: 2115.96 | AY32: 10072.2 | AZ32: 12302.1 | BA32: 1991.7 | BB32: 696 | BC32: 2780.13 | BD32: 1020.69 | BE32: =(VLOOKUP(A32,WIG_B[],2,TRUE)/VLOOKUP(A31,WIG_B[],2,TRUE)-1)*$L$1+BE31 -> 61931.08455 | BF32: 15609.96952 | BG32: =Portfel[[#This Row],[WIG.B]]-Portfel[[#This Row],[Portfel. S]] -> 59150.95455 | BH32: 19.7 | BI32: 184.8 | BJ32: 57.05 | BK32: 167.2 | BL32: 0.5 | BM32: 68.18 | BN32: 255.6 | BO32: 1844.7 | BP32: 182.7 | BQ32: -0.3 | BR32: 8.7 | BS32: 97.8 | BT32: 32.88 | BU32: 8.7 | BV32: 1.8 | BW32: 62.61 | BX32: 121.2 | BY32: 563.1 | BZ32: 123.6 | CA32: 0.3
A33: 42776 | B33: PEKAO | C33: 123.34 | D33: -10 | E33: Kupno | F33: 0 | G33: -0.04791632885 | H33: 0.0112696611 | I33: Polityka | L33: 464304.3 | O33: =SUMIFS($D$2:D33,$B$2:B33,"MIL") -> -40 | P33: =SUMIFS($D$2:D33,$B$2:B33,"PEKAO") -> -40 | Q33: =SUMIFS($D$2:D33,$B$2:B33,"PKOBP") -> -30 | R33: =SUMIFS($D$2:D33,$B$2:B33,"ING") -> -30 | S33: =SUMIFS($D$2:D33,$B$2:B33,"GETIN") -> -30 | T33: =SUMIFS($D$2:D33,$B$2:B33,"Handlowy") -> -30 | U33: =SUMIFS($D$2:D33,$B$2:B33,"SANTANDER") -> -30 | V33: =SUMIFS($D$2:D33,$B$2:B33,"MBANK") -> -30 | W33: =SUMIFS($D$2:D33,$B$2:B33,"Alior") -> -30 | X33: =SUMIFS($D$2:D33,$B$2:B33,"Idea") -> -30 | Y33: =SUMPRODUCT(($B$2:B33="MIL")*($E$2:E33="Kupno")*$C$2:C33*$D$2:D33) -> -231.5 | Z33: =SUMPRODUCT(($B$2:B33="PEKAO")*($E$2:E33="Kupno")*$C$2:C33*$D$2:D33) -> -4690.3 | AA33: =SUMPRODUCT(($B$2:B33="PKOBP")*($E$2:E33="Kupno")*$C$2:C33*$D$2:D33) -> -898.12 | AB33: =SUMPRODUCT(($B$2:B33="ING")*($E$2:E33="Kupno")*$C$2:C33*$D$2:D33) -> -4997.3 | AC33: =SUMPRODUCT(($B$2:B33="GETIN")*($E$2:E33="Kupno")*$C$2:C33*$D$2:D33) -> -51.4 | AD33: =SUMPRODUCT(($B$2:B33="Handlowy")*($E$2:E33="Kupno")*$C$2:C33*$D$2:D33) -> -2047.78 | AE33: =SUMPRODUCT(($B$2:B33="SANTANDER")*($E$2:E33="Kupno")*$C$2:C33*$D$2:D33) -> -9816.6 | AF33: =SUMPRODUCT(($B$2:B33="MBANK")*($E$2:E33="Kupno")*$C$2:C33*$D$2:D33) -> -10457.4 | AG33: =SUMPRODUCT(($B$2:B33="Alior")*($E$2:E33="Kupno")*$C$2:C33*$D$2:D33) -> -1809 | AH33: =SUMPRODUCT(($B$2:B33="Idea")*($E$2:E33="Kupno")*$C$2:C33*$D$2:D33) -> -696.3 | AI33: =SUMPRODUCT(($B$2:B33="MIL")*($E$2:E33="Sprzedaż")*$C$2:C33*$D$2:D33) -> 0 | AJ33: =SUMPRODUCT(($B$2:B33="PEKAO")*($E$2:E33="Sprzedaż")*$C$2:C33*$D$2:D33) -> 0 | AK33: =SUMPRODUCT(($B$2:B33="PKOBP")*($E$2:E33="Sprzedaż")*$C$2:C33*$D$2:D33) -> 0 | AL33: =SUMPRODUCT(($B$2:B33="ING")*($E$2:E33="Sprzedaż")*$C$2:C33*$D$2:D33) -> 0 | AM33: =SUMPRODUCT(($B$2:B33="GETIN")*($E$2:E33="Sprzedaż")*$C$2:C33*$D$2:D33) -> 0 | AN33: =SUMPRODUCT(($B$2:B33="Handlowy")*($E$2:E33="Sprzedaż")*$C$2:C33*$D$2:D33) -> 0 | AO33: =SUMPRODUCT(($B$2:B33="SANTANDER")*($E$2:E33="Sprzedaż")*$C$2:C33*$D$2:D33) -> 0 | AP33: =SUMPRODUCT(($B$2:B33="MBANK")*($E$2:E33="Sprzedaż")*$C$2:C33*$D$2:D33) -> 0 | AQ33: =SUMPRODUCT(($B$2:B33="Alior")*($E$2:E33="Sprzedaż")*$C$2:C33*$D$2:D33) -> 0 | AR33: =SUMPRODUCT(($B$2:B33="Idea")*($E$2:E33="Sprzedaż")*$C$2:C33*$D$2:D33) -> 0 | AS33: 281.6 | AT33: 4933.6 | AU33: 985.95 | AV33: 5202.9 | AW33: 60.9 | AX33: 2194.53 | AY33: 10163.1 | AZ33: 12647.4 | BA33: 1991.7 | BB33: 713.1 | BC33: 3479.08 | BD33: 698.95 | BE33: =(VLOOKUP(A33,WIG_B[],2,TRUE)/VLOOKUP(A32,WIG_B[],2,TRUE)-1)*$L$1+BE32 -> 75086.20654 | BF33: 13155.12198 | BG33: =Portfel[[#This Row],[WIG.B]]-Portfel[[#This Row],[Portfel. S]] -> 71607.12654 | BH33: 50.1 | BI33: 243.3 | BJ33: 87.83 | BK33: 205.6 | BL33: 9.5 | BM33: 146.75 | BN33: 346.5 | BO33: 2190 | BP33: 182.7 | BQ33: 16.8 | BR33: 30.4 | BS33: 58.5 | BT33: 30.78 | BU33: 38.4 | BV33: 9 | BW33: 78.57 | BX33: 90.9 | BY33: 345.3 | BZ33: 0 | CA33: 17.1
A34: 42779 | B34: PKOBP | C34: 33.063 | D34: -10 | E34: Kupno | F34: 0.01847987176 | G34: -0.001512264465 | H34: 0.06835435381 | I34: Sprawozdanie | L34: 463973.67 | O34: =SUMIFS($D$2:D34,$B$2:B34,"MIL") -> -40 | P34: =SUMIFS($D$2:D34,$B$2:B34,"PEKAO") -> -40 | Q34: =SUMIFS($D$2:D34,$B$2:B34,"PKOBP") -> -40 | R34: =SUMIFS($D$2:D34,$B$2:B34,"ING") -> -30 | S34: =SUMIFS($D$2:D34,$B$2:B34,"GETIN") -> -30 | T34: =SUMIFS($D$2:D34,$B$2:B34,"Handlowy") -> -30 | U34: =SUMIFS($D$2:D34,$B$2:B34,"SANTANDER") -> -30 | V34: =SUMIFS($D$2:D34,$B$2:B34,"MBANK") -> -30 | W34: =SUMIFS($D$2:D34,$B$2:B34,"Alior") -> -30 | X34: =SUMIFS($D$2:D34,$B$2:B34,"Idea") -> -30 | Y34: =SUMPRODUCT(($B$2:B34="MIL")*($E$2:E34="Kupno")*$C$2:C34*$D$2:D34) -> -231.5 | Z34: =SUMPRODUCT(($B$2:B34="PEKAO")*($E$2:E34="Kupno")*$C$2:C34*$D$2:D34) -> -4690.3 | AA34: =SUMPRODUCT(($B$2:B34="PKOBP")*($E$2:E34="Kupno")*$C$2:C34*$D$2:D34) -> -1228.75 | AB34: =SUMPRODUCT(($B$2:B34="ING")*($E$2:E34="Kupno")*$C$2:C34*$D$2:D34) -> -4997.3 | AC34: =SUMPRODUCT(($B$2:B34="GETIN")*($E$2:E34="Kupno")*$C$2:C34*$D$2:D34) -> -51.4 | AD34: =SUMPRODUCT(($B$2:B34="Handlowy")*($E$2:E34="Kupno")*$C$2:C34*$D$2:D34) -> -2047.78 | AE34: =SUMPRODUCT(($B$2:B34="SANTANDER")*($E$2:E34="Kupno")*$C$2:C34*$D$2:D34) -> -9816.6 | AF34: =SUMPRODUCT(($B$2:B34="MBANK")*($E$2:E34="Kupno")*$C$2:C34*$D$2:D34) -> -10457.4 | AG34: =SUMPRODUCT(($B$2:B34="Alior")*($E$2:E34="Kupno")*$C$2:C34*$D$2:D34) -> -1809 | AH34: =SUMPRODUCT(($B$2:B34="Idea")*($E$2:E34="Kupno")*$C$2:C34*$D$2:D34) -> -696.3 | AI34: =SUMPRODUCT(($B$2:B34="MIL")*($E$2:E34="Sprzedaż")*$C$2:C34*$D$2:D34) -> 0 | AJ34: =SUMPRODUCT(($B$2:B34="PEKAO")*($E$2:E34="Sprzedaż")*$C$2:C34*$D$2:D34) -> 0 | AK34: =SUMPRODUCT(($B$2:B34="PKOBP")*($E$2:E34="Sprzedaż")*$C$2:C34*$D$2:D34) -> 0 | AL34: =SUMPRODUCT(($B$2:B34="ING")*($E$2:E34="Sprzedaż")*$C$2:C34*$D$2:D34) -> 0 | AM34: =SUMPRODUCT(($B$2:B34="GETIN")*($E$2:E34="Sprzedaż")*$C$2:C34*$D$2:D34) -> 0 | AN34: =SUMPRODUCT(($B$2:B34="Handlowy")*($E$2:E34="Sprzedaż")*$C$2:C34*$D$2:D34) -> 0 | AO34: =SUMPRODUCT(($B$2:B34="SANTANDER")*($E$2:E34="Sprzedaż")*$C$2:C34*$D$2:D34) -> 0 | AP34: =SUMPRODUCT(($B$2:B34="MBANK")*($E$2:E34="Sprzedaż")*$C$2:C34*$D$2:D34) -> 0 | AQ34: =SUMPRODUCT(($B$2:B34="Alior")*($E$2:E34="Sprzedaż")*$C$2:C34*$D$2:D34) -> 0 | AR34: =SUMPRODUCT(($B$2:B34="Idea")*($E$2:E34="Sprzedaż")*$C$2:C34*$D$2:D34) -> 0 | AS34: 279.6 | AT34: 4951.2 | AU34: 1322.52 | AV34: 5161.5 | AW34: 62.1 | AX34: 2170.53 | AY34: 10248 | AZ34: 12360 | BA34: 2022 | BB34: 750 | BC34: 3301.12 | BD34: -177.96 | BE34: =(VLOOKUP(A34,WIG_B[],2,TRUE)/VLOOKUP(A33,WIG_B[],2,TRUE)-1)*$L$1+BE33 -> 76464.63516 | BF34: 1378.428619 | BG34: =Portfel[[#This Row],[WIG.B]]-Portfel[[#This Row],[Portfel. S]] -> 73163.51516 | BH34: 48.1 | BI34: 260.9 | BJ34: 93.77 | BK34: 164.2 | BL34: 10.7 | BM34: 122.75 | BN34: 431.4 | BO34: 1902.6 | BP34: 213 | BQ34: 53.7 | BR34: -2 | BS34: 17.6 | BT34: 5.94 | BU34: -41.4 | BV34: 1.2 | BW34: -24 | BX34: 84.9 | BY34: -287.4 | BZ34: 30.3 | CA34: 36.9
A35: 42780 | B35: ING | C35: 172.2 | D35: -10 | E35: Kupno | F35: 0.004297328688 | G35: 0.02259001161 | H35: 0.04541231127 | I35: Makro | L35: 462251.67 | O35: =SUMIFS($D$2:D35,$B$2:B35,"MIL") -> -40 | P35: =SUMIFS($D$2:D35,$B$2:B35,"PEKAO") -> -40 | Q35: =SUMIFS($D$2:D35,$B$2:B35,"PKOBP") -> -40 | R35: =SUMIFS($D$2:D35,$B$2:B35,"ING") -> -40 | S35: =SUMIFS($D$2:D35,$B$2:B35,"GETIN") -> -30 | T35: =SUMIFS($D$2:D35,$B$2:B35,"Handlowy") -> -30 | U35: =SUMIFS($D$2:D35,$B$2:B35,"SANTANDER") -> -30 | V35: =SUMIFS($D$2:D35,$B$2:B35,"MBANK") -> -30 | W35: =SUMIFS($D$2:D35,$B$2:B35,"Alior") -> -30 | X35: =SUMIFS($D$2:D35,$B$2:B35,"Idea") -> -30 | Y35: =SUMPRODUCT(($B$2:B35="MIL")*($E$2:E35="Kupno")*$C$2:C35*$D$2:D35) -> -231.5 | Z35: =SUMPRODUCT(($B$2:B35="PEKAO")*($E$2:E35="Kupno")*$C$2:C35*$D$2:D35) -> -4690.3 | AA35: =SUMPRODUCT(($B$2:B35="PKOBP")*($E$2:E35="Kupno")*$C$2:C35*$D$2:D35) -> -1228.75 | AB35: =SUMPRODUCT(($B$2:B35="ING")*($E$2:E35="Kupno")*$C$2:C35*$D$2:D35) -> -6719.3 | AC35: =SUMPRODUCT(($B$2:B35="GETIN")*($E$2:E35="Kupno")*$C$2:C35*$D$2:D35) -> -51.4 | AD35: =SUMPRODUCT(($B$2:B35="Handlowy")*($E$2:E35="Kupno")*$C$2:C35*$D$2:D35) -> -2047.78 | AE35: =SUMPRODUCT(($B$2:B35="SANTANDER")*($E$2:E35="Kupno")*$C$2:C35*$D$2:D35) -> -9816.6 | AF35: =SUMPRODUCT(($B$2:B35="MBANK")*($E$2:E35="Kupno")*$C$2:C35*$D$2:D35) -> -10457.4 | AG35: =SUMPRODUCT(($B$2:B35="Alior")*($E$2:E35="Kupno")*$C$2:C35*$D$2:D35) -> -1809 | AH35: =SUMPRODUCT(($B$2:B35="Idea")*($E$2:E35="Kupno")*$C$2:C35*$D$2:D35) -> -696.3 | AI35: =SUMPRODUCT(($B$2:B35="MIL")*($E$2:E35="Sprzedaż")*$C$2:C35*$D$2:D35) -> 0 | AJ35: =SUMPRODUCT(($B$2:B35="PEKAO")*($E$2:E35="Sprzedaż")*$C$2:C35*$D$2:D35) -> 0 | AK35: =SUMPRODUCT(($B$2:B35="PKOBP")*($E$2:E35="Sprzedaż")*$C$2:C35*$D$2:D35) -> 0 | AL35: =SUMPRODUCT(($B$2:B35="ING")*($E$2:E35="Sprzedaż")*$C$2:C35*$D$2:D35) -> 0 | AM35: =SUMPRODUCT(($B$2:B35="GETIN")*($E$2:E35="Sprzedaż")*$C$2:C35*$D$2:D35) -> 0 | AN35: =SUMPRODUCT(($B$2:B35="Handlowy")*($E$2:E35="Sprzedaż")*$C$2:C35*$D$2:D35) -> 0 | AO35: =SUMPRODUCT(($B$2:B35="SANTANDER")*($E$2:E35="Sprzedaż")*$C$2:C35*$D$2:D35) -> 0 | AP35: =SUMPRODUCT(($B$2:B35="MBANK")*($E$2:E35="Sprzedaż")*$C$2:C35*$D$2:D35) -> 0 | AQ35: =SUMPRODUCT(($B$2:B35="Alior")*($E$2:E35="Sprzedaż")*$C$2:C35*$D$2:D35) -> 0 | AR35: =SUMPRODUCT(($B$2:B35="Idea")*($E$2:E35="Sprzedaż")*$C$2:C35*$D$2:D35) -> 0 | AS35: 273.6 | AT35: 4968.4 | AU35: 1322.52 | AV35: 6888 | AW35: 60.6 | AX35: 2177.19 | AY35: 10394.1 | AZ35: 12173.1 | BA35: 1980 | BB35: 750 | BC35: 3239.18 | BD35: -61.94 | BE35: =(VLOOKUP(A35,WIG_B[],2,TRUE)/VLOOKUP(A34,WIG_B[],2,TRUE)-1)*$L$1+BE34 -> 76014.15765 | BF35: -450.4775062 | BG35: =Portfel[[#This Row],[WIG.B]]-Portfel[[#This Row],[Portfel. S]] -> 72774.97765 | BH35: 42.1 | BI35: 278.1 | BJ35: 93.77 | BK35: 168.7 | BL35: 9.2 | BM35: 129.41 | BN35: 577.5 | BO35: 1715.7 | BP35: 171 | BQ35: 53.7 | BR35: -6 | BS35: 17.2 | BT35: 0 | BU35: 4.5 | BV35: -1.5 | BW35: 6.66 | BX35: 146.1 | BY35: -186.9 | BZ35: -42 | CA35: 0
A36: 42781 | B36: GETIN | C36: 2.03 | D36: -10 | E36: Kupno | F36: -0.03448275862 | G36: 0.0197044335 | H36: -0.07881773399 | I36: Polityka | L36: 462231.37 | O36: =SUMIFS($D$2:D36,$B$2:B36,"MIL") -> -40 | P36: =SUMIFS($D$2:D36,$B$2:B36,"PEKAO") -> -40 | Q36: =SUMIFS($D$2:D36,$B$2:B36,"PKOBP") -> -40 | R36: =SUMIFS($D$2:D36,$B$2:B36,"ING") -> -40 | S36: =SUMIFS($D$2:D36,$B$2:B36,"GETIN") -> -40 | T36: =SUMIFS($D$2:D36,$B$2:B36,"Handlowy") -> -30 | U36: =SUMIFS($D$2:D36,$B$2:B36,"SANTANDER") -> -30 | V36: =SUMIFS($D$2:D36,$B$2:B36,"MBANK") -> -30 | W36: =SUMIFS($D$2:D36,$B$2:B36,"Alior") -> -30 | X36: =SUMIFS($D$2:D36,$B$2:B36,"Idea") -> -30 | Y36: =SUMPRODUCT(($B$2:B36="MIL")*($E$2:E36="Kupno")*$C$2:C36*$D$2:D36) -> -231.5 | Z36: =SUMPRODUCT(($B$2:B36="PEKAO")*($E$2:E36="Kupno")*$C$2:C36*$D$2:D36) -> -4690.3 | AA36: =SUMPRODUCT(($B$2:B36="PKOBP")*($E$2:E36="Kupno")*$C$2:C36*$D$2:D36) -> -1228.75 | AB36: =SUMPRODUCT(($B$2:B36="ING")*($E$2:E36="Kupno")*$C$2:C36*$D$2:D36) -> -6719.3 | AC36: =SUMPRODUCT(($B$2:B36="GETIN")*($E$2:E36="Kupno")*$C$2:C36*$D$2:D36) -> -71.7 | AD36: =SUMPRODUCT(($B$2:B36="Handlowy")*($E$2:E36="Kupno")*$C$2:C36*$D$2:D36) -> -2047.78 | AE36: =SUMPRODUCT(($B$2:B36="SANTANDER")*($E$2:E36="Kupno")*$C$2:C36*$D$2:D36) -> -9816.6 | AF36: =SUMPRODUCT(($B$2:B36="MBANK")*($E$2:E36="Kupno")*$C$2:C36*$D$2:D36) -> -10457.4 | AG36: =SUMPRODUCT(($B$2:B36="Alior")*($E$2:E36="Kupno")*$C$2:C36*$D$2:D36) -> -1809 | AH36: =SUMPRODUCT(($B$2:B36="Idea")*($E$2:E36="Kupno")*$C$2:C36*$D$2:D36) -> -696.3 | AI36: =SUMPRODUCT(($B$2:B36="MIL")*($E$2:E36="Sprzedaż")*$C$2:C36*$D$2:D36) -> 0 | AJ36: =SUMPRODUCT(($B$2:B36="PEKAO")*($E$2:E36="Sprzedaż")*$C$2:C36*$D$2:D36) -> 0 | AK36: =SUMPRODUCT(($B$2:B36="PKOBP")*($E$2:E36="Sprzedaż")*$C$2:C36*$D$2:D36) -> 0 | AL36: =SUMPRODUCT(($B$2:B36="ING")*($E$2:E36="Sprzedaż")*$C$2:C36*$D$2:D36) -> 0 | AM36: =SUMPRODUCT(($B$2:B36="GETIN")*($E$2:E36="Sprzedaż")*$C$2:C36*$D$2:D36) -> 0 | AN36: =SUMPRODUCT(($B$2:B36="Handlowy")*($E$2:E36="Sprzedaż")*$C$2:C36*$D$2:D36) -> 0 | AO36: =SUMPRODUCT(($B$2:B36="SANTANDER")*($E$2:E36="Sprzedaż")*$C$2:C36*$D$2:D36) -> 0 | AP36: =SUMPRODUCT(($B$2:B36="MBANK")*($E$2:E36="Sprzedaż")*$C$2:C36*$D$2:D36) -> 0 | AQ36: =SUMPRODUCT(($B$2:B36="Alior")*($E$2:E36="Sprzedaż")*$C$2:C36*$D$2:D36) -> 0 | AR36: =SUMPRODUCT(($B$2:B36="Idea")*($E$2:E36="Sprzedaż")*$C$2:C36*$D$2:D36) -> 0 | AS36: 273.6 | AT36: 4996 | AU36: 1365.12 | AV36: 6815.2 | AW36: 81.2 | AX36: 2183.85 | AY36: 10323.9 | AZ36: 11962.8 | BA36: 1947 | BB36: 765.3 | BC36: 2945.34 | BD36: -293.84 | BE36: =(VLOOKUP(A36,WIG_B[],2,TRUE)/VLOOKUP(A35,WIG_B[],2,TRUE)-1)*$L$1+BE35 -> 80166.38693 | BF36: 4152.229278 | BG36: =Portfel[[#This Row],[WIG.B]]-Portfel[[#This Row],[Portfel. S]] -> 77221.04693 | BH36: 42.1 | BI36: 305.7 | BJ36: 136.37 | BK36: 95.9 | BL36: 9.5 | BM36: 136.07 | BN36: 507.3 | BO36: 1505.4 | BP36: 138 | BQ36: 69 | BR36: 0 | BS36: 27.6 | BT36: 42.6 | BU36: -72.8 | BV36: 0.3 | BW36: 6.66 | BX36: -70.2 | BY36: -210.3 | BZ36: -33 | CA36: 15.3
A37: 42782 | B37: Handlowy | C37: 71.907 | D37: -10 | E37: Kupno | F37: -0.01852392674 | G37: 0.01234928449 | H37: -0.1001154269 | I37: Sprawozdanie | L37: 461512.3 | O37: =SUMIFS($D$2:D37,$B$2:B37,"MIL") -> -40 | P37: =SUMIFS($D$2:D37,$B$2:B37,"PEKAO") -> -40 | Q37: =SUMIFS($D$2:D37,$B$2:B37,"PKOBP") -> -40 | R37: =SUMIFS($D$2:D37,$B$2:B37,"ING") -> -40 | S37: =SUMIFS($D$2:D37,$B$2:B37,"GETIN") -> -40 | T37: =SUMIFS($D$2:D37,$B$2:B37,"Handlowy") -> -40 | U37: =SUMIFS($D$2:D37,$B$2:B37,"SANTANDER") -> -30 | V37: =SUMIFS($D$2:D37,$B$2:B37,"MBANK") -> -30 | W37: =SUMIFS($D$2:D37,$B$2:B37,"Alior") -> -30 | X37: =SUMIFS($D$2:D37,$B$2:B37,"Idea") -> -30 | Y37: =SUMPRODUCT(($B$2:B37="MIL")*($E$2:E37="Kupno")*$C$2:C37*$D$2:D37) -> -231.5 | Z37: =SUMPRODUCT(($B$2:B37="PEKAO")*($E$2:E37="Kupno")*$C$2:C37*$D$2:D37) -> -4690.3 | AA37: =SUMPRODUCT(($B$2:B37="PKOBP")*($E$2:E37="Kupno")*$C$2:C37*$D$2:D37) -> -1228.75 | AB37: =SUMPRODUCT(($B$2:B37="ING")*($E$2:E37="Kupno")*$C$2:C37*$D$2:D37) -> -6719.3 | AC37: =SUMPRODUCT(($B$2:B37="GETIN")*($E$2:E37="Kupno")*$C$2:C37*$D$2:D37) -> -71.7 | AD37: =SUMPRODUCT(($B$2:B37="Handlowy")*($E$2:E37="Kupno")*$C$2:C37*$D$2:D37) -> -2766.85 | AE37: =SUMPRODUCT(($B$2:B37="SANTANDER")*($E$2:E37="Kupno")*$C$2:C37*$D$2:D37) -> -9816.6 | AF37: =SUMPRODUCT(($B$2:B37="MBANK")*($E$2:E37="Kupno")*$C$2:C37*$D$2:D37) -> -10457.4 | AG37: =SUMPRODUCT(($B$2:B37="Alior")*($E$2:E37="Kupno")*$C$2:C37*$D$2:D37) -> -1809 | AH37: =SUMPRODUCT(($B$2:B37="Idea")*($E$2:E37="Kupno")*$C$2:C37*$D$2:D37) -> -696.3 | AI37: =SUMPRODUCT(($B$2:B37="MIL")*($E$2:E37="Sprzedaż")*$C$2:C37*$D$2:D37) -> 0 | AJ37: =SUMPRODUCT(($B$2:B37="PEKAO")*($E$2:E37="Sprzedaż")*$C$2:C37*$D$2:D37) -> 0 | AK37: =SUMPRODUCT(($B$2:B37="PKOBP")*($E$2:E37="Sprzedaż")*$C$2:C37*$D$2:D37) -> 0 | AL37: =SUMPRODUCT(($B$2:B37="ING")*($E$2:E37="Sprzedaż")*$C$2:C37*$D$2:D37) -> 0 | AM37: =SUMPRODUCT(($B$2:B37="GETIN")*($E$2:E37="Sprzedaż")*$C$2:C37*$D$2:D37) -> 0 | AN37: =SUMPRODUCT(($B$2:B37="Handlowy")*($E$2:E37="Sprzedaż")*$C$2:C37*$D$2:D37) -> 0 | AO37: =SUMPRODUCT(($B$2:B37="SANTANDER")*($E$2:E37="Sprzedaż")*$C$2:C37*$D$2:D37) -> 0 | AP37: =SUMPRODUCT(($B$2:B37="MBANK")*($E$2:E37="Sprzedaż")*$C$2:C37*$D$2:D37) -> 0 | AQ37: =SUMPRODUCT(($B$2:B37="Alior")*($E$2:E37="Sprzedaż")*$C$2:C37*$D$2:D37) -> 0 | AR37: =SUMPRODUCT(($B$2:B37="Idea")*($E$2:E37="Sprzedaż")*$C$2:C37*$D$2:D37) -> 0 | AS37: 278 | AT37: 5038 | AU37: 1379.36 | AV37: 6950.8 | AW37: 79.6 | AX37: 2876.28 | AY37: 10349.1 | AZ37: 12090.3 | BA37: 1950 | BB37: 772.2 | BC37: 3275.94 | BD37: 330.6 | BE37: =(VLOOKUP(A37,WIG_B[],2,TRUE)/VLOOKUP(A36,WIG_B[],2,TRUE)-1)*$L$1+BE36 -> 84147.557 | BF37: 3981.170068 | BG37: =Portfel[[#This Row],[WIG.B]]-Portfel[[#This Row],[Portfel. S]] -> 80871.617 | BH37: 46.5 | BI37: 347.7 | BJ37: 150.61 | BK37: 231.5 | BL37: 7.9 | BM37: 109.43 | BN37: 532.5 | BO37: 1632.9 | BP37: 141 | BQ37: 75.9 | BR37: 4.4 | BS37: 42 | BT37: 14.24 | BU37: 135.6 | BV37: -1.6 | BW37: -26.64 | BX37: 25.2 | BY37: 127.5 | BZ37: 3 | CA37: 6.9
A38: 42783 | B38: SANTANDER | C38: 346.33 | D38: -10 | E38: Kupno | F38: 0 | G38: -0.01536107181 | H38: -0.01507232986 | I38: Makro | L38: 458049 | O38: =SUMIFS($D$2:D38,$B$2:B38,"MIL") -> -40 | P38: =SUMIFS($D$2:D38,$B$2:B38,"PEKAO") -> -40 | Q38: =SUMIFS($D$2:D38,$B$2:B38,"PKOBP") -> -40 | R38: =SUMIFS($D$2:D38,$B$2:B38,"ING") -> -40 | S38: =SUMIFS($D$2:D38,$B$2:B38,"GETIN") -> -40 | T38: =SUMIFS($D$2:D38,$B$2:B38,"Handlowy") -> -40 | U38: =SUMIFS($D$2:D38,$B$2:B38,"SANTANDER") -> -40 | V38: =SUMIFS($D$2:D38,$B$2:B38,"MBANK") -> -30 | W38: =SUMIFS($D$2:D38,$B$2:B38,"Alior") -> -30 | X38: =SUMIFS($D$2:D38,$B$2:B38,"Idea") -> -30 | Y38: =SUMPRODUCT(($B$2:B38="MIL")*($E$2:E38="Kupno")*$C$2:C38*$D$2:D38) -> -231.5 | Z38: =SUMPRODUCT(($B$2:B38="PEKAO")*($E$2:E38="Kupno")*$C$2:C38*$D$2:D38) -> -4690.3 | AA38: =SUMPRODUCT(($B$2:B38="PKOBP")*($E$2:E38="Kupno")*$C$2:C38*$D$2:D38) -> -1228.75 | AB38: =SUMPRODUCT(($B$2:B38="ING")*($E$2:E38="Kupno")*$C$2:C38*$D$2:D38) -> -6719.3 | AC38: =SUMPRODUCT(($B$2:B38="GETIN")*($E$2:E38="Kupno")*$C$2:C38*$D$2:D38) -> -71.7 | AD38: =SUMPRODUCT(($B$2:B38="Handlowy")*($E$2:E38="Kupno")*$C$2:C38*$D$2:D38) -> -2766.85 | AE38: =SUMPRODUCT(($B$2:B38="SANTANDER")*($E$2:E38="Kupno")*$C$2:C38*$D$2:D38) -> -13279.9 | AF38: =SUMPRODUCT(($B$2:B38="MBANK")*($E$2:E38="Kupno")*$C$2:C38*$D$2:D38) -> -10457.4 | AG38: =SUMPRODUCT(($B$2:B38="Alior")*($E$2:E38="Kupno")*$C$2:C38*$D$2:D38) -> -1809 | AH38: =SUMPRODUCT(($B$2:B38="Idea")*($E$2:E38="Kupno")*$C$2:C38*$D$2:D38) -> -696.3 | AI38: =SUMPRODUCT(($B$2:B38="MIL")*($E$2:E38="Sprzedaż")*$C$2:C38*$D$2:D38) -> 0 | AJ38: =SUMPRODUCT(($B$2:B38="PEKAO")*($E$2:E38="Sprzedaż")*$C$2:C38*$D$2:D38) -> 0 | AK38: =SUMPRODUCT(($B$2:B38="PKOBP")*($E$2:E38="Sprzedaż")*$C$2:C38*$D$2:D38) -> 0 | AL38: =SUMPRODUCT(($B$2:B38="ING")*($E$2:E38="Sprzedaż")*$C$2:C38*$D$2:D38) -> 0 | AM38: =SUMPRODUCT(($B$2:B38="GETIN")*($E$2:E38="Sprzedaż")*$C$2:C38*$D$2:D38) -> 0 | AN38: =SUMPRODUCT(($B$2:B38="Handlowy")*($E$2:E38="Sprzedaż")*$C$2:C38*$D$2:D38) -> 0 | AO38: =SUMPRODUCT(($B$2:B38="SANTANDER")*($E$2:E38="Sprzedaż")*$C$2:C38*$D$2:D38) -> 0 | AP38: =SUMPRODUCT(($B$2:B38="MBANK")*($E$2:E38="Sprzedaż")*$C$2:C38*$D$2:D38) -> 0 | AQ38: =SUMPRODUCT(($B$2:B38="Alior")*($E$2:E38="Sprzedaż")*$C$2:C38*$D$2:D38) -> 0 | AR38: =SUMPRODUCT(($B$2:B38="Idea")*($E$2:E38="Sprzedaż")*$C$2:C38*$D$2:D38) -> 0 | AS38: 272.4 | AT38: 4985.6 | AU38: 1346.96 | AV38: 6917.6 | AW38: 78.4 | AX38: 2823 | AY38: 13853.2 | AZ38: 12094.8 | BA38: 1933.8 | BB38: 750 | BC38: 3104.76 | BD38: -171.18 | BE38: =(VLOOKUP(A38,WIG_B[],2,TRUE)/VLOOKUP(A37,WIG_B[],2,TRUE)-1)*$L$1+BE37 -> 77724.89114 | BF38: -6422.66586 | BG38: =Portfel[[#This Row],[WIG.B]]-Portfel[[#This Row],[Portfel. S]] -> 74620.13114 | BH38: 40.9 | BI38: 295.3 | BJ38: 118.21 | BK38: 198.3 | BL38: 6.7 | BM38: 56.15 | BN38: 573.3 | BO38: 1637.4 | BP38: 124.8 | BQ38: 53.7 | BR38: -5.6 | BS38: -52.4 | BT38: -32.4 | BU38: -33.2 | BV38: -1.2 | BW38: -53.28 | BX38: 40.8 | BY38: 4.5 | BZ38: -16.2 | CA38: -22.2
A39: 42786 | B39: MBANK | C39: 404.74 | D39: -10 | E39: Kupno | F39: -0.008672234027 | G39: -0.04054454712 | H39: 0.04491772496 | I39: Polityka | L39: 454001.6 | O39: =SUMIFS($D$2:D39,$B$2:B39,"MIL") -> -40 | P39: =SUMIFS($D$2:D39,$B$2:B39,"PEKAO") -> -40 | Q39: =SUMIFS($D$2:D39,$B$2:B39,"PKOBP") -> -40 | R39: =SUMIFS($D$2:D39,$B$2:B39,"ING") -> -40 | S39: =SUMIFS($D$2:D39,$B$2:B39,"GETIN") -> -40 | T39: =SUMIFS($D$2:D39,$B$2:B39,"Handlowy") -> -40 | U39: =SUMIFS($D$2:D39,$B$2:B39,"SANTANDER") -> -40 | V39: =SUMIFS($D$2:D39,$B$2:B39,"MBANK") -> -40 | W39: =SUMIFS($D$2:D39,$B$2:B39,"Alior") -> -30 | X39: =SUMIFS($D$2:D39,$B$2:B39,"Idea") -> -30 | Y39: =SUMPRODUCT(($B$2:B39="MIL")*($E$2:E39="Kupno")*$C$2:C39*$D$2:D39) -> -231.5 | Z39: =SUMPRODUCT(($B$2:B39="PEKAO")*($E$2:E39="Kupno")*$C$2:C39*$D$2:D39) -> -4690.3 | AA39: =SUMPRODUCT(($B$2:B39="PKOBP")*($E$2:E39="Kupno")*$C$2:C39*$D$2:D39) -> -1228.75 | AB39: =SUMPRODUCT(($B$2:B39="ING")*($E$2:E39="Kupno")*$C$2:C39*$D$2:D39) -> -6719.3 | AC39: =SUMPRODUCT(($B$2:B39="GETIN")*($E$2:E39="Kupno")*$C$2:C39*$D$2:D39) -> -71.7 | AD39: =SUMPRODUCT(($B$2:B39="Handlowy")*($E$2:E39="Kupno")*$C$2:C39*$D$2:D39) -> -2766.85 | AE39: =SUMPRODUCT(($B$2:B39="SANTANDER")*($E$2:E39="Kupno")*$C$2:C39*$D$2:D39) -> -13279.9 | AF39: =SUMPRODUCT(($B$2:B39="MBANK")*($E$2:E39="Kupno")*$C$2:C39*$D$2:D39) -> -14504.8 | AG39: =SUMPRODUCT(($B$2:B39="Alior")*($E$2:E39="Kupno")*$C$2:C39*$D$2:D39) -> -1809 | AH39: =SUMPRODUCT(($B$2:B39="Idea")*($E$2:E39="Kupno")*$C$2:C39*$D$2:D39) -> -696.3 | AI39: =SUMPRODUCT(($B$2:B39="MIL")*($E$2:E39="Sprzedaż")*$C$2:C39*$D$2:D39) -> 0 | AJ39: =SUMPRODUCT(($B$2:B39="PEKAO")*($E$2:E39="Sprzedaż")*$C$2:C39*$D$2:D39) -> 0 | AK39: =SUMPRODUCT(($B$2:B39="PKOBP")*($E$2:E39="Sprzedaż")*$C$2:C39*$D$2:D39) -> 0 | AL39: =SUMPRODUCT(($B$2:B39="ING")*($E$2:E39="Sprzedaż")*$C$2:C39*$D$2:D39) -> 0 | AM39: =SUMPRODUCT(($B$2:B39="GETIN")*($E$2:E39="Sprzedaż")*$C$2:C39*$D$2:D39) -> 0 | AN39: =SUMPRODUCT(($B$2:B39="Handlowy")*($E$2:E39="Sprzedaż")*$C$2:C39*$D$2:D39) -> 0 | AO39: =SUMPRODUCT(($B$2:B39="SANTANDER")*($E$2:E39="Sprzedaż")*$C$2:C39*$D$2:D39) -> 0 | AP39: =SUMPRODUCT(($B$2:B39="MBANK")*($E$2:E39="Sprzedaż")*$C$2:C39*$D$2:D39) -> 0 | AQ39: =SUMPRODUCT(($B$2:B39="Alior")*($E$2:E39="Sprzedaż")*$C$2:C39*$D$2:D39) -> 0 | AR39: =SUMPRODUCT(($B$2:B39="Idea")*($E$2:E39="Sprzedaż")*$C$2:C39*$D$2:D39) -> 0 | AS39: 272.4 | AT39: 4952.8 | AU39: 1337.88 | AV39: 6894 | AW39: 82 | AX39: 2801.72 | AY39: 13773.2 | AZ39: 16189.6 | BA39: 1969.5 | BB39: 750.6 | BC39: 3025.3 | BD39: -79.46 | BE39: =(VLOOKUP(A39,WIG_B[],2,TRUE)/VLOOKUP(A38,WIG_B[],2,TRUE)-1)*$L$1+BE38 -> 76282.01055 | BF39: -1442.880586 | BG39: =Portfel[[#This Row],[WIG.B]]-Portfel[[#This Row],[Portfel. S]] -> 73256.71055 | BH39: 40.9 | BI39: 262.5 | BJ39: 109.13 | BK39: 174.7 | BL39: 10.3 | BM39: 34.87 | BN39: 493.3 | BO39: 1684.8 | BP39: 160.5 | BQ39: 54.3 | BR39: 0 | BS39: -32.8 | BT39: -9.08 | BU39: -23.6 | BV39: 3.6 | BW39: -21.28 | BX39: -80 | BY39: 47.4 | BZ39: 35.7 | CA39: 0.6
A40: 42787 | B40: Alior | C40: 66 | D40: -10 | E40: Kupno | F40: 0.009090909091 | G40: 0.1322727273 | H40: 0.09363636364 | I40: Sprawozdanie | L40: 453341.6 | O40: =SUMIFS($D$2:D40,$B$2:B40,"MIL") -> -40 | P40: =SUMIFS($D$2:D40,$B$2:B40,"PEKAO") -> -40 | Q40: =SUMIFS($D$2:D40,$B$2:B40,"PKOBP") -> -40 | R40: =SUMIFS($D$2:D40,$B$2:B40,"ING") -> -40 | S40: =SUMIFS($D$2:D40,$B$2:B40,"GETIN") -> -40 | T40: =SUMIFS($D$2:D40,$B$2:B40,"Handlowy") -> -40 | U40: =SUMIFS($D$2:D40,$B$2:B40,"SANTANDER") -> -40 | V40: =SUMIFS($D$2:D40,$B$2:B40,"MBANK") -> -40 | W40: =SUMIFS($D$2:D40,$B$2:B40,"Alior") -> -40 | X40: =SUMIFS($D$2:D40,$B$2:B40,"Idea") -> -30 | Y40: =SUMPRODUCT(($B$2:B40="MIL")*($E$2:E40="Kupno")*$C$2:C40*$D$2:D40) -> -231.5 | Z40: =SUMPRODUCT(($B$2:B40="PEKAO")*($E$2:E40="Kupno")*$C$2:C40*$D$2:D40) -> -4690.3 | AA40: =SUMPRODUCT(($B$2:B40="PKOBP")*($E$2:E40="Kupno")*$C$2:C40*$D$2:D40) -> -1228.75 | AB40: =SUMPRODUCT(($B$2:B40="ING")*($E$2:E40="Kupno")*$C$2:C40*$D$2:D40) -> -6719.3 | AC40: =SUMPRODUCT(($B$2:B40="GETIN")*($E$2:E40="Kupno")*$C$2:C40*$D$2:D40) -> -71.7 | AD40: =SUMPRODUCT(($B$2:B40="Handlowy")*($E$2:E40="Kupno")*$C$2:C40*$D$2:D40) -> -2766.85 | AE40: =SUMPRODUCT(($B$2:B40="SANTANDER")*($E$2:E40="Kupno")*$C$2:C40*$D$2:D40) -> -13279.9 | AF40: =SUMPRODUCT(($B$2:B40="MBANK")*($E$2:E40="Kupno")*$C$2:C40*$D$2:D40) -> -14504.8 | AG40: =SUMPRODUCT(($B$2:B40="Alior")*($E$2:E40="Kupno")*$C$2:C40*$D$2:D40) -> -2469 | AH40: =SUMPRODUCT(($B$2:B40="Idea")*($E$2:E40="Kupno")*$C$2:C40*$D$2:D40) -> -696.3 | AI40: =SUMPRODUCT(($B$2:B40="MIL")*($E$2:E40="Sprzedaż")*$C$2:C40*$D$2:D40) -> 0 | AJ40: =SUMPRODUCT(($B$2:B40="PEKAO")*($E$2:E40="Sprzedaż")*$C$2:C40*$D$2:D40) -> 0 | AK40: =SUMPRODUCT(($B$2:B40="PKOBP")*($E$2:E40="Sprzedaż")*$C$2:C40*$D$2:D40) -> 0 | AL40: =SUMPRODUCT(($B$2:B40="ING")*($E$2:E40="Sprzedaż")*$C$2:C40*$D$2:D40) -> 0 | AM40: =SUMPRODUCT(($B$2:B40="GETIN")*($E$2:E40="Sprzedaż")*$C$2:C40*$D$2:D40) -> 0 | AN40: =SUMPRODUCT(($B$2:B40="Handlowy")*($E$2:E40="Sprzedaż")*$C$2:C40*$D$2:D40) -> 0 | AO40: =SUMPRODUCT(($B$2:B40="SANTANDER")*($E$2:E40="Sprzedaż")*$C$2:C40*$D$2:D40) -> 0 | AP40: =SUMPRODUCT(($B$2:B40="MBANK")*($E$2:E40="Sprzedaż")*$C$2:C40*$D$2:D40) -> 0 | AQ40: =SUMPRODUCT(($B$2:B40="Alior")*($E$2:E40="Sprzedaż")*$C$2:C40*$D$2:D40) -> 0 | AR40: =SUMPRODUCT(($B$2:B40="Idea")*($E$2:E40="Sprzedaż")*$C$2:C40*$D$2:D40) -> 0 | AS40: 278 | AT40: 5038 | AU40: 1385.28 | AV40: 7000 | AW40: 83.6 | AX40: 2910.72 | AY40: 14468.4 | AZ40: 16596.4 | BA40: 2640 | BB40: 738 | BC40: 4480 | BD40: 1454.7 | BE40: =(VLOOKUP(A40,WIG_B[],2,TRUE)/VLOOKUP(A39,WIG_B[],2,TRUE)-1)*$L$1+BE39 -> 89807.44706 | BF40: 13525.43651 | BG40: =Portfel[[#This Row],[WIG.B]]-Portfel[[#This Row],[Portfel. S]] -> 85327.44706 | BH40: 46.5 | BI40: 347.7 | BJ40: 156.53 | BK40: 280.7 | BL40: 11.9 | BM40: 143.87 | BN40: 1188.5 | BO40: 2091.6 | BP40: 171 | BQ40: 41.7 | BR40: 5.6 | BS40: 85.2 | BT40: 47.4 | BU40: 106 | BV40: 1.6 | BW40: 109 | BX40: 695.2 | BY40: 406.8 | BZ40: 10.5 | CA40: -12.6
A41: 42788 | B41: Idea | C41: 24.76 | D41: -10 | E41: Kupno | F41: -0.01050080775 | G41: 0.009693053312 | H41: -0.03069466882 | I41: Makro | L41: 453094 | O41: =SUMIFS($D$2:D41,$B$2:B41,"MIL") -> -40 | P41: =SUMIFS($D$2:D41,$B$2:B41,"PEKAO") -> -40 | Q41: =SUMIFS($D$2:D41,$B$2:B41,"PKOBP") -> -40 | R41: =SUMIFS($D$2:D41,$B$2:B41,"ING") -> -40 | S41: =SUMIFS($D$2:D41,$B$2:B41,"GETIN") -> -40 | T41: =SUMIFS($D$2:D41,$B$2:B41,"Handlowy") -> -40 | U41: =SUMIFS($D$2:D41,$B$2:B41,"SANTANDER") -> -40 | V41: =SUMIFS($D$2:D41,$B$2:B41,"MBANK") -> -40 | W41: =SUMIFS($D$2:D41,$B$2:B41,"Alior") -> -40 | X41: =SUMIFS($D$2:D41,$B$2:B41,"Idea") -> -40 | Y41: =SUMPRODUCT(($B$2:B41="MIL")*($E$2:E41="Kupno")*$C$2:C41*$D$2:D41) -> -231.5 | Z41: =SUMPRODUCT(($B$2:B41="PEKAO")*($E$2:E41="Kupno")*$C$2:C41*$D$2:D41) -> -4690.3 | AA41: =SUMPRODUCT(($B$2:B41="PKOBP")*($E$2:E41="Kupno")*$C$2:C41*$D$2:D41) -> -1228.75 | AB41: =SUMPRODUCT(($B$2:B41="ING")*($E$2:E41="Kupno")*$C$2:C41*$D$2:D41) -> -6719.3 | AC41: =SUMPRODUCT(($B$2:B41="GETIN")*($E$2:E41="Kupno")*$C$2:C41*$D$2:D41) -> -71.7 | AD41: =SUMPRODUCT(($B$2:B41="Handlowy")*($E$2:E41="Kupno")*$C$2:C41*$D$2:D41) -> -2766.85 | AE41: =SUMPRODUCT(($B$2:B41="SANTANDER")*($E$2:E41="Kupno")*$C$2:C41*$D$2:D41) -> -13279.9 | AF41: =SUMPRODUCT(($B$2:B41="MBANK")*($E$2:E41="Kupno")*$C$2:C41*$D$2:D41) -> -14504.8 | AG41: =SUMPRODUCT(($B$2:B41="Alior")*($E$2:E41="Kupno")*$C$2:C41*$D$2:D41) -> -2469 | AH41: =SUMPRODUCT(($B$2:B41="Idea")*($E$2:E41="Kupno")*$C$2:C41*$D$2:D41) -> -943.9 | AI41: =SUMPRODUCT(($B$2:B41="MIL")*($E$2:E41="Sprzedaż")*$C$2:C41*$D$2:D41) -> 0 | AJ41: =SUMPRODUCT(($B$2:B41="PEKAO")*($E$2:E41="Sprzedaż")*$C$2:C41*$D$2:D41) -> 0 | AK41: =SUMPRODUCT(($B$2:B41="PKOBP")*($E$2:E41="Sprzedaż")*$C$2:C41*$D$2:D41) -> 0 | AL41: =SUMPRODUCT(($B$2:B41="ING")*($E$2:E41="Sprzedaż")*$C$2:C41*$D$2:D41) -> 0 | AM41: =SUMPRODUCT(($B$2:B41="GETIN")*($E$2:E41="Sprzedaż")*$C$2:C41*$D$2:D41) -> 0 | AN41: =SUMPRODUCT(($B$2:B41="Handlowy")*($E$2:E41="Sprzedaż")*$C$2:C41*$D$2:D41) -> 0 | AO41: =SUMPRODUCT(($B$2:B41="SANTANDER")*($E$2:E41="Sprzedaż")*$C$2:C41*$D$2:D41) -> 0 | AP41: =SUMPRODUCT(($B$2:B41="MBANK")*($E$2:E41="Sprzedaż")*$C$2:C41*$D$2:D41) -> 0 | AQ41: =SUMPRODUCT(($B$2:B41="Alior")*($E$2:E41="Sprzedaż")*$C$2:C41*$D$2:D41) -> 0 | AR41: =SUMPRODUCT(($B$2:B41="Idea")*($E$2:E41="Sprzedaż")*$C$2:C41*$D$2:D41) -> 0 | AS41: 277.6 | AT41: 5048.4 | AU41: 1399.48 | AV41: 7102.4 | AW41: 80.8 | AX41: 2911.8 | AY41: 14483.6 | AZ41: 16877.2 | BA41: 2639.2 | BB41: 990.4 | BC41: 4904.88 | BD41: 424.88 | BE41: =(VLOOKUP(A41,WIG_B[],2,TRUE)/VLOOKUP(A40,WIG_B[],2,TRUE)-1)*$L$1+BE40 -> 92663.2335 | BF41: 2855.786442 | BG41: =Portfel[[#This Row],[WIG.B]]-Portfel[[#This Row],[Portfel. S]] -> 87758.3535 | BH41: 46.1 | BI41: 358.1 | BJ41: 170.73 | BK41: 383.1 | BL41: 9.1 | BM41: 144.95 | BN41: 1203.7 | BO41: 2372.4 | BP41: 170.2 | BQ41: 46.5 | BR41: -0.4 | BS41: 10.4 | BT41: 14.2 | BU41: 102.4 | BV41: -2.8 | BW41: 1.08 | BX41: 15.2 | BY41: 280.8 | BZ41: -0.8 | CA41: 4.8
A42: 42789 | B42: MIL | C42: 6.89 | D42: -10 | E42: Kupno | F42: -0.008708272859 | G42: -0.04208998549 | H42: 0.0290275762 | I42: Polityka | L42: 453025.1 | O42: =SUMIFS($D$2:D42,$B$2:B42,"MIL") -> -50 | P42: =SUMIFS($D$2:D42,$B$2:B42,"PEKAO") -> -40 | Q42: =SUMIFS($D$2:D42,$B$2:B42,"PKOBP") -> -40 | R42: =SUMIFS($D$2:D42,$B$2:B42,"ING") -> -40 | S42: =SUMIFS($D$2:D42,$B$2:B42,"GETIN") -> -40 | T42: =SUMIFS($D$2:D42,$B$2:B42,"Handlowy") -> -40 | U42: =SUMIFS($D$2:D42,$B$2:B42,"SANTANDER") -> -40 | V42: =SUMIFS($D$2:D42,$B$2:B42,"MBANK") -> -40 | W42: =SUMIFS($D$2:D42,$B$2:B42,"Alior") -> -40 | X42: =SUMIFS($D$2:D42,$B$2:B42,"Idea") -> -40 | Y42: =SUMPRODUCT(($B$2:B42="MIL")*($E$2:E42="Kupno")*$C$2:C42*$D$2:D42) -> -300.4 | Z42: =SUMPRODUCT(($B$2:B42="PEKAO")*($E$2:E42="Kupno")*$C$2:C42*$D$2:D42) -> -4690.3 | AA42: =SUMPRODUCT(($B$2:B42="PKOBP")*($E$2:E42="Kupno")*$C$2:C42*$D$2:D42) -> -1228.75 | AB42: =SUMPRODUCT(($B$2:B42="ING")*($E$2:E42="Kupno")*$C$2:C42*$D$2:D42) -> -6719.3 | AC42: =SUMPRODUCT(($B$2:B42="GETIN")*($E$2:E42="Kupno")*$C$2:C42*$D$2:D42) -> -71.7 | AD42: =SUMPRODUCT(($B$2:B42="Handlowy")*($E$2:E42="Kupno")*$C$2:C42*$D$2:D42) -> -2766.85 | AE42: =SUMPRODUCT(($B$2:B42="SANTANDER")*($E$2:E42="Kupno")*$C$2:C42*$D$2:D42) -> -13279.9 | AF42: =SUMPRODUCT(($B$2:B42="MBANK")*($E$2:E42="Kupno")*$C$2:C42*$D$2:D42) -> -14504.8 | AG42: =SUMPRODUCT(($B$2:B42="Alior")*($E$2:E42="Kupno")*$C$2:C42*$D$2:D42) -> -2469 | AH42: =SUMPRODUCT(($B$2:B42="Idea")*($E$2:E42="Kupno")*$C$2:C42*$D$2:D42) -> -943.9 | AI42: =SUMPRODUCT(($B$2:B42="MIL")*($E$2:E42="Sprzedaż")*$C$2:C42*$D$2:D42) -> 0 | AJ42: =SUMPRODUCT(($B$2:B42="PEKAO")*($E$2:E42="Sprzedaż")*$C$2:C42*$D$2:D42) -> 0 | AK42: =SUMPRODUCT(($B$2:B42="PKOBP")*($E$2:E42="Sprzedaż")*$C$2:C42*$D$2:D42) -> 0 | AL42: =SUMPRODUCT(($B$2:B42="ING")*($E$2:E42="Sprzedaż")*$C$2:C42*$D$2:D42) -> 0 | AM42: =SUMPRODUCT(($B$2:B42="GETIN")*($E$2:E42="Sprzedaż")*$C$2:C42*$D$2:D42) -> 0 | AN42: =SUMPRODUCT(($B$2:B42="Handlowy")*($E$2:E42="Sprzedaż")*$C$2:C42*$D$2:D42) -> 0 | AO42: =SUMPRODUCT(($B$2:B42="SANTANDER")*($E$2:E42="Sprzedaż")*$C$2:C42*$D$2:D42) -> 0 | AP42: =SUMPRODUCT(($B$2:B42="MBANK")*($E$2:E42="Sprzedaż")*$C$2:C42*$D$2:D42) -> 0 | AQ42: =SUMPRODUCT(($B$2:B42="Alior")*($E$2:E42="Sprzedaż")*$C$2:C42*$D$2:D42) -> 0 | AR42: =SUMPRODUCT(($B$2:B42="Idea")*($E$2:E42="Sprzedaż")*$C$2:C42*$D$2:D42) -> 0 | AS42: 344.5 | AT42: 5029.2 | AU42: 1380.12 | AV42: 7200.8 | AW42: 82 | AX42: 2947.64 | AY42: 14776.8 | AZ42: 16778.4 | BA42: 2650.4 | BB42: 970.4 | BC42: 5185.36 | BD42: 280.48 | BE42: =(VLOOKUP(A42,WIG_B[],2,TRUE)/VLOOKUP(A41,WIG_B[],2,TRUE)-1)*$L$1+BE41 -> 91541.29009 | BF42: -1121.943415 | BG42: =Portfel[[#This Row],[WIG.B]]-Portfel[[#This Row],[Portfel. S]] -> 86355.93009 | BH42: 44.1 | BI42: 338.9 | BJ42: 151.37 | BK42: 481.5 | BL42: 10.3 | BM42: 180.79 | BN42: 1496.9 | BO42: 2273.6 | BP42: 181.4 | BQ42: 26.5 | BR42: -2 | BS42: -19.2 | BT42: -19.36 | BU42: 98.4 | BV42: 1.2 | BW42: 35.84 | BX42: 293.2 | BY42: -98.8 | BZ42: 11.2 | CA42: -20
A43: 42790 | B43: PEKAO | C43: 122.51 | D43: -10 | E43: Kupno | F43: 0 | G43: -0.04211901069 | H43: -0.007427965064 | I43: Sprawozdanie | L43: 451800 | O43: =SUMIFS($D$2:D43,$B$2:B43,"MIL") -> -50 | P43: =SUMIFS($D$2:D43,$B$2:B43,"PEKAO") -> -50 | Q43: =SUMIFS($D$2:D43,$B$2:B43,"PKOBP") -> -40 | R43: =SUMIFS($D$2:D43,$B$2:B43,"ING") -> -40 | S43: =SUMIFS($D$2:D43,$B$2:B43,"GETIN") -> -40 | T43: =SUMIFS($D$2:D43,$B$2:B43,"Handlowy") -> -40 | U43: =SUMIFS($D$2:D43,$B$2:B43,"SANTANDER") -> -40 | V43: =SUMIFS($D$2:D43,$B$2:B43,"MBANK") -> -40 | W43: =SUMIFS($D$2:D43,$B$2:B43,"Alior") -> -40 | X43: =SUMIFS($D$2:D43,$B$2:B43,"Idea") -> -40 | Y43: =SUMPRODUCT(($B$2:B43="MIL")*($E$2:E43="Kupno")*$C$2:C43*$D$2:D43) -> -300.4 | Z43: =SUMPRODUCT(($B$2:B43="PEKAO")*($E$2:E43="Kupno")*$C$2:C43*$D$2:D43) -> -5915.4 | AA43: =SUMPRODUCT(($B$2:B43="PKOBP")*($E$2:E43="Kupno")*$C$2:C43*$D$2:D43) -> -1228.75 | AB43: =SUMPRODUCT(($B$2:B43="ING")*($E$2:E43="Kupno")*$C$2:C43*$D$2:D43) -> -6719.3 | AC43: =SUMPRODUCT(($B$2:B43="GETIN")*($E$2:E43="Kupno")*$C$2:C43*$D$2:D43) -> -71.7 | AD43: =SUMPRODUCT(($B$2:B43="Handlowy")*($E$2:E43="Kupno")*$C$2:C43*$D$2:D43) -> -2766.85 | AE43: =SUMPRODUCT(($B$2:B43="SANTANDER")*($E$2:E43="Kupno")*$C$2:C43*$D$2:D43) -> -13279.9 | AF43: =SUMPRODUCT(($B$2:B43="MBANK")*($E$2:E43="Kupno")*$C$2:C43*$D$2:D43) -> -14504.8 | AG43: =SUMPRODUCT(($B$2:B43="Alior")*($E$2:E43="Kupno")*$C$2:C43*$D$2:D43) -> -2469 | AH43: =SUMPRODUCT(($B$2:B43="Idea")*($E$2:E43="Kupno")*$C$2:C43*$D$2:D43) -> -943.9 | AI43: =SUMPRODUCT(($B$2:B43="MIL")*($E$2:E43="Sprzedaż")*$C$2:C43*$D$2:D43) -> 0 | AJ43: =SUMPRODUCT(($B$2:B43="PEKAO")*($E$2:E43="Sprzedaż")*$C$2:C43*$D$2:D43) -> 0 | AK43: =SUMPRODUCT(($B$2:B43="PKOBP")*($E$2:E43="Sprzedaż")*$C$2:C43*$D$2:D43) -> 0 | AL43: =SUMPRODUCT(($B$2:B43="ING")*($E$2:E43="Sprzedaż")*$C$2:C43*$D$2:D43) -> 0 | AM43: =SUMPRODUCT(($B$2:B43="GETIN")*($E$2:E43="Sprzedaż")*$C$2:C43*$D$2:D43) -> 0 | AN43: =SUMPRODUCT(($B$2:B43="Handlowy")*($E$2:E43="Sprzedaż")*$C$2:C43*$D$2:D43) -> 0 | AO43: =SUMPRODUCT(($B$2:B43="SANTANDER")*($E$2:E43="Sprzedaż")*$C$2:C43*$D$2:D43) -> 0 | AP43: =SUMPRODUCT(($B$2:B43="MBANK")*($E$2:E43="Sprzedaż")*$C$2:C43*$D$2:D43) -> 0 | AQ43: =SUMPRODUCT(($B$2:B43="Alior")*($E$2:E43="Sprzedaż")*$C$2:C43*$D$2:D43) -> 0 | AR43: =SUMPRODUCT(($B$2:B43="Idea")*($E$2:E43="Sprzedaż")*$C$2:C43*$D$2:D43) -> 0 | AS43: 341.5 | AT43: 6125.5 | AU43: 1339.08 | AV43: 7200.8 | AW43: 80.4 | AX43: 2852.84 | AY43: 14249.6 | AZ43: 16049.2 | BA43: 2664 | BB43: 980 | BC43: 3682.92 | BD43: -1502.44 | BE43: =(VLOOKUP(A43,WIG_B[],2,TRUE)/VLOOKUP(A42,WIG_B[],2,TRUE)-1)*$L$1+BE42 -> 79169.50711 | BF43: -12371.78298 | BG43: =Portfel[[#This Row],[WIG.B]]-Portfel[[#This Row],[Portfel. S]] -> 75486.58711 | BH43: 41.1 | BI43: 210.1 | BJ43: 110.33 | BK43: 481.5 | BL43: 8.7 | BM43: 85.99 | BN43: 969.7 | BO43: 1544.4 | BP43: 195 | BQ43: 36.1 | BR43: -3 | BS43: -128.8 | BT43: -41.04 | BU43: 0 | BV43: -1.6 | BW43: -94.8 | BX43: -527.2 | BY43: -729.2 | BZ43: 13.6 | CA43: 9.6
A44: 42793 | B44: PKOBP | C44: 33.211 | D44: -10 | E44: Kupno | F44: 0.02821354371 | G44: -0.02231188462 | H44: 0.07280720243 | I44: Makro | L44: 451467.89 | O44: =SUMIFS($D$2:D44,$B$2:B44,"MIL") -> -50 | P44: =SUMIFS($D$2:D44,$B$2:B44,"PEKAO") -> -50 | Q44: =SUMIFS($D$2:D44,$B$2:B44,"PKOBP") -> -50 | R44: =SUMIFS($D$2:D44,$B$2:B44,"ING") -> -40 | S44: =SUMIFS($D$2:D44,$B$2:B44,"GETIN") -> -40 | T44: =SUMIFS($D$2:D44,$B$2:B44,"Handlowy") -> -40 | U44: =SUMIFS($D$2:D44,$B$2:B44,"SANTANDER") -> -40 | V44: =SUMIFS($D$2:D44,$B$2:B44,"MBANK") -> -40 | W44: =SUMIFS($D$2:D44,$B$2:B44,"Alior") -> -40 | X44: =SUMIFS($D$2:D44,$B$2:B44,"Idea") -> -40 | Y44: =SUMPRODUCT(($B$2:B44="MIL")*($E$2:E44="Kupno")*$C$2:C44*$D$2:D44) -> -300.4 | Z44: =SUMPRODUCT(($B$2:B44="PEKAO")*($E$2:E44="Kupno")*$C$2:C44*$D$2:D44) -> -5915.4 | AA44: =SUMPRODUCT(($B$2:B44="PKOBP")*($E$2:E44="Kupno")*$C$2:C44*$D$2:D44) -> -1560.86 | AB44: =SUMPRODUCT(($B$2:B44="ING")*($E$2:E44="Kupno")*$C$2:C44*$D$2:D44) -> -6719.3 | AC44: =SUMPRODUCT(($B$2:B44="GETIN")*($E$2:E44="Kupno")*$C$2:C44*$D$2:D44) -> -71.7 | AD44: =SUMPRODUCT(($B$2:B44="Handlowy")*($E$2:E44="Kupno")*$C$2:C44*$D$2:D44) -> -2766.85 | AE44: =SUMPRODUCT(($B$2:B44="SANTANDER")*($E$2:E44="Kupno")*$C$2:C44*$D$2:D44) -> -13279.9 | AF44: =SUMPRODUCT(($B$2:B44="MBANK")*($E$2:E44="Kupno")*$C$2:C44*$D$2:D44) -> -14504.8 | AG44: =SUMPRODUCT(($B$2:B44="Alior")*($E$2:E44="Kupno")*$C$2:C44*$D$2:D44) -> -2469 | AH44: =SUMPRODUCT(($B$2:B44="Idea")*($E$2:E44="Kupno")*$C$2:C44*$D$2:D44) -> -943.9 | AI44: =SUMPRODUCT(($B$2:B44="MIL")*($E$2:E44="Sprzedaż")*$C$2:C44*$D$2:D44) -> 0 | AJ44: =SUMPRODUCT(($B$2:B44="PEKAO")*($E$2:E44="Sprzedaż")*$C$2:C44*$D$2:D44) -> 0 | AK44: =SUMPRODUCT(($B$2:B44="PKOBP")*($E$2:E44="Sprzedaż")*$C$2:C44*$D$2:D44) -> 0 | AL44: =SUMPRODUCT(($B$2:B44="ING")*($E$2:E44="Sprzedaż")*$C$2:C44*$D$2:D44) -> 0 | AM44: =SUMPRODUCT(($B$2:B44="GETIN")*($E$2:E44="Sprzedaż")*$C$2:C44*$D$2:D44) -> 0 | AN44: =SUMPRODUCT(($B$2:B44="Handlowy")*($E$2:E44="Sprzedaż")*$C$2:C44*$D$2:D44) -> 0 | AO44: =SUMPRODUCT(($B$2:B44="SANTANDER")*($E$2:E44="Sprzedaż")*$C$2:C44*$D$2:D44) -> 0 | AP44: =SUMPRODUCT(($B$2:B44="MBANK")*($E$2:E44="Sprzedaż")*$C$2:C44*$D$2:D44) -> 0 | AQ44: =SUMPRODUCT(($B$2:B44="Alior")*($E$2:E44="Sprzedaż")*$C$2:C44*$D$2:D44) -> 0 | AR44: =SUMPRODUCT(($B$2:B44="Idea")*($E$2:E44="Sprzedaż")*$C$2:C44*$D$2:D44) -> 0 | AS44: 341 | AT44: 6124 | AU44: 1660.55 | AV44: 7200.8 | AW44: 80 | AX44: 2853.56 | AY44: 14093.2 | AZ44: 16049.2 | BA44: 2608 | BB44: 966 | BC44: 3444.2 | BD44: -238.72 | BE44: =(VLOOKUP(A44,WIG_B[],2,TRUE)/VLOOKUP(A43,WIG_B[],2,TRUE)-1)*$L$1+BE43 -> 76311.81682 | BF44: -2857.690285 | BG44: =Portfel[[#This Row],[WIG.B]]-Portfel[[#This Row],[Portfel. S]] -> 72867.61682 | BH44: 40.6 | BI44: 208.6 | BJ44: 99.69 | BK44: 481.5 | BL44: 8.3 | BM44: 86.71 | BN44: 813.3 | BO44: 1544.4 | BP44: 139 | BQ44: 22.1 | BR44: -0.5 | BS44: -1.5 | BT44: -10.64 | BU44: 0 | BV44: -0.4 | BW44: 0.72 | BX44: -156.4 | BY44: 0 | BZ44: -56 | CA44: -14
A45: 42794 | B45: ING | C45: 180.51 | D45: -10 | E45: Kupno | F45: -0.02747770207 | G45: -0.05174228575 | H45: -0.00731261426 | I45: Polityka | L45: 449662.79 | O45: =SUMIFS($D$2:D45,$B$2:B45,"MIL") -> -50 | P45: =SUMIFS($D$2:D45,$B$2:B45,"PEKAO") -> -50 | Q45: =SUMIFS($D$2:D45,$B$2:B45,"PKOBP") -> -50 | R45: =SUMIFS($D$2:D45,$B$2:B45,"ING") -> -50 | S45: =SUMIFS($D$2:D45,$B$2:B45,"GETIN") -> -40 | T45: =SUMIFS($D$2:D45,$B$2:B45,"Handlowy") -> -40 | U45: =SUMIFS($D$2:D45,$B$2:B45,"SANTANDER") -> -40 | V45: =SUMIFS($D$2:D45,$B$2:B45,"MBANK") -> -40 | W45: =SUMIFS($D$2:D45,$B$2:B45,"Alior") -> -40 | X45: =SUMIFS($D$2:D45,$B$2:B45,"Idea") -> -40 | Y45: =SUMPRODUCT(($B$2:B45="MIL")*($E$2:E45="Kupno")*$C$2:C45*$D$2:D45) -> -300.4 | Z45: =SUMPRODUCT(($B$2:B45="PEKAO")*($E$2:E45="Kupno")*$C$2:C45*$D$2:D45) -> -5915.4 | AA45: =SUMPRODUCT(($B$2:B45="PKOBP")*($E$2:E45="Kupno")*$C$2:C45*$D$2:D45) -> -1560.86 | AB45: =SUMPRODUCT(($B$2:B45="ING")*($E$2:E45="Kupno")*$C$2:C45*$D$2:D45) -> -8524.4 | AC45: =SUMPRODUCT(($B$2:B45="GETIN")*($E$2:E45="Kupno")*$C$2:C45*$D$2:D45) -> -71.7 | AD45: =SUMPRODUCT(($B$2:B45="Handlowy")*($E$2:E45="Kupno")*$C$2:C45*$D$2:D45) -> -2766.85 | AE45: =SUMPRODUCT(($B$2:B45="SANTANDER")*($E$2:E45="Kupno")*$C$2:C45*$D$2:D45) -> -13279.9 | AF45: =SUMPRODUCT(($B$2:B45="MBANK")*($E$2:E45="Kupno")*$C$2:C45*$D$2:D45) -> -14504.8 | AG45: =SUMPRODUCT(($B$2:B45="Alior")*($E$2:E45="Kupno")*$C$2:C45*$D$2:D45) -> -2469 | AH45: =SUMPRODUCT(($B$2:B45="Idea")*($E$2:E45="Kupno")*$C$2:C45*$D$2:D45) -> -943.9 | AI45: =SUMPRODUCT(($B$2:B45="MIL")*($E$2:E45="Sprzedaż")*$C$2:C45*$D$2:D45) -> 0 | AJ45: =SUMPRODUCT(($B$2:B45="PEKAO")*($E$2:E45="Sprzedaż")*$C$2:C45*$D$2:D45) -> 0 | AK45: =SUMPRODUCT(($B$2:B45="PKOBP")*($E$2:E45="Sprzedaż")*$C$2:C45*$D$2:D45) -> 0 | AL45: =SUMPRODUCT(($B$2:B45="ING")*($E$2:E45="Sprzedaż")*$C$2:C45*$D$2:D45) -> 0 | AM45: =SUMPRODUCT(($B$2:B45="GETIN")*($E$2:E45="Sprzedaż")*$C$2:C45*$D$2:D45) -> 0 | AN45: =SUMPRODUCT(($B$2:B45="Handlowy")*($E$2:E45="Sprzedaż")*$C$2:C45*$D$2:D45) -> 0 | AO45: =SUMPRODUCT(($B$2:B45="SANTANDER")*($E$2:E45="Sprzedaż")*$C$2:C45*$D$2:D45) -> 0 | AP45: =SUMPRODUCT(($B$2:B45="MBANK")*($E$2:E45="Sprzedaż")*$C$2:C45*$D$2:D45) -> 0 | AQ45: =SUMPRODUCT(($B$2:B45="Alior")*($E$2:E45="Sprzedaż")*$C$2:C45*$D$2:D45) -> 0 | AR45: =SUMPRODUCT(($B$2:B45="Idea")*($E$2:E45="Sprzedaż")*$C$2:C45*$D$2:D45) -> 0 | AS45: 341 | AT45: 6078 | AU45: 1642.25 | AV45: 9025.5 | AW45: 80.8 | AX45: 2799.96 | AY45: 13704.8 | AZ45: 15660 | BA45: 2616.8 | BB45: 1000 | BC45: 2611.9 | BD45: -832.3 | BE45: =(VLOOKUP(A45,WIG_B[],2,TRUE)/VLOOKUP(A44,WIG_B[],2,TRUE)-1)*$L$1+BE44 -> 71138.26963 | BF45: -5173.547191 | BG45: =Portfel[[#This Row],[WIG.B]]-Portfel[[#This Row],[Portfel. S]] -> 68526.36963 | BH45: 40.6 | BI45: 162.6 | BJ45: 81.39 | BK45: 501.1 | BL45: 9.1 | BM45: 33.11 | BN45: 424.9 | BO45: 1155.2 | BP45: 147.8 | BQ45: 56.1 | BR45: 0 | BS45: -46 | BT45: -18.3 | BU45: 19.6 | BV45: 0.8 | BW45: -53.6 | BX45: -388.4 | BY45: -389.2 | BZ45: 8.8 | CA45: 34
A46: 42795 | B46: GETIN | C46: 2.19 | D46: -10 | E46: Kupno | F46: 0.009132420091 | G46: -0.1050228311 | H46: -0.3105022831 | I46: Sprawozdanie | L46: 449640.89 | O46: =SUMIFS($D$2:D46,$B$2:B46,"MIL") -> -50 | P46: =SUMIFS($D$2:D46,$B$2:B46,"PEKAO") -> -50 | Q46: =SUMIFS($D$2:D46,$B$2:B46,"PKOBP") -> -50 | R46: =SUMIFS($D$2:D46,$B$2:B46,"ING") -> -50 | S46: =SUMIFS($D$2:D46,$B$2:B46,"GETIN") -> -50 | T46: =SUMIFS($D$2:D46,$B$2:B46,"Handlowy") -> -40 | U46: =SUMIFS($D$2:D46,$B$2:B46,"SANTANDER") -> -40 | V46: =SUMIFS($D$2:D46,$B$2:B46,"MBANK") -> -40 | W46: =SUMIFS($D$2:D46,$B$2:B46,"Alior") -> -40 | X46: =SUMIFS($D$2:D46,$B$2:B46,"Idea") -> -40 | Y46: =SUMPRODUCT(($B$2:B46="MIL")*($E$2:E46="Kupno")*$C$2:C46*$D$2:D46) -> -300.4 | Z46: =SUMPRODUCT(($B$2:B46="PEKAO")*($E$2:E46="Kupno")*$C$2:C46*$D$2:D46) -> -5915.4 | AA46: =SUMPRODUCT(($B$2:B46="PKOBP")*($E$2:E46="Kupno")*$C$2:C46*$D$2:D46) -> -1560.86 | AB46: =SUMPRODUCT(($B$2:B46="ING")*($E$2:E46="Kupno")*$C$2:C46*$D$2:D46) -> -8524.4 | AC46: =SUMPRODUCT(($B$2:B46="GETIN")*($E$2:E46="Kupno")*$C$2:C46*$D$2:D46) -> -93.6 | AD46: =SUMPRODUCT(($B$2:B46="Handlowy")*($E$2:E46="Kupno")*$C$2:C46*$D$2:D46) -> -2766.85 | AE46: =SUMPRODUCT(($B$2:B46="SANTANDER")*($E$2:E46="Kupno")*$C$2:C46*$D$2:D46) -> -13279.9 | AF46: =SUMPRODUCT(($B$2:B46="MBANK")*($E$2:E46="Kupno")*$C$2:C46*$D$2:D46) -> -14504.8 | AG46: =SUMPRODUCT(($B$2:B46="Alior")*($E$2:E46="Kupno")*$C$2:C46*$D$2:D46) -> -2469 | AH46: =SUMPRODUCT(($B$2:B46="Idea")*($E$2:E46="Kupno")*$C$2:C46*$D$2:D46) -> -943.9 | AI46: =SUMPRODUCT(($B$2:B46="MIL")*($E$2:E46="Sprzedaż")*$C$2:C46*$D$2:D46) -> 0 | AJ46: =SUMPRODUCT(($B$2:B46="PEKAO")*($E$2:E46="Sprzedaż")*$C$2:C46*$D$2:D46) -> 0 | AK46: =SUMPRODUCT(($B$2:B46="PKOBP")*($E$2:E46="Sprzedaż")*$C$2:C46*$D$2:D46) -> 0 | AL46: =SUMPRODUCT(($B$2:B46="ING")*($E$2:E46="Sprzedaż")*$C$2:C46*$D$2:D46) -> 0 | AM46: =SUMPRODUCT(($B$2:B46="GETIN")*($E$2:E46="Sprzedaż")*$C$2:C46*$D$2:D46) -> 0 | AN46: =SUMPRODUCT(($B$2:B46="Handlowy")*($E$2:E46="Sprzedaż")*$C$2:C46*$D$2:D46) -> 0 | AO46: =SUMPRODUCT(($B$2:B46="SANTANDER")*($E$2:E46="Sprzedaż")*$C$2:C46*$D$2:D46) -> 0 | AP46: =SUMPRODUCT(($B$2:B46="MBANK")*($E$2:E46="Sprzedaż")*$C$2:C46*$D$2:D46) -> 0 | AQ46: =SUMPRODUCT(($B$2:B46="Alior")*($E$2:E46="Sprzedaż")*$C$2:C46*$D$2:D46) -> 0 | AR46: =SUMPRODUCT(($B$2:B46="Idea")*($E$2:E46="Sprzedaż")*$C$2:C46*$D$2:D46) -> 0 | AS46: 352.5 | AT46: 6254 | AU46: 1746.9 | AV46: 8966.5 | AW46: 109.5 | AX46: 2866.72 | AY46: 14077.6 | AZ46: 16640 | BA46: 2718.8 | BB46: 1024 | BC46: 4397.41 | BD46: 1785.51 | BE46: =(VLOOKUP(A46,WIG_B[],2,TRUE)/VLOOKUP(A45,WIG_B[],2,TRUE)-1)*$L$1+BE45 -> 91624.17552 | BF46: 20485.90588 | BG46: =Portfel[[#This Row],[WIG.B]]-Portfel[[#This Row],[Portfel. S]] -> 87226.76552 | BH46: 52.1 | BI46: 338.6 | BJ46: 186.04 | BK46: 442.1 | BL46: 15.9 | BM46: 99.87 | BN46: 797.7 | BO46: 2135.2 | BP46: 249.8 | BQ46: 80.1 | BR46: 11.5 | BS46: 176 | BT46: 104.65 | BU46: -59 | BV46: 6.8 | BW46: 66.76 | BX46: 372.8 | BY46: 980 | BZ46: 102 | CA46: 24
A47: 42796 | B47: Handlowy | C47: 72.981 | D47: -10 | E47: Kupno | F47: -0.002795248078 | G47: -0.0670174429 | H47: -0.1375700525 | I47: Makro | L47: 448911.08 | O47: =SUMIFS($D$2:D47,$B$2:B47,"MIL") -> -50 | P47: =SUMIFS($D$2:D47,$B$2:B47,"PEKAO") -> -50 | Q47: =SUMIFS($D$2:D47,$B$2:B47,"PKOBP") -> -50 | R47: =SUMIFS($D$2:D47,$B$2:B47,"ING") -> -50 | S47: =SUMIFS($D$2:D47,$B$2:B47,"GETIN") -> -50 | T47: =SUMIFS($D$2:D47,$B$2:B47,"Handlowy") -> -50 | U47: =SUMIFS($D$2:D47,$B$2:B47,"SANTANDER") -> -40 | V47: =SUMIFS($D$2:D47,$B$2:B47,"MBANK") -> -40 | W47: =SUMIFS($D$2:D47,$B$2:B47,"Alior") -> -40 | X47: =SUMIFS($D$2:D47,$B$2:B47,"Idea") -> -40 | Y47: =SUMPRODUCT(($B$2:B47="MIL")*($E$2:E47="Kupno")*$C$2:C47*$D$2:D47) -> -300.4 | Z47: =SUMPRODUCT(($B$2:B47="PEKAO")*($E$2:E47="Kupno")*$C$2:C47*$D$2:D47) -> -5915.4 | AA47: =SUMPRODUCT(($B$2:B47="PKOBP")*($E$2:E47="Kupno")*$C$2:C47*$D$2:D47) -> -1560.86 | AB47: =SUMPRODUCT(($B$2:B47="ING")*($E$2:E47="Kupno")*$C$2:C47*$D$2:D47) -> -8524.4 | AC47: =SUMPRODUCT(($B$2:B47="GETIN")*($E$2:E47="Kupno")*$C$2:C47*$D$2:D47) -> -93.6 | AD47: =SUMPRODUCT(($B$2:B47="Handlowy")*($E$2:E47="Kupno")*$C$2:C47*$D$2:D47) -> -3496.66 | AE47: =SUMPRODUCT(($B$2:B47="SANTANDER")*($E$2:E47="Kupno")*$C$2:C47*$D$2:D47) -> -13279.9 | AF47: =SUMPRODUCT(($B$2:B47="MBANK")*($E$2:E47="Kupno")*$C$2:C47*$D$2:D47) -> -14504.8 | AG47: =SUMPRODUCT(($B$2:B47="Alior")*($E$2:E47="Kupno")*$C$2:C47*$D$2:D47) -> -2469 | AH47: =SUMPRODUCT(($B$2:B47="Idea")*($E$2:E47="Kupno")*$C$2:C47*$D$2:D47) -> -943.9 | AI47: =SUMPRODUCT(($B$2:B47="MIL")*($E$2:E47="Sprzedaż")*$C$2:C47*$D$2:D47) -> 0 | AJ47: =SUMPRODUCT(($B$2:B47="PEKAO")*($E$2:E47="Sprzedaż")*$C$2:C47*$D$2:D47) -> 0 | AK47: =SUMPRODUCT(($B$2:B47="PKOBP")*($E$2:E47="Sprzedaż")*$C$2:C47*$D$2:D47) -> 0 | AL47: =SUMPRODUCT(($B$2:B47="ING")*($E$2:E47="Sprzedaż")*$C$2:C47*$D$2:D47) -> 0 | AM47: =SUMPRODUCT(($B$2:B47="GETIN")*($E$2:E47="Sprzedaż")*$C$2:C47*$D$2:D47) -> 0 | AN47: =SUMPRODUCT(($B$2:B47="Handlowy")*($E$2:E47="Sprzedaż")*$C$2:C47*$D$2:D47) -> 0 | AO47: =SUMPRODUCT(($B$2:B47="SANTANDER")*($E$2:E47="Sprzedaż")*$C$2:C47*$D$2:D47) -> 0 | AP47: =SUMPRODUCT(($B$2:B47="MBANK")*($E$2:E47="Sprzedaż")*$C$2:C47*$D$2:D47) -> 0 | AQ47: =SUMPRODUCT(($B$2:B47="Alior")*($E$2:E47="Sprzedaż")*$C$2:C47*$D$2:D47) -> 0 | AR47: =SUMPRODUCT(($B$2:B47="Idea")*($E$2:E47="Sprzedaż")*$C$2:C47*$D$2:D47) -> 0 | AS47: 350.5 | AT47: 6271.5 | AU47: 1746.4 | AV47: 8927.5 | AW47: 112.5 | AX47: 3649.05 | AY47: 14224 | AZ47: 15877.2 | BA47: 2730.8 | BB47: 1024 | BC47: 3824.53 | BD47: -572.88 | BE47: =(VLOOKUP(A47,WIG_B[],2,TRUE)/VLOOKUP(A46,WIG_B[],2,TRUE)-1)*$L$1+BE46 -> 91484.88146 | BF47: -139.2940577 | BG47: =Portfel[[#This Row],[WIG.B]]-Portfel[[#This Row],[Portfel. S]] -> 87660.35146 | BH47: 50.1 | BI47: 356.1 | BJ47: 185.54 | BK47: 403.1 | BL47: 18.9 | BM47: 152.39 | BN47: 944.1 | BO47: 1372.4 | BP47: 261.8 | BQ47: 80.1 | BR47: -2 | BS47: 17.5 | BT47: -0.5 | BU47: -39 | BV47: 3 | BW47: 52.52 | BX47: 146.4 | BY47: -762.8 | BZ47: 12 | CA47: 0
A48: 42797 | B48: SANTANDER | C48: 349.41 | D48: -10 | E48: Kupno | F48: 0 | G48: -0.03491600126 | H48: -0.02424086317 | I48: Polityka | L48: 445416.98 | O48: =SUMIFS($D$2:D48,$B$2:B48,"MIL") -> -50 | P48: =SUMIFS($D$2:D48,$B$2:B48,"PEKAO") -> -50 | Q48: =SUMIFS($D$2:D48,$B$2:B48,"PKOBP") -> -50 | R48: =SUMIFS($D$2:D48,$B$2:B48,"ING") -> -50 | S48: =SUMIFS($D$2:D48,$B$2:B48,"GETIN") -> -50 | T48: =SUMIFS($D$2:D48,$B$2:B48,"Handlowy") -> -50 | U48: =SUMIFS($D$2:D48,$B$2:B48,"SANTANDER") -> -50 | V48: =SUMIFS($D$2:D48,$B$2:B48,"MBANK") -> -40 | W48: =SUMIFS($D$2:D48,$B$2:B48,"Alior") -> -40 | X48: =SUMIFS($D$2:D48,$B$2:B48,"Idea") -> -40 | Y48: =SUMPRODUCT(($B$2:B48="MIL")*($E$2:E48="Kupno")*$C$2:C48*$D$2:D48) -> -300.4 | Z48: =SUMPRODUCT(($B$2:B48="PEKAO")*($E$2:E48="Kupno")*$C$2:C48*$D$2:D48) -> -5915.4 | AA48: =SUMPRODUCT(($B$2:B48="PKOBP")*($E$2:E48="Kupno")*$C$2:C48*$D$2:D48) -> -1560.86 | AB48: =SUMPRODUCT(($B$2:B48="ING")*($E$2:E48="Kupno")*$C$2:C48*$D$2:D48) -> -8524.4 | AC48: =SUMPRODUCT(($B$2:B48="GETIN")*($E$2:E48="Kupno")*$C$2:C48*$D$2:D48) -> -93.6 | AD48: =SUMPRODUCT(($B$2:B48="Handlowy")*($E$2:E48="Kupno")*$C$2:C48*$D$2:D48) -> -3496.66 | AE48: =SUMPRODUCT(($B$2:B48="SANTANDER")*($E$2:E48="Kupno")*$C$2:C48*$D$2:D48) -> -16774 | AF48: =SUMPRODUCT(($B$2:B48="MBANK")*($E$2:E48="Kupno")*$C$2:C48*$D$2:D48) -> -14504.8 | AG48: =SUMPRODUCT(($B$2:B48="Alior")*($E$2:E48="Kupno")*$C$2:C48*$D$2:D48) -> -2469 | AH48: =SUMPRODUCT(($B$2:B48="Idea")*($E$2:E48="Kupno")*$C$2:C48*$D$2:D48) -> -943.9 | AI48: =SUMPRODUCT(($B$2:B48="MIL")*($E$2:E48="Sprzedaż")*$C$2:C48*$D$2:D48) -> 0 | AJ48: =SUMPRODUCT(($B$2:B48="PEKAO")*($E$2:E48="Sprzedaż")*$C$2:C48*$D$2:D48) -> 0 | AK48: =SUMPRODUCT(($B$2:B48="PKOBP")*($E$2:E48="Sprzedaż")*$C$2:C48*$D$2:D48) -> 0 | AL48: =SUMPRODUCT(($B$2:B48="ING")*($E$2:E48="Sprzedaż")*$C$2:C48*$D$2:D48) -> 0 | AM48: =SUMPRODUCT(($B$2:B48="GETIN")*($E$2:E48="Sprzedaż")*$C$2:C48*$D$2:D48) -> 0 | AN48: =SUMPRODUCT(($B$2:B48="Handlowy")*($E$2:E48="Sprzedaż")*$C$2:C48*$D$2:D48) -> 0 | AO48: =SUMPRODUCT(($B$2:B48="SANTANDER")*($E$2:E48="Sprzedaż")*$C$2:C48*$D$2:D48) -> 0 | AP48: =SUMPRODUCT(($B$2:B48="MBANK")*($E$2:E48="Sprzedaż")*$C$2:C48*$D$2:D48) -> 0 | AQ48: =SUMPRODUCT(($B$2:B48="Alior")*($E$2:E48="Sprzedaż")*$C$2:C48*$D$2:D48) -> 0 | AR48: =SUMPRODUCT(($B$2:B48="Idea")*($E$2:E48="Sprzedaż")*$C$2:C48*$D$2:D48) -> 0 | AS48: 352.5 | AT48: 6124 | AU48: 1707.4 | AV48: 8777.5 | AW48: 110.5 | AX48: 3638.85 | AY48: 17470.5 | AZ48: 15828 | BA48: 2630.8 | BB48: 1030.4 | BC48: 3087.43 | BD48: -737.1 | BE48: =(VLOOKUP(A48,WIG_B[],2,TRUE)/VLOOKUP(A47,WIG_B[],2,TRUE)-1)*$L$1+BE47 -> 81884.84643 | BF48: -9600.035032 | BG48: =Portfel[[#This Row],[WIG.B]]-Portfel[[#This Row],[Portfel. S]] -> 78797.41643 | BH48: 52.1 | BI48: 208.6 | BJ48: 146.54 | BK48: 253.1 | BL48: 16.9 | BM48: 142.19 | BN48: 696.5 | BO48: 1323.2 | BP48: 161.8 | BQ48: 86.5 | BR48: 2 | BS48: -147.5 | BT48: -39 | BU48: -150 | BV48: -2 | BW48: -10.2 | BX48: -247.6 | BY48: -49.2 | BZ48: -100 | CA48: 6.4
A49: 42800 | B49: MBANK | C49: 391.55 | D49: -10 | E49: Kupno | F49: -0.0258715362 | G49: -0.01930787894 | H49: 0.08389733112 | I49: Sprawozdanie | L49: 441501.48 | O49: =SUMIFS($D$2:D49,$B$2:B49,"MIL") -> -50 | P49: =SUMIFS($D$2:D49,$B$2:B49,"PEKAO") -> -50 | Q49: =SUMIFS($D$2:D49,$B$2:B49,"PKOBP") -> -50 | R49: =SUMIFS($D$2:D49,$B$2:B49,"ING") -> -50 | S49: =SUMIFS($D$2:D49,$B$2:B49,"GETIN") -> -50 | T49: =SUMIFS($D$2:D49,$B$2:B49,"Handlowy") -> -50 | U49: =SUMIFS($D$2:D49,$B$2:B49,"SANTANDER") -> -50 | V49: =SUMIFS($D$2:D49,$B$2:B49,"MBANK") -> -50 | W49: =SUMIFS($D$2:D49,$B$2:B49,"Alior") -> -40 | X49: =SUMIFS($D$2:D49,$B$2:B49,"Idea") -> -40 | Y49: =SUMPRODUCT(($B$2:B49="MIL")*($E$2:E49="Kupno")*$C$2:C49*$D$2:D49) -> -300.4 | Z49: =SUMPRODUCT(($B$2:B49="PEKAO")*($E$2:E49="Kupno")*$C$2:C49*$D$2:D49) -> -5915.4 | AA49: =SUMPRODUCT(($B$2:B49="PKOBP")*($E$2:E49="Kupno")*$C$2:C49*$D$2:D49) -> -1560.86 | AB49: =SUMPRODUCT(($B$2:B49="ING")*($E$2:E49="Kupno")*$C$2:C49*$D$2:D49) -> -8524.4 | AC49: =SUMPRODUCT(($B$2:B49="GETIN")*($E$2:E49="Kupno")*$C$2:C49*$D$2:D49) -> -93.6 | AD49: =SUMPRODUCT(($B$2:B49="Handlowy")*($E$2:E49="Kupno")*$C$2:C49*$D$2:D49) -> -3496.66 | AE49: =SUMPRODUCT(($B$2:B49="SANTANDER")*($E$2:E49="Kupno")*$C$2:C49*$D$2:D49) -> -16774 | AF49: =SUMPRODUCT(($B$2:B49="MBANK")*($E$2:E49="Kupno")*$C$2:C49*$D$2:D49) -> -18420.3 | AG49: =SUMPRODUCT(($B$2:B49="Alior")*($E$2:E49="Kupno")*$C$2:C49*$D$2:D49) -> -2469 | AH49: =SUMPRODUCT(($B$2:B49="Idea")*($E$2:E49="Kupno")*$C$2:C49*$D$2:D49) -> -943.9 | AI49: =SUMPRODUCT(($B$2:B49="MIL")*($E$2:E49="Sprzedaż")*$C$2:C49*$D$2:D49) -> 0 | AJ49: =SUMPRODUCT(($B$2:B49="PEKAO")*($E$2:E49="Sprzedaż")*$C$2:C49*$D$2:D49) -> 0 | AK49: =SUMPRODUCT(($B$2:B49="PKOBP")*($E$2:E49="Sprzedaż")*$C$2:C49*$D$2:D49) -> 0 | AL49: =SUMPRODUCT(($B$2:B49="ING")*($E$2:E49="Sprzedaż")*$C$2:C49*$D$2:D49) -> 0 | AM49: =SUMPRODUCT(($B$2:B49="GETIN")*($E$2:E49="Sprzedaż")*$C$2:C49*$D$2:D49) -> 0 | AN49: =SUMPRODUCT(($B$2:B49="Handlowy")*($E$2:E49="Sprzedaż")*$C$2:C49*$D$2:D49) -> 0 | AO49: =SUMPRODUCT(($B$2:B49="SANTANDER")*($E$2:E49="Sprzedaż")*$C$2:C49*$D$2:D49) -> 0 | AP49: =SUMPRODUCT(($B$2:B49="MBANK")*($E$2:E49="Sprzedaż")*$C$2:C49*$D$2:D49) -> 0 | AQ49: =SUMPRODUCT(($B$2:B49="Alior")*($E$2:E49="Sprzedaż")*$C$2:C49*$D$2:D49) -> 0 | AR49: =SUMPRODUCT(($B$2:B49="Idea")*($E$2:E49="Sprzedaż")*$C$2:C49*$D$2:D49) -> 0 | AS49: 351 | AT49: 6106 | AU49: 1690.15 | AV49: 8760 | AW49: 109.5 | AX49: 3627.75 | AY49: 17177.5 | AZ49: 19577.5 | BA49: 2587.6 | BB49: 1015.6 | BC49: 2504.08 | BD49: -583.35 | BE49: =(VLOOKUP(A49,WIG_B[],2,TRUE)/VLOOKUP(A48,WIG_B[],2,TRUE)-1)*$L$1+BE48 -> 77662.26883 | BF49: -4222.577599 | BG49: =Portfel[[#This Row],[WIG.B]]-Portfel[[#This Row],[Portfel. S]] -> 75158.18883 | BH49: 50.6 | BI49: 190.6 | BJ49: 129.29 | BK49: 235.6 | BL49: 15.9 | BM49: 131.09 | BN49: 403.5 | BO49: 1157.2 | BP49: 118.6 | BQ49: 71.7 | BR49: -1.5 | BS49: -18 | BT49: -17.25 | BU49: -17.5 | BV49: -1 | BW49: -11.1 | BX49: -293 | BY49: -166 | BZ49: -43.2 | CA49: -14.8
A50: 42801 | B50: Alior | C50: 63.1 | D50: -10 | E50: Kupno | F50: 0.09793977813 | G50: 0.1434231379 | H50: 0.1014263074 | I50: Makro | L50: 440870.48 | O50: =SUMIFS($D$2:D50,$B$2:B50,"MIL") -> -50 | P50: =SUMIFS($D$2:D50,$B$2:B50,"PEKAO") -> -50 | Q50: =SUMIFS($D$2:D50,$B$2:B50,"PKOBP") -> -50 | R50: =SUMIFS($D$2:D50,$B$2:B50,"ING") -> -50 | S50: =SUMIFS($D$2:D50,$B$2:B50,"GETIN") -> -50 | T50: =SUMIFS($D$2:D50,$B$2:B50,"Handlowy") -> -50 | U50: =SUMIFS($D$2:D50,$B$2:B50,"SANTANDER") -> -50 | V50: =SUMIFS($D$2:D50,$B$2:B50,"MBANK") -> -50 | W50: =SUMIFS($D$2:D50,$B$2:B50,"Alior") -> -50 | X50: =SUMIFS($D$2:D50,$B$2:B50,"Idea") -> -40 | Y50: =SUMPRODUCT(($B$2:B50="MIL")*($E$2:E50="Kupno")*$C$2:C50*$D$2:D50) -> -300.4 | Z50: =SUMPRODUCT(($B$2:B50="PEKAO")*($E$2:E50="Kupno")*$C$2:C50*$D$2:D50) -> -5915.4 | AA50: =SUMPRODUCT(($B$2:B50="PKOBP")*($E$2:E50="Kupno")*$C$2:C50*$D$2:D50) -> -1560.86 | AB50: =SUMPRODUCT(($B$2:B50="ING")*($E$2:E50="Kupno")*$C$2:C50*$D$2:D50) -> -8524.4 | AC50: =SUMPRODUCT(($B$2:B50="GETIN")*($E$2:E50="Kupno")*$C$2:C50*$D$2:D50) -> -93.6 | AD50: =SUMPRODUCT(($B$2:B50="Handlowy")*($E$2:E50="Kupno")*$C$2:C50*$D$2:D50) -> -3496.66 | AE50: =SUMPRODUCT(($B$2:B50="SANTANDER")*($E$2:E50="Kupno")*$C$2:C50*$D$2:D50) -> -16774 | AF50: =SUMPRODUCT(($B$2:B50="MBANK")*($E$2:E50="Kupno")*$C$2:C50*$D$2:D50) -> -18420.3 | AG50: =SUMPRODUCT(($B$2:B50="Alior")*($E$2:E50="Kupno")*$C$2:C50*$D$2:D50) -> -3100 | AH50: =SUMPRODUCT(($B$2:B50="Idea")*($E$2:E50="Kupno")*$C$2:C50*$D$2:D50) -> -943.9 | AI50: =SUMPRODUCT(($B$2:B50="MIL")*($E$2:E50="Sprzedaż")*$C$2:C50*$D$2:D50) -> 0 | AJ50: =SUMPRODUCT(($B$2:B50="PEKAO")*($E$2:E50="Sprzedaż")*$C$2:C50*$D$2:D50) -> 0 | AK50: =SUMPRODUCT(($B$2:B50="PKOBP")*($E$2:E50="Sprzedaż")*$C$2:C50*$D$2:D50) -> 0 | AL50: =SUMPRODUCT(($B$2:B50="ING")*($E$2:E50="Sprzedaż")*$C$2:C50*$D$2:D50) -> 0 | AM50: =SUMPRODUCT(($B$2:B50="GETIN")*($E$2:E50="Sprzedaż")*$C$2:C50*$D$2:D50) -> 0 | AN50: =SUMPRODUCT(($B$2:B50="Handlowy")*($E$2:E50="Sprzedaż")*$C$2:C50*$D$2:D50) -> 0 | AO50: =SUMPRODUCT(($B$2:B50="SANTANDER")*($E$2:E50="Sprzedaż")*$C$2:C50*$D$2:D50) -> 0 | AP50: =SUMPRODUCT(($B$2:B50="MBANK")*($E$2:E50="Sprzedaż")*$C$2:C50*$D$2:D50) -> 0 | AQ50: =SUMPRODUCT(($B$2:B50="Alior")*($E$2:E50="Sprzedaż")*$C$2:C50*$D$2:D50) -> 0 | AR50: =SUMPRODUCT(($B$2:B50="Idea")*($E$2:E50="Sprzedaż")*$C$2:C50*$D$2:D50) -> 0 | AS50: 340 | AT50: 5997.5 | AU50: 1645.75 | AV50: 8686.5 | AW50: 107.5 | AX50: 3579.35 | AY50: 16982 | AZ50: 19515.5 | BA50: 3155 | BB50: 1000 | BC50: 1879.58 | BD50: -624.5 | BE50: =(VLOOKUP(A50,WIG_B[],2,TRUE)/VLOOKUP(A49,WIG_B[],2,TRUE)-1)*$L$1+BE49 -> 68030.40549 | BF50: -9631.863334 | BG50: =Portfel[[#This Row],[WIG.B]]-Portfel[[#This Row],[Portfel. S]] -> 66150.82549 | BH50: 39.6 | BI50: 82.1 | BJ50: 84.89 | BK50: 162.1 | BL50: 13.9 | BM50: 82.69 | BN50: 208 | BO50: 1095.2 | BP50: 55 | BQ50: 56.1 | BR50: -11 | BS50: -108.5 | BT50: -44.4 | BU50: -73.5 | BV50: -2 | BW50: -48.4 | BX50: -195.5 | BY50: -62 | BZ50: -63.6 | CA50: -15.6
A51: 42802 | B51: Idea | C51: 25.18 | D51: -10 | E51: Kupno | F51: -0.006354249404 | G51: -0.01866560763 | H51: -0.04686258936 | I51: Polityka | L51: 440618.68 | O51: =SUMIFS($D$2:D51,$B$2:B51,"MIL") -> -50 | P51: =SUMIFS($D$2:D51,$B$2:B51,"PEKAO") -> -50 | Q51: =SUMIFS($D$2:D51,$B$2:B51,"PKOBP") -> -50 | R51: =SUMIFS($D$2:D51,$B$2:B51,"ING") -> -50 | S51: =SUMIFS($D$2:D51,$B$2:B51,"GETIN") -> -50 | T51: =SUMIFS($D$2:D51,$B$2:B51,"Handlowy") -> -50 | U51: =SUMIFS($D$2:D51,$B$2:B51,"SANTANDER") -> -50 | V51: =SUMIFS($D$2:D51,$B$2:B51,"MBANK") -> -50 | W51: =SUMIFS($D$2:D51,$B$2:B51,"Alior") -> -50 | X51: =SUMIFS($D$2:D51,$B$2:B51,"Idea") -> -50 | Y51: =SUMPRODUCT(($B$2:B51="MIL")*($E$2:E51="Kupno")*$C$2:C51*$D$2:D51) -> -300.4 | Z51: =SUMPRODUCT(($B$2:B51="PEKAO")*($E$2:E51="Kupno")*$C$2:C51*$D$2:D51) -> -5915.4 | AA51: =SUMPRODUCT(($B$2:B51="PKOBP")*($E$2:E51="Kupno")*$C$2:C51*$D$2:D51) -> -1560.86 | AB51: =SUMPRODUCT(($B$2:B51="ING")*($E$2:E51="Kupno")*$C$2:C51*$D$2:D51) -> -8524.4 | AC51: =SUMPRODUCT(($B$2:B51="GETIN")*($E$2:E51="Kupno")*$C$2:C51*$D$2:D51) -> -93.6 | AD51: =SUMPRODUCT(($B$2:B51="Handlowy")*($E$2:E51="Kupno")*$C$2:C51*$D$2:D51) -> -3496.66 | AE51: =SUMPRODUCT(($B$2:B51="SANTANDER")*($E$2:E51="Kupno")*$C$2:C51*$D$2:D51) -> -16774 | AF51: =SUMPRODUCT(($B$2:B51="MBANK")*($E$2:E51="Kupno")*$C$2:C51*$D$2:D51) -> -18420.3 | AG51: =SUMPRODUCT(($B$2:B51="Alior")*($E$2:E51="Kupno")*$C$2:C51*$D$2:D51) -> -3100 | AH51: =SUMPRODUCT(($B$2:B51="Idea")*($E$2:E51="Kupno")*$C$2:C51*$D$2:D51) -> -1195.7 | AI51: =SUMPRODUCT(($B$2:B51="MIL")*($E$2:E51="Sprzedaż")*$C$2:C51*$D$2:D51) -> 0 | AJ51: =SUMPRODUCT(($B$2:B51="PEKAO")*($E$2:E51="Sprzedaż")*$C$2:C51*$D$2:D51) -> 0 | AK51: =SUMPRODUCT(($B$2:B51="PKOBP")*($E$2:E51="Sprzedaż")*$C$2:C51*$D$2:D51) -> 0 | AL51: =SUMPRODUCT(($B$2:B51="ING")*($E$2:E51="Sprzedaż")*$C$2:C51*$D$2:D51) -> 0 | AM51: =SUMPRODUCT(($B$2:B51="GETIN")*($E$2:E51="Sprzedaż")*$C$2:C51*$D$2:D51) -> 0 | AN51: =SUMPRODUCT(($B$2:B51="Handlowy")*($E$2:E51="Sprzedaż")*$C$2:C51*$D$2:D51) -> 0 | AO51: =SUMPRODUCT(($B$2:B51="SANTANDER")*($E$2:E51="Sprzedaż")*$C$2:C51*$D$2:D51) -> 0 | AP51: =SUMPRODUCT(($B$2:B51="MBANK")*($E$2:E51="Sprzedaż")*$C$2:C51*$D$2:D51) -> 0 | AQ51: =SUMPRODUCT(($B$2:B51="Alior")*($E$2:E51="Sprzedaż")*$C$2:C51*$D$2:D51) -> 0 | AR51: =SUMPRODUCT(($B$2:B51="Idea")*($E$2:E51="Sprzedaż")*$C$2:C51*$D$2:D51) -> 0 | AS51: 331 | AT51: 5928.5 | AU51: 1617.6 | AV51: 8701 | AW51: 104.5 | AX51: 3512.4 | AY51: 17575.5 | AZ51: 20054 | BA51: 3299 | BB51: 1259 | BC51: 3001.18 | BD51: 1121.6 | BE51: =(VLOOKUP(A51,WIG_B[],2,TRUE)/VLOOKUP(A50,WIG_B[],2,TRUE)-1)*$L$1+BE50 -> 67213.72348 | BF51: -816.6820171 | BG51: =Portfel[[#This Row],[WIG.B]]-Portfel[[#This Row],[Portfel. S]] -> 64212.54348 | BH51: 30.6 | BI51: 13.1 | BJ51: 56.74 | BK51: 176.6 | BL51: 10.9 | BM51: 15.74 | BN51: 801.5 | BO51: 1633.7 | BP51: 199 | BQ51: 63.3 | BR51: -9 | BS51: -69 | BT51: -28.15 | BU51: 14.5 | BV51: -3 | BW51: -66.95 | BX51: 593.5 | BY51: 538.5 | BZ51: 144 | CA51: 7.2
A52: 42803 | B52: MIL | C52: 6.63 | D52: -10 | E52: Kupno | F52: -0.004524886878 | G52: -0.01055806938 | H52: 0.08597285068 | I52: Sprawozdanie | L52: 440552.38 | O52: =SUMIFS($D$2:D52,$B$2:B52,"MIL") -> -60 | P52: =SUMIFS($D$2:D52,$B$2:B52,"PEKAO") -> -50 | Q52: =SUMIFS($D$2:D52,$B$2:B52,"PKOBP") -> -50 | R52: =SUMIFS($D$2:D52,$B$2:B52,"ING") -> -50 | S52: =SUMIFS($D$2:D52,$B$2:B52,"GETIN") -> -50 | T52: =SUMIFS($D$2:D52,$B$2:B52,"Handlowy") -> -50 | U52: =SUMIFS($D$2:D52,$B$2:B52,"SANTANDER") -> -50 | V52: =SUMIFS($D$2:D52,$B$2:B52,"MBANK") -> -50 | W52: =SUMIFS($D$2:D52,$B$2:B52,"Alior") -> -50 | X52: =SUMIFS($D$2:D52,$B$2:B52,"Idea") -> -50 | Y52: =SUMPRODUCT(($B$2:B52="MIL")*($E$2:E52="Kupno")*$C$2:C52*$D$2:D52) -> -366.7 | Z52: =SUMPRODUCT(($B$2:B52="PEKAO")*($E$2:E52="Kupno")*$C$2:C52*$D$2:D52) -> -5915.4 | AA52: =SUMPRODUCT(($B$2:B52="PKOBP")*($E$2:E52="Kupno")*$C$2:C52*$D$2:D52) -> -1560.86 | AB52: =SUMPRODUCT(($B$2:B52="ING")*($E$2:E52="Kupno")*$C$2:C52*$D$2:D52) -> -8524.4 | AC52: =SUMPRODUCT(($B$2:B52="GETIN")*($E$2:E52="Kupno")*$C$2:C52*$D$2:D52) -> -93.6 | AD52: =SUMPRODUCT(($B$2:B52="Handlowy")*($E$2:E52="Kupno")*$C$2:C52*$D$2:D52) -> -3496.66 | AE52: =SUMPRODUCT(($B$2:B52="SANTANDER")*($E$2:E52="Kupno")*$C$2:C52*$D$2:D52) -> -16774 | AF52: =SUMPRODUCT(($B$2:B52="MBANK")*($E$2:E52="Kupno")*$C$2:C52*$D$2:D52) -> -18420.3 | AG52: =SUMPRODUCT(($B$2:B52="Alior")*($E$2:E52="Kupno")*$C$2:C52*$D$2:D52) -> -3100 | AH52: =SUMPRODUCT(($B$2:B52="Idea")*($E$2:E52="Kupno")*$C$2:C52*$D$2:D52) -> -1195.7 | AI52: =SUMPRODUCT(($B$2:B52="MIL")*($E$2:E52="Sprzedaż")*$C$2:C52*$D$2:D52) -> 0 | AJ52: =SUMPRODUCT(($B$2:B52="PEKAO")*($E$2:E52="Sprzedaż")*$C$2:C52*$D$2:D52) -> 0 | AK52: =SUMPRODUCT(($B$2:B52="PKOBP")*($E$2:E52="Sprzedaż")*$C$2:C52*$D$2:D52) -> 0 | AL52: =SUMPRODUCT(($B$2:B52="ING")*($E$2:E52="Sprzedaż")*$C$2:C52*$D$2:D52) -> 0 | AM52: =SUMPRODUCT(($B$2:B52="GETIN")*($E$2:E52="Sprzedaż")*$C$2:C52*$D$2:D52) -> 0 | AN52: =SUMPRODUCT(($B$2:B52="Handlowy")*($E$2:E52="Sprzedaż")*$C$2:C52*$D$2:D52) -> 0 | AO52: =SUMPRODUCT(($B$2:B52="SANTANDER")*($E$2:E52="Sprzedaż")*$C$2:C52*$D$2:D52) -> 0 | AP52: =SUMPRODUCT(($B$2:B52="MBANK")*($E$2:E52="Sprzedaż")*$C$2:C52*$D$2:D52) -> 0 | AQ52: =SUMPRODUCT(($B$2:B52="Alior")*($E$2:E52="Sprzedaż")*$C$2:C52*$D$2:D52) -> 0 | AR52: =SUMPRODUCT(($B$2:B52="Idea")*($E$2:E52="Sprzedaż")*$C$2:C52*$D$2:D52) -> 0 | AS52: 397.8 | AT52: 5863 | AU52: 1621.05 | AV52: 8460 | AW52: 101 | AX52: 3485.3 | AY52: 17077.5 | AZ52: 19268.5 | BA52: 3265 | BB52: 1257 | BC52: 1348.53 | BD52: -1652.65 | BE52: =(VLOOKUP(A52,WIG_B[],2,TRUE)/VLOOKUP(A51,WIG_B[],2,TRUE)-1)*$L$1+BE51 -> 61621.37801 | BF52: -5592.345468 | BG52: =Portfel[[#This Row],[WIG.B]]-Portfel[[#This Row],[Portfel. S]] -> 60272.84801 | BH52: 31.1 | BI52: -52.4 | BJ52: 60.19 | BK52: -64.4 | BL52: 7.4 | BM52: -11.36 | BN52: 303.5 | BO52: 848.2 | BP52: 165 | BQ52: 61.3 | BR52: 0.5 | BS52: -65.5 | BT52: 3.45 | BU52: -241 | BV52: -3.5 | BW52: -27.1 | BX52: -498 | BY52: -785.5 | BZ52: -34 | CA52: -2
A53: 42804 | B53: PEKAO | C53: 117.43 | D53: -10 | E53: Kupno | F53: 0 | G53: 0.01107042493 | H53: -0.02358852082 | I53: Makro | L53: 439378.08 | O53: =SUMIFS($D$2:D53,$B$2:B53,"MIL") -> -60 | P53: =SUMIFS($D$2:D53,$B$2:B53,"PEKAO") -> -60 | Q53: =SUMIFS($D$2:D53,$B$2:B53,"PKOBP") -> -50 | R53: =SUMIFS($D$2:D53,$B$2:B53,"ING") -> -50 | S53: =SUMIFS($D$2:D53,$B$2:B53,"GETIN") -> -50 | T53: =SUMIFS($D$2:D53,$B$2:B53,"Handlowy") -> -50 | U53: =SUMIFS($D$2:D53,$B$2:B53,"SANTANDER") -> -50 | V53: =SUMIFS($D$2:D53,$B$2:B53,"MBANK") -> -50 | W53: =SUMIFS($D$2:D53,$B$2:B53,"Alior") -> -50 | X53: =SUMIFS($D$2:D53,$B$2:B53,"Idea") -> -50 | Y53: =SUMPRODUCT(($B$2:B53="MIL")*($E$2:E53="Kupno")*$C$2:C53*$D$2:D53) -> -366.7 | Z53: =SUMPRODUCT(($B$2:B53="PEKAO")*($E$2:E53="Kupno")*$C$2:C53*$D$2:D53) -> -7089.7 | AA53: =SUMPRODUCT(($B$2:B53="PKOBP")*($E$2:E53="Kupno")*$C$2:C53*$D$2:D53) -> -1560.86 | AB53: =SUMPRODUCT(($B$2:B53="ING")*($E$2:E53="Kupno")*$C$2:C53*$D$2:D53) -> -8524.4 | AC53: =SUMPRODUCT(($B$2:B53="GETIN")*($E$2:E53="Kupno")*$C$2:C53*$D$2:D53) -> -93.6 | AD53: =SUMPRODUCT(($B$2:B53="Handlowy")*($E$2:E53="Kupno")*$C$2:C53*$D$2:D53) -> -3496.66 | AE53: =SUMPRODUCT(($B$2:B53="SANTANDER")*($E$2:E53="Kupno")*$C$2:C53*$D$2:D53) -> -16774 | AF53: =SUMPRODUCT(($B$2:B53="MBANK")*($E$2:E53="Kupno")*$C$2:C53*$D$2:D53) -> -18420.3 | AG53: =SUMPRODUCT(($B$2:B53="Alior")*($E$2:E53="Kupno")*$C$2:C53*$D$2:D53) -> -3100 | AH53: =SUMPRODUCT(($B$2:B53="Idea")*($E$2:E53="Kupno")*$C$2:C53*$D$2:D53) -> -1195.7 | AI53: =SUMPRODUCT(($B$2:B53="MIL")*($E$2:E53="Sprzedaż")*$C$2:C53*$D$2:D53) -> 0 | AJ53: =SUMPRODUCT(($B$2:B53="PEKAO")*($E$2:E53="Sprzedaż")*$C$2:C53*$D$2:D53) -> 0 | AK53: =SUMPRODUCT(($B$2:B53="PKOBP")*($E$2:E53="Sprzedaż")*$C$2:C53*$D$2:D53) -> 0 | AL53: =SUMPRODUCT(($B$2:B53="ING")*($E$2:E53="Sprzedaż")*$C$2:C53*$D$2:D53) -> 0 | AM53: =SUMPRODUCT(($B$2:B53="GETIN")*($E$2:E53="Sprzedaż")*$C$2:C53*$D$2:D53) -> 0 | AN53: =SUMPRODUCT(($B$2:B53="Handlowy")*($E$2:E53="Sprzedaż")*$C$2:C53*$D$2:D53) -> 0 | AO53: =SUMPRODUCT(($B$2:B53="SANTANDER")*($E$2:E53="Sprzedaż")*$C$2:C53*$D$2:D53) -> 0 | AP53: =SUMPRODUCT(($B$2:B53="MBANK")*($E$2:E53="Sprzedaż")*$C$2:C53*$D$2:D53) -> 0 | AQ53: =SUMPRODUCT(($B$2:B53="Alior")*($E$2:E53="Sprzedaż")*$C$2:C53*$D$2:D53) -> 0 | AR53: =SUMPRODUCT(($B$2:B53="Idea")*($E$2:E53="Sprzedaż")*$C$2:C53*$D$2:D53) -> 0 | AS53: 396 | AT53: 7045.8 | AU53: 1612.15 | AV53: 8524 | AW53: 101 | AX53: 3522.55 | AY53: 16884.5 | AZ53: 19071 | BA53: 3464 | BB53: 1251 | BC53: 1250.08 | BD53: -98.45 | BE53: =(VLOOKUP(A53,WIG_B[],2,TRUE)/VLOOKUP(A52,WIG_B[],2,TRUE)-1)*$L$1+BE52 -> 62359.86175 | BF53: 738.4837407 | BG53: =Portfel[[#This Row],[WIG.B]]-Portfel[[#This Row],[Portfel. S]] -> 61109.78175 | BH53: 29.3 | BI53: -43.9 | BJ53: 51.29 | BK53: -0.4 | BL53: 7.4 | BM53: 25.89 | BN53: 110.5 | BO53: 650.7 | BP53: 364 | BQ53: 55.3 | BR53: -1.8 | BS53: 8.5 | BT53: -8.9 | BU53: 64 | BV53: 0 | BW53: 37.25 | BX53: -193 | BY53: -197.5 | BZ53: 199 | CA53: -6
A54: 42807 | B54: PKOBP | C54: 33.013 | D54: -10 | E54: Kupno | F54: 0.007178990095 | G54: -0.04452791325 | H54: 0.05861327356 | I54: Polityka | L54: 439047.95 | O54: =SUMIFS($D$2:D54,$B$2:B54,"MIL") -> -60 | P54: =SUMIFS($D$2:D54,$B$2:B54,"PEKAO") -> -60 | Q54: =SUMIFS($D$2:D54,$B$2:B54,"PKOBP") -> -60 | R54: =SUMIFS($D$2:D54,$B$2:B54,"ING") -> -50 | S54: =SUMIFS($D$2:D54,$B$2:B54,"GETIN") -> -50 | T54: =SUMIFS($D$2:D54,$B$2:B54,"Handlowy") -> -50 | U54: =SUMIFS($D$2:D54,$B$2:B54,"SANTANDER") -> -50 | V54: =SUMIFS($D$2:D54,$B$2:B54,"MBANK") -> -50 | W54: =SUMIFS($D$2:D54,$B$2:B54,"Alior") -> -50 | X54: =SUMIFS($D$2:D54,$B$2:B54,"Idea") -> -50 | Y54: =SUMPRODUCT(($B$2:B54="MIL")*($E$2:E54="Kupno")*$C$2:C54*$D$2:D54) -> -366.7 | Z54: =SUMPRODUCT(($B$2:B54="PEKAO")*($E$2:E54="Kupno")*$C$2:C54*$D$2:D54) -> -7089.7 | AA54: =SUMPRODUCT(($B$2:B54="PKOBP")*($E$2:E54="Kupno")*$C$2:C54*$D$2:D54) -> -1890.99 | AB54: =SUMPRODUCT(($B$2:B54="ING")*($E$2:E54="Kupno")*$C$2:C54*$D$2:D54) -> -8524.4 | AC54: =SUMPRODUCT(($B$2:B54="GETIN")*($E$2:E54="Kupno")*$C$2:C54*$D$2:D54) -> -93.6 | AD54: =SUMPRODUCT(($B$2:B54="Handlowy")*($E$2:E54="Kupno")*$C$2:C54*$D$2:D54) -> -3496.66 | AE54: =SUMPRODUCT(($B$2:B54="SANTANDER")*($E$2:E54="Kupno")*$C$2:C54*$D$2:D54) -> -16774 | AF54: =SUMPRODUCT(($B$2:B54="MBANK")*($E$2:E54="Kupno")*$C$2:C54*$D$2:D54) -> -18420.3 | AG54: =SUMPRODUCT(($B$2:B54="Alior")*($E$2:E54="Kupno")*$C$2:C54*$D$2:D54) -> -3100 | AH54: =SUMPRODUCT(($B$2:B54="Idea")*($E$2:E54="Kupno")*$C$2:C54*$D$2:D54) -> -1195.7 | AI54: =SUMPRODUCT(($B$2:B54="MIL")*($E$2:E54="Sprzedaż")*$C$2:C54*$D$2:D54) -> 0 | AJ54: =SUMPRODUCT(($B$2:B54="PEKAO")*($E$2:E54="Sprzedaż")*$C$2:C54*$D$2:D54) -> 0 | AK54: =SUMPRODUCT(($B$2:B54="PKOBP")*($E$2:E54="Sprzedaż")*$C$2:C54*$D$2:D54) -> 0 | AL54: =SUMPRODUCT(($B$2:B54="ING")*($E$2:E54="Sprzedaż")*$C$2:C54*$D$2:D54) -> 0 | AM54: =SUMPRODUCT(($B$2:B54="GETIN")*($E$2:E54="Sprzedaż")*$C$2:C54*$D$2:D54) -> 0 | AN54: =SUMPRODUCT(($B$2:B54="Handlowy")*($E$2:E54="Sprzedaż")*$C$2:C54*$D$2:D54) -> 0 | AO54: =SUMPRODUCT(($B$2:B54="SANTANDER")*($E$2:E54="Sprzedaż")*$C$2:C54*$D$2:D54) -> 0 | AP54: =SUMPRODUCT(($B$2:B54="MBANK")*($E$2:E54="Sprzedaż")*$C$2:C54*$D$2:D54) -> 0 | AQ54: =SUMPRODUCT(($B$2:B54="Alior")*($E$2:E54="Sprzedaż")*$C$2:C54*$D$2:D54) -> 0 | AR54: =SUMPRODUCT(($B$2:B54="Idea")*($E$2:E54="Sprzedaż")*$C$2:C54*$D$2:D54) -> 0 | AS54: 398.4 | AT54: 7168.8 | AU54: 1980.78 | AV54: 8799.5 | AW54: 103 | AX54: 3630.45 | AY54: 17206.5 | AZ54: 19710.5 | BA54: 3650 | BB54: 1250 | BC54: 2945.88 | BD54: 1695.8 | BE54: =(VLOOKUP(A54,WIG_B[],2,TRUE)/VLOOKUP(A53,WIG_B[],2,TRUE)-1)*$L$1+BE53 -> 74400.92506 | BF54: 12041.06331 | BG54: =Portfel[[#This Row],[WIG.B]]-Portfel[[#This Row],[Portfel. S]] -> 71455.04506 | BH54: 31.7 | BI54: 79.1 | BJ54: 89.79 | BK54: 275.1 | BL54: 9.4 | BM54: 133.79 | BN54: 432.5 | BO54: 1290.2 | BP54: 550 | BQ54: 54.3 | BR54: 2.4 | BS54: 123 | BT54: 38.5 | BU54: 275.5 | BV54: 2 | BW54: 107.9 | BX54: 322 | BY54: 639.5 | BZ54: 186 | CA54: -1
A55: 42808 | B55: ING | C55: 176.09 | D55: -10 | E55: Kupno | F55: -0.005054233631 | G55: -0.0586631836 | H55: 0.01141461753 | I55: Sprawozdanie | L55: 437287.05 | O55: =SUMIFS($D$2:D55,$B$2:B55,"MIL") -> -60 | P55: =SUMIFS($D$2:D55,$B$2:B55,"PEKAO") -> -60 | Q55: =SUMIFS($D$2:D55,$B$2:B55,"PKOBP") -> -60 | R55: =SUMIFS($D$2:D55,$B$2:B55,"ING") -> -60 | S55: =SUMIFS($D$2:D55,$B$2:B55,"GETIN") -> -50 | T55: =SUMIFS($D$2:D55,$B$2:B55,"Handlowy") -> -50 | U55: =SUMIFS($D$2:D55,$B$2:B55,"SANTANDER") -> -50 | V55: =SUMIFS($D$2:D55,$B$2:B55,"MBANK") -> -50 | W55: =SUMIFS($D$2:D55,$B$2:B55,"Alior") -> -50 | X55: =SUMIFS($D$2:D55,$B$2:B55,"Idea") -> -50 | Y55: =SUMPRODUCT(($B$2:B55="MIL")*($E$2:E55="Kupno")*$C$2:C55*$D$2:D55) -> -366.7 | Z55: =SUMPRODUCT(($B$2:B55="PEKAO")*($E$2:E55="Kupno")*$C$2:C55*$D$2:D55) -> -7089.7 | AA55: =SUMPRODUCT(($B$2:B55="PKOBP")*($E$2:E55="Kupno")*$C$2:C55*$D$2:D55) -> -1890.99 | AB55: =SUMPRODUCT(($B$2:B55="ING")*($E$2:E55="Kupno")*$C$2:C55*$D$2:D55) -> -10285.3 | AC55: =SUMPRODUCT(($B$2:B55="GETIN")*($E$2:E55="Kupno")*$C$2:C55*$D$2:D55) -> -93.6 | AD55: =SUMPRODUCT(($B$2:B55="Handlowy")*($E$2:E55="Kupno")*$C$2:C55*$D$2:D55) -> -3496.66 | AE55: =SUMPRODUCT(($B$2:B55="SANTANDER")*($E$2:E55="Kupno")*$C$2:C55*$D$2:D55) -> -16774 | AF55: =SUMPRODUCT(($B$2:B55="MBANK")*($E$2:E55="Kupno")*$C$2:C55*$D$2:D55) -> -18420.3 | AG55: =SUMPRODUCT(($B$2:B55="Alior")*($E$2:E55="Kupno")*$C$2:C55*$D$2:D55) -> -3100 | AH55: =SUMPRODUCT(($B$2:B55="Idea")*($E$2:E55="Kupno")*$C$2:C55*$D$2:D55) -> -1195.7 | AI55: =SUMPRODUCT(($B$2:B55="MIL")*($E$2:E55="Sprzedaż")*$C$2:C55*$D$2:D55) -> 0 | AJ55: =SUMPRODUCT(($B$2:B55="PEKAO")*($E$2:E55="Sprzedaż")*$C$2:C55*$D$2:D55) -> 0 | AK55: =SUMPRODUCT(($B$2:B55="PKOBP")*($E$2:E55="Sprzedaż")*$C$2:C55*$D$2:D55) -> 0 | AL55: =SUMPRODUCT(($B$2:B55="ING")*($E$2:E55="Sprzedaż")*$C$2:C55*$D$2:D55) -> 0 | AM55: =SUMPRODUCT(($B$2:B55="GETIN")*($E$2:E55="Sprzedaż")*$C$2:C55*$D$2:D55) -> 0 | AN55: =SUMPRODUCT(($B$2:B55="Handlowy")*($E$2:E55="Sprzedaż")*$C$2:C55*$D$2:D55) -> 0 | AO55: =SUMPRODUCT(($B$2:B55="SANTANDER")*($E$2:E55="Sprzedaż")*$C$2:C55*$D$2:D55) -> 0 | AP55: =SUMPRODUCT(($B$2:B55="MBANK")*($E$2:E55="Sprzedaż")*$C$2:C55*$D$2:D55) -> 0 | AQ55: =SUMPRODUCT(($B$2:B55="Alior")*($E$2:E55="Sprzedaż")*$C$2:C55*$D$2:D55) -> 0 | AR55: =SUMPRODUCT(($B$2:B55="Idea")*($E$2:E55="Sprzedaż")*$C$2:C55*$D$2:D55) -> 0 | AS55: 398.4 | AT55: 7129.8 | AU55: 1960.08 | AV55: 10565.4 | AW55: 103.5 | AX55: 3598 | AY55: 16958 | AZ55: 19663.5 | BA55: 3601.5 | BB55: 1250 | BC55: 2515.23 | BD55: -430.65 | BE55: =(VLOOKUP(A55,WIG_B[],2,TRUE)/VLOOKUP(A54,WIG_B[],2,TRUE)-1)*$L$1+BE54 -> 70448.1848 | BF55: -3952.74026 | BG55: =Portfel[[#This Row],[WIG.B]]-Portfel[[#This Row],[Portfel. S]] -> 67932.9548 | BH55: 31.7 | BI55: 40.1 | BJ55: 69.09 | BK55: 280.1 | BL55: 9.9 | BM55: 101.34 | BN55: 184 | BO55: 1243.2 | BP55: 501.5 | BQ55: 54.3 | BR55: 0 | BS55: -39 | BT55: -20.7 | BU55: 5 | BV55: 0.5 | BW55: -32.45 | BX55: -248.5 | BY55: -47 | BZ55: -48.5 | CA55: 0
A56: 42809 | B56: GETIN | C56: 2.07 | D56: -10 | E56: Kupno | F56: -0.03381642512 | G56: -0.115942029 | H56: -0.309178744 | I56: Makro | L56: 437266.35 | O56: =SUMIFS($D$2:D56,$B$2:B56,"MIL") -> -60 | P56: =SUMIFS($D$2:D56,$B$2:B56,"PEKAO") -> -60 | Q56: =SUMIFS($D$2:D56,$B$2:B56,"PKOBP") -> -60 | R56: =SUMIFS($D$2:D56,$B$2:B56,"ING") -> -60 | S56: =SUMIFS($D$2:D56,$B$2:B56,"GETIN") -> -60 | T56: =SUMIFS($D$2:D56,$B$2:B56,"Handlowy") -> -50 | U56: =SUMIFS($D$2:D56,$B$2:B56,"SANTANDER") -> -50 | V56: =SUMIFS($D$2:D56,$B$2:B56,"MBANK") -> -50 | W56: =SUMIFS($D$2:D56,$B$2:B56,"Alior") -> -50 | X56: =SUMIFS($D$2:D56,$B$2:B56,"Idea") -> -50 | Y56: =SUMPRODUCT(($B$2:B56="MIL")*($E$2:E56="Kupno")*$C$2:C56*$D$2:D56) -> -366.7 | Z56: =SUMPRODUCT(($B$2:B56="PEKAO")*($E$2:E56="Kupno")*$C$2:C56*$D$2:D56) -> -7089.7 | AA56: =SUMPRODUCT(($B$2:B56="PKOBP")*($E$2:E56="Kupno")*$C$2:C56*$D$2:D56) -> -1890.99 | AB56: =SUMPRODUCT(($B$2:B56="ING")*($E$2:E56="Kupno")*$C$2:C56*$D$2:D56) -> -10285.3 | AC56: =SUMPRODUCT(($B$2:B56="GETIN")*($E$2:E56="Kupno")*$C$2:C56*$D$2:D56) -> -114.3 | AD56: =SUMPRODUCT(($B$2:B56="Handlowy")*($E$2:E56="Kupno")*$C$2:C56*$D$2:D56) -> -3496.66 | AE56: =SUMPRODUCT(($B$2:B56="SANTANDER")*($E$2:E56="Kupno")*$C$2:C56*$D$2:D56) -> -16774 | AF56: =SUMPRODUCT(($B$2:B56="MBANK")*($E$2:E56="Kupno")*$C$2:C56*$D$2:D56) -> -18420.3 | AG56: =SUMPRODUCT(($B$2:B56="Alior")*($E$2:E56="Kupno")*$C$2:C56*$D$2:D56) -> -3100 | AH56: =SUMPRODUCT(($B$2:B56="Idea")*($E$2:E56="Kupno")*$C$2:C56*$D$2:D56) -> -1195.7 | AI56: =SUMPRODUCT(($B$2:B56="MIL")*($E$2:E56="Sprzedaż")*$C$2:C56*$D$2:D56) -> 0 | AJ56: =SUMPRODUCT(($B$2:B56="PEKAO")*($E$2:E56="Sprzedaż")*$C$2:C56*$D$2:D56) -> 0 | AK56: =SUMPRODUCT(($B$2:B56="PKOBP")*($E$2:E56="Sprzedaż")*$C$2:C56*$D$2:D56) -> 0 | AL56: =SUMPRODUCT(($B$2:B56="ING")*($E$2:E56="Sprzedaż")*$C$2:C56*$D$2:D56) -> 0 | AM56: =SUMPRODUCT(($B$2:B56="GETIN")*($E$2:E56="Sprzedaż")*$C$2:C56*$D$2:D56) -> 0 | AN56: =SUMPRODUCT(($B$2:B56="Handlowy")*($E$2:E56="Sprzedaż")*$C$2:C56*$D$2:D56) -> 0 | AO56: =SUMPRODUCT(($B$2:B56="SANTANDER")*($E$2:E56="Sprzedaż")*$C$2:C56*$D$2:D56) -> 0 | AP56: =SUMPRODUCT(($B$2:B56="MBANK")*($E$2:E56="Sprzedaż")*$C$2:C56*$D$2:D56) -> 0 | AQ56: =SUMPRODUCT(($B$2:B56="Alior")*($E$2:E56="Sprzedaż")*$C$2:C56*$D$2:D56) -> 0 | AR56: =SUMPRODUCT(($B$2:B56="Idea")*($E$2:E56="Sprzedaż")*$C$2:C56*$D$2:D56) -> 0 | AS56: 399 | AT56: 7045.8 | AU56: 1925.7 | AV56: 10524 | AW56: 124.2 | AX56: 3571.4 | AY56: 16779.5 | AZ56: 19528 | BA56: 3598.5 | BB56: 1249 | BC56: 2011.45 | BD56: -503.78 | BE56: =(VLOOKUP(A56,WIG_B[],2,TRUE)/VLOOKUP(A55,WIG_B[],2,TRUE)-1)*$L$1+BE55 -> 64968.0402 | BF56: -5480.144604 | BG56: =Portfel[[#This Row],[WIG.B]]-Portfel[[#This Row],[Portfel. S]] -> 62956.5902 | BH56: 32.3 | BI56: -43.9 | BJ56: 34.71 | BK56: 238.7 | BL56: 9.9 | BM56: 74.74 | BN56: 5.5 | BO56: 1107.7 | BP56: 498.5 | BQ56: 53.3 | BR56: 0.6 | BS56: -84 | BT56: -34.38 | BU56: -41.4 | BV56: 0 | BW56: -26.6 | BX56: -178.5 | BY56: -135.5 | BZ56: -3 | CA56: -1
A57: 42810 | B57: Handlowy | C57: 72.795 | D57: -10 | E57: Kupno | F57: 0.006456487396 | G57: -0.1146369943 | H57: -0.1438972457 | I57: Polityka | L57: 436538.4 | O57: =SUMIFS($D$2:D57,$B$2:B57,"MIL") -> -60 | P57: =SUMIFS($D$2:D57,$B$2:B57,"PEKAO") -> -60 | Q57: =SUMIFS($D$2:D57,$B$2:B57,"PKOBP") -> -60 | R57: =SUMIFS($D$2:D57,$B$2:B57,"ING") -> -60 | S57: =SUMIFS($D$2:D57,$B$2:B57,"GETIN") -> -60 | T57: =SUMIFS($D$2:D57,$B$2:B57,"Handlowy") -> -60 | U57: =SUMIFS($D$2:D57,$B$2:B57,"SANTANDER") -> -50 | V57: =SUMIFS($D$2:D57,$B$2:B57,"MBANK") -> -50 | W57: =SUMIFS($D$2:D57,$B$2:B57,"Alior") -> -50 | X57: =SUMIFS($D$2:D57,$B$2:B57,"Idea") -> -50 | Y57: =SUMPRODUCT(($B$2:B57="MIL")*($E$2:E57="Kupno")*$C$2:C57*$D$2:D57) -> -366.7 | Z57: =SUMPRODUCT(($B$2:B57="PEKAO")*($E$2:E57="Kupno")*$C$2:C57*$D$2:D57) -> -7089.7 | AA57: =SUMPRODUCT(($B$2:B57="PKOBP")*($E$2:E57="Kupno")*$C$2:C57*$D$2:D57) -> -1890.99 | AB57: =SUMPRODUCT(($B$2:B57="ING")*($E$2:E57="Kupno")*$C$2:C57*$D$2:D57) -> -10285.3 | AC57: =SUMPRODUCT(($B$2:B57="GETIN")*($E$2:E57="Kupno")*$C$2:C57*$D$2:D57) -> -114.3 | AD57: =SUMPRODUCT(($B$2:B57="Handlowy")*($E$2:E57="Kupno")*$C$2:C57*$D$2:D57) -> -4224.61 | AE57: =SUMPRODUCT(($B$2:B57="SANTANDER")*($E$2:E57="Kupno")*$C$2:C57*$D$2:D57) -> -16774 | AF57: =SUMPRODUCT(($B$2:B57="MBANK")*($E$2:E57="Kupno")*$C$2:C57*$D$2:D57) -> -18420.3 | AG57: =SUMPRODUCT(($B$2:B57="Alior")*($E$2:E57="Kupno")*$C$2:C57*$D$2:D57) -> -3100 | AH57: =SUMPRODUCT(($B$2:B57="Idea")*($E$2:E57="Kupno")*$C$2:C57*$D$2:D57) -> -1195.7 | AI57: =SUMPRODUCT(($B$2:B57="MIL")*($E$2:E57="Sprzedaż")*$C$2:C57*$D$2:D57) -> 0 | AJ57: =SUMPRODUCT(($B$2:B57="PEKAO")*($E$2:E57="Sprzedaż")*$C$2:C57*$D$2:D57) -> 0 | AK57: =SUMPRODUCT(($B$2:B57="PKOBP")*($E$2:E57="Sprzedaż")*$C$2:C57*$D$2:D57) -> 0 | AL57: =SUMPRODUCT(($B$2:B57="ING")*($E$2:E57="Sprzedaż")*$C$2:C57*$D$2:D57) -> 0 | AM57: =SUMPRODUCT(($B$2:B57="GETIN")*($E$2:E57="Sprzedaż")*$C$2:C57*$D$2:D57) -> 0 | AN57: =SUMPRODUCT(($B$2:B57="Handlowy")*($E$2:E57="Sprzedaż")*$C$2:C57*$D$2:D57) -> 0 | AO57: =SUMPRODUCT(($B$2:B57="SANTANDER")*($E$2:E57="Sprzedaż")*$C$2:C57*$D$2:D57) -> 0 | AP57: =SUMPRODUCT(($B$2:B57="MBANK")*($E$2:E57="Sprzedaż")*$C$2:C57*$D$2:D57) -> 0 | AQ57: =SUMPRODUCT(($B$2:B57="Alior")*($E$2:E57="Sprzedaż")*$C$2:C57*$D$2:D57) -> 0 | AR57: =SUMPRODUCT(($B$2:B57="Idea")*($E$2:E57="Sprzedaż")*$C$2:C57*$D$2:D57) -> 0 | AS57: 408 | AT57: 7270.2 | AU57: 1986.12 | AV57: 10748.4 | AW57: 121.2 | AX57: 4367.7 | AY57: 17153 | AZ57: 19999.5 | BA57: 3721.5 | BB57: 1259 | BC57: 3573.02 | BD57: 1561.57 | BE57: =(VLOOKUP(A57,WIG_B[],2,TRUE)/VLOOKUP(A56,WIG_B[],2,TRUE)-1)*$L$1+BE56 -> 78833.17981 | BF57: 13865.13962 | BG57: =Portfel[[#This Row],[WIG.B]]-Portfel[[#This Row],[Portfel. S]] -> 75260.15981 | BH57: 41.3 | BI57: 180.5 | BJ57: 95.13 | BK57: 463.1 | BL57: 6.9 | BM57: 143.09 | BN57: 379 | BO57: 1579.2 | BP57: 621.5 | BQ57: 63.3 | BR57: 9 | BS57: 224.4 | BT57: 60.42 | BU57: 224.4 | BV57: -3 | BW57: 68.35 | BX57: 373.5 | BY57: 471.5 | BZ57: 123 | CA57: 10
A58: 42811 | B58: SANTANDER | C58: 341.01 | D58: -10 | E58: Kupno | F58: 0 | G58: 0.0131667693 | H58: 0.0058942553 | I58: Sprawozdanie | L58: 433128.3 | O58: =SUMIFS($D$2:D58,$B$2:B58,"MIL") -> -60 | P58: =SUMIFS($D$2:D58,$B$2:B58,"PEKAO") -> -60 | Q58: =SUMIFS($D$2:D58,$B$2:B58,"PKOBP") -> -60 | R58: =SUMIFS($D$2:D58,$B$2:B58,"ING") -> -60 | S58: =SUMIFS($D$2:D58,$B$2:B58,"GETIN") -> -60 | T58: =SUMIFS($D$2:D58,$B$2:B58,"Handlowy") -> -60 | U58: =SUMIFS($D$2:D58,$B$2:B58,"SANTANDER") -> -60 | V58: =SUMIFS($D$2:D58,$B$2:B58,"MBANK") -> -50 | W58: =SUMIFS($D$2:D58,$B$2:B58,"Alior") -> -50 | X58: =SUMIFS($D$2:D58,$B$2:B58,"Idea") -> -50 | Y58: =SUMPRODUCT(($B$2:B58="MIL")*($E$2:E58="Kupno")*$C$2:C58*$D$2:D58) -> -366.7 | Z58: =SUMPRODUCT(($B$2:B58="PEKAO")*($E$2:E58="Kupno")*$C$2:C58*$D$2:D58) -> -7089.7 | AA58: =SUMPRODUCT(($B$2:B58="PKOBP")*($E$2:E58="Kupno")*$C$2:C58*$D$2:D58) -> -1890.99 | AB58: =SUMPRODUCT(($B$2:B58="ING")*($E$2:E58="Kupno")*$C$2:C58*$D$2:D58) -> -10285.3 | AC58: =SUMPRODUCT(($B$2:B58="GETIN")*($E$2:E58="Kupno")*$C$2:C58*$D$2:D58) -> -114.3 | AD58: =SUMPRODUCT(($B$2:B58="Handlowy")*($E$2:E58="Kupno")*$C$2:C58*$D$2:D58) -> -4224.61 | AE58: =SUMPRODUCT(($B$2:B58="SANTANDER")*($E$2:E58="Kupno")*$C$2:C58*$D$2:D58) -> -20184.1 | AF58: =SUMPRODUCT(($B$2:B58="MBANK")*($E$2:E58="Kupno")*$C$2:C58*$D$2:D58) -> -18420.3 | AG58: =SUMPRODUCT(($B$2:B58="Alior")*($E$2:E58="Kupno")*$C$2:C58*$D$2:D58) -> -3100 | AH58: =SUMPRODUCT(($B$2:B58="Idea")*($E$2:E58="Kupno")*$C$2:C58*$D$2:D58) -> -1195.7 | AI58: =SUMPRODUCT(($B$2:B58="MIL")*($E$2:E58="Sprzedaż")*$C$2:C58*$D$2:D58) -> 0 | AJ58: =SUMPRODUCT(($B$2:B58="PEKAO")*($E$2:E58="Sprzedaż")*$C$2:C58*$D$2:D58) -> 0 | AK58: =SUMPRODUCT(($B$2:B58="PKOBP")*($E$2:E58="Sprzedaż")*$C$2:C58*$D$2:D58) -> 0 | AL58: =SUMPRODUCT(($B$2:B58="ING")*($E$2:E58="Sprzedaż")*$C$2:C58*$D$2:D58) -> 0 | AM58: =SUMPRODUCT(($B$2:B58="GETIN")*($E$2:E58="Sprzedaż")*$C$2:C58*$D$2:D58) -> 0 | AN58: =SUMPRODUCT(($B$2:B58="Handlowy")*($E$2:E58="Sprzedaż")*$C$2:C58*$D$2:D58) -> 0 | AO58: =SUMPRODUCT(($B$2:B58="SANTANDER")*($E$2:E58="Sprzedaż")*$C$2:C58*$D$2:D58) -> 0 | AP58: =SUMPRODUCT(($B$2:B58="MBANK")*($E$2:E58="Sprzedaż")*$C$2:C58*$D$2:D58) -> 0 | AQ58: =SUMPRODUCT(($B$2:B58="Alior")*($E$2:E58="Sprzedaż")*$C$2:C58*$D$2:D58) -> 0 | AR58: =SUMPRODUCT(($B$2:B58="Idea")*($E$2:E58="Sprzedaż")*$C$2:C58*$D$2:D58) -> 0 | AS58: 408.6 | AT58: 7249.2 | AU58: 1995 | AV58: 10512 | AW58: 120 | AX58: 4395.9 | AY58: 20460.6 | AZ58: 19738 | BA58: 3762.5 | BB58: 1248.5 | BC58: 3018.6 | BD58: -554.42 | BE58: =(VLOOKUP(A58,WIG_B[],2,TRUE)/VLOOKUP(A57,WIG_B[],2,TRUE)-1)*$L$1+BE57 -> 78279.93927 | BF58: -553.2405452 | BG58: =Portfel[[#This Row],[WIG.B]]-Portfel[[#This Row],[Portfel. S]] -> 75261.33927 | BH58: 41.9 | BI58: 159.5 | BJ58: 104.01 | BK58: 226.7 | BL58: 5.7 | BM58: 171.29 | BN58: 276.5 | BO58: 1317.7 | BP58: 662.5 | BQ58: 52.8 | BR58: 0.6 | BS58: -21 | BT58: 8.88 | BU58: -236.4 | BV58: -1.2 | BW58: 28.2 | BX58: -102.5 | BY58: -261.5 | BZ58: 41 | CA58: -10.5
A59: 42814 | B59: MBANK | C59: 388.33 | D59: -10 | E59: Kupno | F59: 0.01730486957 | G59: 0.004094455746 | H59: 0.1600700435 | I59: Makro | L59: 429245 | O59: =SUMIFS($D$2:D59,$B$2:B59,"MIL") -> -60 | P59: =SUMIFS($D$2:D59,$B$2:B59,"PEKAO") -> -60 | Q59: =SUMIFS($D$2:D59,$B$2:B59,"PKOBP") -> -60 | R59: =SUMIFS($D$2:D59,$B$2:B59,"ING") -> -60 | S59: =SUMIFS($D$2:D59,$B$2:B59,"GETIN") -> -60 | T59: =SUMIFS($D$2:D59,$B$2:B59,"Handlowy") -> -60 | U59: =SUMIFS($D$2:D59,$B$2:B59,"SANTANDER") -> -60 | V59: =SUMIFS($D$2:D59,$B$2:B59,"MBANK") -> -60 | W59: =SUMIFS($D$2:D59,$B$2:B59,"Alior") -> -50 | X59: =SUMIFS($D$2:D59,$B$2:B59,"Idea") -> -50 | Y59: =SUMPRODUCT(($B$2:B59="MIL")*($E$2:E59="Kupno")*$C$2:C59*$D$2:D59) -> -366.7 | Z59: =SUMPRODUCT(($B$2:B59="PEKAO")*($E$2:E59="Kupno")*$C$2:C59*$D$2:D59) -> -7089.7 | AA59: =SUMPRODUCT(($B$2:B59="PKOBP")*($E$2:E59="Kupno")*$C$2:C59*$D$2:D59) -> -1890.99 | AB59: =SUMPRODUCT(($B$2:B59="ING")*($E$2:E59="Kupno")*$C$2:C59*$D$2:D59) -> -10285.3 | AC59: =SUMPRODUCT(($B$2:B59="GETIN")*($E$2:E59="Kupno")*$C$2:C59*$D$2:D59) -> -114.3 | AD59: =SUMPRODUCT(($B$2:B59="Handlowy")*($E$2:E59="Kupno")*$C$2:C59*$D$2:D59) -> -4224.61 | AE59: =SUMPRODUCT(($B$2:B59="SANTANDER")*($E$2:E59="Kupno")*$C$2:C59*$D$2:D59) -> -20184.1 | AF59: =SUMPRODUCT(($B$2:B59="MBANK")*($E$2:E59="Kupno")*$C$2:C59*$D$2:D59) -> -22303.6 | AG59: =SUMPRODUCT(($B$2:B59="Alior")*($E$2:E59="Kupno")*$C$2:C59*$D$2:D59) -> -3100 | AH59: =SUMPRODUCT(($B$2:B59="Idea")*($E$2:E59="Kupno")*$C$2:C59*$D$2:D59) -> -1195.7 | AI59: =SUMPRODUCT(($B$2:B59="MIL")*($E$2:E59="Sprzedaż")*$C$2:C59*$D$2:D59) -> 0 | AJ59: =SUMPRODUCT(($B$2:B59="PEKAO")*($E$2:E59="Sprzedaż")*$C$2:C59*$D$2:D59) -> 0 | AK59: =SUMPRODUCT(($B$2:B59="PKOBP")*($E$2:E59="Sprzedaż")*$C$2:C59*$D$2:D59) -> 0 | AL59: =SUMPRODUCT(($B$2:B59="ING")*($E$2:E59="Sprzedaż")*$C$2:C59*$D$2:D59) -> 0 | AM59: =SUMPRODUCT(($B$2:B59="GETIN")*($E$2:E59="Sprzedaż")*$C$2:C59*$D$2:D59) -> 0 | AN59: =SUMPRODUCT(($B$2:B59="Handlowy")*($E$2:E59="Sprzedaż")*$C$2:C59*$D$2:D59) -> 0 | AO59: =SUMPRODUCT(($B$2:B59="SANTANDER")*($E$2:E59="Sprzedaż")*$C$2:C59*$D$2:D59) -> 0 | AP59: =SUMPRODUCT(($B$2:B59="MBANK")*($E$2:E59="Sprzedaż")*$C$2:C59*$D$2:D59) -> 0 | AQ59: =SUMPRODUCT(($B$2:B59="Alior")*($E$2:E59="Sprzedaż")*$C$2:C59*$D$2:D59) -> 0 | AR59: =SUMPRODUCT(($B$2:B59="Idea")*($E$2:E59="Sprzedaż")*$C$2:C59*$D$2:D59) -> 0 | AS59: 414 | AT59: 7296 | AU59: 1967.16 | AV59: 10482.6 | AW59: 120.6 | AX59: 4354.38 | AY59: 20900.4 | AZ59: 23299.8 | BA59: 3749.5 | BB59: 1259.5 | BC59: 3088.94 | BD59: 70.34 | BE59: =(VLOOKUP(A59,WIG_B[],2,TRUE)/VLOOKUP(A58,WIG_B[],2,TRUE)-1)*$L$1+BE58 -> 77518.04984 | BF59: -761.8894312 | BG59: =Portfel[[#This Row],[WIG.B]]-Portfel[[#This Row],[Portfel. S]] -> 74429.10984 | BH59: 47.3 | BI59: 206.3 | BJ59: 76.17 | BK59: 197.3 | BL59: 6.3 | BM59: 129.77 | BN59: 716.3 | BO59: 996.2 | BP59: 649.5 | BQ59: 63.8 | BR59: 5.4 | BS59: 46.8 | BT59: -27.84 | BU59: -29.4 | BV59: 0.6 | BW59: -41.52 | BX59: 439.8 | BY59: -321.5 | BZ59: -13 | CA59: 11
A60: 42815 | B60: Alior | C60: 74.73 | D60: -10 | E60: Kupno | F60: -0.007493643784 | G60: -0.04857486953 | H60: -0.1860029439 | I60: Polityka | L60: 428497.7 | O60: =SUMIFS($D$2:D60,$B$2:B60,"MIL") -> -60 | P60: =SUMIFS($D$2:D60,$B$2:B60,"PEKAO") -> -60 | Q60: =SUMIFS($D$2:D60,$B$2:B60,"PKOBP") -> -60 | R60: =SUMIFS($D$2:D60,$B$2:B60,"ING") -> -60 | S60: =SUMIFS($D$2:D60,$B$2:B60,"GETIN") -> -60 | T60: =SUMIFS($D$2:D60,$B$2:B60,"Handlowy") -> -60 | U60: =SUMIFS($D$2:D60,$B$2:B60,"SANTANDER") -> -60 | V60: =SUMIFS($D$2:D60,$B$2:B60,"MBANK") -> -60 | W60: =SUMIFS($D$2:D60,$B$2:B60,"Alior") -> -60 | X60: =SUMIFS($D$2:D60,$B$2:B60,"Idea") -> -50 | Y60: =SUMPRODUCT(($B$2:B60="MIL")*($E$2:E60="Kupno")*$C$2:C60*$D$2:D60) -> -366.7 | Z60: =SUMPRODUCT(($B$2:B60="PEKAO")*($E$2:E60="Kupno")*$C$2:C60*$D$2:D60) -> -7089.7 | AA60: =SUMPRODUCT(($B$2:B60="PKOBP")*($E$2:E60="Kupno")*$C$2:C60*$D$2:D60) -> -1890.99 | AB60: =SUMPRODUCT(($B$2:B60="ING")*($E$2:E60="Kupno")*$C$2:C60*$D$2:D60) -> -10285.3 | AC60: =SUMPRODUCT(($B$2:B60="GETIN")*($E$2:E60="Kupno")*$C$2:C60*$D$2:D60) -> -114.3 | AD60: =SUMPRODUCT(($B$2:B60="Handlowy")*($E$2:E60="Kupno")*$C$2:C60*$D$2:D60) -> -4224.61 | AE60: =SUMPRODUCT(($B$2:B60="SANTANDER")*($E$2:E60="Kupno")*$C$2:C60*$D$2:D60) -> -20184.1 | AF60: =SUMPRODUCT(($B$2:B60="MBANK")*($E$2:E60="Kupno")*$C$2:C60*$D$2:D60) -> -22303.6 | AG60: =SUMPRODUCT(($B$2:B60="Alior")*($E$2:E60="Kupno")*$C$2:C60*$D$2:D60) -> -3847.3 | AH60: =SUMPRODUCT(($B$2:B60="Idea")*($E$2:E60="Kupno")*$C$2:C60*$D$2:D60) -> -1195.7 | AI60: =SUMPRODUCT(($B$2:B60="MIL")*($E$2:E60="Sprzedaż")*$C$2:C60*$D$2:D60) -> 0 | AJ60: =SUMPRODUCT(($B$2:B60="PEKAO")*($E$2:E60="Sprzedaż")*$C$2:C60*$D$2:D60) -> 0 | AK60: =SUMPRODUCT(($B$2:B60="PKOBP")*($E$2:E60="Sprzedaż")*$C$2:C60*$D$2:D60) -> 0 | AL60: =SUMPRODUCT(($B$2:B60="ING")*($E$2:E60="Sprzedaż")*$C$2:C60*$D$2:D60) -> 0 | AM60: =SUMPRODUCT(($B$2:B60="GETIN")*($E$2:E60="Sprzedaż")*$C$2:C60*$D$2:D60) -> 0 | AN60: =SUMPRODUCT(($B$2:B60="Handlowy")*($E$2:E60="Sprzedaż")*$C$2:C60*$D$2:D60) -> 0 | AO60: =SUMPRODUCT(($B$2:B60="SANTANDER")*($E$2:E60="Sprzedaż")*$C$2:C60*$D$2:D60) -> 0 | AP60: =SUMPRODUCT(($B$2:B60="MBANK")*($E$2:E60="Sprzedaż")*$C$2:C60*$D$2:D60) -> 0 | AQ60: =SUMPRODUCT(($B$2:B60="Alior")*($E$2:E60="Sprzedaż")*$C$2:C60*$D$2:D60) -> 0 | AR60: =SUMPRODUCT(($B$2:B60="Idea")*($E$2:E60="Sprzedaż")*$C$2:C60*$D$2:D60) -> 0 | AS60: 402.6 | AT60: 7192.2 | AU60: 1979.04 | AV60: 10376.4 | AW60: 120 | AX60: 4307.52 | AY60: 20677.2 | AZ60: 23113.2 | BA60: 4483.8 | BB60: 1231.5 | BC60: 2381.16 | BD60: -707.78 | BE60: =(VLOOKUP(A60,WIG_B[],2,TRUE)/VLOOKUP(A59,WIG_B[],2,TRUE)-1)*$L$1+BE59 -> 74424.85364 | BF60: -3093.196198 | BG60: =Portfel[[#This Row],[WIG.B]]-Portfel[[#This Row],[Portfel. S]] -> 72043.69364 | BH60: 35.9 | BI60: 102.5 | BJ60: 88.05 | BK60: 91.1 | BL60: 5.7 | BM60: 82.91 | BN60: 493.1 | BO60: 809.6 | BP60: 636.5 | BQ60: 35.8 | BR60: -11.4 | BS60: -103.8 | BT60: 11.88 | BU60: -106.2 | BV60: -0.6 | BW60: -46.86 | BX60: -223.2 | BY60: -186.6 | BZ60: -13 | CA60: -28
A61: 42816 | B61: Idea | C61: 25 | D61: -10 | E61: Kupno | F61: 0.0056 | G61: -0.044 | H61: -0.046 | I61: Sprawozdanie | L61: 428247.7 | O61: =SUMIFS($D$2:D61,$B$2:B61,"MIL") -> -60 | P61: =SUMIFS($D$2:D61,$B$2:B61,"PEKAO") -> -60 | Q61: =SUMIFS($D$2:D61,$B$2:B61,"PKOBP") -> -60 | R61: =SUMIFS($D$2:D61,$B$2:B61,"ING") -> -60 | S61: =SUMIFS($D$2:D61,$B$2:B61,"GETIN") -> -60 | T61: =SUMIFS($D$2:D61,$B$2:B61,"Handlowy") -> -60 | U61: =SUMIFS($D$2:D61,$B$2:B61,"SANTANDER") -> -60 | V61: =SUMIFS($D$2:D61,$B$2:B61,"MBANK") -> -60 | W61: =SUMIFS($D$2:D61,$B$2:B61,"Alior") -> -60 | X61: =SUMIFS($D$2:D61,$B$2:B61,"Idea") -> -60 | Y61: =SUMPRODUCT(($B$2:B61="MIL")*($E$2:E61="Kupno")*$C$2:C61*$D$2:D61) -> -366.7 | Z61: =SUMPRODUCT(($B$2:B61="PEKAO")*($E$2:E61="Kupno")*$C$2:C61*$D$2:D61) -> -7089.7 | AA61: =SUMPRODUCT(($B$2:B61="PKOBP")*($E$2:E61="Kupno")*$C$2:C61*$D$2:D61) -> -1890.99 | AB61: =SUMPRODUCT(($B$2:B61="ING")*($E$2:E61="Kupno")*$C$2:C61*$D$2:D61) -> -10285.3 | AC61: =SUMPRODUCT(($B$2:B61="GETIN")*($E$2:E61="Kupno")*$C$2:C61*$D$2:D61) -> -114.3 | AD61: =SUMPRODUCT(($B$2:B61="Handlowy")*($E$2:E61="Kupno")*$C$2:C61*$D$2:D61) -> -4224.61 | AE61: =SUMPRODUCT(($B$2:B61="SANTANDER")*($E$2:E61="Kupno")*$C$2:C61*$D$2:D61) -> -20184.1 | AF61: =SUMPRODUCT(($B$2:B61="MBANK")*($E$2:E61="Kupno")*$C$2:C61*$D$2:D61) -> -22303.6 | AG61: =SUMPRODUCT(($B$2:B61="Alior")*($E$2:E61="Kupno")*$C$2:C61*$D$2:D61) -> -3847.3 | AH61: =SUMPRODUCT(($B$2:B61="Idea")*($E$2:E61="Kupno")*$C$2:C61*$D$2:D61) -> -1445.7 | AI61: =SUMPRODUCT(($B$2:B61="MIL")*($E$2:E61="Sprzedaż")*$C$2:C61*$D$2:D61) -> 0 | AJ61: =SUMPRODUCT(($B$2:B61="PEKAO")*($E$2:E61="Sprzedaż")*$C$2:C61*$D$2:D61) -> 0 | AK61: =SUMPRODUCT(($B$2:B61="PKOBP")*($E$2:E61="Sprzedaż")*$C$2:C61*$D$2:D61) -> 0 | AL61: =SUMPRODUCT(($B$2:B61="ING")*($E$2:E61="Sprzedaż")*$C$2:C61*$D$2:D61) -> 0 | AM61: =SUMPRODUCT(($B$2:B61="GETIN")*($E$2:E61="Sprzedaż")*$C$2:C61*$D$2:D61) -> 0 | AN61: =SUMPRODUCT(($B$2:B61="Handlowy")*($E$2:E61="Sprzedaż")*$C$2:C61*$D$2:D61) -> 0 | AO61: =SUMPRODUCT(($B$2:B61="SANTANDER")*($E$2:E61="Sprzedaż")*$C$2:C61*$D$2:D61) -> 0 | AP61: =SUMPRODUCT(($B$2:B61="MBANK")*($E$2:E61="Sprzedaż")*$C$2:C61*$D$2:D61) -> 0 | AQ61: =SUMPRODUCT(($B$2:B61="Alior")*($E$2:E61="Sprzedaż")*$C$2:C61*$D$2:D61) -> 0 | AR61: =SUMPRODUCT(($B$2:B61="Idea")*($E$2:E61="Sprzedaż")*$C$2:C61*$D$2:D61) -> 0 | AS61: 398.4 | AT61: 7074.6 | AU61: 1919.82 | AV61: 10193.4 | AW61: 116.4 | AX61: 4240.44 | AY61: 20200.2 | AZ61: 22772.4 | BA61: 4386 | BB61: 1500 | BC61: 1049.36 | BD61: -1331.8 | BE61: =(VLOOKUP(A61,WIG_B[],2,TRUE)/VLOOKUP(A60,WIG_B[],2,TRUE)-1)*$L$1+BE60 -> 63437.1041 | BF61: -10987.74954 | BG61: =Portfel[[#This Row],[WIG.B]]-Portfel[[#This Row],[Portfel. S]] -> 62387.7441 | BH61: 31.7 | BI61: -15.1 | BJ61: 28.83 | BK61: -91.9 | BL61: 2.1 | BM61: 15.83 | BN61: 16.1 | BO61: 468.8 | BP61: 538.7 | BQ61: 54.3 | BR61: -4.2 | BS61: -117.6 | BT61: -59.22 | BU61: -183 | BV61: -3.6 | BW61: -67.08 | BX61: -477 | BY61: -340.8 | BZ61: -97.8 | CA61: 18.5
A62: 42817 | B62: MIL | C62: 6.6 | D62: -10 | E62: Kupno | F62: -0.00303030303 | G62: -0.06212121212 | H62: 0.07272727273 | I62: Makro | L62: 428181.7 | O62: =SUMIFS($D$2:D62,$B$2:B62,"MIL") -> -70 | P62: =SUMIFS($D$2:D62,$B$2:B62,"PEKAO") -> -60 | Q62: =SUMIFS($D$2:D62,$B$2:B62,"PKOBP") -> -60 | R62: =SUMIFS($D$2:D62,$B$2:B62,"ING") -> -60 | S62: =SUMIFS($D$2:D62,$B$2:B62,"GETIN") -> -60 | T62: =SUMIFS($D$2:D62,$B$2:B62,"Handlowy") -> -60 | U62: =SUMIFS($D$2:D62,$B$2:B62,"SANTANDER") -> -60 | V62: =SUMIFS($D$2:D62,$B$2:B62,"MBANK") -> -60 | W62: =SUMIFS($D$2:D62,$B$2:B62,"Alior") -> -60 | X62: =SUMIFS($D$2:D62,$B$2:B62,"Idea") -> -60 | Y62: =SUMPRODUCT(($B$2:B62="MIL")*($E$2:E62="Kupno")*$C$2:C62*$D$2:D62) -> -432.7 | Z62: =SUMPRODUCT(($B$2:B62="PEKAO")*($E$2:E62="Kupno")*$C$2:C62*$D$2:D62) -> -7089.7 | AA62: =SUMPRODUCT(($B$2:B62="PKOBP")*($E$2:E62="Kupno")*$C$2:C62*$D$2:D62) -> -1890.99 | AB62: =SUMPRODUCT(($B$2:B62="ING")*($E$2:E62="Kupno")*$C$2:C62*$D$2:D62) -> -10285.3 | AC62: =SUMPRODUCT(($B$2:B62="GETIN")*($E$2:E62="Kupno")*$C$2:C62*$D$2:D62) -> -114.3 | AD62: =SUMPRODUCT(($B$2:B62="Handlowy")*($E$2:E62="Kupno")*$C$2:C62*$D$2:D62) -> -4224.61 | AE62: =SUMPRODUCT(($B$2:B62="SANTANDER")*($E$2:E62="Kupno")*$C$2:C62*$D$2:D62) -> -20184.1 | AF62: =SUMPRODUCT(($B$2:B62="MBANK")*($E$2:E62="Kupno")*$C$2:C62*$D$2:D62) -> -22303.6 | AG62: =SUMPRODUCT(($B$2:B62="Alior")*($E$2:E62="Kupno")*$C$2:C62*$D$2:D62) -> -3847.3 | AH62: =SUMPRODUCT(($B$2:B62="Idea")*($E$2:E62="Kupno")*$C$2:C62*$D$2:D62) -> -1445.7 | AI62: =SUMPRODUCT(($B$2:B62="MIL")*($E$2:E62="Sprzedaż")*$C$2:C62*$D$2:D62) -> 0 | AJ62: =SUMPRODUCT(($B$2:B62="PEKAO")*($E$2:E62="Sprzedaż")*$C$2:C62*$D$2:D62) -> 0 | AK62: =SUMPRODUCT(($B$2:B62="PKOBP")*($E$2:E62="Sprzedaż")*$C$2:C62*$D$2:D62) -> 0 | AL62: =SUMPRODUCT(($B$2:B62="ING")*($E$2:E62="Sprzedaż")*$C$2:C62*$D$2:D62) -> 0 | AM62: =SUMPRODUCT(($B$2:B62="GETIN")*($E$2:E62="Sprzedaż")*$C$2:C62*$D$2:D62) -> 0 | AN62: =SUMPRODUCT(($B$2:B62="Handlowy")*($E$2:E62="Sprzedaż")*$C$2:C62*$D$2:D62) -> 0 | AO62: =SUMPRODUCT(($B$2:B62="SANTANDER")*($E$2:E62="Sprzedaż")*$C$2:C62*$D$2:D62) -> 0 | AP62: =SUMPRODUCT(($B$2:B62="MBANK")*($E$2:E62="Sprzedaż")*$C$2:C62*$D$2:D62) -> 0 | AQ62: =SUMPRODUCT(($B$2:B62="Alior")*($E$2:E62="Sprzedaż")*$C$2:C62*$D$2:D62) -> 0 | AR62: =SUMPRODUCT(($B$2:B62="Idea")*($E$2:E62="Sprzedaż")*$C$2:C62*$D$2:D62) -> 0 | AS62: 462 | AT62: 7035.6 | AU62: 1933.44 | AV62: 10370.4 | AW62: 114 | AX62: 4301.64 | AY62: 20463.6 | AZ62: 23418.6 | BA62: 4416 | BB62: 1496.4 | BC62: 2193.38 | BD62: 1144.02 | BE62: =(VLOOKUP(A62,WIG_B[],2,TRUE)/VLOOKUP(A61,WIG_B[],2,TRUE)-1)*$L$1+BE61 -> 66340.46866 | BF62: 2903.364557 | BG62: =Portfel[[#This Row],[WIG.B]]-Portfel[[#This Row],[Portfel. S]] -> 64147.08866 | BH62: 29.3 | BI62: -54.1 | BJ62: 42.45 | BK62: 85.1 | BL62: -0.3 | BM62: 77.03 | BN62: 279.5 | BO62: 1115 | BP62: 568.7 | BQ62: 50.7 | BR62: -2.4 | BS62: -39 | BT62: 13.62 | BU62: 177 | BV62: -2.4 | BW62: 61.2 | BX62: 263.4 | BY62: 646.2 | BZ62: 30 | CA62: -3.6
A63: 42818 | B63: PEKAO | C63: 117.35 | D63: -10 | E63: Kupno | F63: 0 | G63: -0.002641670217 | H63: -0.03238176395 | I63: Polityka | L63: 427008.2 | O63: =SUMIFS($D$2:D63,$B$2:B63,"MIL") -> -70 | P63: =SUMIFS($D$2:D63,$B$2:B63,"PEKAO") -> -70 | Q63: =SUMIFS($D$2:D63,$B$2:B63,"PKOBP") -> -60 | R63: =SUMIFS($D$2:D63,$B$2:B63,"ING") -> -60 | S63: =SUMIFS($D$2:D63,$B$2:B63,"GETIN") -> -60 | T63: =SUMIFS($D$2:D63,$B$2:B63,"Handlowy") -> -60 | U63: =SUMIFS($D$2:D63,$B$2:B63,"SANTANDER") -> -60 | V63: =SUMIFS($D$2:D63,$B$2:B63,"MBANK") -> -60 | W63: =SUMIFS($D$2:D63,$B$2:B63,"Alior") -> -60 | X63: =SUMIFS($D$2:D63,$B$2:B63,"Idea") -> -60 | Y63: =SUMPRODUCT(($B$2:B63="MIL")*($E$2:E63="Kupno")*$C$2:C63*$D$2:D63) -> -432.7 | Z63: =SUMPRODUCT(($B$2:B63="PEKAO")*($E$2:E63="Kupno")*$C$2:C63*$D$2:D63) -> -8263.2 | AA63: =SUMPRODUCT(($B$2:B63="PKOBP")*($E$2:E63="Kupno")*$C$2:C63*$D$2:D63) -> -1890.99 | AB63: =SUMPRODUCT(($B$2:B63="ING")*($E$2:E63="Kupno")*$C$2:C63*$D$2:D63) -> -10285.3 | AC63: =SUMPRODUCT(($B$2:B63="GETIN")*($E$2:E63="Kupno")*$C$2:C63*$D$2:D63) -> -114.3 | AD63: =SUMPRODUCT(($B$2:B63="Handlowy")*($E$2:E63="Kupno")*$C$2:C63*$D$2:D63) -> -4224.61 | AE63: =SUMPRODUCT(($B$2:B63="SANTANDER")*($E$2:E63="Kupno")*$C$2:C63*$D$2:D63) -> -20184.1 | AF63: =SUMPRODUCT(($B$2:B63="MBANK")*($E$2:E63="Kupno")*$C$2:C63*$D$2:D63) -> -22303.6 | AG63: =SUMPRODUCT(($B$2:B63="Alior")*($E$2:E63="Kupno")*$C$2:C63*$D$2:D63) -> -3847.3 | AH63: =SUMPRODUCT(($B$2:B63="Idea")*($E$2:E63="Kupno")*$C$2:C63*$D$2:D63) -> -1445.7 | AI63: =SUMPRODUCT(($B$2:B63="MIL")*($E$2:E63="Sprzedaż")*$C$2:C63*$D$2:D63) -> 0 | AJ63: =SUMPRODUCT(($B$2:B63="PEKAO")*($E$2:E63="Sprzedaż")*$C$2:C63*$D$2:D63) -> 0 | AK63: =SUMPRODUCT(($B$2:B63="PKOBP")*($E$2:E63="Sprzedaż")*$C$2:C63*$D$2:D63) -> 0 | AL63: =SUMPRODUCT(($B$2:B63="ING")*($E$2:E63="Sprzedaż")*$C$2:C63*$D$2:D63) -> 0 | AM63: =SUMPRODUCT(($B$2:B63="GETIN")*($E$2:E63="Sprzedaż")*$C$2:C63*$D$2:D63) -> 0 | AN63: =SUMPRODUCT(($B$2:B63="Handlowy")*($E$2:E63="Sprzedaż")*$C$2:C63*$D$2:D63) -> 0 | AO63: =SUMPRODUCT(($B$2:B63="SANTANDER")*($E$2:E63="Sprzedaż")*$C$2:C63*$D$2:D63) -> 0 | AP63: =SUMPRODUCT(($B$2:B63="MBANK")*($E$2:E63="Sprzedaż")*$C$2:C63*$D$2:D63) -> 0 | AQ63: =SUMPRODUCT(($B$2:B63="Alior")*($E$2:E63="Sprzedaż")*$C$2:C63*$D$2:D63) -> 0 | AR63: =SUMPRODUCT(($B$2:B63="Idea")*($E$2:E63="Sprzedaż")*$C$2:C63*$D$2:D63) -> 0 | AS63: 460.6 | AT63: 8214.5 | AU63: 1970.7 | AV63: 10405.8 | AW63: 118.2 | AX63: 4227.66 | AY63: 20173.2 | AZ63: 23703 | BA63: 4450.2 | BB63: 1508.4 | BC63: 2240.46 | BD63: 47.08 | BE63: =(VLOOKUP(A63,WIG_B[],2,TRUE)/VLOOKUP(A62,WIG_B[],2,TRUE)-1)*$L$1+BE62 -> 69366.82472 | BF63: 3026.35606 | BG63: =Portfel[[#This Row],[WIG.B]]-Portfel[[#This Row],[Portfel. S]] -> 67126.36472 | BH63: 27.9 | BI63: -48.7 | BJ63: 79.71 | BK63: 120.5 | BL63: 3.9 | BM63: 3.05 | BN63: -10.9 | BO63: 1399.4 | BP63: 602.9 | BQ63: 62.7 | BR63: -1.4 | BS63: 5.4 | BT63: 37.26 | BU63: 35.4 | BV63: 4.2 | BW63: -73.98 | BX63: -290.4 | BY63: 284.4 | BZ63: 34.2 | CA63: 12
A64: 42821 | B64: PKOBP | C64: 32.47 | D64: -10 | E64: Kupno | F64: -0.02553125962 | G64: 0.08937480751 | H64: 0.05623652602 | I64: Sprawozdanie | L64: 426683.5 | O64: =SUMIFS($D$2:D64,$B$2:B64,"MIL") -> -70 | P64: =SUMIFS($D$2:D64,$B$2:B64,"PEKAO") -> -70 | Q64: =SUMIFS($D$2:D64,$B$2:B64,"PKOBP") -> -70 | R64: =SUMIFS($D$2:D64,$B$2:B64,"ING") -> -60 | S64: =SUMIFS($D$2:D64,$B$2:B64,"GETIN") -> -60 | T64: =SUMIFS($D$2:D64,$B$2:B64,"Handlowy") -> -60 | U64: =SUMIFS($D$2:D64,$B$2:B64,"SANTANDER") -> -60 | V64: =SUMIFS($D$2:D64,$B$2:B64,"MBANK") -> -60 | W64: =SUMIFS($D$2:D64,$B$2:B64,"Alior") -> -60 | X64: =SUMIFS($D$2:D64,$B$2:B64,"Idea") -> -60 | Y64: =SUMPRODUCT(($B$2:B64="MIL")*($E$2:E64="Kupno")*$C$2:C64*$D$2:D64) -> -432.7 | Z64: =SUMPRODUCT(($B$2:B64="PEKAO")*($E$2:E64="Kupno")*$C$2:C64*$D$2:D64) -> -8263.2 | AA64: =SUMPRODUCT(($B$2:B64="PKOBP")*($E$2:E64="Kupno")*$C$2:C64*$D$2:D64) -> -2215.69 | AB64: =SUMPRODUCT(($B$2:B64="ING")*($E$2:E64="Kupno")*$C$2:C64*$D$2:D64) -> -10285.3 | AC64: =SUMPRODUCT(($B$2:B64="GETIN")*($E$2:E64="Kupno")*$C$2:C64*$D$2:D64) -> -114.3 | AD64: =SUMPRODUCT(($B$2:B64="Handlowy")*($E$2:E64="Kupno")*$C$2:C64*$D$2:D64) -> -4224.61 | AE64: =SUMPRODUCT(($B$2:B64="SANTANDER")*($E$2:E64="Kupno")*$C$2:C64*$D$2:D64) -> -20184.1 | AF64: =SUMPRODUCT(($B$2:B64="MBANK")*($E$2:E64="Kupno")*$C$2:C64*$D$2:D64) -> -22303.6 | AG64: =SUMPRODUCT(($B$2:B64="Alior")*($E$2:E64="Kupno")*$C$2:C64*$D$2:D64) -> -3847.3 | AH64: =SUMPRODUCT(($B$2:B64="Idea")*($E$2:E64="Kupno")*$C$2:C64*$D$2:D64) -> -1445.7 | AI64: =SUMPRODUCT(($B$2:B64="MIL")*($E$2:E64="Sprzedaż")*$C$2:C64*$D$2:D64) -> 0 | AJ64: =SUMPRODUCT(($B$2:B64="PEKAO")*($E$2:E64="Sprzedaż")*$C$2:C64*$D$2:D64) -> 0 | AK64: =SUMPRODUCT(($B$2:B64="PKOBP")*($E$2:E64="Sprzedaż")*$C$2:C64*$D$2:D64) -> 0 | AL64: =SUMPRODUCT(($B$2:B64="ING")*($E$2:E64="Sprzedaż")*$C$2:C64*$D$2:D64) -> 0 | AM64: =SUMPRODUCT(($B$2:B64="GETIN")*($E$2:E64="Sprzedaż")*$C$2:C64*$D$2:D64) -> 0 | AN64: =SUMPRODUCT(($B$2:B64="Handlowy")*($E$2:E64="Sprzedaż")*$C$2:C64*$D$2:D64) -> 0 | AO64: =SUMPRODUCT(($B$2:B64="SANTANDER")*($E$2:E64="Sprzedaż")*$C$2:C64*$D$2:D64) -> 0 | AP64: =SUMPRODUCT(($B$2:B64="MBANK")*($E$2:E64="Sprzedaż")*$C$2:C64*$D$2:D64) -> 0 | AQ64: =SUMPRODUCT(($B$2:B64="Alior")*($E$2:E64="Sprzedaż")*$C$2:C64*$D$2:D64) -> 0 | AR64: =SUMPRODUCT(($B$2:B64="Idea")*($E$2:E64="Sprzedaż")*$C$2:C64*$D$2:D64) -> 0 | AS64: 455 | AT64: 8205.4 | AU64: 2272.9 | AV64: 10152 | AW64: 115.8 | AX64: 4148.28 | AY64: 20173.2 | AZ64: 22962 | BA64: 4374 | BB64: 1507.2 | BC64: 1049.28 | BD64: -1191.18 | BE64: =(VLOOKUP(A64,WIG_B[],2,TRUE)/VLOOKUP(A63,WIG_B[],2,TRUE)-1)*$L$1+BE63 -> 64343.75137 | BF64: -5023.073354 | BG64: =Portfel[[#This Row],[WIG.B]]-Portfel[[#This Row],[Portfel. S]] -> 63294.47137 | BH64: 22.3 | BI64: -57.8 | BJ64: 57.21 | BK64: -133.3 | BL64: 1.5 | BM64: -76.33 | BN64: -10.9 | BO64: 658.4 | BP64: 526.7 | BQ64: 61.5 | BR64: -5.6 | BS64: -9.1 | BT64: -22.5 | BU64: -253.8 | BV64: -2.4 | BW64: -79.38 | BX64: 0 | BY64: -741 | BZ64: -76.2 | CA64: -1.2
A65: 42822 | B65: ING | C65: 171.17 | D65: -10 | E65: Kupno | F65: -0.01121691885 | G65: 0.02926914763 | H65: 0.05170298534 | I65: Makro | L65: 424971.8 | O65: =SUMIFS($D$2:D65,$B$2:B65,"MIL") -> -70 | P65: =SUMIFS($D$2:D65,$B$2:B65,"PEKAO") -> -70 | Q65: =SUMIFS($D$2:D65,$B$2:B65,"PKOBP") -> -70 | R65: =SUMIFS($D$2:D65,$B$2:B65,"ING") -> -70 | S65: =SUMIFS($D$2:D65,$B$2:B65,"GETIN") -> -60 | T65: =SUMIFS($D$2:D65,$B$2:B65,"Handlowy") -> -60 | U65: =SUMIFS($D$2:D65,$B$2:B65,"SANTANDER") -> -60 | V65: =SUMIFS($D$2:D65,$B$2:B65,"MBANK") -> -60 | W65: =SUMIFS($D$2:D65,$B$2:B65,"Alior") -> -60 | X65: =SUMIFS($D$2:D65,$B$2:B65,"Idea") -> -60 | Y65: =SUMPRODUCT(($B$2:B65="MIL")*($E$2:E65="Kupno")*$C$2:C65*$D$2:D65) -> -432.7 | Z65: =SUMPRODUCT(($B$2:B65="PEKAO")*($E$2:E65="Kupno")*$C$2:C65*$D$2:D65) -> -8263.2 | AA65: =SUMPRODUCT(($B$2:B65="PKOBP")*($E$2:E65="Kupno")*$C$2:C65*$D$2:D65) -> -2215.69 | AB65: =SUMPRODUCT(($B$2:B65="ING")*($E$2:E65="Kupno")*$C$2:C65*$D$2:D65) -> -11997 | AC65: =SUMPRODUCT(($B$2:B65="GETIN")*($E$2:E65="Kupno")*$C$2:C65*$D$2:D65) -> -114.3 | AD65: =SUMPRODUCT(($B$2:B65="Handlowy")*($E$2:E65="Kupno")*$C$2:C65*$D$2:D65) -> -4224.61 | AE65: =SUMPRODUCT(($B$2:B65="SANTANDER")*($E$2:E65="Kupno")*$C$2:C65*$D$2:D65) -> -20184.1 | AF65: =SUMPRODUCT(($B$2:B65="MBANK")*($E$2:E65="Kupno")*$C$2:C65*$D$2:D65) -> -22303.6 | AG65: =SUMPRODUCT(($B$2:B65="Alior")*($E$2:E65="Kupno")*$C$2:C65*$D$2:D65) -> -3847.3 | AH65: =SUMPRODUCT(($B$2:B65="Idea")*($E$2:E65="Kupno")*$C$2:C65*$D$2:D65) -> -1445.7 | AI65: =SUMPRODUCT(($B$2:B65="MIL")*($E$2:E65="Sprzedaż")*$C$2:C65*$D$2:D65) -> 0 | AJ65: =SUMPRODUCT(($B$2:B65="PEKAO")*($E$2:E65="Sprzedaż")*$C$2:C65*$D$2:D65) -> 0 | AK65: =SUMPRODUCT(($B$2:B65="PKOBP")*($E$2:E65="Sprzedaż")*$C$2:C65*$D$2:D65) -> 0 | AL65: =SUMPRODUCT(($B$2:B65="ING")*($E$2:E65="Sprzedaż")*$C$2:C65*$D$2:D65) -> 0 | AM65: =SUMPRODUCT(($B$2:B65="GETIN")*($E$2:E65="Sprzedaż")*$C$2:C65*$D$2:D65) -> 0 | AN65: =SUMPRODUCT(($B$2:B65="Handlowy")*($E$2:E65="Sprzedaż")*$C$2:C65*$D$2:D65) -> 0 | AO65: =SUMPRODUCT(($B$2:B65="SANTANDER")*($E$2:E65="Sprzedaż")*$C$2:C65*$D$2:D65) -> 0 | AP65: =SUMPRODUCT(($B$2:B65="MBANK")*($E$2:E65="Sprzedaż")*$C$2:C65*$D$2:D65) -> 0 | AQ65: =SUMPRODUCT(($B$2:B65="Alior")*($E$2:E65="Sprzedaż")*$C$2:C65*$D$2:D65) -> 0 | AR65: =SUMPRODUCT(($B$2:B65="Idea")*($E$2:E65="Sprzedaż")*$C$2:C65*$D$2:D65) -> 0 | AS65: 479.5 | AT65: 8283.8 | AU65: 2288.79 | AV65: 11981.9 | AW65: 119.4 | AX65: 4147.2 | AY65: 20173.2 | AZ65: 23703 | BA65: 4414.2 | BB65: 1513.2 | BC65: 2075.99 | BD65: 1026.71 | BE65: =(VLOOKUP(A65,WIG_B[],2,TRUE)/VLOOKUP(A64,WIG_B[],2,TRUE)-1)*$L$1+BE64 -> 69737.73379 | BF65: 5393.982426 | BG65: =Portfel[[#This Row],[WIG.B]]-Portfel[[#This Row],[Portfel. S]] -> 67661.74379 | BH65: 46.8 | BI65: 20.6 | BJ65: 73.1 | BK65: -15.1 | BL65: 5.1 | BM65: -77.41 | BN65: -10.9 | BO65: 1399.4 | BP65: 566.9 | BQ65: 67.5 | BR65: 24.5 | BS65: 78.4 | BT65: 15.89 | BU65: 118.2 | BV65: 3.6 | BW65: -1.08 | BX65: 0 | BY65: 741 | BZ65: 40.2 | CA65: 6
A66: 42823 | B66: GETIN | C66: 2 | D66: -10 | E66: Kupno | F66: -0.02 | G66: -0.07 | H66: -0.295 | I66: Polityka | L66: 424951.8 | O66: =SUMIFS($D$2:D66,$B$2:B66,"MIL") -> -70 | P66: =SUMIFS($D$2:D66,$B$2:B66,"PEKAO") -> -70 | Q66: =SUMIFS($D$2:D66,$B$2:B66,"PKOBP") -> -70 | R66: =SUMIFS($D$2:D66,$B$2:B66,"ING") -> -70 | S66: =SUMIFS($D$2:D66,$B$2:B66,"GETIN") -> -70 | T66: =SUMIFS($D$2:D66,$B$2:B66,"Handlowy") -> -60 | U66: =SUMIFS($D$2:D66,$B$2:B66,"SANTANDER") -> -60 | V66: =SUMIFS($D$2:D66,$B$2:B66,"MBANK") -> -60 | W66: =SUMIFS($D$2:D66,$B$2:B66,"Alior") -> -60 | X66: =SUMIFS($D$2:D66,$B$2:B66,"Idea") -> -60 | Y66: =SUMPRODUCT(($B$2:B66="MIL")*($E$2:E66="Kupno")*$C$2:C66*$D$2:D66) -> -432.7 | Z66: =SUMPRODUCT(($B$2:B66="PEKAO")*($E$2:E66="Kupno")*$C$2:C66*$D$2:D66) -> -8263.2 | AA66: =SUMPRODUCT(($B$2:B66="PKOBP")*($E$2:E66="Kupno")*$C$2:C66*$D$2:D66) -> -2215.69 | AB66: =SUMPRODUCT(($B$2:B66="ING")*($E$2:E66="Kupno")*$C$2:C66*$D$2:D66) -> -11997 | AC66: =SUMPRODUCT(($B$2:B66="GETIN")*($E$2:E66="Kupno")*$C$2:C66*$D$2:D66) -> -134.3 | AD66: =SUMPRODUCT(($B$2:B66="Handlowy")*($E$2:E66="Kupno")*$C$2:C66*$D$2:D66) -> -4224.61 | AE66: =SUMPRODUCT(($B$2:B66="SANTANDER")*($E$2:E66="Kupno")*$C$2:C66*$D$2:D66) -> -20184.1 | AF66: =SUMPRODUCT(($B$2:B66="MBANK")*($E$2:E66="Kupno")*$C$2:C66*$D$2:D66) -> -22303.6 | AG66: =SUMPRODUCT(($B$2:B66="Alior")*($E$2:E66="Kupno")*$C$2:C66*$D$2:D66) -> -3847.3 | AH66: =SUMPRODUCT(($B$2:B66="Idea")*($E$2:E66="Kupno")*$C$2:C66*$D$2:D66) -> -1445.7 | AI66: =SUMPRODUCT(($B$2:B66="MIL")*($E$2:E66="Sprzedaż")*$C$2:C66*$D$2:D66) -> 0 | AJ66: =SUMPRODUCT(($B$2:B66="PEKAO")*($E$2:E66="Sprzedaż")*$C$2:C66*$D$2:D66) -> 0 | AK66: =SUMPRODUCT(($B$2:B66="PKOBP")*($E$2:E66="Sprzedaż")*$C$2:C66*$D$2:D66) -> 0 | AL66: =SUMPRODUCT(($B$2:B66="ING")*($E$2:E66="Sprzedaż")*$C$2:C66*$D$2:D66) -> 0 | AM66: =SUMPRODUCT(($B$2:B66="GETIN")*($E$2:E66="Sprzedaż")*$C$2:C66*$D$2:D66) -> 0 | AN66: =SUMPRODUCT(($B$2:B66="Handlowy")*($E$2:E66="Sprzedaż")*$C$2:C66*$D$2:D66) -> 0 | AO66: =SUMPRODUCT(($B$2:B66="SANTANDER")*($E$2:E66="Sprzedaż")*$C$2:C66*$D$2:D66) -> 0 | AP66: =SUMPRODUCT(($B$2:B66="MBANK")*($E$2:E66="Sprzedaż")*$C$2:C66*$D$2:D66) -> 0 | AQ66: =SUMPRODUCT(($B$2:B66="Alior")*($E$2:E66="Sprzedaż")*$C$2:C66*$D$2:D66) -> 0 | AR66: =SUMPRODUCT(($B$2:B66="Idea")*($E$2:E66="Sprzedaż")*$C$2:C66*$D$2:D66) -> 0 | AS66: 466.9 | AT66: 8269.1 | AU66: 2279.83 | AV66: 12043.5 | AW66: 140 | AX66: 4198.32 | AY66: 20250 | AZ66: 23178.6 | BA66: 4337.4 | BB66: 1500 | BC66: 1615.45 | BD66: -460.54 | BE66: =(VLOOKUP(A66,WIG_B[],2,TRUE)/VLOOKUP(A65,WIG_B[],2,TRUE)-1)*$L$1+BE65 -> 67424.9178 | BF66: -2312.815999 | BG66: =Portfel[[#This Row],[WIG.B]]-Portfel[[#This Row],[Portfel. S]] -> 65809.4678 | BH66: =Y66+AI66+AS66 -> 34.2 | BI66: =Z66+AJ66+AT66 -> 5.9 | BJ66: =AA66+AK66+AU66 -> 64.14 | BK66: =AB66+AL66+AV66 -> 46.5 | BL66: =AC66+AM66+AW66 -> 5.7 | BM66: =AD66+AN66+AX66 -> -26.29 | BN66: =AE66+AO66+AY66 -> 65.9 | BO66: =AF66+AP66+AZ66 -> 875 | BP66: =AG66+AQ66+BA66 -> 490.1 | BQ66: =AH66+AR66+BB66 -> 54.3 | BR66: -12.6 | BS66: -14.7 | BT66: -8.96 | BU66: 61.6 | BV66: 0.6 | BW66: 51.12 | BX66: 76.8 | BY66: -524.4 | BZ66: -76.8 | CA66: -13.2
A67: 42824 | B67: Handlowy | C67: =VLOOKUP(A67,INDIRECT(B67),2,TRUE) -> 69.466 | D67: -10 | E67: Kupno | F67: =VLOOKUP(A67+VLOOKUP(WEEKDAY(A67,2),$M$2:$N$6,2,FALSE),INDIRECT(B67),2,TRUE)/C67-1 -> -0.01980825152 | G67: =VLOOKUP(DATE(YEAR(A67),MONTH(A67)+1,DAY(A67)),INDIRECT(B67),2,TRUE)/C67-1 -> -0.04217890767 | H67: =VLOOKUP(DATE(YEAR(A67),MONTH(A67)+3,DAY(A67)),INDIRECT(B67),2,TRUE)/C67-1 -> -0.06253418939 | I67: Sprawozdanie | L67: 424257.14 | O67: =SUMIFS($D$2:D67,$B$2:B67,"MIL") -> -70 | P67: =SUMIFS($D$2:D67,$B$2:B67,"PEKAO") -> -70 | Q67: =SUMIFS($D$2:D67,$B$2:B67,"PKOBP") -> -70 | R67: =SUMIFS($D$2:D67,$B$2:B67,"ING") -> -70 | S67: =SUMIFS($D$2:D67,$B$2:B67,"GETIN") -> -70 | T67: =SUMIFS($D$2:D67,$B$2:B67,"Handlowy") -> -70 | U67: =SUMIFS($D$2:D67,$B$2:B67,"SANTANDER") -> -60 | V67: =SUMIFS($D$2:D67,$B$2:B67,"MBANK") -> -60 | W67: =SUMIFS($D$2:D67,$B$2:B67,"Alior") -> -60 | X67: =SUMIFS($D$2:D67,$B$2:B67,"Idea") -> -60 | Y67: =SUMPRODUCT(($B$2:B67="MIL")*($E$2:E67="Kupno")*$C$2:C67*$D$2:D67) -> -432.7 | Z67: =SUMPRODUCT(($B$2:B67="PEKAO")*($E$2:E67="Kupno")*$C$2:C67*$D$2:D67) -> -8263.2 | AA67: =SUMPRODUCT(($B$2:B67="PKOBP")*($E$2:E67="Kupno")*$C$2:C67*$D$2:D67) -> -2215.69 | AB67: =SUMPRODUCT(($B$2:B67="ING")*($E$2:E67="Kupno")*$C$2:C67*$D$2:D67) -> -11997 | AC67: =SUMPRODUCT(($B$2:B67="GETIN")*($E$2:E67="Kupno")*$C$2:C67*$D$2:D67) -> -134.3 | AD67: =SUMPRODUCT(($B$2:B67="Handlowy")*($E$2:E67="Kupno")*$C$2:C67*$D$2:D67) -> -4919.27 | AE67: =SUMPRODUCT(($B$2:B67="SANTANDER")*($E$2:E67="Kupno")*$C$2:C67*$D$2:D67) -> -20184.1 | AF67: =SUMPRODUCT(($B$2:B67="MBANK")*($E$2:E67="Kupno")*$C$2:C67*$D$2:D67) -> -22303.6 | AG67: =SUMPRODUCT(($B$2:B67="Alior")*($E$2:E67="Kupno")*$C$2:C67*$D$2:D67) -> -3847.3 | AH67: =SUMPRODUCT(($B$2:B67="Idea")*($E$2:E67="Kupno")*$C$2:C67*$D$2:D67) -> -1445.7 | AI67: =SUMPRODUCT(($B$2:B67="MIL")*($E$2:E67="Sprzedaż")*$C$2:C67*$D$2:D67) -> 0 | AJ67: =SUMPRODUCT(($B$2:B67="PEKAO")*($E$2:E67="Sprzedaż")*$C$2:C67*$D$2:D67) -> 0 | AK67: =SUMPRODUCT(($B$2:B67="PKOBP")*($E$2:E67="Sprzedaż")*$C$2:C67*$D$2:D67) -> 0 | AL67: =SUMPRODUCT(($B$2:B67="ING")*($E$2:E67="Sprzedaż")*$C$2:C67*$D$2:D67) -> 0 | AM67: =SUMPRODUCT(($B$2:B67="GETIN")*($E$2:E67="Sprzedaż")*$C$2:C67*$D$2:D67) -> 0 | AN67: =SUMPRODUCT(($B$2:B67="Handlowy")*($E$2:E67="Sprzedaż")*$C$2:C67*$D$2:D67) -> 0 | AO67: =SUMPRODUCT(($B$2:B67="SANTANDER")*($E$2:E67="Sprzedaż")*$C$2:C67*$D$2:D67) -> 0 | AP67: =SUMPRODUCT(($B$2:B67="MBANK")*($E$2:E67="Sprzedaż")*$C$2:C67*$D$2:D67) -> 0 | AQ67: =SUMPRODUCT(($B$2:B67="Alior")*($E$2:E67="Sprzedaż")*$C$2:C67*$D$2:D67) -> 0 | AR67: =SUMPRODUCT(($B$2:B67="Idea")*($E$2:E67="Sprzedaż")*$C$2:C67*$D$2:D67) -> 0 | AS67: =ABS(VLOOKUP($A67,INDIRECT("MIL"),2,TRUE)*O67) -> 456.4 | AT67: =ABS(VLOOKUP($A67,INDIRECT("PEKAO"),2,TRUE)*P67) -> 8201.9 | AU67: =ABS(VLOOKUP($A67,INDIRECT("PKOBP"),2,TRUE)*Q67) -> 2241.82 | AV67: =ABS(VLOOKUP($A67,INDIRECT("ING"),2,TRUE)*R67) -> 11906.3 | AW67: =ABS(VLOOKUP($A67,INDIRECT("GETIN"),2,TRUE)*S67) -> 138.6 | AX67: =ABS(VLOOKUP($A67,INDIRECT("Handlowy"),2,TRUE)*T67) -> 4862.62 | AY67: =ABS(VLOOKUP($A67,INDIRECT("SANTANDER"),2,TRUE)*U67) -> 20296.8 | AZ67: =ABS(VLOOKUP($A67,INDIRECT("MBANK"),2,TRUE)*V67) -> 22740 | BA67: =ABS(VLOOKUP($A67,INDIRECT("Alior"),2,TRUE)*W67) -> 4259.4 | BB67: =ABS(VLOOKUP($A67,INDIRECT("Idea"),2,TRUE)*X67) -> 1503 | BC67: =SUM(Y67:BB67) -> 863.98 | BD67: -751.47 | BE67: =(VLOOKUP(A67,WIG_B[],2,TRUE)/VLOOKUP(A66,WIG_B[],2,TRUE)-1)*$L$1+BE66 -> 61461.89398 | BF67: =BE67-BE66 -> -5963.023813 | BG67: =Portfel[[#This Row],[WIG.B]]-Portfel[[#This Row],[Portfel. S]] -> 60597.91398 | BH67: 23.7 | BI67: -61.3 | BJ67: 26.13 | BK67: -90.7 | BL67: 4.3 | BM67: -56.65 | BN67: 112.7 | BO67: 436.4 | BP67: 412.1 | BQ67: 57.3 | BR67: -10.5 | BS67: -67.2 | BT67: -38.01 | BU67: -137.2 | BV67: -1.4 | BW67: -30.36 | BX67: 46.8 | BY67: -438.6 | BZ67: -78 | CA67: 3
A68: 42825 | B68: SANTANDER | C68: 334.28 | D68: -10 | E68: Kupno | F68: 0 | G68: 0.0399964102 | H68: 0.01489769056 | I68: Makro | L68: =L67+C68*D68 -> 420914.34 | O68: =SUMIFS($D$2:D68,$B$2:B68,"MIL") -> -70 | P68: =SUMIFS($D$2:D68,$B$2:B68,"PEKAO") -> -70 | Q68: =SUMIFS($D$2:D68,$B$2:B68,"PKOBP") -> -70 | R68: =SUMIFS($D$2:D68,$B$2:B68,"ING") -> -70 | S68: =SUMIFS($D$2:D68,$B$2:B68,"GETIN") -> -70 | T68: =SUMIFS($D$2:D68,$B$2:B68,"Handlowy") -> -70 | U68: =SUMIFS($D$2:D68,$B$2:B68,"SANTANDER") -> -70 | V68: =SUMIFS($D$2:D68,$B$2:B68,"MBANK") -> -60 | W68: =SUMIFS($D$2:D68,$B$2:B68,"Alior") -> -60 | X68: =SUMIFS($D$2:D68,$B$2:B68,"Idea") -> -60 | Y68: =SUMPRODUCT(($B$2:B68="MIL")*($E$2:E68="Kupno")*$C$2:C68*$D$2:D68) -> -432.7 | Z68: =SUMPRODUCT(($B$2:B68="PEKAO")*($E$2:E68="Kupno")*$C$2:C68*$D$2:D68) -> -8263.2 | AA68: =SUMPRODUCT(($B$2:B68="PKOBP")*($E$2:E68="Kupno")*$C$2:C68*$D$2:D68) -> -2215.69 | AB68: =SUMPRODUCT(($B$2:B68="ING")*($E$2:E68="Kupno")*$C$2:C68*$D$2:D68) -> -11997 | AC68: =SUMPRODUCT(($B$2:B68="GETIN")*($E$2:E68="Kupno")*$C$2:C68*$D$2:D68) -> -134.3 | AD68: =SUMPRODUCT(($B$2:B68="Handlowy")*($E$2:E68="Kupno")*$C$2:C68*$D$2:D68) -> -4919.27 | AE68: =SUMPRODUCT(($B$2:B68="SANTANDER")*($E$2:E68="Kupno")*$C$2:C68*$D$2:D68) -> -23526.9 | AF68: =SUMPRODUCT(($B$2:B68="MBANK")*($E$2:E68="Kupno")*$C$2:C68*$D$2:D68) -> -22303.6 | AG68: =SUMPRODUCT(($B$2:B68="Alior")*($E$2:E68="Kupno")*$C$2:C68*$D$2:D68) -> -3847.3 | AH68: =SUMPRODUCT(($B$2:B68="Idea")*($E$2:E68="Kupno")*$C$2:C68*$D$2:D68) -> -1445.7 | AI68: =SUMPRODUCT(($B$2:B68="MIL")*($E$2:E68="Sprzedaż")*$C$2:C68*$D$2:D68) -> 0 | AJ68: =SUMPRODUCT(($B$2:B68="PEKAO")*($E$2:E68="Sprzedaż")*$C$2:C68*$D$2:D68) -> 0 | AK68: =SUMPRODUCT(($B$2:B68="PKOBP")*($E$2:E68="Sprzedaż")*$C$2:C68*$D$2:D68) -> 0 | AL68: =SUMPRODUCT(($B$2:B68="ING")*($E$2:E68="Sprzedaż")*$C$2:C68*$D$2:D68) -> 0 | AM68: =SUMPRODUCT(($B$2:B68="GETIN")*($E$2:E68="Sprzedaż")*$C$2:C68*$D$2:D68) -> 0 | AN68: =SUMPRODUCT(($B$2:B68="Handlowy")*($E$2:E68="Sprzedaż")*$C$2:C68*$D$2:D68) -> 0 | AO68: =SUMPRODUCT(($B$2:B68="SANTANDER")*($E$2:E68="Sprzedaż")*$C$2:C68*$D$2:D68) -> 0 | AP68: =SUMPRODUCT(($B$2:B68="MBANK")*($E$2:E68="Sprzedaż")*$C$2:C68*$D$2:D68) -> 0 | AQ68: =SUMPRODUCT(($B$2:B68="Alior")*($E$2:E68="Sprzedaż")*$C$2:C68*$D$2:D68) -> 0 | AR68: =SUMPRODUCT(($B$2:B68="Idea")*($E$2:E68="Sprzedaż")*$C$2:C68*$D$2:D68) -> 0 | AS68: 451.5 | AT68: 8031.8 | AU68: 2214.87 | AV68: 11847.5 | AW68: 137.2 | AX68: 4766.3 | AY68: 23399.6 | AZ68: 22144.2 | BA68: 4288.8 | BB68: 1500 | BC68: -303.89 | BD68: =BC68-BC67 -> -1167.87 | BE68: =(VLOOKUP(A68,WIG_B[],2,TRUE)/VLOOKUP(A67,WIG_B[],2,TRUE)-1)*$L$1+BE67 -> 54914.51103 | BF68: -6547.382952 | BG68: =Portfel[[#This Row],[WIG.B]]-Portfel[[#This Row],[Portfel. S]] -> 55218.40103 | BH68: 18.8 | BI68: -231.4 | BJ68: -0.82 | BK68: -149.5 | BL68: 2.9 | BM68: -152.97 | BN68: -127.3 | BO68: -159.4 | BP68: 441.5 | BQ68: 54.3 | BR68: =BH68-BH67 -> -4.9 | BS68: =BI68-BI67 -> -170.1 | BT68: =BJ68-BJ67 -> -26.95 | BU68: =BK68-BK67 -> -58.8 | BV68: =BL68-BL67 -> -1.4 | BW68: =BM68-BM67 -> -96.32 | BX68: =BN68-BN67 -> -240 | BY68: =BO68-BO67 -> -595.8 | BZ68: =BP68-BP67 -> 29.4 | CA68: =BQ68-BQ67 -> -3
A69: 42828 | B69: MBANK | C69: 373.46 | D69: -10 | E69: Kupno | F69: 0.01403095378 | G69: 0.1588925186 | H69: 0.257189525 | I69: Polityka | L69: 417179.74 | O69: =SUMIFS($D$2:D69,$B$2:B69,"MIL") -> -70 | P69: =SUMIFS($D$2:D69,$B$2:B69,"PEKAO") -> -70 | Q69: =SUMIFS($D$2:D69,$B$2:B69,"PKOBP") -> -70 | R69: =SUMIFS($D$2:D69,$B$2:B69,"ING") -> -70 | S69: =SUMIFS($D$2:D69,$B$2:B69,"GETIN") -> -70 | T69: =SUMIFS($D$2:D69,$B$2:B69,"Handlowy") -> -70 | U69: =SUMIFS($D$2:D69,$B$2:B69,"SANTANDER") -> -70 | V69: =SUMIFS($D$2:D69,$B$2:B69,"MBANK") -> -70 | W69: =SUMIFS($D$2:D69,$B$2:B69,"Alior") -> -60 | X69: =SUMIFS($D$2:D69,$B$2:B69,"Idea") -> -60 | Y69: =SUMPRODUCT(($B$2:B69="MIL")*($E$2:E69="Kupno")*$C$2:C69*$D$2:D69) -> -432.7 | Z69: =SUMPRODUCT(($B$2:B69="PEKAO")*($E$2:E69="Kupno")*$C$2:C69*$D$2:D69) -> -8263.2 | AA69: =SUMPRODUCT(($B$2:B69="PKOBP")*($E$2:E69="Kupno")*$C$2:C69*$D$2:D69) -> -2215.69 | AB69: =SUMPRODUCT(($B$2:B69="ING")*($E$2:E69="Kupno")*$C$2:C69*$D$2:D69) -> -11997 | AC69: =SUMPRODUCT(($B$2:B69="GETIN")*($E$2:E69="Kupno")*$C$2:C69*$D$2:D69) -> -134.3 | AD69: =SUMPRODUCT(($B$2:B69="Handlowy")*($E$2:E69="Kupno")*$C$2:C69*$D$2:D69) -> -4919.27 | AE69: =SUMPRODUCT(($B$2:B69="SANTANDER")*($E$2:E69="Kupno")*$C$2:C69*$D$2:D69) -> -23526.9 | AF69: =SUMPRODUCT(($B$2:B69="MBANK")*($E$2:E69="Kupno")*$C$2:C69*$D$2:D69) -> -26038.2 | AG69: =SUMPRODUCT(($B$2:B69="Alior")*($E$2:E69="Kupno")*$C$2:C69*$D$2:D69) -> -3847.3 | AH69: =SUMPRODUCT(($B$2:B69="Idea")*($E$2:E69="Kupno")*$C$2:C69*$D$2:D69) -> -1445.7 | AI69: =SUMPRODUCT(($B$2:B69="MIL")*($E$2:E69="Sprzedaż")*$C$2:C69*$D$2:D69) -> 0 | AJ69: =SUMPRODUCT(($B$2:B69="PEKAO")*($E$2:E69="Sprzedaż")*$C$2:C69*$D$2:D69) -> 0 | AK69: =SUMPRODUCT(($B$2:B69="PKOBP")*($E$2:E69="Sprzedaż")*$C$2:C69*$D$2:D69) -> 0 | AL69: =SUMPRODUCT(($B$2:B69="ING")*($E$2:E69="Sprzedaż")*$C$2:C69*$D$2:D69) -> 0 | AM69: =SUMPRODUCT(($B$2:B69="GETIN")*($E$2:E69="Sprzedaż")*$C$2:C69*$D$2:D69) -> 0 | AN69: =SUMPRODUCT(($B$2:B69="Handlowy")*($E$2:E69="Sprzedaż")*$C$2:C69*$D$2:D69) -> 0 | AO69: =SUMPRODUCT(($B$2:B69="SANTANDER")*($E$2:E69="Sprzedaż")*$C$2:C69*$D$2:D69) -> 0 | AP69: =SUMPRODUCT(($B$2:B69="MBANK")*($E$2:E69="Sprzedaż")*$C$2:C69*$D$2:D69) -> 0 | AQ69: =SUMPRODUCT(($B$2:B69="Alior")*($E$2:E69="Sprzedaż")*$C$2:C69*$D$2:D69) -> 0 | AR69: =SUMPRODUCT(($B$2:B69="Idea")*($E$2:E69="Sprzedaż")*$C$2:C69*$D$2:D69) -> 0 | AS69: 458.5 | AT69: 8117.2 | AU69: 2279.83 | AV69: 11775.4 | AW69: 130.9 | AX69: 4822.23 | AY69: 23604.7 | AZ69: 26142.2 | BA69: 4331.4 | BB69: 1493.4 | BC69: 335.5 | BD69: 639.39 | BE69: =(VLOOKUP(A69,WIG_B[],2,TRUE)/VLOOKUP(A68,WIG_B[],2,TRUE)-1)*$L$1+BE68 -> 62322.53822 | BF69: 7408.027186 | BG69: =Portfel[[#This Row],[WIG.B]]-Portfel[[#This Row],[Portfel. S]] -> 61987.03822 | BH69: 25.8 | BI69: -146 | BJ69: 64.14 | BK69: -221.6 | BL69: -3.4 | BM69: -97.04 | BN69: 77.8 | BO69: 104 | BP69: 484.1 | BQ69: 47.7 | BR69: 7 | BS69: 85.4 | BT69: 64.96 | BU69: -72.1 | BV69: -6.3 | BW69: 55.93 | BX69: 205.1 | BY69: 263.4 | BZ69: 42.6 | CA69: -6.6
A70: 42829 | B70: Alior | C70: 71.98 | D70: -10 | E70: Kupno | F70: 0.002361767158 | G70: 0.01361489303 | H70: -0.1411503195 | I70: Sprawozdanie | L70: 416459.94 | O70: =SUMIFS($D$2:D70,$B$2:B70,"MIL") -> -70 | P70: =SUMIFS($D$2:D70,$B$2:B70,"PEKAO") -> -70 | Q70: =SUMIFS($D$2:D70,$B$2:B70,"PKOBP") -> -70 | R70: =SUMIFS($D$2:D70,$B$2:B70,"ING") -> -70 | S70: =SUMIFS($D$2:D70,$B$2:B70,"GETIN") -> -70 | T70: =SUMIFS($D$2:D70,$B$2:B70,"Handlowy") -> -70 | U70: =SUMIFS($D$2:D70,$B$2:B70,"SANTANDER") -> -70 | V70: =SUMIFS($D$2:D70,$B$2:B70,"MBANK") -> -70 | W70: =SUMIFS($D$2:D70,$B$2:B70,"Alior") -> -70 | X70: =SUMIFS($D$2:D70,$B$2:B70,"Idea") -> -60 | Y70: =SUMPRODUCT(($B$2:B70="MIL")*($E$2:E70="Kupno")*$C$2:C70*$D$2:D70) -> -432.7 | Z70: =SUMPRODUCT(($B$2:B70="PEKAO")*($E$2:E70="Kupno")*$C$2:C70*$D$2:D70) -> -8263.2 | AA70: =SUMPRODUCT(($B$2:B70="PKOBP")*($E$2:E70="Kupno")*$C$2:C70*$D$2:D70) -> -2215.69 | AB70: =SUMPRODUCT(($B$2:B70="ING")*($E$2:E70="Kupno")*$C$2:C70*$D$2:D70) -> -11997 | AC70: =SUMPRODUCT(($B$2:B70="GETIN")*($E$2:E70="Kupno")*$C$2:C70*$D$2:D70) -> -134.3 | AD70: =SUMPRODUCT(($B$2:B70="Handlowy")*($E$2:E70="Kupno")*$C$2:C70*$D$2:D70) -> -4919.27 | AE70: =SUMPRODUCT(($B$2:B70="SANTANDER")*($E$2:E70="Kupno")*$C$2:C70*$D$2:D70) -> -23526.9 | AF70: =SUMPRODUCT(($B$2:B70="MBANK")*($E$2:E70="Kupno")*$C$2:C70*$D$2:D70) -> -26038.2 | AG70: =SUMPRODUCT(($B$2:B70="Alior")*($E$2:E70="Kupno")*$C$2:C70*$D$2:D70) -> -4567.1 | AH70: =SUMPRODUCT(($B$2:B70="Idea")*($E$2:E70="Kupno")*$C$2:C70*$D$2:D70) -> -1445.7 | AI70: =SUMPRODUCT(($B$2:B70="MIL")*($E$2:E70="Sprzedaż")*$C$2:C70*$D$2:D70) -> 0 | AJ70: =SUMPRODUCT(($B$2:B70="PEKAO")*($E$2:E70="Sprzedaż")*$C$2:C70*$D$2:D70) -> 0 | AK70: =SUMPRODUCT(($B$2:B70="PKOBP")*($E$2:E70="Sprzedaż")*$C$2:C70*$D$2:D70) -> 0 | AL70: =SUMPRODUCT(($B$2:B70="ING")*($E$2:E70="Sprzedaż")*$C$2:C70*$D$2:D70) -> 0 | AM70: =SUMPRODUCT(($B$2:B70="GETIN")*($E$2:E70="Sprzedaż")*$C$2:C70*$D$2:D70) -> 0 | AN70: =SUMPRODUCT(($B$2:B70="Handlowy")*($E$2:E70="Sprzedaż")*$C$2:C70*$D$2:D70) -> 0 | AO70: =SUMPRODUCT(($B$2:B70="SANTANDER")*($E$2:E70="Sprzedaż")*$C$2:C70*$D$2:D70) -> 0 | AP70: =SUMPRODUCT(($B$2:B70="MBANK")*($E$2:E70="Sprzedaż")*$C$2:C70*$D$2:D70) -> 0 | AQ70: =SUMPRODUCT(($B$2:B70="Alior")*($E$2:E70="Sprzedaż")*$C$2:C70*$D$2:D70) -> 0 | AR70: =SUMPRODUCT(($B$2:B70="Idea")*($E$2:E70="Sprzedaż")*$C$2:C70*$D$2:D70) -> 0 | AS70: 466.9 | AT70: 8183.7 | AU70: 2317.84 | AV70: 11775.4 | AW70: 129.5 | AX70: 4872.56 | AY70: 23945.6 | AZ70: 26664.4 | BA70: 5038.6 | BB70: 1500 | BC70: 1354.44 | BD70: 1018.94 | BE70: =(VLOOKUP(A70,WIG_B[],2,TRUE)/VLOOKUP(A69,WIG_B[],2,TRUE)-1)*$L$1+BE69 -> 67988.94133 | BF70: 5666.403113 | BG70: =Portfel[[#This Row],[WIG.B]]-Portfel[[#This Row],[Portfel. S]] -> 66634.50133 | BH70: 34.2 | BI70: -79.5 | BJ70: 102.15 | BK70: -221.6 | BL70: -4.8 | BM70: -46.71 | BN70: 418.7 | BO70: 626.2 | BP70: 471.5 | BQ70: 54.3 | BR70: 8.4 | BS70: 66.5 | BT70: 38.01 | BU70: 0 | BV70: -1.4 | BW70: 50.33 | BX70: 340.9 | BY70: 522.2 | BZ70: -12.6 | CA70: 6.6
A71: 42830 | B71: Idea | C71: 24.7 | D71: -10 | E71: Kupno | F71: 0.0004048582996 | G71: -0.02591093117 | H71: -0.02834008097 | I71: Makro | L71: 416212.94 | O71: =SUMIFS($D$2:D71,$B$2:B71,"MIL") -> -70 | P71: =SUMIFS($D$2:D71,$B$2:B71,"PEKAO") -> -70 | Q71: =SUMIFS($D$2:D71,$B$2:B71,"PKOBP") -> -70 | R71: =SUMIFS($D$2:D71,$B$2:B71,"ING") -> -70 | S71: =SUMIFS($D$2:D71,$B$2:B71,"GETIN") -> -70 | T71: =SUMIFS($D$2:D71,$B$2:B71,"Handlowy") -> -70 | U71: =SUMIFS($D$2:D71,$B$2:B71,"SANTANDER") -> -70 | V71: =SUMIFS($D$2:D71,$B$2:B71,"MBANK") -> -70 | W71: =SUMIFS($D$2:D71,$B$2:B71,"Alior") -> -70 | X71: =SUMIFS($D$2:D71,$B$2:B71,"Idea") -> -70 | Y71: =SUMPRODUCT(($B$2:B71="MIL")*($E$2:E71="Kupno")*$C$2:C71*$D$2:D71) -> -432.7 | Z71: =SUMPRODUCT(($B$2:B71="PEKAO")*($E$2:E71="Kupno")*$C$2:C71*$D$2:D71) -> -8263.2 | AA71: =SUMPRODUCT(($B$2:B71="PKOBP")*($E$2:E71="Kupno")*$C$2:C71*$D$2:D71) -> -2215.69 | AB71: =SUMPRODUCT(($B$2:B71="ING")*($E$2:E71="Kupno")*$C$2:C71*$D$2:D71) -> -11997 | AC71: =SUMPRODUCT(($B$2:B71="GETIN")*($E$2:E71="Kupno")*$C$2:C71*$D$2:D71) -> -134.3 | AD71: =SUMPRODUCT(($B$2:B71="Handlowy")*($E$2:E71="Kupno")*$C$2:C71*$D$2:D71) -> -4919.27 | AE71: =SUMPRODUCT(($B$2:B71="SANTANDER")*($E$2:E71="Kupno")*$C$2:C71*$D$2:D71) -> -23526.9 | AF71: =SUMPRODUCT(($B$2:B71="MBANK")*($E$2:E71="Kupno")*$C$2:C71*$D$2:D71) -> -26038.2 | AG71: =SUMPRODUCT(($B$2:B71="Alior")*($E$2:E71="Kupno")*$C$2:C71*$D$2:D71) -> -4567.1 | AH71: =SUMPRODUCT(($B$2:B71="Idea")*($E$2:E71="Kupno")*$C$2:C71*$D$2:D71) -> -1692.7 | AI71: =SUMPRODUCT(($B$2:B71="MIL")*($E$2:E71="Sprzedaż")*$C$2:C71*$D$2:D71) -> 0 | AJ71: =SUMPRODUCT(($B$2:B71="PEKAO")*($E$2:E71="Sprzedaż")*$C$2:C71*$D$2:D71) -> 0 | AK71: =SUMPRODUCT(($B$2:B71="PKOBP")*($E$2:E71="Sprzedaż")*$C$2:C71*$D$2:D71) -> 0 | AL71: =SUMPRODUCT(($B$2:B71="ING")*($E$2:E71="Sprzedaż")*$C$2:C71*$D$2:D71) -> 0 | AM71: =SUMPRODUCT(($B$2:B71="GETIN")*($E$2:E71="Sprzedaż")*$C$2:C71*$D$2:D71) -> 0 | AN71: =SUMPRODUCT(($B$2:B71="Handlowy")*($E$2:E71="Sprzedaż")*$C$2:C71*$D$2:D71) -> 0 | AO71: =SUMPRODUCT(($B$2:B71="SANTANDER")*($E$2:E71="Sprzedaż")*$C$2:C71*$D$2:D71) -> 0 | AP71: =SUMPRODUCT(($B$2:B71="MBANK")*($E$2:E71="Sprzedaż")*$C$2:C71*$D$2:D71) -> 0 | AQ71: =SUMPRODUCT(($B$2:B71="Alior")*($E$2:E71="Sprzedaż")*$C$2:C71*$D$2:D71) -> 0 | AR71: =SUMPRODUCT(($B$2:B71="Idea")*($E$2:E71="Sprzedaż")*$C$2:C71*$D$2:D71) -> 0 | AS71: 462 | AT71: 8262.8 | AU71: 2335.13 | AV71: 11844 | AW71: 126.7 | AX71: 4963.91 | AY71: 23912 | AZ71: 27069 | BA71: 5098.1 | BB71: 1729 | BC71: 2015.58 | BD71: 661.14 | BE71: =(VLOOKUP(A71,WIG_B[],2,TRUE)/VLOOKUP(A70,WIG_B[],2,TRUE)-1)*$L$1+BE70 -> 71316.12431 | BF71: 3327.18298 | BG71: =Portfel[[#This Row],[WIG.B]]-Portfel[[#This Row],[Portfel. S]] -> 69300.54431 | BH71: 29.3 | BI71: -0.4 | BJ71: 119.44 | BK71: -153 | BL71: -7.6 | BM71: 44.64 | BN71: 385.1 | BO71: 1030.8 | BP71: 531 | BQ71: 36.3 | BR71: -4.9 | BS71: 79.1 | BT71: 17.29 | BU71: 68.6 | BV71: -2.8 | BW71: 91.35 | BX71: -33.6 | BY71: 404.6 | BZ71: 59.5 | CA71: -18
A72: 42831 | B72: MIL | C72: 6.6 | D72: -10 | E72: Kupno | F72: -0.006060606061 | G72: 0.0696969697 | H72: 0.1257575758 | I72: Polityka | L72: 416146.94 | O72: =SUMIFS($D$2:D72,$B$2:B72,"MIL") -> -80 | P72: =SUMIFS($D$2:D72,$B$2:B72,"PEKAO") -> -70 | Q72: =SUMIFS($D$2:D72,$B$2:B72,"PKOBP") -> -70 | R72: =SUMIFS($D$2:D72,$B$2:B72,"ING") -> -70 | S72: =SUMIFS($D$2:D72,$B$2:B72,"GETIN") -> -70 | T72: =SUMIFS($D$2:D72,$B$2:B72,"Handlowy") -> -70 | U72: =SUMIFS($D$2:D72,$B$2:B72,"SANTANDER") -> -70 | V72: =SUMIFS($D$2:D72,$B$2:B72,"MBANK") -> -70 | W72: =SUMIFS($D$2:D72,$B$2:B72,"Alior") -> -70 | X72: =SUMIFS($D$2:D72,$B$2:B72,"Idea") -> -70 | Y72: =SUMPRODUCT(($B$2:B72="MIL")*($E$2:E72="Kupno")*$C$2:C72*$D$2:D72) -> -498.7 | Z72: =SUMPRODUCT(($B$2:B72="PEKAO")*($E$2:E72="Kupno")*$C$2:C72*$D$2:D72) -> -8263.2 | AA72: =SUMPRODUCT(($B$2:B72="PKOBP")*($E$2:E72="Kupno")*$C$2:C72*$D$2:D72) -> -2215.69 | AB72: =SUMPRODUCT(($B$2:B72="ING")*($E$2:E72="Kupno")*$C$2:C72*$D$2:D72) -> -11997 | AC72: =SUMPRODUCT(($B$2:B72="GETIN")*($E$2:E72="Kupno")*$C$2:C72*$D$2:D72) -> -134.3 | AD72: =SUMPRODUCT(($B$2:B72="Handlowy")*($E$2:E72="Kupno")*$C$2:C72*$D$2:D72) -> -4919.27 | AE72: =SUMPRODUCT(($B$2:B72="SANTANDER")*($E$2:E72="Kupno")*$C$2:C72*$D$2:D72) -> -23526.9 | AF72: =SUMPRODUCT(($B$2:B72="MBANK")*($E$2:E72="Kupno")*$C$2:C72*$D$2:D72) -> -26038.2 | AG72: =SUMPRODUCT(($B$2:B72="Alior")*($E$2:E72="Kupno")*$C$2:C72*$D$2:D72) -> -4567.1 | AH72: =SUMPRODUCT(($B$2:B72="Idea")*($E$2:E72="Kupno")*$C$2:C72*$D$2:D72) -> -1692.7 | AI72: =SUMPRODUCT(($B$2:B72="MIL")*($E$2:E72="Sprzedaż")*$C$2:C72*$D$2:D72) -> 0 | AJ72: =SUMPRODUCT(($B$2:B72="PEKAO")*($E$2:E72="Sprzedaż")*$C$2:C72*$D$2:D72) -> 0 | AK72: =SUMPRODUCT(($B$2:B72="PKOBP")*($E$2:E72="Sprzedaż")*$C$2:C72*$D$2:D72) -> 0 | AL72: =SUMPRODUCT(($B$2:B72="ING")*($E$2:E72="Sprzedaż")*$C$2:C72*$D$2:D72) -> 0 | AM72: =SUMPRODUCT(($B$2:B72="GETIN")*($E$2:E72="Sprzedaż")*$C$2:C72*$D$2:D72) -> 0 | AN72: =SUMPRODUCT(($B$2:B72="Handlowy")*($E$2:E72="Sprzedaż")*$C$2:C72*$D$2:D72) -> 0 | AO72: =SUMPRODUCT(($B$2:B72="SANTANDER")*($E$2:E72="Sprzedaż")*$C$2:C72*$D$2:D72) -> 0 | AP72: =SUMPRODUCT(($B$2:B72="MBANK")*($E$2:E72="Sprzedaż")*$C$2:C72*$D$2:D72) -> 0 | AQ72: =SUMPRODUCT(($B$2:B72="Alior")*($E$2:E72="Sprzedaż")*$C$2:C72*$D$2:D72) -> 0 | AR72: =SUMPRODUCT(($B$2:B72="Idea")*($E$2:E72="Sprzedaż")*$C$2:C72*$D$2:D72) -> 0 | AS72: 528 | AT72: 8309 | AU72: 2348.22 | AV72: 11878.3 | AW72: 129.5 | AX72: 4958.31 | AY72: 24239.6 | AZ72: 26879.3 | BA72: 5096 | BB72: 1742.3 | BC72: 2255.47 | BD72: 239.89 | BE72: =(VLOOKUP(A72,WIG_B[],2,TRUE)/VLOOKUP(A71,WIG_B[],2,TRUE)-1)*$L$1+BE71 -> 73705.55103 | BF72: 2389.426718 | BG72: =Portfel[[#This Row],[WIG.B]]-Portfel[[#This Row],[Portfel. S]] -> 71450.08103 | BH72: 29.3 | BI72: 45.8 | BJ72: 132.53 | BK72: -118.7 | BL72: -4.8 | BM72: 39.04 | BN72: 712.7 | BO72: 841.1 | BP72: 528.9 | BQ72: 49.6 | BR72: 0 | BS72: 46.2 | BT72: 13.09 | BU72: 34.3 | BV72: 2.8 | BW72: -5.6 | BX72: 327.6 | BY72: -189.7 | BZ72: -2.1 | CA72: 13.3
A73: 42832 | B73: PEKAO | C73: 118.57 | D73: -10 | E73: Kupno | F73: 0 | G73: 0.02268702033 | H73: -0.01880745551 | I73: Sprawozdanie | L73: 414961.24 | O73: =SUMIFS($D$2:D73,$B$2:B73,"MIL") -> -80 | P73: =SUMIFS($D$2:D73,$B$2:B73,"PEKAO") -> -80 | Q73: =SUMIFS($D$2:D73,$B$2:B73,"PKOBP") -> -70 | R73: =SUMIFS($D$2:D73,$B$2:B73,"ING") -> -70 | S73: =SUMIFS($D$2:D73,$B$2:B73,"GETIN") -> -70 | T73: =SUMIFS($D$2:D73,$B$2:B73,"Handlowy") -> -70 | U73: =SUMIFS($D$2:D73,$B$2:B73,"SANTANDER") -> -70 | V73: =SUMIFS($D$2:D73,$B$2:B73,"MBANK") -> -70 | W73: =SUMIFS($D$2:D73,$B$2:B73,"Alior") -> -70 | X73: =SUMIFS($D$2:D73,$B$2:B73,"Idea") -> -70 | Y73: =SUMPRODUCT(($B$2:B73="MIL")*($E$2:E73="Kupno")*$C$2:C73*$D$2:D73) -> -498.7 | Z73: =SUMPRODUCT(($B$2:B73="PEKAO")*($E$2:E73="Kupno")*$C$2:C73*$D$2:D73) -> -9448.9 | AA73: =SUMPRODUCT(($B$2:B73="PKOBP")*($E$2:E73="Kupno")*$C$2:C73*$D$2:D73) -> -2215.69 | AB73: =SUMPRODUCT(($B$2:B73="ING")*($E$2:E73="Kupno")*$C$2:C73*$D$2:D73) -> -11997 | AC73: =SUMPRODUCT(($B$2:B73="GETIN")*($E$2:E73="Kupno")*$C$2:C73*$D$2:D73) -> -134.3 | AD73: =SUMPRODUCT(($B$2:B73="Handlowy")*($E$2:E73="Kupno")*$C$2:C73*$D$2:D73) -> -4919.27 | AE73: =SUMPRODUCT(($B$2:B73="SANTANDER")*($E$2:E73="Kupno")*$C$2:C73*$D$2:D73) -> -23526.9 | AF73: =SUMPRODUCT(($B$2:B73="MBANK")*($E$2:E73="Kupno")*$C$2:C73*$D$2:D73) -> -26038.2 | AG73: =SUMPRODUCT(($B$2:B73="Alior")*($E$2:E73="Kupno")*$C$2:C73*$D$2:D73) -> -4567.1 | AH73: =SUMPRODUCT(($B$2:B73="Idea")*($E$2:E73="Kupno")*$C$2:C73*$D$2:D73) -> -1692.7 | AI73: =SUMPRODUCT(($B$2:B73="MIL")*($E$2:E73="Sprzedaż")*$C$2:C73*$D$2:D73) -> 0 | AJ73: =SUMPRODUCT(($B$2:B73="PEKAO")*($E$2:E73="Sprzedaż")*$C$2:C73*$D$2:D73) -> 0 | AK73: =SUMPRODUCT(($B$2:B73="PKOBP")*($E$2:E73="Sprzedaż")*$C$2:C73*$D$2:D73) -> 0 | AL73: =SUMPRODUCT(($B$2:B73="ING")*($E$2:E73="Sprzedaż")*$C$2:C73*$D$2:D73) -> 0 | AM73: =SUMPRODUCT(($B$2:B73="GETIN")*($E$2:E73="Sprzedaż")*$C$2:C73*$D$2:D73) -> 0 | AN73: =SUMPRODUCT(($B$2:B73="Handlowy")*($E$2:E73="Sprzedaż")*$C$2:C73*$D$2:D73) -> 0 | AO73: =SUMPRODUCT(($B$2:B73="SANTANDER")*($E$2:E73="Sprzedaż")*$C$2:C73*$D$2:D73) -> 0 | AP73: =SUMPRODUCT(($B$2:B73="MBANK")*($E$2:E73="Sprzedaż")*$C$2:C73*$D$2:D73) -> 0 | AQ73: =SUMPRODUCT(($B$2:B73="Alior")*($E$2:E73="Sprzedaż")*$C$2:C73*$D$2:D73) -> 0 | AR73: =SUMPRODUCT(($B$2:B73="Idea")*($E$2:E73="Sprzedaż")*$C$2:C73*$D$2:D73) -> 0 | AS73: 524.8 | AT73: 9485.6 | AU73: 2307.48 | AV73: 11788.7 | AW73: 128.8 | AX73: 4909.24 | AY73: 24252.9 | AZ73: 26509 | BA73: 5050.5 | BB73: 1729.7 | BC73: 1647.96 | BD73: -607.51 | BE73: =(VLOOKUP(A73,WIG_B[],2,TRUE)/VLOOKUP(A72,WIG_B[],2,TRUE)-1)*$L$1+BE72 -> 69392.3853 | BF73: -4313.16573 | BG73: =Portfel[[#This Row],[WIG.B]]-Portfel[[#This Row],[Portfel. S]] -> 67744.4253 | BH73: 26.1 | BI73: 36.7 | BJ73: 91.79 | BK73: -208.3 | BL73: -5.5 | BM73: -10.03 | BN73: 726 | BO73: 470.8 | BP73: 483.4 | BQ73: 37 | BR73: -3.2 | BS73: -9.1 | BT73: -40.74 | BU73: -89.6 | BV73: -0.7 | BW73: -49.07 | BX73: 13.3 | BY73: -370.3 | BZ73: -45.5 | CA73: -12.6
A74: 42835 | B74: PKOBP | C74: 32.757 | D74: -10 | E74: Kupno | F74: -0.0370607809 | G74: 0.08645480355 | H74: 0.04399059743 | I74: Makro | L74: 414633.67 | O74: =SUMIFS($D$2:D74,$B$2:B74,"MIL") -> -80 | P74: =SUMIFS($D$2:D74,$B$2:B74,"PEKAO") -> -80 | Q74: =SUMIFS($D$2:D74,$B$2:B74,"PKOBP") -> -80 | R74: =SUMIFS($D$2:D74,$B$2:B74,"ING") -> -70 | S74: =SUMIFS($D$2:D74,$B$2:B74,"GETIN") -> -70 | T74: =SUMIFS($D$2:D74,$B$2:B74,"Handlowy") -> -70 | U74: =SUMIFS($D$2:D74,$B$2:B74,"SANTANDER") -> -70 | V74: =SUMIFS($D$2:D74,$B$2:B74,"MBANK") -> -70 | W74: =SUMIFS($D$2:D74,$B$2:B74,"Alior") -> -70 | X74: =SUMIFS($D$2:D74,$B$2:B74,"Idea") -> -70 | Y74: =SUMPRODUCT(($B$2:B74="MIL")*($E$2:E74="Kupno")*$C$2:C74*$D$2:D74) -> -498.7 | Z74: =SUMPRODUCT(($B$2:B74="PEKAO")*($E$2:E74="Kupno")*$C$2:C74*$D$2:D74) -> -9448.9 | AA74: =SUMPRODUCT(($B$2:B74="PKOBP")*($E$2:E74="Kupno")*$C$2:C74*$D$2:D74) -> -2543.26 | AB74: =SUMPRODUCT(($B$2:B74="ING")*($E$2:E74="Kupno")*$C$2:C74*$D$2:D74) -> -11997 | AC74: =SUMPRODUCT(($B$2:B74="GETIN")*($E$2:E74="Kupno")*$C$2:C74*$D$2:D74) -> -134.3 | AD74: =SUMPRODUCT(($B$2:B74="Handlowy")*($E$2:E74="Kupno")*$C$2:C74*$D$2:D74) -> -4919.27 | AE74: =SUMPRODUCT(($B$2:B74="SANTANDER")*($E$2:E74="Kupno")*$C$2:C74*$D$2:D74) -> -23526.9 | AF74: =SUMPRODUCT(($B$2:B74="MBANK")*($E$2:E74="Kupno")*$C$2:C74*$D$2:D74) -> -26038.2 | AG74: =SUMPRODUCT(($B$2:B74="Alior")*($E$2:E74="Kupno")*$C$2:C74*$D$2:D74) -> -4567.1 | AH74: =SUMPRODUCT(($B$2:B74="Idea")*($E$2:E74="Kupno")*$C$2:C74*$D$2:D74) -> -1692.7 | AI74: =SUMPRODUCT(($B$2:B74="MIL")*($E$2:E74="Sprzedaż")*$C$2:C74*$D$2:D74) -> 0 | AJ74: =SUMPRODUCT(($B$2:B74="PEKAO")*($E$2:E74="Sprzedaż")*$C$2:C74*$D$2:D74) -> 0 | AK74: =SUMPRODUCT(($B$2:B74="PKOBP")*($E$2:E74="Sprzedaż")*$C$2:C74*$D$2:D74) -> 0 | AL74: =SUMPRODUCT(($B$2:B74="ING")*($E$2:E74="Sprzedaż")*$C$2:C74*$D$2:D74) -> 0 | AM74: =SUMPRODUCT(($B$2:B74="GETIN")*($E$2:E74="Sprzedaż")*$C$2:C74*$D$2:D74) -> 0 | AN74: =SUMPRODUCT(($B$2:B74="Handlowy")*($E$2:E74="Sprzedaż")*$C$2:C74*$D$2:D74) -> 0 | AO74: =SUMPRODUCT(($B$2:B74="SANTANDER")*($E$2:E74="Sprzedaż")*$C$2:C74*$D$2:D74) -> 0 | AP74: =SUMPRODUCT(($B$2:B74="MBANK")*($E$2:E74="Sprzedaż")*$C$2:C74*$D$2:D74) -> 0 | AQ74: =SUMPRODUCT(($B$2:B74="Alior")*($E$2:E74="Sprzedaż")*$C$2:C74*$D$2:D74) -> 0 | AR74: =SUMPRODUCT(($B$2:B74="Idea")*($E$2:E74="Sprzedaż")*$C$2:C74*$D$2:D74) -> 0 | AS74: 514.4 | AT74: 9498.4 | AU74: 2620.56 | AV74: 11592.7 | AW74: 130.2 | AX74: 4603.48 | AY74: 24185 | AZ74: 26086.9 | BA74: 5005 | BB74: 1738.1 | BC74: 608.41 | BD74: -1039.55 | BE74: =(VLOOKUP(A74,WIG_B[],2,TRUE)/VLOOKUP(A73,WIG_B[],2,TRUE)-1)*$L$1+BE73 -> 65704.61255 | BF74: -3687.772744 | BG74: =Portfel[[#This Row],[WIG.B]]-Portfel[[#This Row],[Portfel. S]] -> 65096.20255 | BH74: 15.7 | BI74: 49.5 | BJ74: 77.3 | BK74: -404.3 | BL74: -4.1 | BM74: -315.79 | BN74: 658.1 | BO74: 48.7 | BP74: 437.9 | BQ74: 45.4 | BR74: -10.4 | BS74: 12.8 | BT74: -14.49 | BU74: -196 | BV74: 1.4 | BW74: -305.76 | BX74: -67.9 | BY74: -422.1 | BZ74: -45.5 | CA74: 8.4
A75: 42836 | B75: ING | C75: 161.92 | D75: -10 | E75: Kupno | F75: 0.02371541502 | G75: 0.1245676877 | H75: 0.1239500988 | I75: Polityka | L75: 413014.47 | O75: =SUMIFS($D$2:D75,$B$2:B75,"MIL") -> -80 | P75: =SUMIFS($D$2:D75,$B$2:B75,"PEKAO") -> -80 | Q75: =SUMIFS($D$2:D75,$B$2:B75,"PKOBP") -> -80 | R75: =SUMIFS($D$2:D75,$B$2:B75,"ING") -> -80 | S75: =SUMIFS($D$2:D75,$B$2:B75,"GETIN") -> -70 | T75: =SUMIFS($D$2:D75,$B$2:B75,"Handlowy") -> -70 | U75: =SUMIFS($D$2:D75,$B$2:B75,"SANTANDER") -> -70 | V75: =SUMIFS($D$2:D75,$B$2:B75,"MBANK") -> -70 | W75: =SUMIFS($D$2:D75,$B$2:B75,"Alior") -> -70 | X75: =SUMIFS($D$2:D75,$B$2:B75,"Idea") -> -70 | Y75: =SUMPRODUCT(($B$2:B75="MIL")*($E$2:E75="Kupno")*$C$2:C75*$D$2:D75) -> -498.7 | Z75: =SUMPRODUCT(($B$2:B75="PEKAO")*($E$2:E75="Kupno")*$C$2:C75*$D$2:D75) -> -9448.9 | AA75: =SUMPRODUCT(($B$2:B75="PKOBP")*($E$2:E75="Kupno")*$C$2:C75*$D$2:D75) -> -2543.26 | AB75: =SUMPRODUCT(($B$2:B75="ING")*($E$2:E75="Kupno")*$C$2:C75*$D$2:D75) -> -13616.2 | AC75: =SUMPRODUCT(($B$2:B75="GETIN")*($E$2:E75="Kupno")*$C$2:C75*$D$2:D75) -> -134.3 | AD75: =SUMPRODUCT(($B$2:B75="Handlowy")*($E$2:E75="Kupno")*$C$2:C75*$D$2:D75) -> -4919.27 | AE75: =SUMPRODUCT(($B$2:B75="SANTANDER")*($E$2:E75="Kupno")*$C$2:C75*$D$2:D75) -> -23526.9 | AF75: =SUMPRODUCT(($B$2:B75="MBANK")*($E$2:E75="Kupno")*$C$2:C75*$D$2:D75) -> -26038.2 | AG75: =SUMPRODUCT(($B$2:B75="Alior")*($E$2:E75="Kupno")*$C$2:C75*$D$2:D75) -> -4567.1 | AH75: =SUMPRODUCT(($B$2:B75="Idea")*($E$2:E75="Kupno")*$C$2:C75*$D$2:D75) -> -1692.7 | AI75: =SUMPRODUCT(($B$2:B75="MIL")*($E$2:E75="Sprzedaż")*$C$2:C75*$D$2:D75) -> 0 | AJ75: =SUMPRODUCT(($B$2:B75="PEKAO")*($E$2:E75="Sprzedaż")*$C$2:C75*$D$2:D75) -> 0 | AK75: =SUMPRODUCT(($B$2:B75="PKOBP")*($E$2:E75="Sprzedaż")*$C$2:C75*$D$2:D75) -> 0 | AL75: =SUMPRODUCT(($B$2:B75="ING")*($E$2:E75="Sprzedaż")*$C$2:C75*$D$2:D75) -> 0 | AM75: =SUMPRODUCT(($B$2:B75="GETIN")*($E$2:E75="Sprzedaż")*$C$2:C75*$D$2:D75) -> 0 | AN75: =SUMPRODUCT(($B$2:B75="Handlowy")*($E$2:E75="Sprzedaż")*$C$2:C75*$D$2:D75) -> 0 | AO75: =SUMPRODUCT(($B$2:B75="SANTANDER")*($E$2:E75="Sprzedaż")*$C$2:C75*$D$2:D75) -> 0 | AP75: =SUMPRODUCT(($B$2:B75="MBANK")*($E$2:E75="Sprzedaż")*$C$2:C75*$D$2:D75) -> 0 | AQ75: =SUMPRODUCT(($B$2:B75="Alior")*($E$2:E75="Sprzedaż")*$C$2:C75*$D$2:D75) -> 0 | AR75: =SUMPRODUCT(($B$2:B75="Idea")*($E$2:E75="Sprzedaż")*$C$2:C75*$D$2:D75) -> 0 | AS75: 501.6 | AT75: 9311.2 | AU75: 2597.6 | AV75: 12953.6 | AW75: 128.1 | AX75: 4518.99 | AY75: 23515.8 | AZ75: 25568.2 | BA75: 4892.3 | BB75: 1732.5 | BC75: -1265.64 | BD75: -1874.05 | BE75: =(VLOOKUP(A75,WIG_B[],2,TRUE)/VLOOKUP(A74,WIG_B[],2,TRUE)-1)*$L$1+BE74 -> 56911.96366 | BF75: -8792.648897 | BG75: =Portfel[[#This Row],[WIG.B]]-Portfel[[#This Row],[Portfel. S]] -> 58177.60366 | BH75: 2.9 | BI75: -137.7 | BJ75: 54.34 | BK75: -662.6 | BL75: -6.2 | BM75: -400.28 | BN75: -11.1 | BO75: -470 | BP75: 325.2 | BQ75: 39.8 | BR75: -12.8 | BS75: -187.2 | BT75: -22.96 | BU75: -258.3 | BV75: -2.1 | BW75: -84.49 | BX75: -669.2 | BY75: -518.7 | BZ75: -112.7 | CA75: -5.6
A76: 42837 | B76: GETIN | C76: 1.85 | D76: -10 | E76: Kupno | F76: -0.01081081081 | G76: 0.005405405405 | H76: -0.2162162162 | I76: Sprawozdanie | L76: 412995.97 | O76: =SUMIFS($D$2:D76,$B$2:B76,"MIL") -> -80 | P76: =SUMIFS($D$2:D76,$B$2:B76,"PEKAO") -> -80 | Q76: =SUMIFS($D$2:D76,$B$2:B76,"PKOBP") -> -80 | R76: =SUMIFS($D$2:D76,$B$2:B76,"ING") -> -80 | S76: =SUMIFS($D$2:D76,$B$2:B76,"GETIN") -> -80 | T76: =SUMIFS($D$2:D76,$B$2:B76,"Handlowy") -> -70 | U76: =SUMIFS($D$2:D76,$B$2:B76,"SANTANDER") -> -70 | V76: =SUMIFS($D$2:D76,$B$2:B76,"MBANK") -> -70 | W76: =SUMIFS($D$2:D76,$B$2:B76,"Alior") -> -70 | X76: =SUMIFS($D$2:D76,$B$2:B76,"Idea") -> -70 | Y76: =SUMPRODUCT(($B$2:B76="MIL")*($E$2:E76="Kupno")*$C$2:C76*$D$2:D76) -> -498.7 | Z76: =SUMPRODUCT(($B$2:B76="PEKAO")*($E$2:E76="Kupno")*$C$2:C76*$D$2:D76) -> -9448.9 | AA76: =SUMPRODUCT(($B$2:B76="PKOBP")*($E$2:E76="Kupno")*$C$2:C76*$D$2:D76) -> -2543.26 | AB76: =SUMPRODUCT(($B$2:B76="ING")*($E$2:E76="Kupno")*$C$2:C76*$D$2:D76) -> -13616.2 | AC76: =SUMPRODUCT(($B$2:B76="GETIN")*($E$2:E76="Kupno")*$C$2:C76*$D$2:D76) -> -152.8 | AD76: =SUMPRODUCT(($B$2:B76="Handlowy")*($E$2:E76="Kupno")*$C$2:C76*$D$2:D76) -> -4919.27 | AE76: =SUMPRODUCT(($B$2:B76="SANTANDER")*($E$2:E76="Kupno")*$C$2:C76*$D$2:D76) -> -23526.9 | AF76: =SUMPRODUCT(($B$2:B76="MBANK")*($E$2:E76="Kupno")*$C$2:C76*$D$2:D76) -> -26038.2 | AG76: =SUMPRODUCT(($B$2:B76="Alior")*($E$2:E76="Kupno")*$C$2:C76*$D$2:D76) -> -4567.1 | AH76: =SUMPRODUCT(($B$2:B76="Idea")*($E$2:E76="Kupno")*$C$2:C76*$D$2:D76) -> -1692.7 | AI76: =SUMPRODUCT(($B$2:B76="MIL")*($E$2:E76="Sprzedaż")*$C$2:C76*$D$2:D76) -> 0 | AJ76: =SUMPRODUCT(($B$2:B76="PEKAO")*($E$2:E76="Sprzedaż")*$C$2:C76*$D$2:D76) -> 0 | AK76: =SUMPRODUCT(($B$2:B76="PKOBP")*($E$2:E76="Sprzedaż")*$C$2:C76*$D$2:D76) -> 0 | AL76: =SUMPRODUCT(($B$2:B76="ING")*($E$2:E76="Sprzedaż")*$C$2:C76*$D$2:D76) -> 0 | AM76: =SUMPRODUCT(($B$2:B76="GETIN")*($E$2:E76="Sprzedaż")*$C$2:C76*$D$2:D76) -> 0 | AN76: =SUMPRODUCT(($B$2:B76="Handlowy")*($E$2:E76="Sprzedaż")*$C$2:C76*$D$2:D76) -> 0 | AO76: =SUMPRODUCT(($B$2:B76="SANTANDER")*($E$2:E76="Sprzedaż")*$C$2:C76*$D$2:D76) -> 0 | AP76: =SUMPRODUCT(($B$2:B76="MBANK")*($E$2:E76="Sprzedaż")*$C$2:C76*$D$2:D76) -> 0 | AQ76: =SUMPRODUCT(($B$2:B76="Alior")*($E$2:E76="Sprzedaż")*$C$2:C76*$D$2:D76) -> 0 | AR76: =SUMPRODUCT(($B$2:B76="Idea")*($E$2:E76="Sprzedaż")*$C$2:C76*$D$2:D76) -> 0 | AS76: 514.4 | AT76: 9207.2 | AU76: 2526.56 | AV76: 13087.2 | AW76: 148 | AX76: 4520.88 | AY76: 24117.1 | AZ76: 26280.8 | BA76: 4854.5 | BB76: 1663.2 | BC76: -84.19 | BD76: 1181.45 | BE76: =(VLOOKUP(A76,WIG_B[],2,TRUE)/VLOOKUP(A75,WIG_B[],2,TRUE)-1)*$L$1+BE75 -> 53833.60664 | BF76: -3078.357012 | BG76: =Portfel[[#This Row],[WIG.B]]-Portfel[[#This Row],[Portfel. S]] -> 53917.79664 | BH76: 15.7 | BI76: -241.7 | BJ76: -16.7 | BK76: -529 | BL76: -4.8 | BM76: -398.39 | BN76: 590.2 | BO76: 242.6 | BP76: 287.4 | BQ76: -29.5 | BR76: 12.8 | BS76: -104 | BT76: -71.04 | BU76: 133.6 | BV76: 1.4 | BW76: 1.89 | BX76: 601.3 | BY76: 712.6 | BZ76: -37.8 | CA76: -69.3
